{"text_format":"1","workbook":"xlsx","n_sheets":6,"sheets":["Eingabemaske","Stückliste","Kurzanleitung","Gesamtpreisliste","Ausschreibungstexte","Changelog"],"not_rendered":{"charts":0,"images":5,"macros":1,"external_links":0,"defined_names":9,"comments":1,"pivot_tables":0},"unopened":[],"bounds":{"document_bytes":16777216,"sheet_cells":100000,"rows_first":2000,"rows_last":500,"rows_between":2000,"halvings":0,"cell_chars":16384,"cell_head_chars":4096},"cells_cut":0,"cells_raw":0,"read":"whole","date_system":"1900"}

{"sheet":"Eingabemaske","index":0,"n_rows":139,"n_cols":15,"rows_kept":139,"cut":false,"hidden":false,"merged":[[0,1,1,1],[139,3,139,4],[139,11,139,12]]}
[null,"\n  Eltako Professional Smart Home 2024 \n   Geräteermittlung und Kalkulationshilfe (Stand 10.07.2024)\n   Preise gültig für Lieferungen ab 01.01.2024"]
[]
["A","Ermittlung der gewünschten Funktionen bzw. Verbraucher",null,"Eingabehilfe","Eingabe",null,null,null,null,null,null,"Eingabehilfe","Eingabe"]
[1,"Soll das System grundsätzlich funkfähig sein?",null,"ja/nein","Ja",null,null,null,null,null,null,"ja/nein","Ja"]
[2,"Sind Sensoren für den 4-Draht Bussystem gewünscht?",null,"ja/nein","Auswählen",null,null,null,null,null,null,"ja/nein","Auswählen"]
[3,"Sind Funktionen mit Powerline gewünscht?",null,"ja/nein","Auswählen",null,null,null,null,null,null,"ja/nein","Auswählen"]
[4,"Welches Schalterprogramm wird geplant?",null,"Größe/Farbe","Auswählen",null,null,null,null,null,null,"Größe/Farbe","Auswählen"]
[5,"Wieviele weitere UV´s werden am Bus angebunden?",null,"Zahl",0,null,null,null,null,null,null,"Zahl",0]
[6,"Sollen geräuschlose Halbleiter-Schaltaktoren bevorzugt werden?",null,"ja/nein","Auswählen",null,null,null,null,null,null,"ja/nein","Auswählen"]
[7,"Dimmkreise 400W (bei LED max. 100W oder max. 8 Leuchtmittel) REG",null,"Zahl",0,null,null,null,null,null,null,"Zahl",0]
[8,"Dimmkreise 800W (bei LED max. 200W oder max. 16 Leuchtmittel) REG",null,"Zahl",0,null,null,null,null,null,null,"Zahl",0]
[9,"Dimmkreise 1-10V REG",null,"Zahl",0,null,null,null,null,null,null,"Zahl",0]
[10,"DALI-Kreise (max 16 Gruppen mit 64 Tln. in einer Linie möglich) REG",null,"Zahl",0,null,null,null,null,null,null,"Zahl",0]
[11,"RGBW Farbsteuerung PWM-Dimmschalter (4A pro Kanal) REG",null,"Zahl",0,null,null,null,null,null,null,"Zahl",0]
[12,"Schaltkreise bis 8A speziell für LED-Beleuchtung bis 400W REG",null,"Zahl",0,null,null,null,null,null,null,"Zahl",0]
[13,"Schalt- und Stromkreise bis 16 A REG",null,"Zahl",0,null,null,null,null,null,null,"Zahl",0]
[14,"Motoren (Rollo, Jalousie, Markise) REG",null,"Zahl",0,null,null,null,null,null,null,"Zahl",0]
["B","Einzelraumregelung Fußbodenheizung über Heizkreisverteiler",null,"ja/nein","Auswählen",null,null,null,null,null,null,"ja/nein","Auswählen"]
[15,"Funk-Temperaturregelung mit Display (rückmeldefähig)",null,"Zahl",0,null,null,null,null,null,null,"Zahl",0]
[16,"Funk-Temperaturregelung mit Display und Schaltkontakt  (rückmeldefähig)",null,"Zahl",0,null,null,null,null,null,null,"Zahl",0]
[17,"Funk-Temperaturregelung mit Hand-Drehrad",null,"Zahl",0,null,null,null,null,null,null,"Zahl",0]
[18,"Funk-Temperaturfühler (Sollwert nur über App wählbar)",null,"Zahl",0,null,null,null,null,null,null,"Zahl",0]
[19,"4-Draht-Bus Temperaturregelung mit Display (rückmeldefähig)",null,"Zahl",0,null,null,null,null,null,null,"Zahl",0]
[20,"4-Draht-Bus Temperaturregelung mit Hand-Drehrad",null,"Zahl",0,null,null,null,null,null,null,"Zahl",0]
[21,"4-Draht-Bus Temperaturfühler (Sollwert nur über App wählbar)",null,"Zahl",0,null,null,null,null,null,null,"Zahl",0]
[22,"Powerline Temperaturregler mit Display (rückmeldefähig) nur 55mm",null,"Zahl",0,null,null,null,null,null,null,"Zahl",0]
[23,"Anzahl der Stellantriebe 230V (Wurde autom. ermittelt, bitte anpassen)",null,"Zahl",0,null,null,null,null,null,null,"Zahl",0]
[24,"Anzahl der Stellantriebe 24V (bitte auf Wunsch alternativ abändern)",null,"Zahl",0,null,null,null,null,null,null,"Zahl",0]
["C","Einzelraumregelung mit Funk-Stellantriebe für Heizkörper",null,"ja/nein","Auswählen",null,null,null,null,null,null,"ja/nein","Auswählen"]
[25]
[26]
[27]
[28,"Funk-Kleinstellantrieb Smart Valve, ohne Batterien",null,"Zahl",0,null,null,null,null,null,null,"Zahl",0]
["D","Konventioneller Verdrahtung mit Binäreingänge FTS14EM-System",null,"ja/nein","Auswählen",null,null,null,null,null,null,"ja/nein","Auswählen"]
[29,"Wird für die Tasterspannung ein Kleinspannungsnetzteil benötigt?",null,"ja/nein","Nein",null,null,null,null,null,null,"ja/nein","Nein"]
[30,"Anzahl aller Eingänge für Beleuchtung und andere Schaltkreise\npro Funktion 1 Eingang (wurde autom. ermittelt, Änderung möglich",null,"Zahl",{"$f":"IF(E34=\"Ja\",((E10+E11+E12+E13+E15+E16+(Stückliste!C52*2)+Stückliste!C53+Stückliste!C54)),0)","v":0},null,null,null,null,null,null,"Zahl",{"$f":"IF(M34=\"Ja\",((M10+M11+M12+M13+M15+M16+(Stückliste!K52*2)+Stückliste!K53+Stückliste!K54)),0)","v":0}]
[31,"Anzahl aller Eingänge für Rollos oder Jalousien \npro Rollo 2 Eingänge (wurde autom. ermittelt, Änderung möglich) ",null,"Zahl",{"$f":"IF(E34=\"Ja\",(E17*2),0)","v":0},null,null,null,null,null,null,"Zahl",{"$f":"IF(M34=\"Ja\",(M17*2),0)","v":0}]
[32,"weitere Eingänge für Zentral-, Gruppen- oder Szenensteuerung\nmanuel eintragen, für jede weitere Funktion je 1 Eingang zählen!",null,"manuelle Zahleingabe",0,null,null,null,null,null,null,"manuelle Zahleingabe",0]
["E","2-Draht BUS-Verdrahtung mit Buskoppler und Tastergateway",null,"ja/nein","Auswählen",null,null,null,null,null,null,"ja/nein","Auswählen"]
[33,"Anzahl Buslinien (bis 3 Linien möglich) pro Linie 30 Busgeräte",null,"Zahl",0,null,null,null,null,null,null,"Zahl",0]
[34,"Anzahl UP Bus-Tasterkoppler (4 Eingänge) FTS61BTK",null,"Zahl",0,null,null,null,null,null,null,"Zahl",0]
[35,"Anzahl UP Bus-Tasterkoppler (8 Eingänge) FTS61BTK/8",null,"Zahl",0,null,null,null,null,null,null,"Zahl",0]
[36,"Anzahl UP Bus-Tasterkoppler (4 Eingänge) mit Rückmeld. FTS61BTKL",null,"Zahl",0,null,null,null,null,null,null,"Zahl",0]
[37,"Anzahl 2-Draht Bustaster 4-fach mit Wippen",null,"Zahl",0,null,null,null,null,null,null,"Zahl",0]
["F","Ansteuerung mit Funktaster",null,"ja/nein","Auswählen",null,null,null,null,null,null,"ja/nein","Auswählen"]
[38,"AP Funktaster (2 bzw. 4-fach) für 55er Schaltersysteme",null,"Zahl",0,null,null,null,null,null,null,"Zahl",0]
[39,"AP Funktaster (2 bzw. 4-fach) für Busch-Jaeger Solo/Future",null,"Zahl",0,null,null,null,null,null,null,"Zahl",0]
[40,"AP Funktaster (2 bzw. 4-fach) für Busch-Jaeger Reflex Si",null,"Zahl",0,null,null,null,null,null,null,"Zahl",0]
["G","Wetterauswertung mit Sensoren",null,"ja/nein","Auswählen",null,null,null,null,null,null,"ja/nein","Auswählen"]
[41,"Auswertung über mehrere Einzelsensoren oder einen Multisensor",null,"Einzel/Multi","keine",null,null,null,null,null,null,"Einzel/Multi","keine"]
[42,"Wählen Sie Sonne, Regen, Wind",null,"Sonne,Regen,Wind","keine",null,null,null,null,null,null,"Sonne,Regen,Wind","keine"]
[43,{"$f":"IF(E50=\"Multi\",\"Übertragungsweg der Wetterdaten vom Multisensor an den Bus\",\"diese Zeile überspringen, nur relevant bei Multisensor\")","v":"diese Zeile überspringen, nur relevant bei Multisensor"},null,"Funk/Draht","Draht",null,null,null,null,null,null,"Funk/Draht","Draht"]
[44,{"$f":"IF(E50=\"Multi\",\"zusätzliche Auswerteinheit mit Dispay für bis zu 3 Himmelsrichtungen\",\"diese Zeile überspringen, nur relevant bei Multisensor\")","v":"diese Zeile überspringen, nur relevant bei Multisensor"},null,"Zahl",0,null,null,null,null,null,null,"Zahl",0]
[45,"Sollen auch dezentrale UP- Aktoren witterungsgeführt angesteuert werden?",null,"ja/nein","nein",null,null,null,null,null,null,"ja/nein","nein"]
[null,{"$f":"IF(E4=\"nein\",\"dann wählen sie auch in Zeile 1 Funkfähigkeit!\",\"\")","v":""}]
["H","Türen- oder Fensterüberwachung",null,"ja/nein","Auswählen",null,null,null,null,null,null,"ja/nein","Auswählen"]
[46,"drahtgebunde Fensterkontakte (müssen bauseits bereitgestellt werden)",null,"Zahl",0,null,null,null,null,null,null,"Zahl",0]
[47,"Sensor mit Reedkontakt incl. Solar FTK",null,"Zahl",0,null,null,null,null,null,null,"Zahl",0]
[48,"Sensor mit Reedkontakt incl. Batterie FTKB",null,"Zahl",0,null,null,null,null,null,null,"Zahl",0]
[49,"Sensor verdeckter Einbau mit Batterie FTKB-hg",null,"Zahl",0,null,null,null,null,null,null,"Zahl",0]
[50,"Fenstergriffsensor FFG7B",null,"Zahl",0,null,null,null,null,null,null,"Zahl",0]
[51,"Sensor mit Energiegenerator mit Tastkontakt FFTE",null,"Zahl",0,null,null,null,null,null,null,"Zahl",0]
[52,"Sensor mit Energiegenerator mit Hebel FTKE",null,"Zahl",0,null,null,null,null,null,null,"Zahl",0]
["I","Bewegungsmelder",null,"ja/nein","Auswählen",null,null,null,null,null,null,"ja/nein","Auswählen"]
[53,"drahtgebunde Bewegungsmelder (müssen bereitgestellt werden)",null,"Zahl",0,null,null,null,null,null,null,"Zahl",0]
[54,"4-Draht-Bus Bewegungsmelder",null,"Zahl",0,null,null,null,null,null,null,"Zahl",0]
[55,"Funk-BM für Aussen mit Helligkeit; Solar",null,"Zahl",0,null,null,null,null,null,null,"Zahl",0]
[56,"Funk mit Helligkeit; Solar und Batterie",null,"Zahl",0,null,null,null,null,null,null,"Zahl",0]
[57,"Funk ohne Helligkeit; Batterie",null,"Zahl",0,null,null,null,null,null,null,"Zahl",0]
[58]
["J","Warnmelder",null,"ja/nein","Auswählen",null,null,null,null,null,null,"ja/nein","Auswählen"]
[59,"Sensor Luftgüte CO2 und Temperatur",null,"Zahl",0,null,null,null,null,null,null,"Zahl",0]
[60,"Wassermelder",null,"Zahl",0,null,null,null,null,null,null,"Zahl",0]
[61,"Rauchmelder",null,"Zahl",0,null,null,null,null,null,null,"Zahl",0]
[62,"Hitzemelder",null,"Zahl",0,null,null,null,null,null,null,"Zahl",0]
["K","Zählererfassung",null,"ja/nein","Auswählen",null,null,null,null,null,null,"ja/nein","Auswählen"]
[63]
[64,"Erfassung mit optischem IR-Abtaster z.B. EHZ",null,"Zahl",0,null,null,null,null,null,null,"Zahl",0]
[65,"Erfassung über S0-Schnittstelle",null,"Zahl",0,null,null,null,null,null,null,"Zahl",0]
[66,"Wechselstrom-Buszähler",null,"Zahl",0,null,null,null,null,null,null,"Zahl",0]
[67,"Drehstrom-Buszähler",null,"Zahl",0,null,null,null,null,null,null,"Zahl",0]
[68,"Drehstrom-Wandler-Buszähler",null,"Zahl",0,null,null,null,null,null,null,"Zahl",0]
["L","weiteres Systemzubehör",null,"ja/nein","Auswählen",null,null,null,null,null,null,"ja/nein","Auswählen"]
[69,"Schaltuhr (Eingabe der Kanäle bzw. Gruppen) kann entfallen bei Servereinsatz",null,"Zahl",0,null,null,null,null,null,null,"Zahl",0]
[70,"Ist eine Funkzusatz-Antenne nötig (bei Verteilung mit Blechtüre)",null,"ja/nein","Ja",null,null,null,null,null,null,"ja/nein","Ja"]
[71,"HF-Platte für Zusatzantenne; optimiert die Sende-/Empfangsqualität",null,"ja/nein","Auswählen",null,null,null,null,null,null,"ja/nein","Auswählen"]
[72,"Werden weitere Sub-Antennen benötigt? (bis 3 Stück möglich)",null,"Zahl",0,null,null,null,null,null,null,"Zahl",0]
[73,"Sollen drahtgebundene Tasterbefehle über Funkausgabemodul\nan GFVS Software oder dezentrale Aktoren gesendet werden?",null,"ja/nein","Auswählen",null,null,null,null,null,null,"ja/nein","Auswählen"]
[74,"Wir empfehlen zusätzlich Ersatz-Steckbrücken (je Set= 2x kurz, 1x lang)",null,"Zahl",0,null,null,null,null,null,null,"Zahl",0]
[75,"Handsender mit Display 50 Kanäle FFD",null,"Zahl",0,null,null,null,null,null,null,"Zahl",0]
[76,"Handsender 8-Kanal FF8",null,"Zahl",0,null,null,null,null,null,null,"Zahl",0]
[77,"Minihandsender 8-Kanal FMH8",null,"Zahl",0,null,null,null,null,null,null,"Zahl",0]
["M","dezentrale Baugruppen für Doseneinbau BR62 und BR61",null,"ja/nein","Auswählen",null,null,null,null,null,null,"ja/nein","Auswählen"]
[79,"Funk-Lichtaktor potentialfrei (Baureihe 62)",null,"Zahl",0,null,null,null,null,null,null,"Zahl",0]
[80,"Funk-Lichtaktor nicht potentialfrei (Baureihe 62)",null,"Zahl",0,null,null,null,null,null,null,"Zahl",0]
[81,"Funk-Universal-Dimmaktor mit N-Anschluss (Baureihe 62)",null,"Zahl",0,null,null,null,null,null,null,"Zahl",0]
[82,"Funk-Jalousie- und Rolloaktor (Baureihe 62)",null,"Zahl",0,null,null,null,null,null,null,"Zahl",0]
[83,"Funkaktor Stromstoß-Schaltrelais nicht potentialfrei (Baureihe 61)",null,"Zahl",0,null,null,null,null,null,null,"Zahl",0]
[84,"Funk-Multifunktions-Stromstoßschalter 1+1 Schließer (Baureihe 61)",null,"Zahl",0,null,null,null,null,null,null,"Zahl",0]
[85,"Funk-Universal-Dimmschalter mit N-Anschluss (Baureihe 61)",null,"Zahl",0,null,null,null,null,null,null,"Zahl",0]
[86,"Funk-Universal-Dimmschalter ohne N-Anschluss (Baureihe 61)",null,"Zahl",0,null,null,null,null,null,null,"Zahl",0]
[87,"Funk-PWM-LED-Dimmschalter (Baureihe 61)",null,"Zahl",0,null,null,null,null,null,null,"Zahl",0]
[88,"Funk-Konststantstrom-LED-Dimmschalter (Baureihe 61)",null,"Zahl",0,null,null,null,null,null,null,"Zahl",0]
[89,"Funk-Jalousie- und Rolloaktor mit N-Anschluss (Baureihe 61)",null,"Zahl",0,null,null,null,null,null,null,"Zahl",0]
[90,"Funk-Heiz-Kühl-Relais (Baureihe 61)",null,"Zahl",0,null,null,null,null,null,null,"Zahl",0]
[91,"Funk-Sendemodul FSM61-UC",null,"Zahl",0,null,null,null,null,null,null,"Zahl",0]
[92,"Repeater FRP61-230V ",null,"Zahl",0,null,null,null,null,null,null,"Zahl",0]
[93,"Funkrepeater im Gehäuse FRP65/230V-wg",null,"Zahl",0,null,null,null,null,null,null,"Zahl",0]
["N","dezentrale Funkaktoren Aufbau BR71",null,"ja/nein","Auswählen",null,null,null,null,null,null,"ja/nein","Auswählen"]
[94,"Funk-DALI-Gateway FDG71L",null,"Zahl",0,null,null,null,null,null,null,"Zahl",0]
[95,"Funk-PWM-Dimmschalter für RGBW FRGBW71L",null,"Zahl",0,null,null,null,null,null,null,"Zahl",0,null,"Logik prüfen da 2x"]
[96,"Funkrepeater FRP70-230V",null,"Zahl",0,null,null,null,null,null,null,"Zahl",0]
["O","dezentrale Funkaktoren für Steckdose",null,"ja/nein","Auswählen",null,null,null,null,null,null,"ja/nein","Auswählen"]
[97,"FSSA Funk-Steckdosen-Schaltaktor",null,"Zahl",0,null,null,null,null,null,null,"Zahl",0]
[98,"FSUD Funk-Universal-Steckdosen-Dimmschalter",null,"Zahl",0,null,null,null,null,null,null,"Zahl",0]
[99]
[100,"FSRP-230V Funk-Repeater-Zwischenstecker",null,"Zahl",0,null,null,null,null,null,null,"Zahl",0]
["P","dezentrale Powerline-Aktoren bzw. Sensoren",null,"ja/nein","Auswählen",null,null,null,null,null,null,"ja/nein","Auswählen"]
[101,"Schaltaktor 1-Kanal",null,"Zahl",0,null,null,null,null,null,null,"Zahl",0]
[102,"Schaltaktor 2-Kanal",null,"Zahl",0,null,null,null,null,null,null,"Zahl",0]
[103,"Jalousie-Aktor",null,"Zahl",0,null,null,null,null,null,null,"Zahl",0]
[104,"Dimm-Aktor",null,"Zahl",0,null,null,null,null,null,null,"Zahl",0]
[105,"Dimm-Aktor 1-10V",null,"Zahl",0,null,null,null,null,null,null,"Zahl",0]
[10,"1-Kanal Sensormodul",null,"Zahl",0,null,null,null,null,null,null,"Zahl",0]
[107,"8-Kanal Sensormodul",null,"Zahl",0,null,null,null,null,null,null,"Zahl",0]
["Q","Home-Server",null,"ja/nein","Auswählen",null,null,null,null,null,null,"ja/nein","Auswählen"]
[108,null,null,"Zahl",null,null,null,null,null,null,null,"Zahl"]
[109,"MiniSafe2 Smart home Server ",null,"Zahl",0,null,null,null,null,null,null,"Zahl",0]
[110,"MiniSafe2 REG Smart home Server mit Halterung und Zusatzantenne",null,"Zahl",0,null,null,null,null,null,null,"Zahl",0]
[111,"HDR-30-5 Netzteil für Minisafe2 REG (optional)",null,"Zahl",0,null,null,null,null,null,null,"Zahl",0]
[112,"wibutler Pro2 Smart Home-Zentrale",null,"Zahl",0,null,null,null,null,null,null,"Zahl",0]
[113]
["R","Wandhalterung für iPad zur Steuerung des Home-Servers ",null,"ja/nein","Auswählen",null,null,null,null,null,null,"ja/nein","Auswählen"]
[114,"Universal-Wand-Dockingstation für USB-C- iPads, Alu natur",null,"Zahl",0,null,null,null,null,null,null,"Zahl",0]
[115,"Universal-Wand-Dockingstation für USB-C- iPads, schwarz",null,"Zahl",0,null,null,null,null,null,null,"Zahl",0]
[116,"InWall-10 Alu schwarz eloxiert mit schwarzer Glasblende",null,"Zahl",0,null,null,null,null,null,null,"Zahl",0]
[117]
[118]
[119,"Austausch-Set Lightning auf USB-C",null,"Zahl",0,null,null,null,null,null,null,"Zahl",0]

{"sheet":"Stückliste","index":1,"n_rows":186,"n_cols":28,"rows_kept":186,"cut":false,"hidden":false,"merged":[[184,1,184,3],[1,14,1,18],[0,3,0,4]]}
[null,"  \n  Eltako Professional Smart Home 2024\n  Stückliste und Preisliste (gültig für Lieferungen ab 01.01.2024)",null,"alle Angaben\nsind unverbindlich\nund ohne Gewähr",null,null,null,null,null,null,null,"alle Angaben\nsind unverbindlich\nund ohne Gewähr"]
[null,"Artikelbezeichnung",null,"Menge","Teilungs-\neinheiten","Brutto EP","Brutto Wert",null,"Leistungsbedarf","Gesamt",null,"Menge","Teilungs-\neinheiten",null,"Prüfung: Preise, EAN und Bestellnr.",null,null,null,null,null,null,null,null,null,null,null,"Art-Nr.","EAN Nummer"]
[]
[101,"BBV14 flexible Busverbinder (altern. auch FBA14  möglich)",{"$f":"IF(SUM(E5:E124)<13,0,(SUM(E5:E50,E121:E122)-1)/12)","v":0},{"$f":"ROUNDDOWN(C4,0)","v":0},{"$f":"D4","v":0},24.3,{"$f":"D4*F4","v":0},null,null,null,{"$f":"IF(D4>0,D4,\"\")","v":""},{"$f":"ROUNDDOWN(K4,0)","v":{"$error":"#VALUE!"}},{"$f":"L4","v":{"$error":"#VALUE!"}},null,{"$f":"VLOOKUP(AB4,Gesamtpreisliste!$A$7:$E$888,2,FALSE)","v":30014053},{"$f":"EXACT(O4,AA4)","v":true},{"$f":"VLOOKUP(AB4,Gesamtpreisliste!$A$7:$E$888,3,FALSE)","v":"BBV14"},{"$f":"VLOOKUP(AB4,Gesamtpreisliste!$A$7:$E$888,5,FALSE)","v":24.3},{"$f":"EXACT(F4,R4)","v":true},null,null,null,null,null,null,null,30014053,4010312315248]
[102,"FBA14 Busankoppler (bitte bei Bedarf manuell eintragen)",{"$f":"2*Eingabemaske!E8+(IF(AND(OR(Eingabemaske!E81>0,Eingabemaske!E82>0),Eingabemaske!E8=0),1,0))","v":0},{"$f":"C5","v":0},0,33.4,0,null,null,null,{"$f":"IF(D5>0,D5,\"\")","v":""},{"$f":"K5","v":""},"",null,{"$f":"VLOOKUP(AB5,Gesamtpreisliste!$A$7:$E$888,2,FALSE)","v":30014018},{"$f":"EXACT(O5,AA5)","v":true},{"$f":"VLOOKUP(AB5,Gesamtpreisliste!$A$7:$E$888,3,FALSE)","v":"FBA14"},{"$f":"VLOOKUP(AB5,Gesamtpreisliste!$A$7:$E$888,5,FALSE)","v":33.4},{"$f":"EXACT(F5,R5)","v":true},null,null,null,null,null,null,null,30014018,4010312313862]
[103,"WNT61-24VDC/10W Schaltnetzteil (für FWS61 oder FUTH55ED 12-24V)",{"$f":"C56","v":0},{"$f":"C6","v":0},0,47.2,0,null,null,null,"",{"$f":"K6","v":""},"",null,{"$f":"VLOOKUP(AB6,Gesamtpreisliste!$A$7:$E$888,2,FALSE)","v":61000264},true,{"$f":"VLOOKUP(AB6,Gesamtpreisliste!$A$7:$E$888,3,FALSE)","v":"WNT61-12VDC/10W"},{"$f":"VLOOKUP(AB6,Gesamtpreisliste!$A$7:$E$888,5,FALSE)","v":47.2},true,null,null,null,null,null,null,null,61000264,4010312401934]
[104,"WNT61-12VDC/10W Schaltnetzteil (für UP-Sensoren 12-24V)",null,0,0,47.2,0,null,null,null,"","","",null,{"$f":"VLOOKUP(AB7,Gesamtpreisliste!$A$7:$E$888,2,FALSE)","v":61000265},true,{"$f":"VLOOKUP(AB7,Gesamtpreisliste!$A$7:$E$888,3,FALSE)","v":"WNT61-24VDC/10W"},{"$f":"VLOOKUP(AB7,Gesamtpreisliste!$A$7:$E$888,5,FALSE)","v":47.2},true,null,null,null,null,null,null,null,61000265,4010312401941]
[105,"FSNT14-12V/12W Schaltnetzteil (Leistungserw.)",{"$f":"IF(SUM(J9:J184)>41,4,IF(SUM(J9:J184)>29,3,IF(SUM(J9:J184)>17,2,IF(SUM(J9:J184)>5,1,0))))","v":0},0,0,55.6,0,null,null,null,"","","",null,{"$f":"VLOOKUP(AB8,Gesamtpreisliste!$A$7:$E$888,2,FALSE)","v":30014062},true,{"$f":"VLOOKUP(AB8,Gesamtpreisliste!$A$7:$E$888,3,FALSE)","v":"FSNT14-12V/12W"},{"$f":"VLOOKUP(AB8,Gesamtpreisliste!$A$7:$E$888,5,FALSE)","v":55.6},true,null,null,null,null,null,null,null,30014062,4010312315095]
[106,"FGW14 Gateway",{"$f":"IF(Eingabemaske!E87>0,1,0)","v":0},0,0,68.5,0,null,0.5,{"$f":"D9*I9","v":0},"","","",null,{"$f":"VLOOKUP(AB9,Gesamtpreisliste!$A$7:$E$888,2,FALSE)","v":30014017},true,{"$f":"VLOOKUP(AB9,Gesamtpreisliste!$A$7:$E$888,3,FALSE)","v":"FGW14"},{"$f":"VLOOKUP(AB9,Gesamtpreisliste!$A$7:$E$888,5,FALSE)","v":68.5},true,null,null,null,null,null,null,null,30014017,4010312313855]
[107,"FGW14-USB Gateway mit USB-Anbindung für  Serveranbindung",null,0,0,64.900000000000006,0,null,0.5,0,"","","",null,{"$f":"VLOOKUP(AB10,Gesamtpreisliste!$A$7:$E$888,2,FALSE)","v":30014049},true,{"$f":"VLOOKUP(AB10,Gesamtpreisliste!$A$7:$E$888,3,FALSE)","v":"FGW14-USB"},{"$f":"VLOOKUP(AB10,Gesamtpreisliste!$A$7:$E$888,5,FALSE)","v":64.900000000000006},true,null,null,null,null,null,null,null,30014049,4010312316054]
[108,"BGW14 Busgateway für Raumtemperaturregler",{"$f":"IF(OR(AND(Eingabemaske!E5=\"ja\",Eingabemaske!E18=\"ja\"),AND(Eingabemaske!E5=\"ja\",Eingabemaske!E64=\"ja\")),SUM((Eingabemaske!E23+Eingabemaske!E24+Eingabemaske!E25+Eingabemaske!E66)/16),0)","v":0},{"$f":"ROUNDUP(C11,0)","v":0},0,64.900000000000006,0,null,0.3,0,"",{"$f":"ROUNDUP(K11,0)","v":{"$error":"#VALUE!"}},{"$error":"#VALUE!"},null,{"$f":"VLOOKUP(AB11,Gesamtpreisliste!$A$7:$E$888,2,FALSE)","v":30014046},true,{"$f":"VLOOKUP(AB11,Gesamtpreisliste!$A$7:$E$888,3,FALSE)","v":"BGW14"},{"$f":"VLOOKUP(AB11,Gesamtpreisliste!$A$7:$E$888,5,FALSE)","v":64.900000000000006},true,null,null,null,null,null,null,null,30014046,4010312319062]
[109,"FTD14 Telegrammduplizierer zur Wetterdatenübertragung an die GFVS",{"$f":"IF(OR(AND(Eingabemaske!E49=\"ja\",Eingabemaske!E50=\"Multi\",Eingabemaske!E52=\"Draht\",Eingabemaske!E126=\"ja\",C13>0),AND(Eingabemaske!E5=\"ja\",C13>0)),1,0)","v":0},{"$f":"C12","v":0},0,92.6,0,null,0.53,0,"",{"$f":"K12","v":""},"",null,{"$f":"VLOOKUP(AB12,Gesamtpreisliste!$A$7:$E$888,2,FALSE)","v":30014057},true,{"$f":"VLOOKUP(AB12,Gesamtpreisliste!$A$7:$E$888,3,FALSE)","v":"FTD14"},{"$f":"VLOOKUP(AB12,Gesamtpreisliste!$A$7:$E$888,5,FALSE)","v":92.6},true,null,null,null,null,null,null,null,30014057,4010312315705]
[110,"\"Zwischenrechnung Merker \"",{"$f":"IF(OR(Eingabemaske!E130>0,Eingabemaske!E131>0,AND(Eingabemaske!E127>0,NOT(Eingabemaske!E132=\"ja\")),AND(Eingabemaske!E129>0,NOT(Eingabemaske!E132=\"ja\"))),1,0)","v":0},0,0,{"$error":"#N/A"},0,null,null,null,"",0,0,null,{"$f":"VLOOKUP(AB13,Gesamtpreisliste!$A$7:$E$888,2,FALSE)","v":{"$error":"#N/A"}},{"$error":"#N/A"},{"$f":"VLOOKUP(AB13,Gesamtpreisliste!$A$7:$E$888,3,FALSE)","v":{"$error":"#N/A"}},{"$f":"VLOOKUP(AB13,Gesamtpreisliste!$A$7:$E$888,5,FALSE)","v":{"$error":"#N/A"}}]
[111,"USB-Kabel 2m für FGW14-USB Typ A St/Bu",{"$f":"IF(Eingabemaske!E132=\"ja\",1,0)","v":0},{"$f":"C14","v":0},null,15.9,{"$f":"D14*F14","v":0},null,null,null,"",{"$f":"K14","v":""},null,null,{"$f":"VLOOKUP(AB14,Gesamtpreisliste!$A$7:$E$888,2,FALSE)","v":30000020},true,{"$f":"VLOOKUP(AB14,Gesamtpreisliste!$A$7:$E$888,3,FALSE)","v":"USB-Verlängerungskabel"},{"$f":"VLOOKUP(AB14,Gesamtpreisliste!$A$7:$E$888,5,FALSE)","v":15.9},true,null,null,null,null,null,null,null,30000020,4010312907702]
[112,"FAM14 Funk-Antennenmodul",{"$f":"IF(AND(Eingabemaske!E4=\"ja\")*OR(C20>0,Eingabemaske!E10>0,Eingabemaske!E11>0,Eingabemaske!E12>0,Eingabemaske!E13>0,Eingabemaske!E15>0,Eingabemaske!E16>0,Eingabemaske!E17>0,Eingabemaske!E19>0,Eingabemaske!E20>0,Eingabemaske!E21>0,Eingabemaske!E22>0,Eingabemaske!E23>0,Eingabemaske!E24>0,Eingabemaske!E25>0,Eingabemaske!E26>0,AND(Eingabemaske!E49=\"ja\",NOT(Eingabemaske!E50=\"keine\")),Eingabemaske!E77>0,Eingabemaske!E78>0,Eingabemaske!E79>0,Eingabemaske!E80>0,Eingabemaske!E81>0,Eingabemaske!E82>0,Eingabemaske!E84>0),1,0)","v":0},0,{"$f":"D15*2","v":0},123.4,0,null,1,null,"","",{"$f":"L15*2","v":{"$error":"#VALUE!"}},null,{"$f":"VLOOKUP(AB15,Gesamtpreisliste!$A$7:$E$888,2,FALSE)","v":30014000},true,{"$f":"VLOOKUP(AB15,Gesamtpreisliste!$A$7:$E$888,3,FALSE)","v":"FAM14"},{"$f":"VLOOKUP(AB15,Gesamtpreisliste!$A$7:$E$888,5,FALSE)","v":123.4},true,null,null,null,null,null,null,null,30014000,4010312313695]
[113,"FTS14KS FTS14-Kommunikationsschnittstelle",{"$f":"IF(AND(Eingabemaske!E4=\"nein\")*OR(Eingabemaske!E10>0,Eingabemaske!E11>0,Eingabemaske!E12>0,Eingabemaske!E13,Eingabemaske!E15,Eingabemaske!E16>0,Eingabemaske!E17>0,Eingabemaske!E19>0,Eingabemaske!E84>0),1,0)","v":0},0,{"$f":"D16*2","v":0},91.5,0,null,null,null,"","",{"$f":"L16*2","v":{"$error":"#VALUE!"}},null,{"$f":"VLOOKUP(AB16,Gesamtpreisliste!$A$7:$E$888,2,FALSE)","v":30014065},true,{"$f":"VLOOKUP(AB16,Gesamtpreisliste!$A$7:$E$888,3,FALSE)","v":"FTS14KS"},{"$f":"VLOOKUP(AB16,Gesamtpreisliste!$A$7:$E$888,5,FALSE)","v":91.5},true,null,null,null,null,null,null,null,30014065,4010312315651]
[114,"FA250 Funkantenne mit 2,5 Meter Koax-Kabel",{"$f":"IF(AND(Eingabemaske!E83=\"ja\",Eingabemaske!E85=\"ja\",C15>0),1,0)","v":0},0,null,31.7,0,null,null,null,"","",null,null,{"$f":"VLOOKUP(AB17,Gesamtpreisliste!$A$7:$E$888,2,FALSE)","v":30000550},true,{"$f":"VLOOKUP(AB17,Gesamtpreisliste!$A$7:$E$888,3,FALSE)","v":"FA250"},{"$f":"VLOOKUP(AB17,Gesamtpreisliste!$A$7:$E$888,5,FALSE)","v":31.7},true,null,null,null,null,null,null,null,30000550,4010312300244]
[115,"FHM175 HF-Masse für FA250",{"$f":"IF(AND(Eingabemaske!E83=\"ja\",Eingabemaske!E86=\"ja\",C15>0),1,0)","v":0},0,null,91.8,0,null,null,null,"","",null,null,{"$f":"VLOOKUP(AB18,Gesamtpreisliste!$A$7:$E$888,2,FALSE)","v":30000555},true,{"$f":"VLOOKUP(AB18,Gesamtpreisliste!$A$7:$E$888,3,FALSE)","v":"FHM175"},{"$f":"VLOOKUP(AB18,Gesamtpreisliste!$A$7:$E$888,5,FALSE)","v":91.8},true,null,null,null,null,null,null,null,30000555,4010312313121]
[116,"FEM Funk-Empfangsmodul für Sub-Bus (Zusatzantenne)",{"$f":"IF(AND(Eingabemaske!E83=\"ja\",Eingabemaske!E87>0),Eingabemaske!E87,0)","v":0},0,null,95.4,0,null,null,null,"","",null,null,{"$f":"VLOOKUP(AB19,Gesamtpreisliste!$A$7:$E$888,2,FALSE)","v":30014016},true,{"$f":"VLOOKUP(AB19,Gesamtpreisliste!$A$7:$E$888,3,FALSE)","v":"FEM"},{"$f":"VLOOKUP(AB19,Gesamtpreisliste!$A$7:$E$888,5,FALSE)","v":95.4},true,null,null,null,null,null,null,null,30014016,4010312313848]
[117,"FTS14EM Taster-Eingabemodul",{"$f":"IF(AND(Eingabemaske!E34=\"Ja\",Eingabemaske!E56=\"ja\",Eingabemaske!E64=\"ja\"),ROUNDUP((Eingabemaske!E36+Eingabemaske!E37+Eingabemaske!E38+C52*2+C53+C54)/10,0)+ROUNDUP(Eingabemaske!E57/10,0)+ROUNDUP(Eingabemaske!E65/10,0),IF(AND(Eingabemaske!E34=\"Ja\",NOT(Eingabemaske!E56=\"ja\"),NOT(Eingabemaske!E64=\"ja\")),ROUNDUP((Eingabemaske!E36+Eingabemaske!E37+Eingabemaske!E38+C52*2+C53+C54)/10,0),IF(AND(NOT(Eingabemaske!E34=\"Ja\"),Eingabemaske!E56=\"ja\",NOT(Eingabemaske!E64=\"ja\")),ROUNDUP(Eingabemaske!E57/10,0),IF(AND(NOT(Eingabemaske!E34=\"Ja\"),NOT(Eingabemaske!E56=\"ja\"),Eingabemaske!E64=\"ja\"),ROUNDUP(Eingabemaske!E65/10,0),IF(AND(Eingabemaske!E34=\"Ja\",Eingabemaske!E56=\"ja\",NOT(Eingabemaske!E64=\"ja\")),ROUNDUP((Eingabemaske!E36+Eingabemaske!E37+Eingabemaske!E38+C52*2+C53+C54)/10,0)+ROUNDUP(Eingabemaske!E57/10,0),IF(AND(Eingabemaske!E34=\"Ja\",NOT(Eingabemaske!E56=\"ja\"),Eingabemaske!E64=\"ja\"),ROUNDUP((Eingabemaske!E36+Eingabemaske!E37+Eingabemaske!E38+C52*2+C53+C54)/10,0)+ROUNDUP(Eingabemaske!E65/10,0),IF(AND(NOT(Eingabemaske!E34=\"Ja\"),Eingabemaske!E56=\"ja\",Eingabemaske!E64=\"ja\"),(ROUNDUP(Eingabemaske!E57/10,0)+ROUNDUP(Eingabemaske!E65/10,0)),0)))))))","v":0},0,{"$f":"D20*2","v":0},68.900000000000006,0,null,0.13,0,"","",{"$f":"L20*2","v":{"$error":"#VALUE!"}},null,{"$f":"VLOOKUP(AB20,Gesamtpreisliste!$A$7:$E$888,2,FALSE)","v":30014060},true,{"$f":"VLOOKUP(AB20,Gesamtpreisliste!$A$7:$E$888,3,FALSE)","v":"FTS14EM"},{"$f":"VLOOKUP(AB20,Gesamtpreisliste!$A$7:$E$888,5,FALSE)","v":68.900000000000006},true,null,null,null,null,null,null,null,30014060,4010312315071]
[118,"FTS14TG Taster-Gateway für Bus-Tasterkoppler",{"$f":"IF(Eingabemaske!E39=\"Ja\",Eingabemaske!E40,0)","v":0},0,{"$f":"D21*2","v":0},111.1,0,null,0.42,0,"","",{"$f":"L21*2","v":{"$error":"#VALUE!"}},null,{"$f":"VLOOKUP(AB21,Gesamtpreisliste!$A$7:$E$888,2,FALSE)","v":30014061},true,{"$f":"VLOOKUP(AB21,Gesamtpreisliste!$A$7:$E$888,3,FALSE)","v":"FTS14TG"},{"$f":"VLOOKUP(AB21,Gesamtpreisliste!$A$7:$E$888,5,FALSE)","v":111.1},true,null,null,null,null,null,null,null,30014061,4010312315088]
[119,"FPLG14 Powerline-Gateway",{"$f":"IF(OR(Eingabemaske!E26>0,AND(Eingabemaske!E118=\"ja\")*OR(Eingabemaske!E119>0,Eingabemaske!E120>0,Eingabemaske!E121>0,Eingabemaske!E122>0,Eingabemaske!E123,Eingabemaske!E124>0,Eingabemaske!E125>0)),1,0)","v":0},0,{"$f":"D22*2","v":0},100,0,null,0.4,0,"","",{"$f":"L22*2","v":{"$error":"#VALUE!"}},null,{"$f":"VLOOKUP(AB22,Gesamtpreisliste!$A$7:$E$888,2,FALSE)","v":30014070},true,{"$f":"VLOOKUP(AB22,Gesamtpreisliste!$A$7:$E$888,3,FALSE)","v":"FPLG14"},{"$f":"VLOOKUP(AB22,Gesamtpreisliste!$A$7:$E$888,5,FALSE)","v":100},true,null,null,null,null,null,null,null,30014070,4010312316771]
[120,"FTS61BTK Bus-Tasterkoppler 4-fach",{"$f":"IF(Eingabemaske!E$39=\"Ja\",Eingabemaske!E41,0)","v":0},0,null,57.1,0,null,null,null,"","",null,null,{"$f":"VLOOKUP(AB23,Gesamtpreisliste!$A$7:$E$888,2,FALSE)","v":30014064},true,{"$f":"VLOOKUP(AB23,Gesamtpreisliste!$A$7:$E$888,3,FALSE)","v":"FTS61BTK"},{"$f":"VLOOKUP(AB23,Gesamtpreisliste!$A$7:$E$888,5,FALSE)","v":57.1},true,null,null,null,null,null,null,null,30014064,4010312315668]
[121,"FTS61BTK/8 Bus-Tasterkoppler 8-fach",{"$f":"IF(Eingabemaske!E$39=\"Ja\",Eingabemaske!E42,0)","v":0},0,null,93.5,{"$f":"D24*F24","v":0},null,null,null,"","",null,null,{"$f":"VLOOKUP(AB24,Gesamtpreisliste!$A$7:$E$888,2,FALSE)","v":30014075},{"$f":"EXACT(O24,AA24)","v":true},{"$f":"VLOOKUP(AB24,Gesamtpreisliste!$A$7:$E$888,3,FALSE)","v":"FTS61BTK/8"},{"$f":"VLOOKUP(AB24,Gesamtpreisliste!$A$7:$E$888,5,FALSE)","v":93.5},{"$f":"EXACT(F24,R24)","v":true},null,null,null,null,null,null,null,30014075,4010312326015]
[122,"FTS61BTKL Bus-Tasterkoppler für LED Rückmeldungen",{"$f":"IF(Eingabemaske!E$39=\"Ja\",Eingabemaske!E43,0)","v":0},0,null,62.5,0,null,null,null,"","",null,null,{"$f":"VLOOKUP(AB25,Gesamtpreisliste!$A$7:$E$888,2,FALSE)","v":30014074},true,{"$f":"VLOOKUP(AB25,Gesamtpreisliste!$A$7:$E$888,3,FALSE)","v":"FTS61BTKL"},{"$f":"VLOOKUP(AB25,Gesamtpreisliste!$A$7:$E$888,5,FALSE)","v":62.5},true,null,null,null,null,null,null,null,30014074,4010312316801]
[124,"B4T55E-pg  2-Draht Bustaster 4-fach",{"$f":"IF(AND(Eingabemaske!E$39=\"ja\",Eingabemaske!E$7=\"55mm E pg\"),Eingabemaske!E$44,0)","v":0},0,null,59.8,{"$f":"D26*F26","v":0},null,null,null,"","",null,null,{"$f":"VLOOKUP(AB26,Gesamtpreisliste!$A$7:$E$888,2,FALSE)","v":30055651},{"$f":"EXACT(O26,AA26)","v":true},{"$f":"VLOOKUP(AB26,Gesamtpreisliste!$A$7:$E$888,3,FALSE)","v":"B4T55E-pg"},{"$f":"VLOOKUP(AB26,Gesamtpreisliste!$A$7:$E$888,5,FALSE)","v":59.8},{"$f":"EXACT(F26,R26)","v":true},null,null,null,null,null,null,null,30055651,4010312326046]
[125,"B4T55E-pm  2-Draht Bustaster 4-fach",{"$f":"IF(AND(Eingabemaske!E$39=\"ja\",Eingabemaske!E$7=\"55mm E pm\"),Eingabemaske!E$44,0)","v":0},0,null,59.8,0,null,null,null,"","",null,null,{"$f":"VLOOKUP(AB27,Gesamtpreisliste!$A$7:$E$888,2,FALSE)","v":30055652},true,{"$f":"VLOOKUP(AB27,Gesamtpreisliste!$A$7:$E$888,3,FALSE)","v":"B4T55E-pm"},{"$f":"VLOOKUP(AB27,Gesamtpreisliste!$A$7:$E$888,5,FALSE)","v":59.8},true,null,null,null,null,null,null,null,30055652,4010312326039]
[126,"B4T55E-wg  2-Draht Bustaster 4-fach",{"$f":"IF(AND(Eingabemaske!E$39=\"ja\",Eingabemaske!E$7=\"55mm E wg\"),Eingabemaske!E$44,0)","v":0},0,null,59.8,0,null,null,null,"","",null,null,{"$f":"VLOOKUP(AB28,Gesamtpreisliste!$A$7:$E$888,2,FALSE)","v":30055653},true,{"$f":"VLOOKUP(AB28,Gesamtpreisliste!$A$7:$E$888,3,FALSE)","v":"B4T55E-wg"},{"$f":"VLOOKUP(AB28,Gesamtpreisliste!$A$7:$E$888,5,FALSE)","v":59.8},true,null,null,null,null,null,null,null,30055653,4010312326022]
[127,"B4T55E-am  2-Draht Bustaster 4-fach",{"$f":"IF(AND(Eingabemaske!E$39=\"ja\",Eingabemaske!E$7=\"55mm E am\"),Eingabemaske!E$44,0)","v":0},{"$f":"C29","v":0},null,59.8,{"$f":"D29*F29","v":0},null,null,null,"",{"$f":"K29","v":""},null,null,{"$f":"VLOOKUP(AB29,Gesamtpreisliste!$A$7:$E$888,2,FALSE)","v":30055650},{"$f":"EXACT(O29,AA29)","v":true},{"$f":"VLOOKUP(AB29,Gesamtpreisliste!$A$7:$E$888,3,FALSE)","v":"B4T55E-am"},{"$f":"VLOOKUP(AB29,Gesamtpreisliste!$A$7:$E$888,5,FALSE)","v":59.8},{"$f":"EXACT(F29,R29)","v":true},null,null,null,null,null,null,null,30055650,4010312326152]
[129,"FTS14FA Funk-Ausgabemodul",{"$f":"IF(OR(AND(Eingabemaske!E4=\"ja\",Eingabemaske!E49=\"ja\",Eingabemaske!E50=\"Einzel\",Eingabemaske!E54=\"ja\"),AND(Eingabemaske!E4=\"ja\",OR(Eingabemaske!E57>0,Eingabemaske!E65>0),OR(Eingabemaske!E130>0,Eingabemaske!E131>0)),AND(Eingabemaske!E4=\"ja\",Eingabemaske!E83=\"ja\",Eingabemaske!E88=\"ja\")),1,0)","v":0},{"$f":"C30","v":0},{"$f":"D30","v":0},95.4,0,null,0.5,0,"",{"$f":"K30","v":""},{"$f":"L30","v":""},null,{"$f":"VLOOKUP(AB30,Gesamtpreisliste!$A$7:$E$888,2,FALSE)","v":30014063},true,{"$f":"VLOOKUP(AB30,Gesamtpreisliste!$A$7:$E$888,3,FALSE)","v":"FTS14FA"},{"$f":"VLOOKUP(AB30,Gesamtpreisliste!$A$7:$E$888,5,FALSE)","v":95.4},true,null,null,null,null,null,null,null,30014063,4010312315101]
[130,"WNT15-24VDC/24W (für Taster-Steuerspannung und Wetterstation)",{"$f":"IF(OR((Eingabemaske!E34=\"ja\"),AND(Eingabemaske!E49=\"ja\",C6=0,OR(C51>0,C53>0))),1,0)","v":0},0,{"$f":"D31","v":0},52.5,0,null,null,null,"","",{"$f":"L31","v":""},null,{"$f":"VLOOKUP(AB31,Gesamtpreisliste!$A$7:$E$888,2,FALSE)","v":20000073},true,{"$f":"VLOOKUP(AB31,Gesamtpreisliste!$A$7:$E$888,3,FALSE)","v":"WNT15-24VDC/24W"},{"$f":"VLOOKUP(AB31,Gesamtpreisliste!$A$7:$E$888,5,FALSE)","v":52.5},true,null,null,null,null,null,null,null,20000073,4010312401910]
[131,"WNT15-12VDC/24W (für separate 4-Draht Busspannung)",{"$f":"D11","v":0},0,{"$f":"D32","v":0},52.5,{"$f":"D32*F32","v":0},null,null,null,"","",{"$f":"L32","v":""},null,{"$f":"VLOOKUP(AB32,Gesamtpreisliste!$A$7:$E$888,2,FALSE)","v":20000072},true,{"$f":"VLOOKUP(AB32,Gesamtpreisliste!$A$7:$E$888,3,FALSE)","v":"WNT15-12VDC/24W"},{"$f":"VLOOKUP(AB32,Gesamtpreisliste!$A$7:$E$888,5,FALSE)","v":52.5},true,null,null,null,null,null,null,null,20000072,4010312401880]
[132,"FSR14-4x Bus-Aktor-4-Kanal-Stromstoß-Schaltrelais",null,0,{"$f":"D33","v":0},65.400000000000006,0,null,0.7,0,"","",{"$f":"L33","v":""},null,{"$f":"VLOOKUP(AB33,Gesamtpreisliste!$A$7:$E$888,2,FALSE)","v":30014001},true,{"$f":"VLOOKUP(AB33,Gesamtpreisliste!$A$7:$E$888,3,FALSE)","v":"FSR14-4x"},{"$f":"VLOOKUP(AB33,Gesamtpreisliste!$A$7:$E$888,5,FALSE)","v":65.400000000000006},true,null,null,null,null,null,null,null,30014001,4010312313701]
[133,"FSR14SSR Bus-Aktor 2-Kanal-Stromstoss-Schaltrelais geräuschlos",{"$f":"IF(Eingabemaske!E9=\"ja\",(Eingabemaske!E16/2),0)","v":0},{"$f":"ROUNDUP(C34,0)","v":0},{"$f":"D34","v":0},66,0,null,0.42,0,"",{"$f":"ROUNDUP(K34,0)","v":{"$error":"#VALUE!"}},{"$f":"L34","v":{"$error":"#VALUE!"}},null,{"$f":"VLOOKUP(AB34,Gesamtpreisliste!$A$7:$E$888,2,FALSE)","v":30014020},true,{"$f":"VLOOKUP(AB34,Gesamtpreisliste!$A$7:$E$888,3,FALSE)","v":"FSR14SSR"},{"$f":"VLOOKUP(AB34,Gesamtpreisliste!$A$7:$E$888,5,FALSE)","v":66},true,null,null,null,null,null,null,null,"30014020",4010312313893]
[134,"F4SR14-LED Bus-Aktor-4-Kanal-Stromstoß-Schaltrelais für LED",{"$f":"(Eingabemaske!E15)/4","v":0},{"$f":"ROUNDUP(C35,0)","v":0},{"$f":"D35*2","v":0},76.3,0,null,1,0,"",{"$f":"ROUNDUP(K35,0)","v":{"$error":"#VALUE!"}},{"$f":"L35*2","v":{"$error":"#VALUE!"}},null,{"$f":"VLOOKUP(AB35,Gesamtpreisliste!$A$7:$E$888,2,FALSE)","v":30014076},true,{"$f":"VLOOKUP(AB35,Gesamtpreisliste!$A$7:$E$888,3,FALSE)","v":"F4SR14-LED"},{"$f":"VLOOKUP(AB35,Gesamtpreisliste!$A$7:$E$888,5,FALSE)","v":76.3},true,null,null,null,null,null,null,null,30014076,4010312317006]
[135,"FSR14-2x Bus-Aktor-2-Kanal-Stromstoß-Schaltrelais",{"$f":"IF(Eingabemaske!E9=\"ja\",0,(Eingabemaske!E16/2))","v":0},{"$f":"ROUNDUP(C36,0)","v":0},{"$f":"D36","v":0},65.400000000000006,0,null,0.14000000000000001,0,"",{"$f":"ROUNDUP(K36,0)","v":{"$error":"#VALUE!"}},{"$f":"L36","v":{"$error":"#VALUE!"}},null,{"$f":"VLOOKUP(AB36,Gesamtpreisliste!$A$7:$E$888,2,FALSE)","v":30014002},true,{"$f":"VLOOKUP(AB36,Gesamtpreisliste!$A$7:$E$888,3,FALSE)","v":"FSR14-2x"},{"$f":"VLOOKUP(AB36,Gesamtpreisliste!$A$7:$E$888,5,FALSE)","v":65.400000000000006},true,null,null,null,null,null,null,null,30014002,4010312313718]
[136,"FSR14M-2x Bus-Aktor-2-Kanal-Stromstoß-Schaltrelais mit Leistungsmessung",null,{"$f":"ROUNDUP(C37,0)","v":0},0,95.5,0,null,0.14000000000000001,{"$f":"D37*I37","v":0},"",{"$f":"ROUNDUP(K37,0)","v":{"$error":"#VALUE!"}},0,null,{"$f":"VLOOKUP(AB37,Gesamtpreisliste!$A$7:$E$888,2,FALSE)","v":30014039},true,{"$f":"VLOOKUP(AB37,Gesamtpreisliste!$A$7:$E$888,3,FALSE)","v":"FSR14M-2x"},{"$f":"VLOOKUP(AB37,Gesamtpreisliste!$A$7:$E$888,5,FALSE)","v":95.5},true,null,null,null,null,null,null,null,30014039,4010312327692]
[137,"FSB14 Aktor für Rollo/Jalousie/Markise (Doppelaktor für 2 Motoren)",{"$f":"Eingabemaske!E17/2","v":0},{"$f":"ROUNDUP(C38,0)","v":0},{"$f":"D38*2","v":0},64.900000000000006,0,null,0.42,0,"",{"$f":"ROUNDUP(K38,0)","v":{"$error":"#VALUE!"}},{"$f":"L38*2","v":{"$error":"#VALUE!"}},null,{"$f":"VLOOKUP(AB38,Gesamtpreisliste!$A$7:$E$888,2,FALSE)","v":30014004},true,{"$f":"VLOOKUP(AB38,Gesamtpreisliste!$A$7:$E$888,3,FALSE)","v":"FSB14"},{"$f":"VLOOKUP(AB38,Gesamtpreisliste!$A$7:$E$888,5,FALSE)","v":64.900000000000006},true,null,null,null,null,null,null,null,30014004,4010312313732]
[138,"FUD14 Universal-Dimmschalter 400W (LED max. 100W)",{"$f":"Eingabemaske!E10","v":0},{"$f":"C39","v":0},{"$f":"ROUNDUP(C39*1.5,0)","v":0},74.5,0,null,0.2,0,"",{"$f":"K39","v":""},{"$f":"ROUNDUP(K39*1.5,0)","v":{"$error":"#VALUE!"}},null,{"$f":"VLOOKUP(AB39,Gesamtpreisliste!$A$7:$E$888,2,FALSE)","v":30014005},true,{"$f":"VLOOKUP(AB39,Gesamtpreisliste!$A$7:$E$888,3,FALSE)","v":"FUD14"},{"$f":"VLOOKUP(AB39,Gesamtpreisliste!$A$7:$E$888,5,FALSE)","v":74.5},true,null,null,null,null,null,null,null,30014005,4010312313749]
[139,"FUD14/800W Universal-Dimmschalter 800W (LED max 400W)",{"$f":"Eingabemaske!E11","v":0},{"$f":"C40","v":0},{"$f":"ROUNDUP(C40*2.5,0)","v":0},100.3,0,null,0.2,0,"",{"$f":"K40","v":""},{"$f":"ROUNDUP(K40*2.5,0)","v":{"$error":"#VALUE!"}},null,{"$f":"VLOOKUP(AB40,Gesamtpreisliste!$A$7:$E$888,2,FALSE)","v":30014006},true,{"$f":"VLOOKUP(AB40,Gesamtpreisliste!$A$7:$E$888,3,FALSE)","v":"FUD14/800W"},{"$f":"VLOOKUP(AB40,Gesamtpreisliste!$A$7:$E$888,5,FALSE)","v":100.3},true,null,null,null,null,null,null,null,30014006,4010312313756]
[140,"FSG14/1-10V Dimmschalter-Steuergerät",{"$f":"Eingabemaske!E12","v":0},{"$f":"C41","v":0},{"$f":"ROUNDUP(C41*1.5,0)","v":0},69.900000000000006,0,null,0.2,0,"",{"$f":"K41","v":""},{"$f":"ROUNDUP(K41*1.5,0)","v":{"$error":"#VALUE!"}},null,{"$f":"VLOOKUP(AB41,Gesamtpreisliste!$A$7:$E$888,2,FALSE)","v":30014008},true,{"$f":"VLOOKUP(AB41,Gesamtpreisliste!$A$7:$E$888,3,FALSE)","v":"FSG14/1-10V"},{"$f":"VLOOKUP(AB41,Gesamtpreisliste!$A$7:$E$888,5,FALSE)","v":69.900000000000006},true,null,null,null,null,null,null,null,30014008,4010312313770]
[141,"FDG14 DALI-Gateway",{"$f":"Eingabemaske!E13/16","v":0},{"$f":"ROUNDUP(C42,0)","v":0},{"$f":"D42*2","v":0},95.6,0,null,0.4,0,"",{"$f":"ROUNDUP(K42,0)","v":{"$error":"#VALUE!"}},{"$f":"L42*2","v":{"$error":"#VALUE!"}},null,{"$f":"VLOOKUP(AB42,Gesamtpreisliste!$A$7:$E$888,2,FALSE)","v":30014047},true,{"$f":"VLOOKUP(AB42,Gesamtpreisliste!$A$7:$E$888,3,FALSE)","v":"FDG14"},{"$f":"VLOOKUP(AB42,Gesamtpreisliste!$A$7:$E$888,5,FALSE)","v":95.6},true,null,null,null,null,null,null,null,30014047,4010312316085]
[142,"FRGBW14 Funk-PWM-Dimmschalter für LED 4-Kanal",{"$f":"Eingabemaske!E14","v":0},0,{"$f":"D43*2","v":0},110.6,0,null,0.2,{"$f":"D43*I43","v":0},"",{"$error":"#VALUE!"},{"$f":"L43*2","v":{"$error":"#VALUE!"}},null,{"$f":"VLOOKUP(AB43,Gesamtpreisliste!$A$7:$E$888,2,FALSE)","v":30014068},true,{"$f":"VLOOKUP(AB43,Gesamtpreisliste!$A$7:$E$888,3,FALSE)","v":"FRGBW14"},{"$f":"VLOOKUP(AB43,Gesamtpreisliste!$A$7:$E$888,5,FALSE)","v":110.6},true,null,null,null,null,null,null,null,30014068,4010312324097]
[143,"F4HK14 Heiz-Kühl-Relais 4-Kanal",{"$f":"IF(Eingabemaske!E9=\"ja\",0,(SUM(Stückliste!C57:C60,Stückliste!C61:C64,Stückliste!C65:C68,Stückliste!C73:C84,Stückliste!C85:C88,Stückliste!C93,Stückliste!C110)/4))","v":0},0,{"$f":"D44","v":0},62.9,0,null,0.7,0,"",{"$error":"#VALUE!"},{"$f":"L44","v":{"$error":"#VALUE!"}},null,{"$f":"VLOOKUP(AB44,Gesamtpreisliste!$A$7:$E$888,2,FALSE)","v":30014010},true,{"$f":"VLOOKUP(AB44,Gesamtpreisliste!$A$7:$E$888,3,FALSE)","v":"F4HK14"},{"$f":"VLOOKUP(AB44,Gesamtpreisliste!$A$7:$E$888,5,FALSE)","v":62.9},true,null,null,null,null,null,null,null,30014010,4010312314982]
[144,"FAE14SSR Heiz-Kühl-Relais 2-Kanal geräuschlos",{"$f":"IF(Eingabemaske!E9=\"ja\",(SUM(Stückliste!C57:C60,Stückliste!C61:C64,Stückliste!C65:C68,Stückliste!C73:C84,Stückliste!C85:C88,Stückliste!C93,Stückliste!C110)/2),0)","v":0},0,0,67.900000000000006,0,null,0.4,0,"",{"$error":"#VALUE!"},{"$error":"#VALUE!"},null,{"$f":"VLOOKUP(AB45,Gesamtpreisliste!$A$7:$E$888,2,FALSE)","v":30014029},true,{"$f":"VLOOKUP(AB45,Gesamtpreisliste!$A$7:$E$888,3,FALSE)","v":"FAE14SSR"},{"$f":"VLOOKUP(AB45,Gesamtpreisliste!$A$7:$E$888,5,FALSE)","v":67.900000000000006},true,null,null,null,null,null,null,null,"30014029",4010312314173]
[145,"FSU14 Bus-Display-Schaltuhr",{"$f":"IF(Eingabemaske!E83=\"ja\",Eingabemaske!E84/8,0)","v":0},0,0,64,0,null,0.14000000000000001,0,"",{"$error":"#VALUE!"},{"$error":"#VALUE!"},null,{"$f":"VLOOKUP(AB46,Gesamtpreisliste!$A$7:$E$888,2,FALSE)","v":30014015},true,{"$f":"VLOOKUP(AB46,Gesamtpreisliste!$A$7:$E$888,3,FALSE)","v":"FSU14"},{"$f":"VLOOKUP(AB46,Gesamtpreisliste!$A$7:$E$888,5,FALSE)","v":64},true,null,null,null,null,null,null,null,30014015,4010312313831]
[146,"FMSR14 Multifunktions-Sensorrelais für Wetterdatenauswertung",{"$f":"IF(AND(Eingabemaske!E49=\"ja\",Eingabemaske!E53>0,C51>0),Eingabemaske!E53,0)","v":0},0,0,64,0,null,0.1,0,"",{"$error":"#VALUE!"},{"$error":"#VALUE!"},null,{"$f":"VLOOKUP(AB47,Gesamtpreisliste!$A$7:$E$888,2,FALSE)","v":30014028},true,{"$f":"VLOOKUP(AB47,Gesamtpreisliste!$A$7:$E$888,3,FALSE)","v":"FMSR14"},{"$f":"VLOOKUP(AB47,Gesamtpreisliste!$A$7:$E$888,5,FALSE)","v":64},true,null,null,null,null,null,null,null,30014028,4010312314111]
[147,"FWG14MS Bus-Wetterdaten-Gateway",{"$f":"IF(AND(Eingabemaske!E49=\"ja\",Eingabemaske!E50=\"Multi\",Eingabemaske!E52=\"Draht\"),1,0)","v":0},{"$f":"C48","v":0},0,61.8,{"$f":"D48*F48","v":0},null,0.3,0,"",{"$f":"K48","v":""},"",null,{"$f":"VLOOKUP(AB48,Gesamtpreisliste!$A$7:$E$888,2,FALSE)","v":30014072},true,{"$f":"VLOOKUP(AB48,Gesamtpreisliste!$A$7:$E$888,3,FALSE)","v":"FWG14MS"},{"$f":"VLOOKUP(AB48,Gesamtpreisliste!$A$7:$E$888,5,FALSE)","v":61.8},true,null,null,null,null,null,null,null,30014072,4010312316887]
[148,"FSDG14 Bus-Funk-Stromzähler-Datengateway",{"$f":"IF(Eingabemaske!E76=\"ja\",Eingabemaske!E78,0)","v":0},{"$f":"C49","v":0},0,59.6,{"$f":"D49*F49","v":0},null,0.4,0,"",{"$f":"K49","v":""},"",null,{"$f":"VLOOKUP(AB49,Gesamtpreisliste!$A$7:$E$888,2,FALSE)","v":30014066},true,{"$f":"VLOOKUP(AB49,Gesamtpreisliste!$A$7:$E$888,3,FALSE)","v":"FSDG14"},{"$f":"VLOOKUP(AB49,Gesamtpreisliste!$A$7:$E$888,5,FALSE)","v":59.6},true,null,null,null,null,null,null,null,"30014066",4010312316146]
[149,"F3Z14D Bus-Funk-Zähler-Sammler",{"$f":"IF(Eingabemaske!E76=\"ja\",(Eingabemaske!E77/3+Eingabemaske!E79/3),0)","v":0},{"$f":"ROUNDUP(C50,0)","v":0},0,60.9,{"$f":"D50*F50","v":0},null,0.1,0,"",{"$f":"ROUNDUP(K50,0)","v":{"$error":"#VALUE!"}},{"$error":"#VALUE!"},null,{"$f":"VLOOKUP(AB50,Gesamtpreisliste!$A$7:$E$888,2,FALSE)","v":30014055},true,{"$f":"VLOOKUP(AB50,Gesamtpreisliste!$A$7:$E$888,3,FALSE)","v":"F3Z14D"},{"$f":"VLOOKUP(AB50,Gesamtpreisliste!$A$7:$E$888,5,FALSE)","v":60.9},true,null,null,null,null,null,null,null,"30014055",4010312501528]
[150,"WMS Multisensor zur Wetterdatenerfassung",{"$f":"IF(AND(Eingabemaske!E49=\"ja\",Eingabemaske!E50=\"Multi\"),1,0)","v":0},{"$f":"C51","v":0},null,316.7,0,null,null,null,"",{"$f":"K51","v":""},null,null,{"$f":"VLOOKUP(AB51,Gesamtpreisliste!$A$7:$E$888,2,FALSE)","v":20000085},true,{"$f":"VLOOKUP(AB51,Gesamtpreisliste!$A$7:$E$888,3,FALSE)","v":"WMS"},{"$f":"VLOOKUP(AB51,Gesamtpreisliste!$A$7:$E$888,5,FALSE)","v":316.7},true,null,null,null,null,null,null,null,20000085,4010312206898]
[151,"LS Lichtsensor",{"$f":"IF(AND(Eingabemaske!E49=\"ja\",Eingabemaske!E50=\"Einzel\",OR(Eingabemaske!E51=\"Sonne\",Eingabemaske!E51=\"Sonne,Regen\",Eingabemaske!E51=\"Sonne,Wind\",Eingabemaske!E51=\"Alles\")),1,0)","v":0},0,null,34.200000000000003,{"$f":"D52*F52","v":0},null,null,null,"","",null,null,{"$f":"VLOOKUP(AB52,Gesamtpreisliste!$A$7:$E$888,2,FALSE)","v":20000080},true,{"$f":"VLOOKUP(AB52,Gesamtpreisliste!$A$7:$E$888,3,FALSE)","v":"LS Lichtsensor"},{"$f":"VLOOKUP(AB52,Gesamtpreisliste!$A$7:$E$888,5,FALSE)","v":34.200000000000003},true,null,null,null,null,null,null,null,20000080,4010312901267]
[152,"RS Regensensor ",{"$f":"IF(AND(Eingabemaske!E49=\"ja\",Eingabemaske!E50=\"Einzel\",OR(Eingabemaske!E51=\"Regen\",Eingabemaske!E51=\"Regen,Wind\",Eingabemaske!E51=\"Sonne,Regen\",Eingabemaske!E51=\"Alles\")),1,0)","v":0},0,null,142.69999999999999,0,null,null,null,"","",null,null,{"$f":"VLOOKUP(AB53,Gesamtpreisliste!$A$7:$E$888,2,FALSE)","v":20000087},true,{"$f":"VLOOKUP(AB53,Gesamtpreisliste!$A$7:$E$888,3,FALSE)","v":"RS Regensensor"},{"$f":"VLOOKUP(AB53,Gesamtpreisliste!$A$7:$E$888,5,FALSE)","v":142.69999999999999},true,null,null,null,null,null,null,null,20000087,4010312206546]
[153,"WS Windsensor",{"$f":"IF(AND(Eingabemaske!E49=\"ja\",Eingabemaske!E50=\"Einzel\",OR(Eingabemaske!E51=\"Wind\",Eingabemaske!E51=\"Regen,Wind\",Eingabemaske!E51=\"Sonne,Wind\",Eingabemaske!E51=\"Alles\")),1,0)","v":0},0,null,79.7,0,null,null,null,"","",null,null,{"$f":"VLOOKUP(AB54,Gesamtpreisliste!$A$7:$E$888,2,FALSE)","v":20000082},true,{"$f":"VLOOKUP(AB54,Gesamtpreisliste!$A$7:$E$888,3,FALSE)","v":"WS Windsensor"},{"$f":"VLOOKUP(AB54,Gesamtpreisliste!$A$7:$E$888,5,FALSE)","v":79.7},true,null,null,null,null,null,null,null,20000082,4010312901281]
[154,"LRW12D Auswerteinheit",{"$f":"IF(AND(OR(C52>0,C53>0,C54>0),Eingabemaske!E50=\"Einzel\",Eingabemaske!E49=\"ja\"),1,0)","v":0},0,{"$f":"D55","v":0},81.400000000000006,0,null,null,null,"","",{"$f":"L55","v":""},null,{"$f":"VLOOKUP(AB55,Gesamtpreisliste!$A$7:$E$888,2,FALSE)","v":22400501},true,{"$f":"VLOOKUP(AB55,Gesamtpreisliste!$A$7:$E$888,3,FALSE)","v":"LRW12D-UC"},{"$f":"VLOOKUP(AB55,Gesamtpreisliste!$A$7:$E$888,5,FALSE)","v":81.400000000000006},true,null,null,null,null,null,null,null,22400501,4010312206553]
[155,"FWS61-24V DC Wetterdaten-Sendemodul",{"$f":"IF(AND(Eingabemaske!E49=\"ja\",Eingabemaske!E50=\"Multi\",Eingabemaske!E52=\"Funk\"),1,0)","v":0},0,null,79.599999999999994,0,null,null,null,"","",null,null,{"$f":"VLOOKUP(AB56,Gesamtpreisliste!$A$7:$E$888,2,FALSE)","v":30000305},true,{"$f":"VLOOKUP(AB56,Gesamtpreisliste!$A$7:$E$888,3,FALSE)","v":"FWS61-24V DC"},{"$f":"VLOOKUP(AB56,Gesamtpreisliste!$A$7:$E$888,5,FALSE)","v":79.599999999999994},true,null,null,null,null,null,null,null,30000305,4010312301937]
[157,"BUTH55ED-12V DC-pg Bus-Thermo-Hygrostat mit Display",{"$f":"IF(AND(Eingabemaske!E$5=\"ja\",Eingabemaske!E$7=\"55mm E pg\",Eingabemaske!E$18=\"ja\"),Eingabemaske!E$23,0)","v":0},0,null,91.8,{"$f":"D57*F57","v":0},null,null,null,"","",null,null,{"$f":"VLOOKUP(AB57,Gesamtpreisliste!$A$7:$E$888,2,FALSE)","v":30055165},{"$f":"EXACT(O57,AA57)","v":true},{"$f":"VLOOKUP(AB57,Gesamtpreisliste!$A$7:$E$888,3,FALSE)","v":"BUTH55ED/12V DC-pg"},{"$f":"VLOOKUP(AB57,Gesamtpreisliste!$A$7:$E$888,5,FALSE)","v":91.8},{"$f":"EXACT(F57,R57)","v":true},null,null,null,null,null,null,null,30055165,4010312326671]
[158,"BUTH55ED-12V DC-pm Bus-Thermo-Hygrostat mit Display",{"$f":"IF(AND(Eingabemaske!E$5=\"ja\",Eingabemaske!E$7=\"55mm E pm\",Eingabemaske!E$18=\"ja\"),Eingabemaske!E$23,0)","v":0},0,null,91.8,0,null,null,null,"","",null,null,{"$f":"VLOOKUP(AB58,Gesamtpreisliste!$A$7:$E$888,2,FALSE)","v":30055166},true,{"$f":"VLOOKUP(AB58,Gesamtpreisliste!$A$7:$E$888,3,FALSE)","v":"BUTH55ED/12V DC-pm"},{"$f":"VLOOKUP(AB58,Gesamtpreisliste!$A$7:$E$888,5,FALSE)","v":91.8},true,null,null,null,null,null,null,null,30055166,4010312326688]
[159,"BUTH55ED-12V DC-wg Bus-Thermo-Hygrostat mit Display",{"$f":"IF(AND(Eingabemaske!E$5=\"ja\",Eingabemaske!E$7=\"55mm E wg\",Eingabemaske!E$18=\"ja\"),Eingabemaske!E$23,0)","v":0},0,null,91.8,0,null,null,null,"","",null,null,{"$f":"VLOOKUP(AB59,Gesamtpreisliste!$A$7:$E$888,2,FALSE)","v":30055167},true,{"$f":"VLOOKUP(AB59,Gesamtpreisliste!$A$7:$E$888,3,FALSE)","v":"BUTH55ED/12V DC-wg"},{"$f":"VLOOKUP(AB59,Gesamtpreisliste!$A$7:$E$888,5,FALSE)","v":91.8},true,null,null,null,null,null,null,null,30055167,4010312326695]
[160,"BUTH55ED-12V DC-am Bus-Thermo-Hygrostat mit Display",{"$f":"IF(AND(Eingabemaske!E$5=\"ja\",Eingabemaske!E$7=\"55mm E am\",Eingabemaske!E$18=\"ja\"),Eingabemaske!E$23,0)","v":0},{"$f":"C60","v":0},null,91.8,{"$f":"D60*F60","v":0},null,null,null,"",{"$f":"K60","v":""},null,null,{"$f":"VLOOKUP(AB60,Gesamtpreisliste!$A$7:$E$888,2,FALSE)","v":30055164},{"$f":"EXACT(O60,AA60)","v":true},{"$f":"VLOOKUP(AB60,Gesamtpreisliste!$A$7:$E$888,3,FALSE)","v":"BUTH55ED/12V DC-am"},{"$f":"VLOOKUP(AB60,Gesamtpreisliste!$A$7:$E$888,5,FALSE)","v":91.8},{"$f":"EXACT(F60,R60)","v":true},null,null,null,null,null,null,null,30055164,4010312326664]
[163,"BTR55EH-12V DC-pg Bus-Temperaturregler mit Handrad",{"$f":"IF(AND(Eingabemaske!E$5=\"ja\",Eingabemaske!E$7=\"55mm E pg\",Eingabemaske!E$18=\"ja\"),Eingabemaske!E$24,0)","v":0},{"$f":"C61","v":0},null,72.7,{"$f":"D61*F61","v":0},null,null,null,"",{"$f":"K61","v":""},null,null,{"$f":"VLOOKUP(AB61,Gesamtpreisliste!$A$7:$E$888,2,FALSE)","v":30055161},{"$f":"EXACT(O61,AA61)","v":true},{"$f":"VLOOKUP(AB61,Gesamtpreisliste!$A$7:$E$888,3,FALSE)","v":"BTR55EH/12V DC-pg"},{"$f":"VLOOKUP(AB61,Gesamtpreisliste!$A$7:$E$888,5,FALSE)","v":72.7},{"$f":"EXACT(F61,R61)","v":true},null,null,null,null,null,null,null,30055161,4010312326633]
[164,"BTR55EH-12V DC-pm Bus-Temperaturregler mit Handrad",{"$f":"IF(AND(Eingabemaske!E$5=\"ja\",Eingabemaske!E$7=\"55mm E pm\",Eingabemaske!E$18=\"ja\"),Eingabemaske!E$24,0)","v":0},0,null,72.7,0,null,null,null,"","",null,null,{"$f":"VLOOKUP(AB62,Gesamtpreisliste!$A$7:$E$888,2,FALSE)","v":30055162},true,{"$f":"VLOOKUP(AB62,Gesamtpreisliste!$A$7:$E$888,3,FALSE)","v":"BTR55EH/12V DC-pm"},{"$f":"VLOOKUP(AB62,Gesamtpreisliste!$A$7:$E$888,5,FALSE)","v":72.7},true,null,null,null,null,null,null,null,30055162,4010312326640]
[165,"BTR55EH-12V DC-wg Bus-Temperaturregler mit Handrad",{"$f":"IF(AND(Eingabemaske!E$5=\"ja\",Eingabemaske!E$7=\"55mm E wg\",Eingabemaske!E$18=\"ja\"),Eingabemaske!E$24,0)","v":0},0,null,72.7,0,null,null,null,"","",null,null,{"$f":"VLOOKUP(AB63,Gesamtpreisliste!$A$7:$E$888,2,FALSE)","v":30055163},true,{"$f":"VLOOKUP(AB63,Gesamtpreisliste!$A$7:$E$888,3,FALSE)","v":"BTR55EH/12V DC-wg"},{"$f":"VLOOKUP(AB63,Gesamtpreisliste!$A$7:$E$888,5,FALSE)","v":72.7},true,null,null,null,null,null,null,null,30055163,4010312326657]
[166,"BTR55EH-12V DC-am Bus-Temperaturregler mit Handrad",{"$f":"IF(AND(Eingabemaske!E$5=\"ja\",Eingabemaske!E$7=\"55mm E am\",Eingabemaske!E$18=\"ja\"),Eingabemaske!E$24,0)","v":0},{"$f":"C64","v":0},null,72.7,{"$f":"D64*F64","v":0},null,null,null,{"$f":"IF(D64>0,D64,\"\")","v":""},{"$f":"K64","v":""},null,null,{"$f":"VLOOKUP(AB64,Gesamtpreisliste!$A$7:$E$888,2,FALSE)","v":30055160},{"$f":"EXACT(O64,AA64)","v":true},{"$f":"VLOOKUP(AB64,Gesamtpreisliste!$A$7:$E$888,3,FALSE)","v":"BTR55EH/12V DC-am"},{"$f":"VLOOKUP(AB64,Gesamtpreisliste!$A$7:$E$888,5,FALSE)","v":72.7},{"$f":"EXACT(F64,R64)","v":true},null,null,null,null,null,null,null,30055160,4010312326626]
[169,"BTF55E/12VDC-pg Bus-Temperaturfühler",{"$f":"IF(AND(Eingabemaske!E$5=\"ja\",Eingabemaske!E$7=\"55mm E pg\",Eingabemaske!E$18=\"ja\"),Eingabemaske!E$25,0)","v":0},{"$f":"C65","v":0},null,66.8,{"$f":"D65*F65","v":0},null,null,null,"",{"$f":"K65","v":""},null,null,{"$f":"VLOOKUP(AB65,Gesamtpreisliste!$A$7:$E$888,2,FALSE)","v":30055157},{"$f":"EXACT(O65,AA65)","v":true},{"$f":"VLOOKUP(AB65,Gesamtpreisliste!$A$7:$E$888,3,FALSE)","v":"BTF55E/12V DC-pg"},{"$f":"VLOOKUP(AB65,Gesamtpreisliste!$A$7:$E$888,5,FALSE)","v":66.8},{"$f":"EXACT(F65,R65)","v":true},null,null,null,null,null,null,null,30055157,4010312326596]
[170,"BTF55E/12VDC-pm Bus-Temperaturfühler",{"$f":"IF(AND(Eingabemaske!E$5=\"ja\",Eingabemaske!E$7=\"55mm E pm\",Eingabemaske!E$18=\"ja\"),Eingabemaske!E$25,0)","v":0},0,null,66.8,0,null,null,null,"","",null,null,{"$f":"VLOOKUP(AB66,Gesamtpreisliste!$A$7:$E$888,2,FALSE)","v":30055158},true,{"$f":"VLOOKUP(AB66,Gesamtpreisliste!$A$7:$E$888,3,FALSE)","v":"BTF55E/12V DC-pm"},{"$f":"VLOOKUP(AB66,Gesamtpreisliste!$A$7:$E$888,5,FALSE)","v":66.8},true,null,null,null,null,null,null,null,30055158,4010312326602]
[171,"BTF55E/12VDC-wg Bus-Temperaturfühler",{"$f":"IF(AND(Eingabemaske!E$5=\"ja\",Eingabemaske!E$7=\"55mm E wg\",Eingabemaske!E$18=\"ja\"),Eingabemaske!E$25,0)","v":0},0,null,66.8,{"$f":"D67*F67","v":0},null,null,null,"","",null,null,{"$f":"VLOOKUP(AB67,Gesamtpreisliste!$A$7:$E$888,2,FALSE)","v":30055159},{"$f":"EXACT(O67,AA67)","v":true},{"$f":"VLOOKUP(AB67,Gesamtpreisliste!$A$7:$E$888,3,FALSE)","v":"BTF55E/12V DC-wg"},{"$f":"VLOOKUP(AB67,Gesamtpreisliste!$A$7:$E$888,5,FALSE)","v":66.8},{"$f":"EXACT(F67,R67)","v":true},null,null,null,null,null,null,null,30055159,4010312326619]
[172,"BTF55E/12VDC-am Bus-Temperaturfühler",{"$f":"IF(AND(Eingabemaske!E$5=\"ja\",Eingabemaske!E$7=\"55mm E am\",Eingabemaske!E$18=\"ja\"),Eingabemaske!E$25,0)","v":0},{"$f":"C68","v":0},null,66.8,{"$f":"D68*F68","v":0},null,null,null,"",{"$f":"K68","v":""},null,null,{"$f":"VLOOKUP(AB68,Gesamtpreisliste!$A$7:$E$888,2,FALSE)","v":30055156},{"$f":"EXACT(O68,AA68)","v":true},{"$f":"VLOOKUP(AB68,Gesamtpreisliste!$A$7:$E$888,3,FALSE)","v":"BTF55E/12V DC-am"},{"$f":"VLOOKUP(AB68,Gesamtpreisliste!$A$7:$E$888,5,FALSE)","v":66.8},{"$f":"EXACT(F68,R68)","v":true},null,null,null,null,null,null,null,30055156,4010312326589]
[175,"BBH55E/12V DC-pg Bus-Bewegungs-Helligkeitssensor",{"$f":"IF(AND(Eingabemaske!E$5=\"ja\",Eingabemaske!E$7=\"55mm E pg\",Eingabemaske!E$64=\"ja\"),Eingabemaske!E$66,0)","v":0},{"$f":"C69","v":0},null,78.2,{"$f":"D69*F69","v":0},null,null,null,"",{"$f":"K69","v":""},null,null,{"$f":"VLOOKUP(AB69,Gesamtpreisliste!$A$7:$E$888,2,FALSE)","v":30055153},{"$f":"EXACT(O69,AA69)","v":true},{"$f":"VLOOKUP(AB69,Gesamtpreisliste!$A$7:$E$888,3,FALSE)","v":"BBH55E/12V DC-pg"},{"$f":"VLOOKUP(AB69,Gesamtpreisliste!$A$7:$E$888,5,FALSE)","v":78.2},{"$f":"EXACT(F69,R69)","v":true},null,null,null,null,null,null,null,30055153,4010312326558]
[176,"BBH55E/12V DC-pm Bus-Bewegungs-Helligkeitssensor",{"$f":"IF(AND(Eingabemaske!E$5=\"ja\",Eingabemaske!E$7=\"55mm E pm\",Eingabemaske!E$64=\"ja\"),Eingabemaske!E$66,0)","v":0},0,null,78.2,0,null,null,null,"","",null,null,{"$f":"VLOOKUP(AB70,Gesamtpreisliste!$A$7:$E$888,2,FALSE)","v":30055154},true,{"$f":"VLOOKUP(AB70,Gesamtpreisliste!$A$7:$E$888,3,FALSE)","v":"BBH55E/12V DC-pm"},{"$f":"VLOOKUP(AB70,Gesamtpreisliste!$A$7:$E$888,5,FALSE)","v":78.2},true,null,null,null,null,null,null,null,30055154,4010312326565]
[177,"BBH55E/12V DC-wg Bus-Bewegungs-Helligkeitssensor",{"$f":"IF(AND(Eingabemaske!E$5=\"ja\",Eingabemaske!E$7=\"55mm E wg\",Eingabemaske!E$64=\"ja\"),Eingabemaske!E$66,0)","v":0},0,null,78.2,0,null,null,null,"","",null,null,{"$f":"VLOOKUP(AB71,Gesamtpreisliste!$A$7:$E$888,2,FALSE)","v":30055155},true,{"$f":"VLOOKUP(AB71,Gesamtpreisliste!$A$7:$E$888,3,FALSE)","v":"BBH55E/12V DC-wg"},{"$f":"VLOOKUP(AB71,Gesamtpreisliste!$A$7:$E$888,5,FALSE)","v":78.2},true,null,null,null,null,null,null,null,30055155,4010312326572]
[178,"BBH55E/12V DC-am Bus-Bewegungs-Helligkeitssensor",{"$f":"IF(AND(Eingabemaske!E$5=\"ja\",Eingabemaske!E$7=\"55mm E am\",Eingabemaske!E$64=\"ja\"),Eingabemaske!E$66,0)","v":0},{"$f":"C72","v":0},null,78.2,{"$f":"D72*F72","v":0},null,null,null,"",{"$f":"K72","v":""},null,null,{"$f":"VLOOKUP(AB72,Gesamtpreisliste!$A$7:$E$888,2,FALSE)","v":30055152},{"$f":"EXACT(O72,AA72)","v":true},{"$f":"VLOOKUP(AB72,Gesamtpreisliste!$A$7:$E$888,3,FALSE)","v":"BBH55E/12V DC-am"},{"$f":"VLOOKUP(AB72,Gesamtpreisliste!$A$7:$E$888,5,FALSE)","v":78.2},{"$f":"EXACT(F72,R72)","v":true},null,null,null,null,null,null,null,30055152,4010312326541]
[181,"FUTH55ED/230V-pg Funk-Uhren-Thermo-Hygrostat mit Display",{"$f":"IF(AND(Eingabemaske!E$4=\"ja\",Eingabemaske!E$7=\"55mm E pg\",Eingabemaske!E$18=\"ja\"),Eingabemaske!E$19,0)","v":0},{"$f":"C73","v":0},null,105.6,{"$f":"D73*F73","v":0},null,null,null,"",{"$f":"K73","v":""},null,null,{"$f":"VLOOKUP(AB73,Gesamtpreisliste!$A$7:$E$888,2,FALSE)","v":30055803},{"$f":"EXACT(O73,AA73)","v":true},{"$f":"VLOOKUP(AB73,Gesamtpreisliste!$A$7:$E$888,3,FALSE)","v":"FUTH55ED/230V-pg"},{"$f":"VLOOKUP(AB73,Gesamtpreisliste!$A$7:$E$888,5,FALSE)","v":105.6},{"$f":"EXACT(F73,R73)","v":true},null,null,null,null,null,null,null,30055803,4010312326794]
[182,"FUTH55ED/230V-pm Funk-Uhren-Thermo-Hygrostat mit Display",{"$f":"IF(AND(Eingabemaske!E$4=\"ja\",Eingabemaske!E$7=\"55mm E pm\",Eingabemaske!E$18=\"ja\"),Eingabemaske!E$19,0)","v":0},0,null,105.6,0,null,null,null,"","",null,null,{"$f":"VLOOKUP(AB74,Gesamtpreisliste!$A$7:$E$888,2,FALSE)","v":30055804},true,{"$f":"VLOOKUP(AB74,Gesamtpreisliste!$A$7:$E$888,3,FALSE)","v":"FUTH55ED/230V-pm"},{"$f":"VLOOKUP(AB74,Gesamtpreisliste!$A$7:$E$888,5,FALSE)","v":105.6},true,null,null,null,null,null,null,null,30055804,4010312326800]
[183,"FUTH55ED/230V-wg Funk-Uhren-Thermo-Hygrostat mit Display",{"$f":"IF(AND(Eingabemaske!E$4=\"ja\",Eingabemaske!E$7=\"55mm E wg\",Eingabemaske!E$18=\"ja\"),Eingabemaske!E$19,0)","v":0},0,null,105.6,0,null,null,null,"","",null,null,{"$f":"VLOOKUP(AB75,Gesamtpreisliste!$A$7:$E$888,2,FALSE)","v":30055805},true,{"$f":"VLOOKUP(AB75,Gesamtpreisliste!$A$7:$E$888,3,FALSE)","v":"FUTH55ED/230V-wg"},{"$f":"VLOOKUP(AB75,Gesamtpreisliste!$A$7:$E$888,5,FALSE)","v":105.6},true,null,null,null,null,null,null,null,30055805,4010312326817]
[184,"FUTH55ED/230V-am Funk-Uhren-Thermo-Hygrostat mit Display",{"$f":"IF(AND(Eingabemaske!E$4=\"ja\",Eingabemaske!E$7=\"55mm E am\",Eingabemaske!E$18=\"ja\"),Eingabemaske!E$19,0)","v":0},{"$f":"C76","v":0},null,105.6,{"$f":"D76*F76","v":0},null,null,null,"",{"$f":"K76","v":""},null,null,{"$f":"VLOOKUP(AB76,Gesamtpreisliste!$A$7:$E$888,2,FALSE)","v":30055802},{"$f":"EXACT(O76,AA76)","v":true},{"$f":"VLOOKUP(AB76,Gesamtpreisliste!$A$7:$E$888,3,FALSE)","v":"FUTH55ED/230V-am"},{"$f":"VLOOKUP(AB76,Gesamtpreisliste!$A$7:$E$888,5,FALSE)","v":105.6},{"$f":"EXACT(F76,R76)","v":true},null,null,null,null,null,null,null,30055802,4010312326787]
[187,"FUTH55ED/12-24VUC-pg Funk-Uhren-Thermo-Hygrostat mit Display",null,{"$f":"C77","v":0},null,106.6,{"$f":"D77*F77","v":0},null,null,null,"",{"$f":"K77","v":""},null,null,{"$f":"VLOOKUP(AB77,Gesamtpreisliste!$A$7:$E$888,2,FALSE)","v":30055799},{"$f":"EXACT(O77,AA77)","v":true},{"$f":"VLOOKUP(AB77,Gesamtpreisliste!$A$7:$E$888,3,FALSE)","v":"FUTH55ED/12-24V UC-pg"},{"$f":"VLOOKUP(AB77,Gesamtpreisliste!$A$7:$E$888,5,FALSE)","v":106.6},{"$f":"EXACT(F77,R77)","v":true},null,null,null,null,null,null,null,30055799,4010312326411]
[188,"FUTH55ED/12-24VUC-pm Funk-Uhren-Thermo-Hygrostat mit Display",null,0,null,106.6,0,null,null,null,"","",null,null,{"$f":"VLOOKUP(AB78,Gesamtpreisliste!$A$7:$E$888,2,FALSE)","v":30055800},true,{"$f":"VLOOKUP(AB78,Gesamtpreisliste!$A$7:$E$888,3,FALSE)","v":"FUTH55ED/12-24V UC-pm"},{"$f":"VLOOKUP(AB78,Gesamtpreisliste!$A$7:$E$888,5,FALSE)","v":106.6},true,null,null,null,null,null,null,null,30055800,4010312326428]
[189,"FUTH55ED/12-24VUC-wg Funk-Uhren-Thermo-Hygrostat mit Display",null,0,null,106.6,0,null,null,null,"","",null,null,{"$f":"VLOOKUP(AB79,Gesamtpreisliste!$A$7:$E$888,2,FALSE)","v":30055801},true,{"$f":"VLOOKUP(AB79,Gesamtpreisliste!$A$7:$E$888,3,FALSE)","v":"FUTH55ED/12-24V UC-wg"},{"$f":"VLOOKUP(AB79,Gesamtpreisliste!$A$7:$E$888,5,FALSE)","v":106.6},true,null,null,null,null,null,null,null,30055801,4010312326435]
[190,"FUTH55ED/12-24VUC-am Funk-Uhren-Thermo-Hygrostat mit Display",null,{"$f":"C80","v":0},null,106.6,{"$f":"D80*F80","v":0},null,null,null,"",{"$f":"K80","v":""},null,null,{"$f":"VLOOKUP(AB80,Gesamtpreisliste!$A$7:$E$888,2,FALSE)","v":30055798},{"$f":"EXACT(O80,AA80)","v":true},{"$f":"VLOOKUP(AB80,Gesamtpreisliste!$A$7:$E$888,3,FALSE)","v":"FUTH55ED/12-24V UC-am"},{"$f":"VLOOKUP(AB80,Gesamtpreisliste!$A$7:$E$888,5,FALSE)","v":106.6},{"$f":"EXACT(F80,R80)","v":true},null,null,null,null,null,null,null,30055798,4010312326404]
[192,"FFT55EB-pg Funk-Temperatursensor",{"$f":"IF(AND(Eingabemaske!E$4=\"ja\",Eingabemaske!E$7=\"55mm E pg\",Eingabemaske!E$18=\"ja\"),Eingabemaske!E$22,0)","v":0},{"$f":"C81","v":0},null,75,{"$f":"D81*F81","v":0},null,null,null,"",{"$f":"K81","v":""},null,null,{"$f":"VLOOKUP(AB81,Gesamtpreisliste!$A$7:$E$888,2,FALSE)","v":30055477},{"$f":"EXACT(O81,AA81)","v":true},{"$f":"VLOOKUP(AB81,Gesamtpreisliste!$A$7:$E$888,3,FALSE)","v":"FFT55EB-pg"},{"$f":"VLOOKUP(AB81,Gesamtpreisliste!$A$7:$E$888,5,FALSE)","v":75},{"$f":"EXACT(F81,R81)","v":true},null,null,null,null,null,null,null,30055477,4010312325889]
[193,"FFT55EB-pm Funk-Temperatursensor",{"$f":"IF(AND(Eingabemaske!E$4=\"ja\",Eingabemaske!E$7=\"55mm E pm\",Eingabemaske!E$18=\"ja\"),Eingabemaske!E$22,0)","v":0},0,null,75,0,null,null,null,"","",null,null,{"$f":"VLOOKUP(AB82,Gesamtpreisliste!$A$7:$E$888,2,FALSE)","v":30055478},true,{"$f":"VLOOKUP(AB82,Gesamtpreisliste!$A$7:$E$888,3,FALSE)","v":"FFT55EB-pm"},{"$f":"VLOOKUP(AB82,Gesamtpreisliste!$A$7:$E$888,5,FALSE)","v":75},true,null,null,null,null,null,null,null,30055478,4010312325896]
[194,"FFT55EB-wg Funk-Temperatursensor",{"$f":"IF(AND(Eingabemaske!E$4=\"ja\",Eingabemaske!E$7=\"55mm E wg\",Eingabemaske!E$18=\"ja\"),Eingabemaske!E$22,0)","v":0},{"$f":"C83","v":0},null,75,{"$f":"D83*F83","v":0},null,null,null,"",{"$f":"K83","v":""},null,null,{"$f":"VLOOKUP(AB83,Gesamtpreisliste!$A$7:$E$888,2,FALSE)","v":30055475},{"$f":"EXACT(O83,AA83)","v":true},{"$f":"VLOOKUP(AB83,Gesamtpreisliste!$A$7:$E$888,3,FALSE)","v":"FFT55EB-wg"},{"$f":"VLOOKUP(AB83,Gesamtpreisliste!$A$7:$E$888,5,FALSE)","v":75},{"$f":"EXACT(F83,R83)","v":true},null,null,null,null,null,null,null,30055475,4010312321010]
[195,"FFT55EB-am Funk-Temperatursensor",{"$f":"IF(AND(Eingabemaske!E$4=\"ja\",Eingabemaske!E$7=\"55mm E am\",Eingabemaske!E$18=\"ja\"),Eingabemaske!E$22,0)","v":0},{"$f":"C84","v":0},null,75,{"$f":"D84*F84","v":0},null,null,null,"",{"$f":"K84","v":""},null,null,{"$f":"VLOOKUP(AB84,Gesamtpreisliste!$A$7:$E$888,2,FALSE)","v":30055476},{"$f":"EXACT(O84,AA84)","v":true},{"$f":"VLOOKUP(AB84,Gesamtpreisliste!$A$7:$E$888,3,FALSE)","v":"FFT55EB-am"},{"$f":"VLOOKUP(AB84,Gesamtpreisliste!$A$7:$E$888,5,FALSE)","v":75},{"$f":"EXACT(F84,R84)","v":true},null,null,null,null,null,null,null,30055476,4010312325872]
[198,"FTR55EHB-pg Funk-Temperaturregler mit Handrad",{"$f":"IF(AND(Eingabemaske!E$4=\"ja\",Eingabemaske!E$7=\"55mm E pg\",Eingabemaske!E$18=\"ja\"),Eingabemaske!E$21,0)","v":0},{"$f":"C85","v":0},null,88.8,{"$f":"D85*F85","v":0},null,null,null,"",{"$f":"K85","v":""},null,null,{"$f":"VLOOKUP(AB85,Gesamtpreisliste!$A$7:$E$888,2,FALSE)","v":30055767},{"$f":"EXACT(O85,AA85)","v":true},{"$f":"VLOOKUP(AB85,Gesamtpreisliste!$A$7:$E$888,3,FALSE)","v":"FTR55EHB-pg"},{"$f":"VLOOKUP(AB85,Gesamtpreisliste!$A$7:$E$888,5,FALSE)","v":88.8},{"$f":"EXACT(F85,R85)","v":true},null,null,null,null,null,null,null,30055767,4010312326299]
[199,"FTR55EHB-pm Funk-Temperaturregler mit Handrad",{"$f":"IF(AND(Eingabemaske!E$4=\"ja\",Eingabemaske!E$7=\"55mm E pm\",Eingabemaske!E$18=\"ja\"),Eingabemaske!E$21,0)","v":0},0,null,88.8,{"$f":"D86*F86","v":0},null,null,null,"","",null,null,{"$f":"VLOOKUP(AB86,Gesamtpreisliste!$A$7:$E$888,2,FALSE)","v":30055768},{"$f":"EXACT(O86,AA86)","v":true},{"$f":"VLOOKUP(AB86,Gesamtpreisliste!$A$7:$E$888,3,FALSE)","v":"FTR55EHB-pm"},{"$f":"VLOOKUP(AB86,Gesamtpreisliste!$A$7:$E$888,5,FALSE)","v":88.8},{"$f":"EXACT(F86,R86)","v":true},null,null,null,null,null,null,null,30055768,4010312326305]
[200,"FTR55EHB-wg Funk-Temperaturregler mit Handrad",{"$f":"IF(AND(Eingabemaske!E$4=\"ja\",Eingabemaske!E$7=\"55mm E wg\",Eingabemaske!E$18=\"ja\"),Eingabemaske!E$21,0)","v":0},0,null,88.8,{"$f":"D87*F87","v":0},null,null,null,"","",null,null,{"$f":"VLOOKUP(AB87,Gesamtpreisliste!$A$7:$E$888,2,FALSE)","v":30055769},{"$f":"EXACT(O87,AA87)","v":true},{"$f":"VLOOKUP(AB87,Gesamtpreisliste!$A$7:$E$888,3,FALSE)","v":"FTR55EHB-wg"},{"$f":"VLOOKUP(AB87,Gesamtpreisliste!$A$7:$E$888,5,FALSE)","v":88.8},{"$f":"EXACT(F87,R87)","v":true},null,null,null,null,null,null,null,30055769,4010312326312]
[201,"FTR55EHB-am Funk-Temperaturregler mit Handrad",{"$f":"IF(AND(Eingabemaske!E$4=\"ja\",Eingabemaske!E$7=\"55mm E am\",Eingabemaske!E$18=\"ja\"),Eingabemaske!E$21,0)","v":0},{"$f":"C88","v":0},null,88.8,{"$f":"D88*F88","v":0},null,null,null,"",{"$f":"K88","v":""},null,null,{"$f":"VLOOKUP(AB88,Gesamtpreisliste!$A$7:$E$888,2,FALSE)","v":30055766},{"$f":"EXACT(O88,AA88)","v":true},{"$f":"VLOOKUP(AB88,Gesamtpreisliste!$A$7:$E$888,3,FALSE)","v":"FTR55EHB-am"},{"$f":"VLOOKUP(AB88,Gesamtpreisliste!$A$7:$E$888,5,FALSE)","v":88.8},{"$f":"EXACT(F88,R88)","v":true},null,null,null,null,null,null,null,30055766,4010312326282]
[204,"FTAF55ED-230V-am Funk-Temperaturregeler Air+Floor",{"$f":"IF(AND(Eingabemaske!E$4=\"ja\",Eingabemaske!E$7=\"55mm E am\",Eingabemaske!E$18=\"ja\"),Eingabemaske!E$20,0)","v":0},{"$f":"C89","v":0},null,103.1,{"$f":"D89*F89","v":0},null,null,null,"",{"$f":"K89","v":""},null,null,{"$f":"VLOOKUP(AB89,Gesamtpreisliste!$A$7:$E$888,2,FALSE)","v":30055794},{"$f":"EXACT(O89,AA89)","v":true},{"$f":"VLOOKUP(AB89,Gesamtpreisliste!$A$7:$E$888,3,FALSE)","v":"FTAF55ED/230V-am"},{"$f":"VLOOKUP(AB89,Gesamtpreisliste!$A$7:$E$888,5,FALSE)","v":103.1},{"$f":"EXACT(F89,R89)","v":true},null,null,null,null,null,null,null,30055794,4010312326367]
[205,"FTAF55ED-230V-pg Funk-Temperaturregeler Air+Floor",{"$f":"IF(AND(Eingabemaske!E$4=\"ja\",Eingabemaske!E$7=\"55mm E pg\",Eingabemaske!E$18=\"ja\"),Eingabemaske!E$20,0)","v":0},0,null,103.1,0,null,null,null,"","",null,null,{"$f":"VLOOKUP(AB90,Gesamtpreisliste!$A$7:$E$888,2,FALSE)","v":30055795},true,{"$f":"VLOOKUP(AB90,Gesamtpreisliste!$A$7:$E$888,3,FALSE)","v":"FTAF55ED/230V-pg"},{"$f":"VLOOKUP(AB90,Gesamtpreisliste!$A$7:$E$888,5,FALSE)","v":103.1},true,null,null,null,null,null,null,null,30055795,4010312326374]
[206,"FTAF55ED-230V-pm Funk-Temperaturregeler Air+Floor",{"$f":"IF(AND(Eingabemaske!E$4=\"ja\",Eingabemaske!E$7=\"55mm E pm\",Eingabemaske!E$18=\"ja\"),Eingabemaske!E$20,0)","v":0},0,null,103.1,0,null,null,null,"","",null,null,{"$f":"VLOOKUP(AB91,Gesamtpreisliste!$A$7:$E$888,2,FALSE)","v":30055796},true,{"$f":"VLOOKUP(AB91,Gesamtpreisliste!$A$7:$E$888,3,FALSE)","v":"FTAF55ED/230V-pm"},{"$f":"VLOOKUP(AB91,Gesamtpreisliste!$A$7:$E$888,5,FALSE)","v":103.1},true,null,null,null,null,null,null,null,30055796,4010312326381]
[207,"FTAF55ED-230V-wg Funk-Temperaturregeler Air+Floor",{"$f":"IF(AND(Eingabemaske!E$4=\"ja\",Eingabemaske!E$7=\"55mm E wg\",Eingabemaske!E$18=\"ja\"),Eingabemaske!E$20,0)","v":0},0,null,103.1,0,null,null,null,"","",null,null,{"$f":"VLOOKUP(AB92,Gesamtpreisliste!$A$7:$E$888,2,FALSE)","v":30055797},true,{"$f":"VLOOKUP(AB92,Gesamtpreisliste!$A$7:$E$888,3,FALSE)","v":"FTAF55ED/230V-wg"},{"$f":"VLOOKUP(AB92,Gesamtpreisliste!$A$7:$E$888,5,FALSE)","v":103.1},true,null,null,null,null,null,null,null,30055797,4010312326398]
[209,"FTR86B-ws Funk-Temperatur-Regler (Oventrop)",null,0,null,166.5,0,null,null,null,"","",null,null,{"$f":"VLOOKUP(AB93,Gesamtpreisliste!$A$7:$E$888,2,FALSE)","v":30000439},true,{"$f":"VLOOKUP(AB93,Gesamtpreisliste!$A$7:$E$888,3,FALSE)","v":"FTR86B-ws"},{"$f":"VLOOKUP(AB93,Gesamtpreisliste!$A$7:$E$888,5,FALSE)","v":166.5},true,null,null,null,null,null,null,null,"30000439",4010312318423]
[212,"FB55EB-pg Funk-Bewegungssensor mit Batterie",{"$f":"IF(AND(Eingabemaske!E$4=\"ja\",Eingabemaske!E$7=\"55mm E pg\",Eingabemaske!E$64=\"ja\"),Eingabemaske!E$70,0)","v":0},{"$f":"C94","v":0},null,89.1,{"$f":"D94*F94","v":0},null,null,null,"",{"$f":"K94","v":""},null,null,{"$f":"VLOOKUP(AB94,Gesamtpreisliste!$A$7:$E$888,2,FALSE)","v":30055514},{"$f":"EXACT(O94,AA94)","v":true},{"$f":"VLOOKUP(AB94,Gesamtpreisliste!$A$7:$E$888,3,FALSE)","v":"FB55EB-pg"},{"$f":"VLOOKUP(AB94,Gesamtpreisliste!$A$7:$E$888,5,FALSE)","v":89.1},{"$f":"EXACT(F94,R94)","v":true},null,null,null,null,null,null,null,30055514,4010312325902]
[213,"FB55EB-pm Funk-Bewegungssensor mit Batterie",{"$f":"IF(AND(Eingabemaske!E$4=\"ja\",Eingabemaske!E$7=\"55mm E pm\",Eingabemaske!E$64=\"ja\"),Eingabemaske!E$70,0)","v":0},{"$f":"C95","v":0},null,89.1,{"$f":"D95*F95","v":0},null,null,null,"",{"$f":"K95","v":""},null,null,{"$f":"VLOOKUP(AB95,Gesamtpreisliste!$A$7:$E$888,2,FALSE)","v":30055515},true,{"$f":"VLOOKUP(AB95,Gesamtpreisliste!$A$7:$E$888,3,FALSE)","v":"FB55EB-pm"},{"$f":"VLOOKUP(AB95,Gesamtpreisliste!$A$7:$E$888,5,FALSE)","v":89.1},true,null,null,null,null,null,null,null,30055515,4010312325919]
[214,"FB55EB-wg Funk-Bewegungssensor mit Batterie",{"$f":"IF(AND(Eingabemaske!E$4=\"ja\",Eingabemaske!E$7=\"55mm E wg\",Eingabemaske!E$64=\"ja\"),Eingabemaske!E$70,0)","v":0},{"$f":"C96","v":0},null,89.1,{"$f":"D96*F96","v":0},null,null,null,"",{"$f":"K96","v":""},null,null,{"$f":"VLOOKUP(AB96,Gesamtpreisliste!$A$7:$E$888,2,FALSE)","v":30055512},true,{"$f":"VLOOKUP(AB96,Gesamtpreisliste!$A$7:$E$888,3,FALSE)","v":"FB55EB-wg"},{"$f":"VLOOKUP(AB96,Gesamtpreisliste!$A$7:$E$888,5,FALSE)","v":89.1},true,null,null,null,null,null,null,null,"30055512",4010312321003]
[215,"FB55EB-am Funk-Bewegungssensor mit Batterie",{"$f":"IF(AND(Eingabemaske!E$4=\"ja\",Eingabemaske!E$7=\"55mm E am\",Eingabemaske!E$64=\"ja\"),Eingabemaske!E$69,0)","v":0},{"$f":"C97","v":0},null,89.1,{"$f":"D97*F97","v":0},null,null,null,"",{"$f":"K97","v":""},null,null,{"$f":"VLOOKUP(AB97,Gesamtpreisliste!$A$7:$E$888,2,FALSE)","v":30055513},{"$f":"EXACT(O97,AA97)","v":true},{"$f":"VLOOKUP(AB97,Gesamtpreisliste!$A$7:$E$888,3,FALSE)","v":"FB55EB-am"},{"$f":"VLOOKUP(AB97,Gesamtpreisliste!$A$7:$E$888,5,FALSE)","v":89.1},{"$f":"EXACT(F97,R97)","v":true},null,null,null,null,null,null,null,30055513,4010312322321]
[217,"FBH55ESB-pg Funk-Bewegungs-Helligkeitssensor mit Solar+Batterie",{"$f":"IF(AND(Eingabemaske!E$4=\"ja\",Eingabemaske!E$7=\"55mm E pg\",Eingabemaske!E$64=\"ja\"),Eingabemaske!E$69,0)","v":0},{"$f":"C98","v":0},null,106.8,{"$f":"D98*F98","v":0},null,null,null,"",{"$f":"K98","v":""},null,null,{"$f":"VLOOKUP(AB98,Gesamtpreisliste!$A$7:$E$888,2,FALSE)","v":30055517},{"$f":"EXACT(O98,AA98)","v":true},{"$f":"VLOOKUP(AB98,Gesamtpreisliste!$A$7:$E$888,3,FALSE)","v":"FBH55ESB-pg"},{"$f":"VLOOKUP(AB98,Gesamtpreisliste!$A$7:$E$888,5,FALSE)","v":106.8},{"$f":"EXACT(F98,R98)","v":true},null,null,null,null,null,null,null,30055517,4010312325933]
[218,"FBH55ESB-pm Funk-Bewegungs-Helligkeitssensor mit Solar+Batterie",{"$f":"IF(AND(Eingabemaske!E$4=\"ja\",Eingabemaske!E$7=\"55mm E pm\",Eingabemaske!E$64=\"ja\"),Eingabemaske!E$69,0)","v":0},0,null,106.8,0,null,null,null,"","",null,null,{"$f":"VLOOKUP(AB99,Gesamtpreisliste!$A$7:$E$888,2,FALSE)","v":30055518},true,{"$f":"VLOOKUP(AB99,Gesamtpreisliste!$A$7:$E$888,3,FALSE)","v":"FBH55ESB-pm"},{"$f":"VLOOKUP(AB99,Gesamtpreisliste!$A$7:$E$888,5,FALSE)","v":106.8},true,null,null,null,null,null,null,null,30055518,4010312325940]
[219,"FBH55ESB-wg Funk-Bewegungs-Helligkeitssensor mit Solar+Batterie",{"$f":"IF(AND(Eingabemaske!E$4=\"ja\",Eingabemaske!E$7=\"55mm E wg\",Eingabemaske!E$64=\"ja\"),Eingabemaske!E$69,0)","v":0},0,null,106.8,0,null,null,null,"","",null,null,{"$f":"VLOOKUP(AB100,Gesamtpreisliste!$A$7:$E$888,2,FALSE)","v":30055519},true,{"$f":"VLOOKUP(AB100,Gesamtpreisliste!$A$7:$E$888,3,FALSE)","v":"FBH55ESB-wg"},{"$f":"VLOOKUP(AB100,Gesamtpreisliste!$A$7:$E$888,5,FALSE)","v":106.8},true,null,null,null,null,null,null,null,30055519,4010312327708]
[220,"FBH55ESB-am Funk-Bewegungs-Helligkeitssensor mit Solar+Batterie",{"$f":"IF(AND(Eingabemaske!E$4=\"ja\",Eingabemaske!E$7=\"55mm E am\",Eingabemaske!E$64=\"ja\"),Eingabemaske!E$68,0)","v":0},{"$f":"C101","v":0},null,106.8,{"$f":"D101*F101","v":0},null,null,null,"",{"$f":"K101","v":""},null,null,{"$f":"VLOOKUP(AB101,Gesamtpreisliste!$A$7:$E$888,2,FALSE)","v":30055516},{"$f":"EXACT(O101,AA101)","v":true},{"$f":"VLOOKUP(AB101,Gesamtpreisliste!$A$7:$E$888,3,FALSE)","v":"FBH55ESB-am"},{"$f":"VLOOKUP(AB101,Gesamtpreisliste!$A$7:$E$888,5,FALSE)","v":106.8},{"$f":"EXACT(F101,R101)","v":true},null,null,null,null,null,null,null,30055516,4010312325926]
[222,"FABH65S-wg Außen-Bewegungs-Helligkeitssensor",{"$f":"IF(AND(Eingabemaske!E4=\"ja\",Eingabemaske!E64=\"ja\"),Eingabemaske!E67,0)","v":0},{"$f":"C102","v":0},null,120.9,{"$f":"D102*F102","v":0},null,null,null,"",{"$f":"K102","v":""},null,null,{"$f":"VLOOKUP(AB102,Gesamtpreisliste!$A$7:$E$888,2,FALSE)","v":30065852},{"$f":"EXACT(O102,AA102)","v":true},{"$f":"VLOOKUP(AB102,Gesamtpreisliste!$A$7:$E$888,3,FALSE)","v":"FABH65S-wg"},{"$f":"VLOOKUP(AB102,Gesamtpreisliste!$A$7:$E$888,5,FALSE)","v":120.9},{"$f":"EXACT(F102,R102)","v":true},null,null,null,null,null,null,null,"30065852",4010312315798]
[224,"FLGTF55E-pg Funk-Luftgüte-Temperatur-Sensor mit Signal",{"$f":"IF(AND(Eingabemaske!E$4=\"ja\",Eingabemaske!E$7=\"55mm E pg\",Eingabemaske!E$71=\"ja\"),Eingabemaske!E$72,0)","v":0},{"$f":"C103","v":0},null,105.1,{"$f":"D103*F103","v":0},null,null,null,"",{"$f":"K103","v":""},null,null,{"$f":"VLOOKUP(AB103,Gesamtpreisliste!$A$7:$E$888,2,FALSE)","v":30055522},{"$f":"EXACT(O103,AA103)","v":true},{"$f":"VLOOKUP(AB103,Gesamtpreisliste!$A$7:$E$888,3,FALSE)","v":"FLGTF55E/230V-pg"},{"$f":"VLOOKUP(AB103,Gesamtpreisliste!$A$7:$E$888,5,FALSE)","v":105.1},{"$f":"EXACT(F103,R103)","v":true},null,null,null,null,null,null,null,30055522,4010312325964]
[225,"FLGTF55E-pm Funk-Luftgüte-Temperatur-Sensor mit Signal",{"$f":"IF(AND(Eingabemaske!E$4=\"ja\",Eingabemaske!E$7=\"55mm E pm\",Eingabemaske!E$71=\"ja\"),Eingabemaske!E$72,0)","v":0},0,null,105.1,0,null,null,null,"","",null,null,{"$f":"VLOOKUP(AB104,Gesamtpreisliste!$A$7:$E$888,2,FALSE)","v":30055523},true,{"$f":"VLOOKUP(AB104,Gesamtpreisliste!$A$7:$E$888,3,FALSE)","v":"FLGTF55E/230V-pm"},{"$f":"VLOOKUP(AB104,Gesamtpreisliste!$A$7:$E$888,5,FALSE)","v":105.1},true,null,null,null,null,null,null,null,30055523,4010312325971]
[226,"FLGTF55E-wg Funk-Luftgüte-Temperatur-Sensor mit Signal",{"$f":"IF(AND(Eingabemaske!E$4=\"ja\",Eingabemaske!E$7=\"55mm E wg\",Eingabemaske!E$71=\"ja\"),Eingabemaske!E$72,0)","v":0},0,null,105.1,0,null,null,null,"","",null,null,{"$f":"VLOOKUP(AB105,Gesamtpreisliste!$A$7:$E$888,2,FALSE)","v":30055520},true,{"$f":"VLOOKUP(AB105,Gesamtpreisliste!$A$7:$E$888,3,FALSE)","v":"FLGTF55E/230V-wg"},{"$f":"VLOOKUP(AB105,Gesamtpreisliste!$A$7:$E$888,5,FALSE)","v":105.1},true,null,null,null,null,null,null,null,"30055520",4010312321058]
[227,"FLGTF55E-am Funk-Luftgüte-Temperatur-Sensor mit Signal",{"$f":"IF(AND(Eingabemaske!E$4=\"ja\",Eingabemaske!E$7=\"55mm E am\",Eingabemaske!E$71=\"ja\"),Eingabemaske!E$72,0)","v":0},{"$f":"C106","v":0},null,105.1,{"$f":"D106*F106","v":0},null,null,null,"",{"$f":"K106","v":""},null,null,{"$f":"VLOOKUP(AB106,Gesamtpreisliste!$A$7:$E$888,2,FALSE)","v":30055521},{"$f":"EXACT(O106,AA106)","v":true},{"$f":"VLOOKUP(AB106,Gesamtpreisliste!$A$7:$E$888,3,FALSE)","v":"FLGTF55E/230V-am"},{"$f":"VLOOKUP(AB106,Gesamtpreisliste!$A$7:$E$888,5,FALSE)","v":105.1},{"$f":"EXACT(F106,R106)","v":true},null,null,null,null,null,null,null,30055521,4010312325957]
[229,"FWS81 Funk-Wassersensor",{"$f":"IF(AND(Eingabemaske!E4=\"ja\",Eingabemaske!E71=\"ja\"),Eingabemaske!E73,0)","v":0},{"$f":"C107","v":0},null,162.80000000000001,0,null,null,null,"",{"$f":"K107","v":""},null,null,{"$f":"VLOOKUP(AB107,Gesamtpreisliste!$A$7:$E$888,2,FALSE)","v":30000409},{"$f":"EXACT(O107,AA107)","v":true},{"$f":"VLOOKUP(AB107,Gesamtpreisliste!$A$7:$E$888,3,FALSE)","v":"FWS81"},{"$f":"VLOOKUP(AB107,Gesamtpreisliste!$A$7:$E$888,5,FALSE)","v":162.80000000000001},{"$f":"EXACT(F107,R107)","v":true},null,null,null,null,null,null,null,"30000409",4010312316061]
[230,"FRWB-rw Rauchwarnmelder",{"$f":"IF(AND(Eingabemaske!E4=\"ja\",Eingabemaske!E71=\"ja\"),Eingabemaske!E74,0)","v":0},0,null,158.4,0,null,null,null,{"$f":"IF(D108>0,D108,\"\")","v":""},"",null,null,{"$f":"VLOOKUP(AB108,Gesamtpreisliste!$A$7:$E$888,2,FALSE)","v":30000054},true,{"$f":"VLOOKUP(AB108,Gesamtpreisliste!$A$7:$E$888,3,FALSE)","v":"FRWB-rw"},{"$f":"VLOOKUP(AB108,Gesamtpreisliste!$A$7:$E$888,5,FALSE)","v":158.4},true,null,null,null,null,null,null,null,"30000054",4010312321027]
[231,"FHMB-rw Hitzemelder",{"$f":"IF(AND(Eingabemaske!E4=\"ja\",Eingabemaske!E71=\"ja\"),Eingabemaske!E75,0)","v":0},0,null,166.8,0,null,null,null,"","",null,null,{"$f":"VLOOKUP(AB109,Gesamtpreisliste!$A$7:$E$888,2,FALSE)","v":30000056},true,{"$f":"VLOOKUP(AB109,Gesamtpreisliste!$A$7:$E$888,3,FALSE)","v":"FHMB-rw"},{"$f":"VLOOKUP(AB109,Gesamtpreisliste!$A$7:$E$888,5,FALSE)","v":166.8},true,null,null,null,null,null,null,null,"30000056",4010312321034]
[232,"PL-SAMTEMP Powerline-Temperaturregler",{"$f":"IF(AND(Eingabemaske!E6=\"ja\",Eingabemaske!E18=\"ja\"),Eingabemaske!E26,0)","v":0},0,null,217.3,0,null,null,null,"","",null,null,{"$f":"VLOOKUP(AB110,Gesamtpreisliste!$A$7:$E$888,2,FALSE)","v":31000010},true,{"$f":"VLOOKUP(AB110,Gesamtpreisliste!$A$7:$E$888,3,FALSE)","v":"PL-SAMTEMP"},{"$f":"VLOOKUP(AB110,Gesamtpreisliste!$A$7:$E$888,5,FALSE)","v":217.3},true,null,null,null,null,null,null,null,31000010,4010312316733]
[233,"TSA02NC-230V Thermischer Stellantrieb",{"$f":"IF(Eingabemaske!E18=\"Ja\",Eingabemaske!E27,0)","v":0},0,null,40.1,0,null,null,null,"","",null,null,{"$f":"VLOOKUP(AB111,Gesamtpreisliste!$A$7:$E$888,2,FALSE)","v":30014034},true,{"$f":"VLOOKUP(AB111,Gesamtpreisliste!$A$7:$E$888,3,FALSE)","v":"TSA02NC-230V"},{"$f":"VLOOKUP(AB111,Gesamtpreisliste!$A$7:$E$888,5,FALSE)","v":40.1},true,null,null,null,null,null,null,null,"30014034",4010312314425]
[234,"TSA02NC-24V Thermischer Stellantrieb",{"$f":"Eingabemaske!E28","v":0},0,null,40.1,0,null,null,null,"","",null,null,{"$f":"VLOOKUP(AB112,Gesamtpreisliste!$A$7:$E$888,2,FALSE)","v":30014035},true,{"$f":"VLOOKUP(AB112,Gesamtpreisliste!$A$7:$E$888,3,FALSE)","v":"TSA02NC-24V"},{"$f":"VLOOKUP(AB112,Gesamtpreisliste!$A$7:$E$888,5,FALSE)","v":40.1},true,null,null,null,null,null,null,null,"30014035",4010312314432]
[235,"FKS-SV Klein-Stellantrieb",{"$f":"IF(AND(Eingabemaske!E4=\"ja\",Eingabemaske!E29=\"ja\"),Eingabemaske!E33,0)","v":0},0,null,185.4,0,null,null,null,"","",null,null,{"$f":"VLOOKUP(AB113,Gesamtpreisliste!$A$7:$E$888,2,FALSE)","v":30000413},true,{"$f":"VLOOKUP(AB113,Gesamtpreisliste!$A$7:$E$888,3,FALSE)","v":"FKS-SV"},{"$f":"VLOOKUP(AB113,Gesamtpreisliste!$A$7:$E$888,5,FALSE)","v":185.4},true,null,null,null,null,null,null,null,"30000413",4010312319857]
[236,"FTK-wg Funk-Fenster-Türkontakt  (auch in antrazith matt erhältlich)",{"$f":"IF(AND(Eingabemaske!E4=\"ja\",Eingabemaske!E56=\"ja\"),Eingabemaske!E58,0)","v":0},0,null,85.9,0,null,null,null,"","",null,null,{"$f":"VLOOKUP(AB114,Gesamtpreisliste!$A$7:$E$888,2,FALSE)","v":30000421},true,{"$f":"VLOOKUP(AB114,Gesamtpreisliste!$A$7:$E$888,3,FALSE)","v":"FTK-wg"},{"$f":"VLOOKUP(AB114,Gesamtpreisliste!$A$7:$E$888,5,FALSE)","v":85.9},true,null,null,null,null,null,null,null,30000421,4010312321638]
[237,"FTKB-wg Funk-Fenster-Türkontakt mit Batterie",{"$f":"IF(AND(Eingabemaske!E4=\"ja\",Eingabemaske!E56=\"ja\"),Eingabemaske!E59,0)","v":0},0,null,73.400000000000006,0,null,null,null,"","",null,null,{"$f":"VLOOKUP(AB115,Gesamtpreisliste!$A$7:$E$888,2,FALSE)","v":30000424},true,{"$f":"VLOOKUP(AB115,Gesamtpreisliste!$A$7:$E$888,3,FALSE)","v":"FTKB-wg"},{"$f":"VLOOKUP(AB115,Gesamtpreisliste!$A$7:$E$888,5,FALSE)","v":73.400000000000006},true,null,null,null,null,null,null,null,30000424,4010312321621]
[238,"mTronic Funk-Fenster-Multisensor im Falz mit Batterie",{"$f":"IF(AND(Eingabemaske!E4=\"ja\",Eingabemaske!E56=\"ja\"),Eingabemaske!E60,0)","v":0},0,null,126,0,null,null,null,"","",null,null,{"$f":"VLOOKUP(AB116,Gesamtpreisliste!$A$7:$E$888,2,FALSE)","v":30000033},true,{"$f":"VLOOKUP(AB116,Gesamtpreisliste!$A$7:$E$888,3,FALSE)","v":"mTronic"},{"$f":"VLOOKUP(AB116,Gesamtpreisliste!$A$7:$E$888,5,FALSE)","v":126},true,null,null,null,null,null,null,null,30000033,4010312324127]
[239,"FFG7B Funk-Fenstergriffsensor",{"$f":"IF(AND(Eingabemaske!E4=\"ja\",Eingabemaske!E56=\"ja\"),Eingabemaske!E61,0)","v":0},0,null,76.599999999999994,0,null,null,null,"","",null,null,{"$f":"VLOOKUP(AB117,Gesamtpreisliste!$A$7:$E$888,2,FALSE)","v":30000443},true,{"$f":"VLOOKUP(AB117,Gesamtpreisliste!$A$7:$E$888,3,FALSE)","v":"FFG7B-rw"},{"$f":"VLOOKUP(AB117,Gesamtpreisliste!$A$7:$E$888,5,FALSE)","v":76.599999999999994},true,null,null,null,null,null,null,null,"30000443",4010312318638]
[240,"FFTE-rw Funk-Fenster-Tastkontakt mit Energiegenerator",{"$f":"IF(AND(Eingabemaske!E4=\"ja\",Eingabemaske!E56=\"ja\"),Eingabemaske!E62,0)","v":0},0,null,64.2,0,null,null,null,"","",null,null,{"$f":"VLOOKUP(AB118,Gesamtpreisliste!$A$7:$E$888,2,FALSE)","v":30000450},true,{"$f":"VLOOKUP(AB118,Gesamtpreisliste!$A$7:$E$888,3,FALSE)","v":"FFTE-rw"},{"$f":"VLOOKUP(AB118,Gesamtpreisliste!$A$7:$E$888,5,FALSE)","v":64.2},true,null,null,null,null,null,null,null,"30000450",4010312319024]
[241,"FTKE-rw Funk-Fenster-Türkontakt mit Energiegenerator",{"$f":"IF(AND(Eingabemaske!E4=\"ja\",Eingabemaske!E56=\"ja\"),Eingabemaske!E63,0)","v":0},0,null,64.2,0,null,null,null,"","",null,null,{"$f":"VLOOKUP(AB119,Gesamtpreisliste!$A$7:$E$888,2,FALSE)","v":30000400},true,{"$f":"VLOOKUP(AB119,Gesamtpreisliste!$A$7:$E$888,3,FALSE)","v":"FTKE-rw"},{"$f":"VLOOKUP(AB119,Gesamtpreisliste!$A$7:$E$888,5,FALSE)","v":64.2},true,null,null,null,null,null,null,null,"30000400",4010312315231]
[242,"AIR IR-Abtaster für Stromzähler",{"$f":"IF(Eingabemaske!E76=\"ja\",Eingabemaske!E78,0)","v":0},{"$f":"C120","v":0},null,111.1,0,null,null,null,"",{"$f":"K120","v":""},null,null,{"$f":"VLOOKUP(AB120,Gesamtpreisliste!$A$7:$E$888,2,FALSE)","v":30000970},true,{"$f":"VLOOKUP(AB120,Gesamtpreisliste!$A$7:$E$888,3,FALSE)","v":"AIR"},{"$f":"VLOOKUP(AB120,Gesamtpreisliste!$A$7:$E$888,5,FALSE)","v":111.1},true,null,null,null,null,null,null,null,"30000970",4010312316153]
[243,"FWZ14-16A Bus-Funk-Wechselstromzähler",{"$f":"IF(Eingabemaske!E76=\"ja\",Eingabemaske!E80,0)","v":0},{"$f":"C121","v":0},{"$f":"D121","v":0},82.1,0,null,null,null,"",{"$f":"K121","v":""},{"$f":"L121","v":""},null,{"$f":"VLOOKUP(AB121,Gesamtpreisliste!$A$7:$E$888,2,FALSE)","v":30014050},true,{"$f":"VLOOKUP(AB121,Gesamtpreisliste!$A$7:$E$888,3,FALSE)","v":"FWZ14-65A"},{"$f":"VLOOKUP(AB121,Gesamtpreisliste!$A$7:$E$888,5,FALSE)","v":82.1},true,null,null,null,null,null,null,null,"30014050",4010312501511]
[244,"WSZ15D-32A MID Wechselstromzähler",null,0,{"$f":"D122","v":0},67,0,null,null,null,"","",{"$f":"L122","v":""},null,{"$f":"VLOOKUP(AB122,Gesamtpreisliste!$A$7:$E$888,2,FALSE)","v":28032015},true,{"$f":"VLOOKUP(AB122,Gesamtpreisliste!$A$7:$E$888,3,FALSE)","v":"WSZ15D-32A MID"},{"$f":"VLOOKUP(AB122,Gesamtpreisliste!$A$7:$E$888,5,FALSE)","v":67},true,null,null,null,null,null,null,null,"28032015",4010312501627]
[245,"DSZ14DRS-3x80A MID Bus-Funk-Drehstromzähler",{"$f":"IF(Eingabemaske!E76=\"ja\",Eingabemaske!E81,0)","v":0},0,{"$f":"D123*4","v":0},200.5,0,null,null,null,"","",{"$f":"L123*4","v":{"$error":"#VALUE!"}},null,{"$f":"VLOOKUP(AB123,Gesamtpreisliste!$A$7:$E$888,2,FALSE)","v":28365715},true,{"$f":"VLOOKUP(AB123,Gesamtpreisliste!$A$7:$E$888,3,FALSE)","v":"DSZ14DRS-3x80A MID"},{"$f":"VLOOKUP(AB123,Gesamtpreisliste!$A$7:$E$888,5,FALSE)","v":200.5},true,null,null,null,null,null,null,null,"28365715",4010312501733]
[246,"DSZ14WDRS-3x5A MID Bus-Funk-Wandler-Drehstromzähler",{"$f":"IF(Eingabemaske!E76=\"ja\",Eingabemaske!E82,0)","v":0},0,{"$f":"D124*4","v":0},209.1,0,null,null,null,"","",{"$f":"L124*4","v":{"$error":"#VALUE!"}},null,{"$f":"VLOOKUP(AB124,Gesamtpreisliste!$A$7:$E$888,2,FALSE)","v":28305712},true,{"$f":"VLOOKUP(AB124,Gesamtpreisliste!$A$7:$E$888,3,FALSE)","v":"DSZ14WDRS-3x5A MID"},{"$f":"VLOOKUP(AB124,Gesamtpreisliste!$A$7:$E$888,5,FALSE)","v":209.1},true,null,null,null,null,null,null,null,"28305712",4010312501450]
[247,"FT55- Funksender (bitte noch Farbe angeben)",{"$f":"IF(AND(Eingabemaske!E4=\"ja\",Eingabemaske!E45=\"Ja\"),Eingabemaske!E46,0)","v":0},0,null,55.4,0,null,null,null,"","",null,null,{"$f":"VLOOKUP(AB125,Gesamtpreisliste!$A$7:$E$888,2,FALSE)","v":{"$error":"#N/A"}},{"$error":"#N/A"},{"$f":"VLOOKUP(AB125,Gesamtpreisliste!$A$7:$E$888,3,FALSE)","v":{"$error":"#N/A"}},{"$f":"VLOOKUP(AB125,Gesamtpreisliste!$A$7:$E$888,5,FALSE)","v":{"$error":"#N/A"}},{"$error":"#N/A"},null,null,null,null,null,null,null,"3000059x","401031230xxxx"]
[248,"FT4F- Funksender (bitte noch Farbe angeben)",{"$f":"IF(AND(Eingabemaske!E4=\"ja\",Eingabemaske!E45=\"Ja\"),Eingabemaske!E47,0)","v":0},0,null,55.4,0,null,null,null,"","",null,null,{"$f":"VLOOKUP(AB126,Gesamtpreisliste!$A$7:$E$888,2,FALSE)","v":{"$error":"#N/A"}},{"$error":"#N/A"},{"$f":"VLOOKUP(AB126,Gesamtpreisliste!$A$7:$E$888,3,FALSE)","v":{"$error":"#N/A"}},{"$f":"VLOOKUP(AB126,Gesamtpreisliste!$A$7:$E$888,5,FALSE)","v":{"$error":"#N/A"}},{"$error":"#N/A"},null,null,null,null,null,null,null,30065596,4010312318485]
[249,"FT55R - Funktaster (bitte noch Farbe angeben)",{"$f":"IF(AND(Eingabemaske!E4=\"ja\",Eingabemaske!E45=\"Ja\"),Eingabemaske!E48,0)","v":0},0,null,62,0,null,null,null,"","",null,null,{"$f":"VLOOKUP(AB127,Gesamtpreisliste!$A$7:$E$888,2,FALSE)","v":{"$error":"#N/A"}},{"$error":"#N/A"},{"$f":"VLOOKUP(AB127,Gesamtpreisliste!$A$7:$E$888,3,FALSE)","v":{"$error":"#N/A"}},{"$f":"VLOOKUP(AB127,Gesamtpreisliste!$A$7:$E$888,5,FALSE)","v":{"$error":"#N/A"}},{"$error":"#N/A"},null,null,null,null,null,null,null,"3000022x","40103123139xx"]
[250,"FFD-al/anso Funk-Fernbedienung mit Display 50 Kanäle",{"$f":"IF(AND(Eingabemaske!E4=\"ja\",Eingabemaske!E83=\"ja\"),Eingabemaske!E90,0)","v":0},0,null,132.69999999999999,0,null,null,null,"","",null,null,{"$f":"VLOOKUP(AB128,Gesamtpreisliste!$A$7:$E$888,2,FALSE)","v":30000773},true,{"$f":"VLOOKUP(AB128,Gesamtpreisliste!$A$7:$E$888,3,FALSE)","v":"FFD-al/anso"},{"$f":"VLOOKUP(AB128,Gesamtpreisliste!$A$7:$E$888,5,FALSE)","v":132.69999999999999},true,null,null,null,null,null,null,null,30000773,4010312313541]
[251,"FF8-al/anso alu/anthrazit",{"$f":"IF(AND(Eingabemaske!E4=\"ja\",Eingabemaske!E83=\"ja\"),Eingabemaske!E91,0)","v":0},0,null,121.3,0,null,null,null,"","",null,null,{"$f":"VLOOKUP(AB129,Gesamtpreisliste!$A$7:$E$888,2,FALSE)","v":30000769},true,{"$f":"VLOOKUP(AB129,Gesamtpreisliste!$A$7:$E$888,3,FALSE)","v":"FF8-al/anso"},{"$f":"VLOOKUP(AB129,Gesamtpreisliste!$A$7:$E$888,5,FALSE)","v":121.3},true,null,null,null,null,null,null,null,30000769,4010312303931]
[252,"FMH8 al/an Miniandsender 8-Kanal",{"$f":"IF(AND(Eingabemaske!E4=\"ja\",Eingabemaske!E83=\"ja\"),Eingabemaske!E92,0)","v":0},0,null,107.4,0,null,null,null,"","",null,null,{"$f":"VLOOKUP(AB130,Gesamtpreisliste!$A$7:$E$888,2,FALSE)","v":30000419},true,{"$f":"VLOOKUP(AB130,Gesamtpreisliste!$A$7:$E$888,3,FALSE)","v":"FMH8-al/anso"},{"$f":"VLOOKUP(AB130,Gesamtpreisliste!$A$7:$E$888,5,FALSE)","v":107.4},true,null,null,null,null,null,null,null,"30000419",4010312313282]
[253,"STS14 Steckbrücken-Set; 7 Teile (Ersatzbedarf, Stückzahl anpassen)",{"$f":"IF(Eingabemaske!E83=\"ja\",Eingabemaske!E89,0)","v":0},0,null,14.2,0,null,null,null,"","",null,null,{"$f":"VLOOKUP(AB131,Gesamtpreisliste!$A$7:$E$888,2,FALSE)","v":30014038},true,{"$f":"VLOOKUP(AB131,Gesamtpreisliste!$A$7:$E$888,3,FALSE)","v":"STS14"},{"$f":"VLOOKUP(AB131,Gesamtpreisliste!$A$7:$E$888,5,FALSE)","v":14.2},true,null,null,null,null,null,null,null,30014038,4010312314975]
[254,"MiniSafe2 Smart Home-Zentrale für GFA5 App",{"$f":"IF(Eingabemaske!E126=\"ja\",Eingabemaske!E128,0)","v":0},0,null,315.10000000000002,{"$f":"D132*F132","v":0},null,null,null,"","",null,null,{"$f":"VLOOKUP(AB132,Gesamtpreisliste!$A$7:$E$888,2,FALSE)","v":30000075},{"$f":"EXACT(O132,AA132)","v":true},{"$f":"VLOOKUP(AB132,Gesamtpreisliste!$A$7:$E$888,3,FALSE)","v":"MiniSafe2"},{"$f":"VLOOKUP(AB132,Gesamtpreisliste!$A$7:$E$888,5,FALSE)","v":315.10000000000002},{"$f":"EXACT(F132,R132)","v":true},null,null,null,null,null,null,null,30000075,4010312323939]
[255,"MiniSafe2 REG Smart Home-Zentrale für GFA5 App",{"$f":"IF(Eingabemaske!E126=\"ja\",Eingabemaske!E129,0)","v":0},0,null,425.3,0,null,null,null,"","",null,null,{"$f":"VLOOKUP(AB133,Gesamtpreisliste!$A$7:$E$888,2,FALSE)","v":30000076},true,{"$f":"VLOOKUP(AB133,Gesamtpreisliste!$A$7:$E$888,3,FALSE)","v":"MiniSafe2-REG"},{"$f":"VLOOKUP(AB133,Gesamtpreisliste!$A$7:$E$888,5,FALSE)","v":425.3},true,null,null,null,null,null,null,null,30000076,4010312323946]
[256,"HDR-30-5 Netzteil",{"$f":"IF(Eingabemaske!E126=\"ja\",Eingabemaske!E130,0)","v":0},0,null,56,0,null,null,null,"","",null,null,{"$f":"VLOOKUP(AB134,Gesamtpreisliste!$A$7:$E$888,2,FALSE)","v":30000940},true,{"$f":"VLOOKUP(AB134,Gesamtpreisliste!$A$7:$E$888,3,FALSE)","v":"HDR-30-5"},{"$f":"VLOOKUP(AB134,Gesamtpreisliste!$A$7:$E$888,5,FALSE)","v":56},true,null,null,null,null,null,null,null,30000940,4010312318874]
[257,"WP2 wibutler Pro2 Smart Home-Zentrale mit App",{"$f":"IF(Eingabemaske!E126=\"ja\",Eingabemaske!E131,0)","v":0},0,null,410.3,{"$f":"D135*F135","v":0},null,null,null,"","",null,null,{"$f":"VLOOKUP(AB135,Gesamtpreisliste!$A$7:$E$888,2,FALSE)","v":30000077},true,{"$f":"VLOOKUP(AB135,Gesamtpreisliste!$A$7:$E$888,3,FALSE)","v":"WP2"},{"$f":"VLOOKUP(AB135,Gesamtpreisliste!$A$7:$E$888,5,FALSE)","v":410.3},true,null,null,null,null,null,null,null,30000077,4010312324608]
[258,"FL62-230V Funkaktor Stromstoß-Schaltrelais 10A potentialfrei",{"$f":"IF(AND(Eingabemaske!E4=\"ja\",Eingabemaske!E93=\"ja\"),Eingabemaske!E94,0)","v":0},0,null,65.8,{"$f":"D136*F136","v":0},null,null,null,"","",null,null,{"$f":"VLOOKUP(AB136,Gesamtpreisliste!$A$7:$E$888,2,FALSE)","v":30100532},true,{"$f":"VLOOKUP(AB136,Gesamtpreisliste!$A$7:$E$888,3,FALSE)","v":"FL62-230V"},{"$f":"VLOOKUP(AB136,Gesamtpreisliste!$A$7:$E$888,5,FALSE)","v":65.8},{"$f":"EXACT(F136,R136)","v":true},null,null,null,null,null,null,null,30100532,4010312319383]
[259,"FL62NP-230V Funkaktor Stromstoß-Schaltrelais 10A nicht potentialfrei",{"$f":"IF(AND(Eingabemaske!E4=\"ja\",Eingabemaske!E93=\"ja\"),Eingabemaske!E95,0)","v":0},0,null,65.8,0,null,null,null,"","",null,null,{"$f":"VLOOKUP(AB137,Gesamtpreisliste!$A$7:$E$888,2,FALSE)","v":30100530},true,{"$f":"VLOOKUP(AB137,Gesamtpreisliste!$A$7:$E$888,3,FALSE)","v":"FL62NP-230V"},{"$f":"VLOOKUP(AB137,Gesamtpreisliste!$A$7:$E$888,5,FALSE)","v":65.8},true,null,null,null,null,null,null,null,30100530,4010312319109]
[260,"FD62NPN-230V Funk-Universal-Dimmaktor 200W",{"$f":"IF(AND(Eingabemaske!E4=\"ja\",Eingabemaske!E93=\"ja\"),Eingabemaske!E96,0)","v":0},0,null,75.599999999999994,0,null,null,null,"","",null,null,{"$f":"VLOOKUP(AB138,Gesamtpreisliste!$A$7:$E$888,2,FALSE)","v":30100535},true,{"$f":"VLOOKUP(AB138,Gesamtpreisliste!$A$7:$E$888,3,FALSE)","v":"FD62NPN-230V"},{"$f":"VLOOKUP(AB138,Gesamtpreisliste!$A$7:$E$888,5,FALSE)","v":75.599999999999994},true,null,null,null,null,null,null,null,30100535,4010312319086]
[261,"FDG62NPN-230V Dali-Gateway UP",null,0,null,79.8,0,null,null,null,"",0,null,null,{"$f":"VLOOKUP(AB139,Gesamtpreisliste!$A$7:$E$888,2,FALSE)","v":30100868},true,{"$f":"VLOOKUP(AB139,Gesamtpreisliste!$A$7:$E$888,3,FALSE)","v":"FDG62-230V"},{"$f":"VLOOKUP(AB139,Gesamtpreisliste!$A$7:$E$888,5,FALSE)","v":79.8},true,null,null,null,null,null,null,null,30100868,4010312320921]
[262,"FJ62NP-230V Funk-Jalousie- und Rolloaktor 4A",{"$f":"IF(AND(Eingabemaske!E4=\"ja\",Eingabemaske!E93=\"ja\"),Eingabemaske!E97,0)","v":0},{"$f":"C140","v":0},null,66.3,0,null,null,null,"",{"$f":"K140","v":""},null,null,{"$f":"VLOOKUP(AB140,Gesamtpreisliste!$A$7:$E$888,2,FALSE)","v":30200535},true,{"$f":"VLOOKUP(AB140,Gesamtpreisliste!$A$7:$E$888,3,FALSE)","v":"FJ62NP-230V"},{"$f":"VLOOKUP(AB140,Gesamtpreisliste!$A$7:$E$888,5,FALSE)","v":66.3},true,null,null,null,null,null,null,null,30200535,4010312319390]
[263,"FSR61NP-230 Funkaktor Stromstoß-Schaltrelais",{"$f":"IF(AND(Eingabemaske!E4=\"ja\",Eingabemaske!E93=\"ja\"),Eingabemaske!E98,0)","v":0},0,null,92.3,0,null,null,null,"","",null,null,{"$f":"VLOOKUP(AB141,Gesamtpreisliste!$A$7:$E$888,2,FALSE)","v":30100030},true,{"$f":"VLOOKUP(AB141,Gesamtpreisliste!$A$7:$E$888,3,FALSE)","v":"FSR61NP-230V"},{"$f":"VLOOKUP(AB141,Gesamtpreisliste!$A$7:$E$888,5,FALSE)","v":92.3},true,null,null,null,null,null,null,null,30100030,4010312300190]
[264,"FMS61-230V Funk-Multifunktions-Stromstoßschalter 1+1 Schließer",{"$f":"IF(AND(Eingabemaske!E4=\"ja\",Eingabemaske!E93=\"ja\"),Eingabemaske!E99,0)","v":0},0,null,94.6,0,null,null,null,"","",null,null,{"$f":"VLOOKUP(AB142,Gesamtpreisliste!$A$7:$E$888,2,FALSE)","v":30200330},true,{"$f":"VLOOKUP(AB142,Gesamtpreisliste!$A$7:$E$888,3,FALSE)","v":"FMS61NP-230V"},{"$f":"VLOOKUP(AB142,Gesamtpreisliste!$A$7:$E$888,5,FALSE)","v":94.6},true,null,null,null,null,null,null,null,30200330,4010312300268]
[265,"FUD61NPN Funk-Universal-Dimmschalter mit N",{"$f":"IF(AND(Eingabemaske!E4=\"ja\",Eingabemaske!E93=\"ja\"),Eingabemaske!E100,0)","v":0},0,null,109.2,0,null,null,null,"","",null,null,{"$f":"VLOOKUP(AB143,Gesamtpreisliste!$A$7:$E$888,2,FALSE)","v":30100835},true,{"$f":"VLOOKUP(AB143,Gesamtpreisliste!$A$7:$E$888,3,FALSE)","v":"FUD61NPN-230V"},{"$f":"VLOOKUP(AB143,Gesamtpreisliste!$A$7:$E$888,5,FALSE)","v":109.2},true,null,null,null,null,null,null,null,30100835,4010312300299]
[266,"FUD61NP-230V Funk-Universal-Dimmschalter ohne N",{"$f":"IF(AND(Eingabemaske!E4=\"ja\",Eingabemaske!E93=\"ja\"),Eingabemaske!E101,0)","v":0},0,null,105.1,0,null,null,null,"","",null,null,{"$f":"VLOOKUP(AB144,Gesamtpreisliste!$A$7:$E$888,2,FALSE)","v":30100830},true,{"$f":"VLOOKUP(AB144,Gesamtpreisliste!$A$7:$E$888,3,FALSE)","v":"FUD61NP-230V"},{"$f":"VLOOKUP(AB144,Gesamtpreisliste!$A$7:$E$888,5,FALSE)","v":105.1},true,null,null,null,null,null,null,null,30100830,4010312300183]
[267,"FLD61 Funk-PWM-LED-Dimmschalter",{"$f":"IF(AND(Eingabemaske!E4=\"ja\",Eingabemaske!E93=\"ja\"),Eingabemaske!E102,0)","v":0},0,null,100.1,0,null,null,null,"","",null,null,{"$f":"VLOOKUP(AB145,Gesamtpreisliste!$A$7:$E$888,2,FALSE)","v":30100837},true,{"$f":"VLOOKUP(AB145,Gesamtpreisliste!$A$7:$E$888,3,FALSE)","v":"FLD61"},{"$f":"VLOOKUP(AB145,Gesamtpreisliste!$A$7:$E$888,5,FALSE)","v":100.1},true,null,null,null,null,null,null,null,30100837,4010312315255]
[268,"FKLD61  Funk-Konststantstrom-LED-Dimmschalter",{"$f":"IF(AND(Eingabemaske!E4=\"ja\",Eingabemaske!E93=\"ja\"),Eingabemaske!E103,0)","v":0},0,null,106.1,0,null,null,null,"","",null,null,{"$f":"VLOOKUP(AB146,Gesamtpreisliste!$A$7:$E$888,2,FALSE)","v":30100836},true,{"$f":"VLOOKUP(AB146,Gesamtpreisliste!$A$7:$E$888,3,FALSE)","v":"FKLD61"},{"$f":"VLOOKUP(AB146,Gesamtpreisliste!$A$7:$E$888,5,FALSE)","v":106.1},true,null,null,null,null,null,null,null,30100836,4010312314357]
[269,"FSB61NP-230V Funk-Beschattungsaktor",{"$f":"IF(AND(Eingabemaske!E4=\"ja\",Eingabemaske!E93=\"ja\"),Eingabemaske!E104,0)","v":0},0,null,92.1,0,null,null,null,"","",null,null,{"$f":"VLOOKUP(AB147,Gesamtpreisliste!$A$7:$E$888,2,FALSE)","v":30200430},true,{"$f":"VLOOKUP(AB147,Gesamtpreisliste!$A$7:$E$888,3,FALSE)","v":"FSB61NP-230V "},{"$f":"VLOOKUP(AB147,Gesamtpreisliste!$A$7:$E$888,5,FALSE)","v":92.1},true,null,null,null,null,null,null,null,30200430,4010312300213]
[270,"FHK61-230V Funk-Heiz-Kühl-Relais",{"$f":"IF(AND(Eingabemaske!E4=\"ja\",Eingabemaske!E93=\"ja\"),Eingabemaske!E105,0)","v":0},0,null,94.2,0,null,null,null,"","",null,null,{"$f":"VLOOKUP(AB148,Gesamtpreisliste!$A$7:$E$888,2,FALSE)","v":30100045},true,{"$f":"VLOOKUP(AB148,Gesamtpreisliste!$A$7:$E$888,3,FALSE)","v":"FHK61-230V"},{"$f":"VLOOKUP(AB148,Gesamtpreisliste!$A$7:$E$888,5,FALSE)","v":94.2},true,null,null,null,null,null,null,null,30100045,4010312302309]
[271,"FSM61-UC Funk-Sendemodul",{"$f":"IF(AND(Eingabemaske!E4=\"ja\",Eingabemaske!E93=\"ja\"),Eingabemaske!E106,0)","v":0},0,null,66.2,0,null,null,null,"","",null,null,{"$f":"VLOOKUP(AB149,Gesamtpreisliste!$A$7:$E$888,2,FALSE)","v":30000300},true,{"$f":"VLOOKUP(AB149,Gesamtpreisliste!$A$7:$E$888,3,FALSE)","v":"FSM61-UC"},{"$f":"VLOOKUP(AB149,Gesamtpreisliste!$A$7:$E$888,5,FALSE)","v":66.2},true,null,null,null,null,null,null,null,30000300,4010312300152]
[272,"FRP61-230V Funkrepeater",{"$f":"IF(AND(Eingabemaske!E4=\"ja\",Eingabemaske!E93=\"ja\"),Eingabemaske!E107,0)","v":0},{"$f":"C150","v":0},null,69.3,{"$f":"D150*F150","v":0},null,null,null,"",{"$f":"K150","v":""},null,null,{"$f":"VLOOKUP(AB150,Gesamtpreisliste!$A$7:$E$888,2,FALSE)","v":30000350},true,{"$f":"VLOOKUP(AB150,Gesamtpreisliste!$A$7:$E$888,3,FALSE)","v":"FRP61-230V"},{"$f":"VLOOKUP(AB150,Gesamtpreisliste!$A$7:$E$888,5,FALSE)","v":69.3},true,null,null,null,null,null,null,null,30000350,4010312300251]
[273,"FRP65/230V-wg Funkrepeater im Gehäuse",{"$f":"IF(AND(Eingabemaske!E4=\"ja\",Eingabemaske!E93=\"ja\"),Eingabemaske!E108,0)","v":0},{"$f":"C151","v":0},null,83.7,0,null,null,null,"",{"$f":"K151","v":""},null,null,{"$f":"VLOOKUP(AB151,Gesamtpreisliste!$A$7:$E$888,2,FALSE)","v":30065350},true,{"$f":"VLOOKUP(AB151,Gesamtpreisliste!$A$7:$E$888,3,FALSE)","v":"FRP65/230V-wg"},{"$f":"VLOOKUP(AB151,Gesamtpreisliste!$A$7:$E$888,5,FALSE)","v":83.7},true,null,null,null,null,null,null,null,30065350,4010312315927]
[274,"FSR71NP-230V Funkaktor Stromstoß-Schaltrelais",null,0,null,95.5,0,null,null,null,"","",null,null,{"$f":"VLOOKUP(AB152,Gesamtpreisliste!$A$7:$E$888,2,FALSE)","v":30100865},true,{"$f":"VLOOKUP(AB152,Gesamtpreisliste!$A$7:$E$888,3,FALSE)","v":"FSR71NP-230V"},{"$f":"VLOOKUP(AB152,Gesamtpreisliste!$A$7:$E$888,5,FALSE)","v":95.5},true,null,null,null,null,null,null,null,30100865,4010312316221]
[275,"FUD71 Funk-Universal-Dimmschalter",null,0,null,124.4,0,null,null,null,"","",null,null,{"$f":"VLOOKUP(AB153,Gesamtpreisliste!$A$7:$E$888,2,FALSE)","v":30100845},true,{"$f":"VLOOKUP(AB153,Gesamtpreisliste!$A$7:$E$888,3,FALSE)","v":"FUD71-230V"},{"$f":"VLOOKUP(AB153,Gesamtpreisliste!$A$7:$E$888,5,FALSE)","v":124.4},true,null,null,null,null,null,null,null,30100845,4010312316207]
[276,"FSG71/1-10V Funk-Dimmschalter-Steuergerät 1-10V",null,0,null,115.4,0,null,null,null,"","",null,null,{"$f":"VLOOKUP(AB154,Gesamtpreisliste!$A$7:$E$888,2,FALSE)","v":30100841},true,{"$f":"VLOOKUP(AB154,Gesamtpreisliste!$A$7:$E$888,3,FALSE)","v":"FSG71/1-10V"},{"$f":"VLOOKUP(AB154,Gesamtpreisliste!$A$7:$E$888,5,FALSE)","v":115.4},true,null,null,null,null,null,null,null,30100841,4010312316283]
[277,"FDG71L Funk-DALI-Gateway",{"$f":"IF(AND(Eingabemaske!E4=\"ja\",Eingabemaske!E109=\"ja\"),Eingabemaske!E110,0)","v":0},0,null,140.6,0,null,null,null,"","",null,null,{"$f":"VLOOKUP(AB155,Gesamtpreisliste!$A$7:$E$888,2,FALSE)","v":30100867},true,{"$f":"VLOOKUP(AB155,Gesamtpreisliste!$A$7:$E$888,3,FALSE)","v":"FDG71L-230V"},{"$f":"VLOOKUP(AB155,Gesamtpreisliste!$A$7:$E$888,5,FALSE)","v":140.6},true,null,null,null,null,null,null,null,30100867,4010312317556]
[278,"FRGBW71L Funk-PWM-Dimmschalter für RGBW",{"$f":"IF(AND(Eingabemaske!E4=\"ja\",Eingabemaske!E109=\"ja\"),Eingabemaske!E111,0)","v":0},0,null,114.5,0,null,null,null,"","",null,null,{"$f":"VLOOKUP(AB156,Gesamtpreisliste!$A$7:$E$888,2,FALSE)","v":30400837},true,{"$f":"VLOOKUP(AB156,Gesamtpreisliste!$A$7:$E$888,3,FALSE)","v":"FRGBW71L"},{"$f":"VLOOKUP(AB156,Gesamtpreisliste!$A$7:$E$888,5,FALSE)","v":114.5},true,null,null,null,null,null,null,null,30400837,4010312316450]
[279,"FSB71-230V Funkaktor für Beschattung",null,0,null,95.5,0,null,null,null,"","",null,null,{"$f":"VLOOKUP(AB157,Gesamtpreisliste!$A$7:$E$888,2,FALSE)","v":30200831},true,{"$f":"VLOOKUP(AB157,Gesamtpreisliste!$A$7:$E$888,3,FALSE)","v":"FSB71-230V"},{"$f":"VLOOKUP(AB157,Gesamtpreisliste!$A$7:$E$888,5,FALSE)","v":95.5},true,null,null,null,null,null,null,null,30200831,4010312316306]
[280,"FRP70-230V Funkrepeater",{"$f":"IF(AND(Eingabemaske!E4=\"ja\",Eingabemaske!E109=\"ja\"),Eingabemaske!E112,0)","v":0},0,null,99.9,{"$f":"D158*F158","v":0},null,null,null,"","",null,null,{"$f":"VLOOKUP(AB158,Gesamtpreisliste!$A$7:$E$888,2,FALSE)","v":30000352},{"$f":"EXACT(O158,AA158)","v":true},{"$f":"VLOOKUP(AB158,Gesamtpreisliste!$A$7:$E$888,3,FALSE)","v":"FRP70-230V"},{"$f":"VLOOKUP(AB158,Gesamtpreisliste!$A$7:$E$888,5,FALSE)","v":99.9},true,null,null,null,null,null,null,null,30000352,4010312306482]
[281,"FSSA Funk-Steckdosen-Schaltaktor",{"$f":"IF(AND(Eingabemaske!E4=\"ja\",Eingabemaske!E113=\"ja\"),Eingabemaske!E114,0)","v":0},0,null,113.8,{"$f":"D159*F159","v":0},null,null,null,"","",null,null,{"$f":"VLOOKUP(AB159,Gesamtpreisliste!$A$7:$E$888,2,FALSE)","v":30100001},true,{"$f":"VLOOKUP(AB159,Gesamtpreisliste!$A$7:$E$888,3,FALSE)","v":"FSSA-230V"},{"$f":"VLOOKUP(AB159,Gesamtpreisliste!$A$7:$E$888,5,FALSE)","v":113.8},true,null,null,null,null,null,null,null,30100001,4010312314562]
[282,"FSUD Funk-Universal-Steckdosen-Dimmschalter",{"$f":"IF(AND(Eingabemaske!E4=\"ja\",Eingabemaske!E113=\"ja\"),Eingabemaske!E115,0)","v":0},0,null,140.19999999999999,0,null,null,null,"","",null,null,{"$f":"VLOOKUP(AB160,Gesamtpreisliste!$A$7:$E$888,2,FALSE)","v":30100002},true,{"$f":"VLOOKUP(AB160,Gesamtpreisliste!$A$7:$E$888,3,FALSE)","v":"FSUD-230V"},{"$f":"VLOOKUP(AB160,Gesamtpreisliste!$A$7:$E$888,5,FALSE)","v":140.19999999999999},true,null,null,null,null,null,null,null,30100002,4010312314791]
[283,"FSRP-230V Funk-Repeater-Zwischenstecker",{"$f":"IF(AND(Eingabemaske!E4=\"ja\",Eingabemaske!E113=\"ja\"),Eingabemaske!E117,0)","v":0},0,null,84.3,{"$f":"D161*F161","v":0},null,null,null,"","",null,null,{"$f":"VLOOKUP(AB161,Gesamtpreisliste!$A$7:$E$888,2,FALSE)","v":30000359},true,{"$f":"VLOOKUP(AB161,Gesamtpreisliste!$A$7:$E$888,3,FALSE)","v":"FSRP-230V"},{"$f":"VLOOKUP(AB161,Gesamtpreisliste!$A$7:$E$888,5,FALSE)","v":84.3},{"$f":"EXACT(F161,R161)","v":true},null,null,null,null,null,null,null,30000359,4010312314999]
[284,"PL-SAM1L Powerlineaktor mit 1 Kanal",{"$f":"IF(Eingabemaske!E118=\"ja\",Eingabemaske!E119,0)","v":0},0,null,113.3,0,null,null,null,"","",null,null,{"$f":"VLOOKUP(AB162,Gesamtpreisliste!$A$7:$E$888,2,FALSE)","v":31100001},true,{"$f":"VLOOKUP(AB162,Gesamtpreisliste!$A$7:$E$888,3,FALSE)","v":"PL-SAM1L"},{"$f":"VLOOKUP(AB162,Gesamtpreisliste!$A$7:$E$888,5,FALSE)","v":113.3},true,null,null,null,null,null,null,null,"31100001",4010312316665]
[285,"PL-SAM2L Powerlineaktor mit 2 Kanälen",{"$f":"IF(Eingabemaske!E118=\"ja\",Eingabemaske!E120,0)","v":0},0,null,115.3,0,null,null,null,"","",null,null,{"$f":"VLOOKUP(AB163,Gesamtpreisliste!$A$7:$E$888,2,FALSE)","v":31200001},true,{"$f":"VLOOKUP(AB163,Gesamtpreisliste!$A$7:$E$888,3,FALSE)","v":"PL-SAM2L"},{"$f":"VLOOKUP(AB163,Gesamtpreisliste!$A$7:$E$888,5,FALSE)","v":115.3},true,null,null,null,null,null,null,null,"31200001",4010312316672]
[286,"PL-SAM2 Powerline-Jalousie-Aktor",{"$f":"IF(Eingabemaske!E118=\"ja\",Eingabemaske!E121,0)","v":0},0,null,115.3,0,null,null,null,"","",null,null,{"$f":"VLOOKUP(AB164,Gesamtpreisliste!$A$7:$E$888,2,FALSE)","v":31100002},true,{"$f":"VLOOKUP(AB164,Gesamtpreisliste!$A$7:$E$888,3,FALSE)","v":"PL-SAM2"},{"$f":"VLOOKUP(AB164,Gesamtpreisliste!$A$7:$E$888,5,FALSE)","v":115.3},true,null,null,null,null,null,null,null,"31100002",4010312316689]
[287,"PL-SAMDU Dimm-Aktor",{"$f":"IF(Eingabemaske!E118=\"ja\",Eingabemaske!E122,0)","v":0},0,null,130.69999999999999,0,null,null,null,"","",null,null,{"$f":"VLOOKUP(AB165,Gesamtpreisliste!$A$7:$E$888,2,FALSE)","v":31100008},true,{"$f":"VLOOKUP(AB165,Gesamtpreisliste!$A$7:$E$888,3,FALSE)","v":"PL-SAMDU"},{"$f":"VLOOKUP(AB165,Gesamtpreisliste!$A$7:$E$888,5,FALSE)","v":130.69999999999999},true,null,null,null,null,null,null,null,"31100008",4010312316870]
[288,"PL-AMD10V Dimm-Aktor 1-10V",{"$f":"IF(Eingabemaske!E118=\"ja\",Eingabemaske!E123,0)","v":0},0,null,122.8,0,null,null,null,"","",null,null,{"$f":"VLOOKUP(AB166,Gesamtpreisliste!$A$7:$E$888,2,FALSE)","v":31100006},true,{"$f":"VLOOKUP(AB166,Gesamtpreisliste!$A$7:$E$888,3,FALSE)","v":"PL-AMD10V"},{"$f":"VLOOKUP(AB166,Gesamtpreisliste!$A$7:$E$888,5,FALSE)","v":122.8},true,null,null,null,null,null,null,null,"31100006",4010312316726]
[289,"PL-SM1L Powerline Sensoreingang mit 1 Kanal",{"$f":"IF(Eingabemaske!E118=\"ja\",Eingabemaske!E124,0)","v":0},0,null,109.2,0,null,null,null,"","",null,null,{"$f":"VLOOKUP(AB167,Gesamtpreisliste!$A$7:$E$888,2,FALSE)","v":31100007},true,{"$f":"VLOOKUP(AB167,Gesamtpreisliste!$A$7:$E$888,3,FALSE)","v":"PL-SM1L"},{"$f":"VLOOKUP(AB167,Gesamtpreisliste!$A$7:$E$888,5,FALSE)","v":109.2},true,null,null,null,null,null,null,null,"31100007",4010312316740]
[290,"PL-SM8 Powerline Sensoreingang mit 8 Kanälen",{"$f":"IF(Eingabemaske!E118=\"ja\",Eingabemaske!E125,0)","v":0},0,null,115.3,0,null,null,null,"","",null,null,{"$f":"VLOOKUP(AB168,Gesamtpreisliste!$A$7:$E$888,2,FALSE)","v":31800001},true,{"$f":"VLOOKUP(AB168,Gesamtpreisliste!$A$7:$E$888,3,FALSE)","v":"PL-SM8"},{"$f":"VLOOKUP(AB168,Gesamtpreisliste!$A$7:$E$888,5,FALSE)","v":115.3},{"$f":"EXACT(F168,R168)","v":true},null,null,null,null,null,null,null,"31800001",4010312316719]
[291,"PL-FGW Powerline-Funktaster-Gateway",null,0,null,150.6,0,null,null,null,"","",null,null,{"$f":"VLOOKUP(AB169,Gesamtpreisliste!$A$7:$E$888,2,FALSE)","v":31100010},true,{"$f":"VLOOKUP(AB169,Gesamtpreisliste!$A$7:$E$888,3,FALSE)","v":"PL-FGW"},{"$f":"VLOOKUP(AB169,Gesamtpreisliste!$A$7:$E$888,5,FALSE)","v":150.6},true,null,null,null,null,null,null,null,31100010,4010312324110]
[292,"OnWall-2-al (Alu natur)",{"$f":"IF(Eingabemaske!E133=\"ja\",Eingabemaske!E134,0)","v":0},0,null,399.6,{"$f":"D170*F170","v":0},null,null,null,"","",null,null,{"$f":"VLOOKUP(AB170,Gesamtpreisliste!$A$7:$E$888,2,FALSE)","v":{"$error":"#N/A"}},{"$error":"#N/A"},{"$f":"VLOOKUP(AB170,Gesamtpreisliste!$A$7:$E$888,3,FALSE)","v":{"$error":"#N/A"}},{"$f":"VLOOKUP(AB170,Gesamtpreisliste!$A$7:$E$888,5,FALSE)","v":{"$error":"#N/A"}},{"$error":"#N/A"},null,null,null,null,null,null,null,30000101,4010312328651]
[293,"OnWall-2-sw (schwarz)",{"$f":"IF(Eingabemaske!E133=\"ja\",Eingabemaske!E135,0)","v":0},0,null,399.6,0,null,null,null,"","",null,null,{"$f":"VLOOKUP(AB171,Gesamtpreisliste!$A$7:$E$888,2,FALSE)","v":{"$error":"#N/A"}},{"$error":"#N/A"},{"$f":"VLOOKUP(AB171,Gesamtpreisliste!$A$7:$E$888,3,FALSE)","v":{"$error":"#N/A"}},{"$f":"VLOOKUP(AB171,Gesamtpreisliste!$A$7:$E$888,5,FALSE)","v":{"$error":"#N/A"}},{"$error":"#N/A"},null,null,null,null,null,null,null,30000102,4010312328668]
[294,"InWall-10 Alu schwarz eloxiert mit schwarzer Glasblende",{"$f":"IF(Eingabemaske!E133=\"ja\",Eingabemaske!E136,0)","v":0},0,null,394.2,0,null,null,null,{"$f":"IF(D172>0,D172,\"\")","v":""},"",null,null,{"$f":"VLOOKUP(AB172,Gesamtpreisliste!$A$7:$E$888,2,FALSE)","v":30000003},true,{"$f":"VLOOKUP(AB172,Gesamtpreisliste!$A$7:$E$888,3,FALSE)","v":"InWall-10-sz"},{"$f":"VLOOKUP(AB172,Gesamtpreisliste!$A$7:$E$888,5,FALSE)","v":394.2},{"$f":"EXACT(F172,R172)","v":true},null,null,null,null,null,null,null,30000003,4010312323809]
[296,"Austausch-Set Lightning auf USB-C",{"$f":"IF(Eingabemaske!E133=\"ja\",Eingabemaske!E139,0)","v":0},0,null,115.7,0,null,null,null,"","",null,null,{"$f":"VLOOKUP(AB173,Gesamtpreisliste!$A$7:$E$888,2,FALSE)","v":30000007},true,{"$f":"VLOOKUP(AB173,Gesamtpreisliste!$A$7:$E$888,3,FALSE)","v":"Austausch-Set Lightning > USB-C"},{"$f":"VLOOKUP(AB173,Gesamtpreisliste!$A$7:$E$888,5,FALSE)","v":115.7},true,null,null,null,null,null,null,null,30000007,4010312323878]
[297,null,null,0,null,{"$f":"IF(ISNA(VLOOKUP(B174,Gesamtpreisliste!$G$7:$K$841,2,FALSE)) = TRUE, \"0,00€\", VLOOKUP(B174,Gesamtpreisliste!$G$7:$K$841,2,FALSE))","v":"0,00€"},0,null,null,null,"",0,null,null,null,null,null,null,null,null,null,null,null,null,null,null,{"$f":"IF(ISNA(VLOOKUP(B174,Gesamtpreisliste!$G$7:$I$841,3,FALSE)) = TRUE, \"\", VLOOKUP(B174,Gesamtpreisliste!$G$7:$I$841,3,FALSE))","v":""},{"$f":"IF(ISNA(VLOOKUP(B174,Gesamtpreisliste!$G$7:$K$988,4,FALSE)) = TRUE, \"\", VLOOKUP(B174,Gesamtpreisliste!$G$7:$K$988,4,FALSE))","v":""}]
[298,null,null,0,null,{"$f":"IF(ISNA(VLOOKUP(B175,Gesamtpreisliste!$G$7:$K$841,2,FALSE)) = TRUE, \"0,00€\", VLOOKUP(B175,Gesamtpreisliste!$G$7:$K$841,2,FALSE))","v":"0,00€"},0,null,null,null,"",0,null,null,null,null,null,null,null,null,null,null,null,null,null,null,{"$f":"IF(ISNA(VLOOKUP(B175,Gesamtpreisliste!$G$7:$I$841,3,FALSE)) = TRUE, \"\", VLOOKUP(B175,Gesamtpreisliste!$G$7:$I$841,3,FALSE))","v":""},{"$f":"IF(ISNA(VLOOKUP(B175,Gesamtpreisliste!$G$7:$K$988,4,FALSE)) = TRUE, \"\", VLOOKUP(B175,Gesamtpreisliste!$G$7:$K$988,4,FALSE))","v":""}]
[299,null,null,0,null,{"$f":"IF(ISNA(VLOOKUP(B176,Gesamtpreisliste!$G$7:$K$841,2,FALSE)) = TRUE, \"0,00€\", VLOOKUP(B176,Gesamtpreisliste!$G$7:$K$841,2,FALSE))","v":"0,00€"},0,null,null,null,"",0,null,null,null,null,null,null,null,null,null,null,null,null,null,null,{"$f":"IF(ISNA(VLOOKUP(B176,Gesamtpreisliste!$G$7:$I$841,3,FALSE)) = TRUE, \"\", VLOOKUP(B176,Gesamtpreisliste!$G$7:$I$841,3,FALSE))","v":""},{"$f":"IF(ISNA(VLOOKUP(B176,Gesamtpreisliste!$G$7:$K$988,4,FALSE)) = TRUE, \"\", VLOOKUP(B176,Gesamtpreisliste!$G$7:$K$988,4,FALSE))","v":""}]
[300,null,null,0,null,{"$f":"IF(ISNA(VLOOKUP(B177,Gesamtpreisliste!$G$7:$K$841,2,FALSE)) = TRUE, \"0,00€\", VLOOKUP(B177,Gesamtpreisliste!$G$7:$K$841,2,FALSE))","v":"0,00€"},0,null,null,null,"",0,null,null,null,null,null,null,null,null,null,null,null,null,null,null,{"$f":"IF(ISNA(VLOOKUP(B177,Gesamtpreisliste!$G$7:$I$841,3,FALSE)) = TRUE, \"\", VLOOKUP(B177,Gesamtpreisliste!$G$7:$I$841,3,FALSE))","v":""},{"$f":"IF(ISNA(VLOOKUP(B177,Gesamtpreisliste!$G$7:$K$988,4,FALSE)) = TRUE, \"\", VLOOKUP(B177,Gesamtpreisliste!$G$7:$K$988,4,FALSE))","v":""}]
[301,null,null,0,null,{"$f":"IF(ISNA(VLOOKUP(B178,Gesamtpreisliste!$G$7:$K$841,2,FALSE)) = TRUE, \"0,00€\", VLOOKUP(B178,Gesamtpreisliste!$G$7:$K$841,2,FALSE))","v":"0,00€"},0,null,null,null,"",0,null,null,null,null,null,null,null,null,null,null,null,null,null,null,{"$f":"IF(ISNA(VLOOKUP(B178,Gesamtpreisliste!$G$7:$I$841,3,FALSE)) = TRUE, \"\", VLOOKUP(B178,Gesamtpreisliste!$G$7:$I$841,3,FALSE))","v":""},{"$f":"IF(ISNA(VLOOKUP(B178,Gesamtpreisliste!$G$7:$K$988,4,FALSE)) = TRUE, \"\", VLOOKUP(B178,Gesamtpreisliste!$G$7:$K$988,4,FALSE))","v":""}]
[302,null,null,0,null,{"$f":"IF(ISNA(VLOOKUP(B179,Gesamtpreisliste!$G$7:$K$841,2,FALSE)) = TRUE, \"0,00€\", VLOOKUP(B179,Gesamtpreisliste!$G$7:$K$841,2,FALSE))","v":"0,00€"},0,null,null,null,"",0,null,null,null,null,null,null,null,null,null,null,null,null,null,null,{"$f":"IF(ISNA(VLOOKUP(B179,Gesamtpreisliste!$G$7:$I$841,3,FALSE)) = TRUE, \"\", VLOOKUP(B179,Gesamtpreisliste!$G$7:$I$841,3,FALSE))","v":""},{"$f":"IF(ISNA(VLOOKUP(B179,Gesamtpreisliste!$G$7:$K$988,4,FALSE)) = TRUE, \"\", VLOOKUP(B179,Gesamtpreisliste!$G$7:$K$988,4,FALSE))","v":""}]
[303,null,null,0,null,{"$f":"IF(ISNA(VLOOKUP(B180,Gesamtpreisliste!$G$7:$K$841,2,FALSE)) = TRUE, \"0,00€\", VLOOKUP(B180,Gesamtpreisliste!$G$7:$K$841,2,FALSE))","v":"0,00€"},0,null,null,null,"",0,null,null,null,null,null,null,null,null,null,null,null,null,null,null,{"$f":"IF(ISNA(VLOOKUP(B180,Gesamtpreisliste!$G$7:$I$841,3,FALSE)) = TRUE, \"\", VLOOKUP(B180,Gesamtpreisliste!$G$7:$I$841,3,FALSE))","v":""},{"$f":"IF(ISNA(VLOOKUP(B180,Gesamtpreisliste!$G$7:$K$988,4,FALSE)) = TRUE, \"\", VLOOKUP(B180,Gesamtpreisliste!$G$7:$K$988,4,FALSE))","v":""}]
[304,null,null,0,null,{"$f":"IF(ISNA(VLOOKUP(B181,Gesamtpreisliste!$G$7:$K$841,2,FALSE)) = TRUE, \"0,00€\", VLOOKUP(B181,Gesamtpreisliste!$G$7:$K$841,2,FALSE))","v":"0,00€"},0,null,null,null,"",0,null,null,null,null,null,null,null,null,null,null,null,null,null,null,{"$f":"IF(ISNA(VLOOKUP(B181,Gesamtpreisliste!$G$7:$I$841,3,FALSE)) = TRUE, \"\", VLOOKUP(B181,Gesamtpreisliste!$G$7:$I$841,3,FALSE))","v":""},{"$f":"IF(ISNA(VLOOKUP(B181,Gesamtpreisliste!$G$7:$K$988,4,FALSE)) = TRUE, \"\", VLOOKUP(B181,Gesamtpreisliste!$G$7:$K$988,4,FALSE))","v":""}]
[305,null,null,0,null,{"$f":"IF(ISNA(VLOOKUP(B182,Gesamtpreisliste!$G$7:$K$841,2,FALSE)) = TRUE, \"0,00€\", VLOOKUP(B182,Gesamtpreisliste!$G$7:$K$841,2,FALSE))","v":"0,00€"},0,null,null,null,"",0,null,null,null,null,null,null,null,null,null,null,null,null,null,null,{"$f":"IF(ISNA(VLOOKUP(B182,Gesamtpreisliste!$G$7:$I$841,3,FALSE)) = TRUE, \"\", VLOOKUP(B182,Gesamtpreisliste!$G$7:$I$841,3,FALSE))","v":""},{"$f":"IF(ISNA(VLOOKUP(B182,Gesamtpreisliste!$G$7:$K$988,4,FALSE)) = TRUE, \"\", VLOOKUP(B182,Gesamtpreisliste!$G$7:$K$988,4,FALSE))","v":""}]
[306,null,null,0,null,{"$f":"IF(ISNA(VLOOKUP(B183,Gesamtpreisliste!$G$7:$K$841,2,FALSE)) = TRUE, \"0,00€\", VLOOKUP(B183,Gesamtpreisliste!$G$7:$K$841,2,FALSE))","v":"0,00€"},0,null,null,null,"",0,null,null,null,null,null,null,null,null,null,null,null,null,null,null,{"$f":"IF(ISNA(VLOOKUP(B183,Gesamtpreisliste!$G$7:$I$841,3,FALSE)) = TRUE, \"\", VLOOKUP(B183,Gesamtpreisliste!$G$7:$I$841,3,FALSE))","v":""},{"$f":"IF(ISNA(VLOOKUP(B183,Gesamtpreisliste!$G$7:$K$988,4,FALSE)) = TRUE, \"\", VLOOKUP(B183,Gesamtpreisliste!$G$7:$K$988,4,FALSE))","v":""}]
[307,null,null,0,null,{"$f":"IF(ISNA(VLOOKUP(B184,Gesamtpreisliste!$G$7:$K$841,2,FALSE)) = TRUE, \"0,00€\", VLOOKUP(B184,Gesamtpreisliste!$G$7:$K$841,2,FALSE))","v":"0,00€"},0,null,null,null,"",0,null,null,null,null,null,null,null,null,null,null,null,null,null,null,{"$f":"IF(ISNA(VLOOKUP(B184,Gesamtpreisliste!$G$7:$I$841,3,FALSE)) = TRUE, \"\", VLOOKUP(B184,Gesamtpreisliste!$G$7:$I$841,3,FALSE))","v":""},{"$f":"IF(ISNA(VLOOKUP(B184,Gesamtpreisliste!$G$7:$K$988,4,FALSE)) = TRUE, \"\", VLOOKUP(B184,Gesamtpreisliste!$G$7:$K$988,4,FALSE))","v":""}]
[null,"Gesamtleistungsaufnahme; ist die Gesamtleistung > 8W  wurde\ndie Stückliste automatisch um zusätzliche Netzteile (FSNT14) ergänzt."]
[null,{"$f":"SUM(J4:J133)","v":0},null,"TE",{"$f":"SUM(E5:E184)","v":0},null,{"$f":"SUM(G3:G184)","v":0},null,null,{"$f":"SUM(J4:J133)","v":0}]

{"sheet":"Kurzanleitung","index":2,"n_rows":3,"n_cols":1,"rows_kept":3,"cut":false,"hidden":false,"merged":[[2,0,2,1],[1,0,1,1]]}
["\n  Eltako Professional Smart Home\n  Kurzanleitung:"]
["Stellen Sie zunächst sicher, dass die Makros aktiviert sind. Klicken Sie hier für online Hilfe"]
["Bitte tragen Sie in der Spalte E alle gewünschten Funktionseigenschaften des Projektes ein.\nZur vereinfachten Eingabe stehen Ihnen bei Bedarf DropDown-Buttons zur Verfügung, aus der Sie die möglichen Angaben direkt auswählen können.\nAlle anderen Angaben (Zahlen) tragen Sie bitte per Hand ein.\nDie Kalkulationshilfe hilft Ihnen bei der Ermittlung aller Ansteuervarianten und Auswahl der Schaltaktoren:\n     1. FTS14-System (1+n Technik)\n     2. 2-Draht-Bus-System für Tasteransteuerung mit Tastergateways\n     3. 4-Draht-Bus-System für Sensoranschluss mit Busgateways\n     4. Funk-Taster oder Fernbedienung\nAuch die Kombination aller 4 Systeme ist möglich.\n\nDabei werden alle notwendigen Steuereingänge, Eingangsmodule, Busmodule oder Funktaster sowie\nalle notwendigen Systemgeräte, Spannungsversorgungen und Zubehörkomponenten ermittelt. \nNach Beendigung der Eingabe wird auf der zweiten Karteikarte eine Stückliste mit allen Mengen und Bruttowerten ausgegeben.\nEine manuelle Ergänzug der Stückliste ist jederzeit möglich. Ebenso ein Reset aller Mengen durch Klick auf \"Stückzahlen Reset\" in der Eingabemaske.\nZum Schluss den obere Button \"Stückliste aktualisieren\" betätigen.\nAuf der letzten Karteikarte lässt sich mit Klick auf \"Ausschreibung aktualisieren\" ein Leistungsverzeichnis erstellen. (Derzeit in Arbeit, vorübergehend nicht verfügbar) \nWICHTIG!\nNach evtl.  Änderung in der Eingabemaske muss auf \"Stückliste aktualisieren\" geklickt werden.\nNur so wird eine bereits gefilterte Liste nach Änderung der Eingabemaske neu aktualisiert. "]

{"sheet":"Gesamtpreisliste","index":3,"n_rows":888,"n_cols":10,"rows_kept":888,"cut":false,"hidden":false,"merged":[]}
["Eltako Preisliste 2024",null,null,"gültig für Lieferungen ab 01.01.2024"]
["Stand 05.05.2024"]
["Unverbindlich empfohlene Verkaufspreise und Netto-Einkaufspreise per Stück in Euro zzgl. MwSt."]
["Preis per Stück in Euro ohne MwSt."]
[]
["EAN","Artikel-Nr.","Bezeichnung","Kurzbeschreibung","Brutto"]
[4010312900987,20000010,"DS12","Distanzstück",2.1,null,"XR12-400-230V",62,22400930,4010312201374]
[4010312901243,20000030,"KM12","Hilfskontakt 1 Schließer + 1 Öffner, 4 A",17.100000000000001,null,"MSR12-UC",100.2,22500501,4010312205327]
[4010312909843,20000050,"EBOX","Eurobehälter mit Scharnierdeckel",15,null,"DS12",2.1,20000010,4010312900987]
[4010312901748,20000060,"WNT12-12VDC-12W/1A","Weitbereichs-Schaltnetzteil 12V DC",66.7,null,"XS12-400-230V",60.2,21400930,4010312101650]
[4010312901755,20000061,"WNT12-24VDC-12W/0,5A","Weitbereichs-Schaltnetzteil 24V DC",66.7,null,"RC12-230V",42,22000015,4010312201596]
[4010312300077,20000062,"WNT12-12VDC-24W/2A","Weitbereichs-Schaltnetzteil 12V DC",74.2,null,"AR12DX-230V",71.400000000000006,22001130,4010312205426]
[4010312300084,20000063,"WNT12-24VDC-24W/1A","Weitbereichs-Schaltnetzteil 24V DC",74.2,null,"NR12-001-3x230V",61.2,22001330,4010312202524]
[4010312300114,20000065,"WNT12-24VDC-48W/2A","Weitbereichs-Schaltnetzteil 24V DC",109.9,null,"BZR12DDX-UC",69.099999999999994,22001430,4010312603161]
[4010312401880,20000072,"WNT15-12VDC/24W","Weitbereichs-Schaltnetzteil 12V DC",52.5,null,"KM12",17.100000000000001,20000030,4010312901243]
[4010312401910,20000073,"WNT15-24VDC/24W","Weitbereichs-Schaltnetzteil 24V DC",52.5,null,"WNT12-12VDC-12W/1A",66.7,20000060,4010312901748]
[4010312401903,20000075,"WNT15-24VDC/48W","Weitbereichs-Schaltnetzteil 24V DC",61.8,null,"WNT12-24VDC-12W/0,5A",66.7,20000061,4010312901755]
[4010312901267,20000080,"LS Lichtsensor","Lichtsensor",34.200000000000003,null,"MFZ12DBT-UC",101.1,23001003,4010312603284]
[4010312901281,20000082,"WS Windsensor","Windsensor",79.7,null,"MFZ12DDX-UC",70.099999999999994,23001004,4010312603079]
[4010312901731,20000084,"MS Multisensor","Multisensor",309.2,null,"ER12-001-UC",55.7,22001601,4010312205365]
[4010312206898,20000085,"WMS","Wetterdaten-Multisensor",316.7,null,"WNT12-12VDC-24W/2A",74.2,20000062,4010312300077]
[4010312903001,20000086,"FK Fensterkontakt","Fensterkontakt, Reedrelais mit 1 Öffner",32.799999999999997,null,"MFZ12DX-UC",69.8,23001005,4010312603086]
[4010312206546,20000087,"RS Regensensor","Regensensor",142.69999999999999,null,"MFZ12PMD-UC",88.1,23001006,4010312601099]
[4010312301111,20000160,"SNT12-230V/12VDC-1A","Schaltnetzteil 12V DC",60.7,null,"NR12-002-3X230V",75.7,22002330,4010312202548]
[4010312301128,20000161,"SNT12-230V/24VDC-0,5A","Schaltnetzteil 24V DC",60.7,null,"ER12-002-UC",62.8,22002601,4010312205372]
[4010312301135,20000162,"SNT12-230V/12VDC-2A","Schaltnetzteil 12V DC",75.2,null,"R12-020-230V",40.6,22020030,4010312201572]
[4010312301142,20000163,"SNT12-230V/24VDC-1A","Schaltnetzteil 24V DC",75.2,null,"ER12SSR-UC",51.4,22100001,4010312206720]
[4010312401798,20000164,"SNT12U-230V/3,3-12VDC-1A","Universal-Schaltnetzteil",45.8,null,"ER12DX-UC",56.3,22100002,4010312205402]
[4010312401804,20000165,"WNT12U/3,3-12VDC","Universal-Weitbereichs-Schaltnetzteil",60,null,"R12-100-8V",33.5,22100010,4010312200414]
[4010312401859,20000175,"WNT15U/3,3-12VDC","Universal-Weitbereichs-Schaltnetzteil ",60,null,"WNT12-24VDC-24W/1A",74.2,20000063,4010312300084]
[4010312107959,21100002,"ES12DX-UC","Stromstoßschalter mit patentierter ­Duplex-Technologie und Universal-Steuerspannung, 1 Schließer 16A",56.89,null,"RVZ12DX-UC",67.5,23001202,4010312603093]
[4010312110003,21100003,"ES12DX/110-240V","Stromstoßschalter mit patentierter Duplex-Technologie, 1 Schließer 16A",38.9,null,"WNT12-24VDC-48W/2A",109.9,20000065,4010312300114]
[4010312100448,21100010,"S12-100-8V","Stromstoßschalter 8V. 1 Schließer 16A/250V AC",33.5,null,"AVZ12DX-UC",68,23001302,4010312603109]
[4010312100455,21100011,"S12-100-12V","Stromstoßschalter 12V. 1 Schließer 16A/250V AC",31,null,"TGI12DX-UC",67.599999999999994,23001402,4010312603116]
[4010312100462,21100020,"S12-100-24V","Stromstoßschalter 24V. 1 Schließer 16A/250V AC",33.5,null,"EAW12DX-UC",67.599999999999994,23001702,4010312603123]
[4010312100479,21100030,"S12-100-230V","Stromstoßschalter 230V. 1 Schließer 16A/250V AC",31,null,"PTN12-230V",64.5,23001802,4010312603215]
[4010312101254,21100054,"S12-100-12V DC","Stromstoßschalter 12V DC. 1 Schließer 16A/250V AC",33.5,null,"S2U12DBT-UC",113.1,23002903,4010312603307]
[4010312101247,21100055,"S12-100-24V DC","Stromstoßschalter 24V DC. 1 Schließer 16A/250V AC",33.5,null,"MFZ12NP-230V+UC",62.5,23100001,4010312602935]
[4010312107928,21100102,"ESR12NP-230V+UC","Stromstoß-Schaltrelais, 1 Schließer 16A",61.1,null,"MFZ12-230V",61.8,23100530,4010312603147]
[4010312109403,21100800,"SDS12/1-10V","1-10V-Steuer-Dimmschalter für EVG, 1 Schließer 600VA",71.3,null,"NLZ12NP-230V+UC",59.6,23100704,4010312602911]
[4010312206744,21100801,"ESW12DX-UC","Stromstoßschalter mit Wolfram-Vorlaufkontakt, 1 Schließer 16A",57.2,null,"TLZ12D-plus",62.3,23100800,4010312401712]
[4010312108116,21100802,"SUD12/1-10V","1-10V-Steuergerät für Universal-Dimmschalter, 1 Schließer 600VA",68,null,"TLZ12G-230V+UC",63.8,23100831,4010312401460]
[4010312107867,21100805,"LUD12-230V","Leistungszusatz für Universal-Dimmschalter, Power MOSFET bis 400W",73.8,null,"TLZ12-8plus",57.6,23100832,4010312401613]
[4010312107843,21100806,"EUD12NPN-UC","Universal-Dimmschalter mit Universal-Steuerspannung, Power MOSFET bis 400W",70.3,null,"TLZ12-9",57.7,23100836,4010312401620]
[4010312109991,21100807,"EUD12NPN-BT/300W-230V","Universal-Dimmschalter mit Bluetooth, Power MOSFET bis 300W",93.2,null,"WNT15-12VDC/24W",52.5,20000072,4010312401880]
[4010312110027,21100808,"EUD12NPN/110-240V","Universal-Dimmschalter, Power MOSFET bis 400W",47,null,"WNT15-24VDC/24W",52.5,20000073,4010312401910]
[4010312109656,21100810,"EUD12DK/800W-UC","Universal-Dimmschalter mit Drehknopf, Power MOSFET bis 800W",79.8,null,"TLZ12-8",44.9,23100934,4010312401637]
[4010312108086,21100830,"EUD12F","Universal-Dimmschalter, Power MOSFET bis 300W und Abschaltrelais",86.4,null,"A2Z12-UC",79.8,23200302,4010312603178]
[4010312109489,21100905,"EUD12D-UC","Multifunktions-Universal-Dimmschalter, Power MOSFET bis 400W",84.3,null,"S2U12DDX-UC",88.7,23200901,4010312603208]
[4010312109526,21100906,"MOD12D-UC","Digital einstellbarer Motordimmer, Power MOSFET bis 300W",84.4,null,"SU12DBT/1+1-UC",103.7,23200902,4010312603277]
[4010312101513,21100930,"XS12-100-230V","Stromstoßschalter 230V. 1 Schließer 25A/250V AC",36.1,null,"P3K12-230V",43.9,24000899,4010312701065]
[4010312108055,21110002,"ES12-110-UC","Stromstoßschalter, 1 Schließer + 1 Öffner 16A",58.2,null,"ST12-16A",20.9,24100900,4010312700358]
[4010312100486,21110010,"S12-110-8V","Stromstoßschalter 8V. 1 Schließer + 1 Öffner 16A/250V AC",41.5,null,"WSZ110DSS-16A",106.3,28016110,4010312501795]
[4010312100493,21110011,"S12-110-12V","Stromstoßschalter 12V. 1 Schließer + 1 Öffner 16A/250V AC",39.4,null,"WSZ110CEE-16A",107.4,28016111,4010312501801]
[4010312100509,21110020,"S12-110-24V","Stromstoßschalter 24V. 1 Schließer + 1 Öffner 16A/250V AC",41.5,null,"WSZ110DSS-16A+PRCD MID",206.2,28016112,4010312501832]
[4010312100516,21110030,"S12-110-230V","Stromstoßschalter 230V. 1 Schließer + 1 Öffner 16A/250V AC",39.4,null,"WSZ110CEE-16A+PRCD MID",202.4,28016113,4010312501856]
[4010312101261,21110054,"S12-110-12V DC","Stromstoßschalter 12V DC. 1 Schließer + 1 Öffner 16A/250V AC",41.5,null,"WSZ110FBSS-16A MID",121.4,28016114,4010312501924]
[4010312101278,21110055,"S12-110-24V DC","Stromstoßschalter 24V DC. 1 Schließer + 1 Öffner 16A/250V AC",41.5,null,"DSZ180CEE-16A MID",213.7,28016128,4010312501863]
[4010312101346,21110211,"SS12-110-12V","Stromstoß-Serienschalter 12V. 1+1 Schließer 16A/250V AC",46,null,"WSZ15D-32A MID",67,28032015,4010312501627]
[4010312101124,21110230,"SS12-110-230V","Stromstoß-Serienschalter 230V. 1+1 Schl. 16A/250V AC",46,null,"DSZ180CEE-32A MID",225.5,28032128,4010312501825]
[4010312107683,21110601,"ES12Z-110-UC","Stromstoßschalter, 1 Schließer + 1 Öffner 16A",68.2,null,"WZR12-32A",74.5,28032410,4010312501252]
[4010312101551,21110930,"XS12-110-230V","Stromstoßschalter 230V. 1 Schließer + 1 Öffner 25A/250V AC",43.9,null,"EVA12-32A",75.099999999999994,28032411,4010312500828]
[4010312108048,21200002,"ES12-200-UC","Stromstoßschalter, 2 Schließer 16A",59.1,null,"WSZ15DE-32A",59,28032615,4010312501702]
[4010312100523,21200010,"S12-200-8V","Stromstoßschalter 8V. 2 Schließer 16A/250V AC ",41.5,null,"WSZ14DRS-32A",75,28032715,4010312501900]
[4010312100530,21200011,"S12-200-12V","Stromstoßschalter 12V. 2 Schließer 16A/250V AC",39.4,null,"WSZ15D-65A MID",71.5,28065615,4010312501696]
[4010312100547,21200020,"S12-200-24V","Stromstoßschalter 24V. 2 Schließer 16A/250V AC",41.5,null,"DSZ15WD-3x5A MID",204.1,28305015,4010312501641]
[4010312100554,21200030,"S12-200-230V","Stromstoßschalter 230V. 2 Schließer 16A/250V AC",39.4,null,"DSZ15WDM-3x5A MID",243.7,28305515,4010312501665]
[4010312101285,21200054,"S12-200-12V DC","Stromstoßschalter 12V DC. 2 Schließer 16A/250V AC ",41.5,null,"DSZ14WDRS-3x5A MID",209.1,28305712,4010312501450]
[4010312101292,21200055,"S12-200-24V DC","Stromstoßschalter 24V DC. 2 Schließer 16A/250V AC ",41.5,null,"DSZ14DRS-3x80A MID",200.5,28365715,4010312501733]
[4010312108093,21200302,"ESR12DDX-UC","Multifunktions-Stromstoß-Schaltrelais, 1+1 Schließer 16A",76.099999999999994,null,"DSZ15D-3x80A MID",157.6,28380015,4010312501634]
[4010312107737,21200401,"EGS12Z-UC","Stromstoß-Gruppenschalter, 1 + 1 Schließer 10A",78.400000000000006,null,"DSZ15DZE-3x80A",180,28380215,4010312501894]
[4010312107690,21200601,"ES12Z-200-UC","Stromstoßschalter, 2 Schließer 16A",68.2,null,"DSZ15DM-3x80A MID",243.7,28380512,4010312501726]
[4010312101605,21200930,"XS12-200-230V","Stromstoßschalter 230V. 2 Schließer 25A/250V AC ",43.9,null,"DSZ15DMOD-3x80A MID",251,28380515,4010312501917]
[4010312100592,21220030,"S12-220-230V","4-poliger elektromechanischer 16A-Stromstoßschalter 230V. 2 Schließer + 2 Öffner 16A/250V AC ",57.2,null,"DSZ15DZMOD-3x80A MID",243.7,28380516,4010312328170]
[4010312101759,21220930,"XS12-220-230V","Stromstoßschalter 230V. 2 Schließer + 2 Öffner 25A/250V AC ",60.2,null,"DSZ15DE-3x80A",116,28380615,4010312501719]
[4010312100639,21310030,"S12-310-230V","4-poliger elektromechanischer 16A-Stromstoßschalter 230V. 3 Schließer + 1 Öffner 16A/250V AC ",57.2,null,"DSZ14DRSZ-3x80A MID",232.2,28465715,4010312501887]
[4010312101704,21310930,"XS12-310-230V","Stromstoßschalter 230V. 3 Schließer + 1 Öffner 25A/250V AC ",60.2,null,"DSZ15DZ-3x80A MID",210.9,28480315,4010312501870]
[4010312104484,21400030,"S12-400-230V","4-poliger elektromechanischer 16A-Stromstoßschalter 230V. 4 Schließer 16A/250V AC ",57.2,null,"S09-12V",33.4,29100011,4010312104187]
[4010312108130,21400301,"ESR12Z-4DX-UC","Stromstoß-Schaltrelais, 4 x 1 Schließer 16A",106.7,null,"S09-230V",36.4,29100030,4010312104200]
[4010312110010,21400302,"ESR12Z-4DX/110-240V","Stromstoß-Schaltrelais, 4 x 1 Schließer 16A",75,null,"WNT15-24VDC/48W",61.8,20000075,4010312401903]
[4010312108031,21400401,"EGS12Z2-UC","Stromstoß-Gruppenschalter, 2 + 2 Schließer 5A",99.7,null,"OnWall-al",368.5,30000001,4010312323786]
[4010312101650,21400930,"XS12-400-230V","Stromstoßschalter 230V. 4 Schließer 25A/250V AC ",60.2,null,"OnWall-sz",368.5,30000002,4010312323793]
[4010312201596,22000015,"RC12-230V","3-fach-RC-Glied",42,null,"InWall-10-sz",394.2,30000003,4010312323809]
[4010312205426,22001130,"AR12DX-230V","Stromrelais, 1 Wechsler 16A",71.400000000000006,null,"OnWall/2-al",393.6,30000005,4010312324585]
[4010312202524,22001330,"NR12-001-3x230V","Netzüberwachungsrelais mit Drehfeldüberwachung, 1 Wechsler 10A",61.2,null,"Austausch-Set Lightning > USB-C",115.7,30000007,4010312323878]
[4010312603161,22001430,"BZR12DDX-UC","Betriebsstunden-Impulszähler, 1 Wechsler 10A",69.099999999999994,null,"OnWall/2-sz",393.6,30000010,4010312324592]
[4010312205365,22001601,"ER12-001-UC","Schaltrelais, 1 Wechsler 16A",55.7,null,"UIB70",12.8,30000011,4010312909058]
[4010312202548,22002330,"NR12-002-3X230V","Netzüberwachungsrelais mit Drehfeldüberwachung, 2 Wechsler 10A",75.7,null,"UIB70-rw",11.4,30000012,4010312909454]
[4010312205372,22002601,"ER12-002-UC","Schaltrelais, 2 Wechsler 16A",62.8,null,"FVST",5.3,30000015,4010312907290]
[4010312328491,22016001,"ZGW16WL-IP","Modbus-Stromzähler-MQTT-Gateway über WLAN oder LAN. MQTT und REST-API",128.5,null,"LS Lichtsensor",34.200000000000003,20000080,4010312901267]
[4010312201572,22020030,"R12-020-230V","Schaltrelais 2 Öffner (Ruhestromrelais) 16A/250V AC ",40.6,null,"FTVW",2.1,30000016,4010312907030]
[4010312206720,22100001,"ER12SSR-UC","Schaltrelais geräuschlos mit Solid-State-Relais",51.4,null,"SMW14",1.5,30000017,4010312907023]
[4010312205402,22100002,"ER12DX-UC","Schaltrelais mit patentierter Duplex-Technologie und Universal-Steuerspannung, 1 Schließer 16A",56.3,null,"U2RP",6,30000018,4010312908860]
[4010312206911,22100003,"ER12DX/110-240V","Schaltrelais mit patentierter Duplex-Technologie, 1 Schließer 16A",38.9,null,"WS Windsensor",79.7,20000082,4010312901281]
[4010312200414,22100010,"R12-100-8V","Schaltrelais 8V. 1 Schließer 16A/250V AC ",33.5,null,"USB-Verlängerungskabel",15.9,30000020,4010312907702]
[4010312200421,22100011,"R12-100-12V","Schaltrelais 12V. 1 Schließer 16A/250V AC ",31,null,"BPS-Ö Blister-Pack",152,30000021,4010312314937]
[4010312200438,22100020,"R12-100-24V","Schaltrelais 24V. 1 Schließer 16A/250V AC ",33.5,null,"BPD-Ö Blister-Pack",171.7,30000022,4010312314944]
[4010312200445,22100030,"R12-100-230V","Schaltrelais 230V. 1 Schließer 16A/250V AC ",31,null,"BPS-ES Blister-Pack",152,30000023,4010312314968]
[4010312200995,22100054,"R12-100-12V DC","Schaltrelais 12V DC. 1 Schließer 16A/250V AC ",33.5,null,"RLC-Glied",6.6,30000025,4010312907092]
[4010312201008,22100055,"R12-100-24V DC","Schaltrelais 24V DC. 1 Schließer 16A/250V AC ",33.5,null,"DAT71",78.8,30000026,4010312316351]
[4010312203255,22100231,"FR12-230V","Selbstlernender Feldfreischalter, 1 Schließer 16A",82.8,null,"NF2A",38.1,30000028,4010312324370]
[4010312205457,22100430,"SBR12-230V/240µF","Strombegrenzungsrelais kapazitiv, 1 Schließer 16A",49.5,null,"WP50",28.3,30000030,4010312907306]
[4010312206836,22100530,"MFSR12DX-230V","Multifunktions-Strom-Relais für Zweirichtungs-Drehstromzähler",79.8,null,"MS Multisensor",309.2,20000084,4010312901731]
[4010312203415,22100705,"KR09-12V UC","Koppelrelais, 1 Schließer 6A",44.6,null,"SV7x7x14",14.1,30000031,4010312908990]
[4010312203385,22100706,"KR09-24V UC","Koppelrelais, 1 Schließer 6A",41.1,null,"mTronic",126,30000033,4010312324127]
[4010312203378,22100730,"KR09-230V","Koppelrelais, 1 Schließer 6A",41.1,null,"BPB55 Blister-Pack",153.30000000000001,30000035,4010312317822]
[4010312206683,22100800,"KRW12DX-UC","Koppelrelais, 1 Schließer 16A",55,null,"BPD55 Blister-Pack",169.1,30000036,4010312317839]
[4010312201206,22100930,"XR12-100-230V","Installationsschütz 230V. 1 Schließer 25A/250V AC ",37.200000000000003,null,"BPS55 Blister-Pack",139.69999999999999,30000037,4010312317846]
[4010312205440,22110002,"ER12-110-UC","Schaltrelais, 1 Schließer + 1 Öffner 16A",57.1,null,"FGM",82,30000040,4010312303290]
[4010312200452,22110010,"R12-110-8V","Schaltrelais 8V. 1 Schließer + 1 Öffner 16A/250V AC ",41.5,null,"FAS260SA",130.5,30000041,4010312320075]
[4010312200469,22110011,"R12-110-12V","Schaltrelais 12V. 1 Schließer + 1 Öffner 16A/250V AC ",39.4,null,"OnWall/C-al",399.6,30000043,4010312328033]
[4010312200476,22110020,"R12-110-24V","Schaltrelais 24V. 1 Schließer + 1 Öffner 16A/250V AC ",41.5,null,"OnWall/C-sz",399.6,30000044,4010312328040]
[4010312200483,22110030,"R12-110-230V","Schaltrelais 230V. 1 Schließer + 1 Öffner 16A/250V AC ",39.4,null,"FRM60M10",266.3,30000048,4010312321249]
[4010312201015,22110054,"R12-110-12V DC","Schaltrelais 12V DC. 1 Schließer + 1 Öffner 16A/250V AC ",41.5,null,"FRM60M20",304.3,30000049,4010312321256]
[4010312201022,22110055,"R12-110-24V DC","Schaltrelais 24V DC. 1 Schließer + 1 Öffner 16A/250V AC ",41.5,null,"FPP12",34,30000051,4010312311769]
[4010312201251,22110930,"XR12-110-230V","Installationsschütz 230V. 1 Schließer + 1 Öffner 25A/250V AC ",45.5,null,"FUA12-230V",121.8,30000052,4010312316955]
[4010312205433,22200002,"ER12-200-UC","Schaltrelais, 2 Schließer 16A",57.1,null,"FRWB-rw",158.4,30000054,4010312321027]
[4010312200490,22200010,"R12-200-8V","Schaltrelais 8V. 2 Schließer 16A/250V AC ",41.5,null,"SWS55/W-an",12.2,30000055,4010312909034]
[4010312200506,22200011,"R12-200-12V","Schaltrelais 12V. 2 Schließer 16A/250V AC ",39.4,null,"FHMB-rw",166.8,30000056,4010312321034]
[4010312200513,22200020,"R12-200-24V","Schaltrelais 24V. 2 Schließer 16A/250V AC ",41.5,null,"SWS55/DW-an",12.2,30000057,4010312909065]
[4010312200520,22200030,"R12-200-230V","Schaltrelais 230V. 2 Schließer 16A/250V AC ",39.4,null,"FTLZ12-8plus",121.8,30000058,4010312328026]
[4010312201039,22200054,"R12-200-12V DC","Schaltrelais 12V DC. 2 Schließer 16A/250V AC ",41.5,null,"F4PT-wg",58,30000072,4010312317396]
[4010312201046,22200055,"R12-200-24V DC","Schaltrelais 24V DC. 2 Schließer 16A/250V AC ",41.5,null,"MiniSafe2",315.10000000000002,30000075,4010312323939]
[4010312201305,22200930,"XR12-200-230V","Installationsschütz 230V. 2 Schließer 25A/250V AC ",45.5,null,"MiniSafe2-REG",425.3,30000076,4010312323946]
[4010312200568,22220030,"R12-220-230V","Schaltrelais 230V. 2 Schließer + 2 Öffner 16A/250V AC ",58.9,null,"WP2",410.3,30000077,4010312324608]
[4010312201473,22220930,"XR12-220-230V","Installationsschütz 230V. 2 Schließer + 2 Öffner 25A/250V AC ",62,null,"FMH2S-ws",63.2,30000080,4010312303368]
[4010312200605,22310030,"R12-310-230V","Schaltrelais 230V. 3 Schließer + 1 Öffner 16A/250V AC ",58.9,null,"FMH2S-rw",63.2,30000082,4010312303375]
[4010312201428,22310930,"XR12-310-230V","Installationsschütz 230V. 3 Schließer + 1 Öffner 25A/250V AC ",62,null,"FMH2S-sz",63.2,30000084,4010312303382]
[4010312200643,22400030,"R12-400-230V","Schaltrelais 230V. 4 Schließer 16A/250V AC ",58.9,null,"FMH2S-wg",63.2,30000085,4010312303399]
[4010312206553,22400501,"LRW12D-UC","Digital einstellbares Licht-Dämmerungs-Regen-Wind-Sensorrelais, 4 OptoMOS",81.400000000000006,null,"FMH2S-an",63.2,30000087,4010312303405]
[4010312205211,22400601,"MTR12-UC","Motor-Trennrelais, 2 + 2 Schließer 5A",74.2,null,"FMH4S-ws",66.5,30000090,4010312301371]
[4010312205310,22400602,"DCM12-UC","DC-Motorrelais, 2 Schließer 24V DC/90W",71.400000000000006,null,"FMH4S-rw",66.5,30000092,4010312301562]
[4010312201374,22400930,"XR12-400-230V","Installationsschütz 230V. 4 Schließer 25A/250V AC ",62,null,"FMH4S-sz",66.5,30000094,4010312301555]
[4010312205327,22500501,"MSR12-UC","Multifunktions-Sensorrelais, 5 OptoMOS",100.2,null,"FMH4S-wg",66.5,30000095,4010312301586]
[4010312603284,23001003,"MFZ12DBT-UC","Digital einstellbares Multifunktions-Zeitrelais mit Display und Bluetooth, 1 Wechsler 10A",101.1,null,"FMH4S-an",66.5,30000097,4010312301579]
[4010312603079,23001004,"MFZ12DDX-UC","Digital einstellbares Multifunktions-Zeitrelais, 1 Wechsler 10A",70.099999999999994,null,"IRT3",6,30000100,4010312328217]
[4010312603086,23001005,"MFZ12DX-UC","Analog einstellbares Multifunktions-Zeitrelais, 1 Wechsler 10A",69.8,null,"R-ws",4.9000000000000004,30000180,4010312902356]
[4010312601099,23001006,"MFZ12PMD-UC","Vollelektronisches Multifunktions-Zeitrelais, Power MOSFET bis 400W",88.1,null,"R-al",6,30000181,4010312902363]
[4010312603093,23001202,"RVZ12DX-UC","Analog einstellbares Zeitrelais mit Rückfallverzögerung, 1 Wechsler 10A",67.5,null,"R-rw",4.9000000000000004,30000182,4010312902370]
[4010312603109,23001302,"AVZ12DX-UC","Analog einstellbares Zeitrelais mit Ansprechverzögerung, 1 Wechsler 10A",68,null,"R-wg",4.9000000000000004,30000185,4010312902400]
[4010312603116,23001402,"TGI12DX-UC","Analog einstellbares Zeitrelais mit Taktgeber, 1 Wechsler 10A",67.599999999999994,null,"R-an",4.9000000000000004,30000187,4010312902424]
[4010312603123,23001702,"EAW12DX-UC","Analog einstellbares Zeitrelais mit Einschalt- und Ausschaltwischer, 1 Wechsler 10A",67.599999999999994,null,"FMT55/2-rw",54.8,30000192,4010312312469]
[4010312603215,23001802,"PTN12-230V","Prüftaster für Notleuchten mit Rückfall­verzögerung, 1 Wechsler 16A",64.5,null,"FMT55/2-wg",54.8,30000195,4010312312483]
[4010312603307,23002903,"S2U12DBT-UC","2-Kanal-Schaltuhr mit Display und Bluetooth",113.1,null,"FK Fensterkontakt",32.799999999999997,20000086,4010312903001]
[4010312602935,23100001,"MFZ12NP-230V+UC","Analog einstellbares Multifunktions-Zeitrelais, 1 Schließer 16A",62.5,null,"FHS8-wg",102.9,30000205,4010312300947]
[4010312603147,23100530,"MFZ12-230V","Analog einstellbares Multifunktions-Zeitrelais, 1 Schließer 10A",61.8,null,"FHS8B-wg",102.9,30000206,4010312328194]
[4010312602911,23100704,"NLZ12NP-230V+UC","Nachlaufschalter, 1 Schließer 16A",59.6,null,"FT4S-ws",62,30000220,4010312303191]
[4010312401712,23100800,"TLZ12D-plus","Digital einstellbarer Treppenlicht-Zeitschalter, 1 Schließer 16A",62.3,null,"FT4B-nw",62,30000221,4010312312902]
[4010312401460,23100831,"TLZ12G-230V+UC","Treppenlicht-Zeitschalter, geräuschloses Solid-State-Relais 400W",63.8,null,"FT4CH-w",62,30000222,4010312300978]
[4010312401613,23100832,"TLZ12-8plus","Treppenlicht-Zeitschalter, 1 Schließer 16A",57.6,null,"FT4CH-hg",62,30000223,4010312300985]
[4010312401620,23100836,"TLZ12-9","Treppenlicht-Zeitschalter, 1 Schließer 16A",57.7,null,"FT4CH-sz",62,30000224,4010312300992]
[4010312401637,23100934,"TLZ12-8","Treppenlicht-Zeitschalter, 1 Schließer 16A",44.9,null,"FT55R-weiß",62,30000225,4010312313985]
[4010312603178,23200302,"A2Z12-UC","Analog einstellbare 2-Stufen-Ansprechverzögerung, 1+1 Schließer 10A",79.8,null,"FT55R-alpinweiß",62,30000226,4010312313992]
[4010312603208,23200901,"S2U12DDX-UC","Digital einstellbare 2-Kanal-Schaltuhr, 1+1 Schließer 16A",88.7,null,"FT55EL-ws",62,30000227,4010312316658]
[4010312603277,23200902,"SU12DBT/1+1-UC","2-Kanal-Schaltuhr mit Display und Bluetooth",103.7,null,"FT4B-cr",62,30000229,4010312312995]
[4010312701065,24000899,"P3K12-230V","Phasenkontrolle",43.9,null,"FMH4-ws",66.5,30000230,4010312301029]
[4010312700358,24100900,"ST12-16A","Steckdose",20.9,null,"FMH4-rw",66.5,30000232,4010312301036]
[4010312501795,28016110,"WSZ110DSS-16A MID","Mobiler Wechselstromzähler, MID",106.3,null,"FMH4-sz",66.5,30000234,4010312301012]
[4010312501801,28016111,"WSZ110CEE-16A","Mobiler Wechselstromzähler, MID",107.4,null,"FMH4-wg ",66.5,30000235,4010312301067]
[4010312501832,28016112,"WSZ110DSS-16A+PRCD MID","Mobiler Wechselstromzähler mit Personenschutz-Zwischenschalter PRCD, MID",206.2,null,"FMH4-an",66.5,30000237,4010312301043]
[4010312501856,28016113,"WSZ110CEE-16A+PRCD MID","Mobiler Wechselstromzähler mit Personenschutz-Zwischenschalter PRCD, MID",202.4,null,"FT4B-na",62,30000240,4010312314180]
[4010312501863,28016128,"DSZ180CEE-16A MID","Mobiler Drehstromzähler, MID",213.7,null,"FT4BL-lw",62,30000241,4010312314197]
[4010312501627,28032015,"WSZ15D-32A MID","Wechselstromzähler, MID geeicht",67,null,"FT55RS-alpinweiß",62,30000243,4010312314210]
[4010312501825,28032128,"DSZ180CEE-32A MID","Mobiler Drehstromzähler, MID",225.5,null,"FT55ES-wg",62,30000244,4010312314227]
[4010312501252,28032410,"WZR12-32A","Wechselstromzähler mit Reset, ohne MID",74.5,null,"FT4BI-an",62,30000245,4010312319758]
[4010312500828,28032411,"EVA12-32A","Wechselstromzähler mit Energieverbrauchsanzeige",75.099999999999994,null,"FT4BI-ww",62,30000246,4010312319765]
[4010312501702,28032615,"WSZ15DE-32A","Wechselstromzähler, ohne MID",59,null,"FMT55/4-rw",57.2,30000262,4010312312544]
[4010312501900,28032715,"WSZ14DRS-32A","Wechselstromzähler, MID",75,null,"RS Regensensor",142.69999999999999,20000087,4010312206546]
[4010312501696,28065615,"WSZ15D-65A MID","Wechselstromzähler, MID",71.5,null,"FMT55/4-wg",57.2,30000265,4010312312568]
[4010312501641,28305015,"DSZ15WD-3x5A MID","Wandler-Drehstromzähler, MID",204.1,null,"FSM61-UC",66.2,30000300,4010312300152]
[4010312501665,28305515,"DSZ15WDM-3x5A MID","M-Bus-Wandler-Drehstromzähler, MID",243.7,null,"F4USM61B",72.2,30000301,4010312321386]
[4010312501450,28305712,"DSZ14WDRS-3x5A MID","RS485-Bus-Wandler-Drehstromzähler mit Display, MID",209.1,null,"FWS61-24V DC",79.599999999999994,30000305,4010312301937]
[4010312501733,28365715,"DSZ14DRS-3x80A MID","RS485-Bus-Drehstromzähler mit Display, MID",200.5,null,"FWZ12-65A",95.5,30000308,4010312311059]
[4010312501634,28380015,"DSZ15D-3x80A MID","Drehstromzähler, MID",157.6,null,"R2-ws",5.4,30000310,4010312903681]
[4010312501894,28380215,"DSZ15DZE-3x80A","Zweirichtungs-Drehstromzähler, ohne MID",180,null,"SNT12-230V/12VDC-1A",60.7,20000160,4010312301111]
[4010312501726,28380512,"DSZ15DM-3x80A MID","M-Bus-Drehstromzähler, MID",243.7,null,"R2-al",11.6,30000311,4010312903742]
[4010312328170,28380516,"DSZ15DZMOD-3x80A MID","Modbus-Zweirichtungs-Drehstromzähler, MID",243.7,null,"SNT12-230V/24VDC-0,5A",60.7,20000161,4010312301128]
[4010312501719,28380615,"DSZ15DE-3x80A","Drehstromzähler, ohne MID",116,null,"R2-rw",5.4,30000312,4010312903704]
[4010312501887,28465715,"DSZ14DRSZ-3x80A MID","RS485-Bus-Zweirichtungs-Drehstromzähler mit Display, MID",232.2,null,"R2-wg",5.4,30000315,4010312903728]
[4010312501870,28480315,"DSZ15DZ-3x80A MID","Zweirichtungs-Drehstromzähler, MID",210.9,null,"R2-an",5.4,30000317,4010312903711]
[4010312104187,29100011,"S09-12V","1-poliger elektromechanischer 16A-Stromstoßschalter",33.4,null,"R3-ws",5.6,30000320,4010312903766]
[4010312104200,29100030,"S09-230V","1-poliger elektromechanischer 16A-Stromstoßschalter",36.4,null,"R3-al",14.8,30000321,4010312903827]
[4010312323786,30000001,"OnWall-al","Universal-Wand-Dockingstation für Lightning-iPads, mit Ladefunktion, Alu natur",368.5,null,"R3-rw",5.6,30000322,4010312903780]
[4010312323793,30000002,"OnWall-sz","Universal-Wand-Dockingstation für Lightning-iPads, mit Ladefunktion, Alu schwarz eloxiert",368.5,null,"R3-wg",5.6,30000325,4010312903803]
[4010312323809,30000003,"InWall-10-sz","Unterputz-Wand-Dockingstation für iPads 10,2 Zoll mit Ladefunktion, Alu schwarz eloxiert mit schwarzer Glasblende",394.2,null,"R3-an",5.6,30000327,4010312903797]
[4010312323878,30000007,"Austausch-Set Lightning > USB-C","USB-C Kabel zum Austausch von Lightning auf USB-C für OnWall",115.7,null,"SO55",9.1,30000346,4010312908150]
[4010312909058,30000011,"UIB70","Universal-Installationsbox blau",12.8,null,"FRP61-230V",69.3,30000350,4010312300251]
[4010312909454,30000012,"UIB70-rw","Universal-Installationsbox reinweiß",11.4,null,"FRP70-230V",99.9,30000352,4010312306482]
[4010312907290,30000015,"FVST","Funk-Verschlüsselungsstecker",5.3,null,"FARP60-230V",84.5,30000353,4010312310137]
[4010312907030,30000016,"FTVW","Funktaster-Verschlüsselungswippe",2.1,null,"HP+BF",5.7,30000356,4010312909119]
[4010312907023,30000017,"SMW14","Steckbrücken-Montagewerkzeug",1.5,null,"FSSG-230V",101.9,30000358,4010312323885]
[4010312908860,30000018,"U2RP","Universal-2-fach-Rastplatte BR61+62+62-IP, grau",6,null,"FSRP-230V",84.3,30000359,4010312314999]
[4010312907702,30000020,"USB-Verlängerungskabel","USB-Verlängerungskabel",15.9,null,"FT-KF",9.1,30000360,4010312901809]
[4010312314937,30000021,"BPS-Ö Blister-Pack","Blisterpack Schalten",152,null,"P10 Probare",170.1,30000370,4010312317068]
[4010312314944,30000022,"BPD-Ö Blister-Pack","Blisterpack Dimmen",171.7,null,"R12-100-12V",31,22100011,4010312200421]
[4010312314968,30000023,"BPS-ES Blister-Pack","Blisterpack Schalten",152,null,"FGTZ-230V",88.9,30000379,4010312324462]
[4010312314951,30000024,"BPD-ES Blister-Pack","Blisterpack Dimmen ",171.7,null,"R12-100-24V",33.5,22100020,4010312200438]
[4010312907092,30000025,"RLC-Glied","Reichweiten-Verlängerung für FTS14TG ",6.6,null,"FIW-USB",99.2,30000387,4010312311158]
[4010312316351,30000026,"DAT71","Datenübertrager für die Baureihe 71",78.8,null,"FAM-USB",96.7,30000390,4010312312971]
[4010312324370,30000028,"NF2A","Netzfilter bis 2A, 230V/50Hz",38.1,null,"FPE-1",70,30000398,4010312315552]
[4010312907306,30000030,"WP50","WET.PROTECT 50ml",28.3,null,"FTKE-rw",64.2,30000400,4010312315231]
[4010312908990,30000031,"SV7x7x14","4-Kant-Verlängerung für Fenstergriff",14.1,null,"FTK-ag",85.9,30000407,4010312305164]
[4010312324134,30000032,"eTronic","Funk-Fensterkontakt im Falz auf/zu mit Batterie, schwarz",90.8,null,"R12-100-230V",31,22100030,4010312200445]
[4010312324127,30000033,"mTronic","Funk-Fenster-Multisensor im Falz mit Batterie, schwarz",126,null,"FKD-am",59.7,30000408,4010312324066]
[4010312317822,30000035,"BPB55 Blister-Pack","Blisterpack Beschattung",153.30000000000001,null,"FWS81",162.80000000000001,30000409,4010312316061]
[4010312317839,30000036,"BPD55 Blister-Pack","Blisterpack Dimmen",169.1,null,"BW3",3.9,30000412,4010312907641]
[4010312317846,30000037,"BPS55 Blister-Pack","Blisterpack Schalten",139.69999999999999,null,"FKS-SV",185.4,30000413,4010312319857]
[4010312303290,30000040,"FGM","Funkmodul",82,null,"FMH8-al/anso",107.4,30000419,4010312313282]
[4010312320075,30000041,"FAS260SA","Funk-Außensirene, weiß",130.5,null,"FKD-wg",59.7,30000420,4010312319475]
[4010312328033,30000043,"OnWall/C-al","Universal-Wand-Dockingstation für USB-C-iPads, mit Ladefunktion, Alu natur",399.6,null,"SNT12-230V/12VDC-2A",75.2,20000162,4010312301135]
[4010312328040,30000044,"OnWall/C-sz","Universal-Wand-Dockingstation für USB-C-iPads, mit Ladefunktion, Alu schwarz eloxiert",399.6,null,"SNT12-230V/24VDC-1A",75.2,20000163,4010312301142]
[4010312321249,30000048,"FRM60M10","Funk-Rohrmotor, Drehmoment 10Nm, Drehzahl 14/min, Flüstermodus 5/min",266.3,null,"FTK-wg",85.9,30000421,4010312321638]
[4010312321256,30000049,"FRM60M20","Funk-Rohrmotor, Drehmoment 20Nm, Drehzahl 14/min, Flüstermodus 5/min",304.3,null,"FFKB-wg",73.099999999999994,30000423,4010312321102]
[4010312311769,30000051,"FPP12","Funk-Powernet-Phasenkoppler",34,null,"FTKB-wg",73.400000000000006,30000424,4010312321621]
[4010312316955,30000052,"FUA12-230V","Funk-Universal-Aktor mit Antenne, 1 Wechsler 10A",121.8,null,"FFKB-am",73.099999999999994,30000425,4010312323663]
[4010312321027,30000054,"FRWB-rw","Funk-Rauchwarnmelder, reinweiß",158.4,null,"FTFB-am",77.400000000000006,30000429,4010312323670]
[4010312909034,30000055,"SWS55/W-an","Spritzwasserschutz für FT55 für Wippe, anthrazit",12.2,null,"FTR86B-ws",133.69999999999999,30000439,4010312318423]
[4010312321034,30000056,"FHMB-rw","Funk-Hitzemelder, reinweiß",166.8,null,"FFG7B-rw",76.599999999999994,30000443,4010312318638]
[4010312909065,30000057,"SWS55/DW-an","Spritzwasserschutz für FT55 für Doppelwippe, anthrazit",12.2,null,"FZT55-wg",61.7,30000447,4010312318768]
[4010312317396,30000072,"F4PT-wg","Funk-Profiltaster",58,null,"FFTE-rw",64.2,30000450,4010312319024]
[4010312323939,30000075,"MiniSafe2","Controller",315.10000000000002,null,"F1T80-wg",50.8,30000451,4010312324059]
[4010312323946,30000076,"MiniSafe2-REG","Controller zur Montage auf ­Tragschiene",425.3,null,"FTK-am",85.9,30000452,4010312321645]
[4010312324608,30000077,"WP2","wibutler pro (2. Gen.) Controller",410.3,null,"F1T80-am",50.8,30000453,4010312324257]
[4010312303368,30000080,"FMH2S-ws","Funk-Minihandsender weiß für Schlüssel­anhänger, lasergraviert 0 + I",63.2,null,"FMH8-ag",104.5,30000454,4010312321331]
[4010312303375,30000082,"FMH2S-rw","Funk-Minihandsender reinweiß für Schlüssel­anhänger, lasergraviert 0 + I",63.2,null,"FMH8-wg",104.5,30000455,4010312321348]
[4010312303382,30000084,"FMH2S-sz","Funk-Minihandsender schwarz für Schlüssel­anhänger, lasergraviert 0 + I",63.2,null,"FASM60-UC",74.5,30000456,4010312311998]
[4010312303399,30000085,"FMH2S-wg","Funk-Minihandsender reinweiß glänzend für Schlüssel­anhänger, lasergraviert 0 + I",63.2,null,"FSM60B",76.900000000000006,30000459,4010312316092]
[4010312303405,30000087,"FMH2S-an","Funk-Minihandsender anthrazit für Schlüssel­anhänger, lasergraviert 0 + I",63.2,null,"FFG7B-al",81.5,30000460,4010312322031]
[4010312301371,30000090,"FMH4S-ws","Funk-Minihandsender weiß für Schlüssel­anhänger, lasergraviert 1+2+3+4",66.5,null,"FFT60SB",84.7,30000461,4010312320945]
[4010312301562,30000092,"FMH4S-rw","Funk-Minihandsender reinweiß für Schlüssel­anhänger, lasergraviert 1+2+3+4",66.5,null,"FHD60SB-wg",83.7,30000462,4010312320952]
[4010312301555,30000094,"FMH4S-sz","Funk-Minihandsender schwarz für Schlüssel­anhänger, lasergraviert 1+2+3+4",66.5,null,"FWS60",33.1,30000463,4010312316108]
[4010312301586,30000095,"FMH4S-wg","Funk-Minihandsender reinweiß glänzend für Schlüssel­anhänger, lasergraviert 1+2+3+4",66.5,null,"FMH1W-wg/rot",66.7,30000465,4010312323847]
[4010312301579,30000097,"FMH4S-an","Funk-Minihandsender anthrazit für Schlüssel­anhänger, lasergraviert 1+2+3+4",66.5,null,"FABH130/230V-rw",149.19999999999999,30000466,4010312317617]
[4010312328217,30000100,"IRT3","Infrarot-Transmitter mit 3m langem Kabel und Klinkenstecker 3,5mm",6,null,"SNT12U-230V/3,3-12VDC-1A",45.8,20000164,4010312401798]
[4010312902356,30000180,"R-ws","1-fach-Rahmen für Funktaster, weiß",4.9000000000000004,null,"FMH1W-anso",62.7,30000467,4010312322178]
[4010312902363,30000181,"R-al","1-fach-Rahmen für Funktaster, alu lackiert",6,null,"FFG7B-am",81.5,30000468,4010312322291]
[4010312902370,30000182,"R-rw","1-fach-Rahmen für Funktaster, reinweiß",4.9000000000000004,null,"FFGB-hg",192.1,30000473,4010312322246]
[4010312902400,30000185,"R-wg","1-fach-Rahmen für Funktaster, reinweiß glänzend",4.9000000000000004,null,"FTKB-am",73.400000000000006,30000474,4010312322352]
[4010312902424,30000187,"R-an","1-fach-Rahmen für Funktaster, anthrazit",4.9000000000000004,null,"FTFSB-am",83.9,30000475,4010312322406]
[4010312312469,30000192,"FMT55/2-rw","Funk-Minitaster batterie- und leitungslos, mit Wippe, reinweiß",54.8,null,"FTFSB-pg",81.5,30000508,4010312325636]
[4010312312483,30000195,"FMT55/2-wg","Funk-Minitaster batterie- und leitungslos, mit Wippe, reinweiß glänzend",54.8,null,"FTFB-pg",75.099999999999994,30000525,4010312325643]
[4010312300947,30000205,"FHS8-wg","Funk-Handsender reinweiß glänzend mit 2 Doppelwippen",99.9,null,"WNT12U/3,3-12VDC",60,20000165,4010312401804]
[4010312328194,30000206,"FHS8B-wg","Funk-Handsender reinweiß glänzend mit 2 Doppelwippen und Batterie",99.9,null,"WNT15U/3,3-12VDC",60,20000175,4010312401859]
[4010312303191,30000220,"FT4S-ws","Funk-2- oder 4-Kanal-Taster Schweden, ohne Rahmen, eljo-weiß",62,null,"FTFB-pm",77.400000000000006,30000527,4010312325650]
[4010312312902,30000221,"FT4B-nw","Funk-2- oder 4-Kanal-Taster 45x45mm Belgien, ohne Rahmen, niko-weiß, batterie- und leitungslos",62,null,"FTFSB-pm",83.9,30000528,4010312325667]
[4010312300978,30000222,"FT4CH-w","Funktaster batterie- und leitungslos, ohne Rahmen, weiß",62,null,"FRP62-230V",63.7,30000534,4010312320310]
[4010312300985,30000223,"FT4CH-hg","Funktaster batterie- und leitungslos, ohne Rahmen, hellgrau",62,null,"FA250",31.7,30000550,4010312300244]
[4010312300992,30000224,"FT4CH-sz","Funktaster batterie- und leitungslos, ohne Rahmen, schwarz",62,null,"FA200",81,30000551,4010312303306]
[4010312313985,30000225,"FT55R-weiß","Funktaster, weiß",62,null,"FAV5",41.5,30000552,4010312302897]
[4010312313992,30000226,"FT55R-alpinweiß","Funktaster, alpinweiß",62,null,"FA250-gw",31.7,30000553,4010312317051]
[4010312316658,30000227,"FT55EL-ws","Funk-2- oder 4-Kanal-Taster Finnland, ohne Rahmen, elko-weiß",62,null,"FAV10",52,30000554,4010312302903]
[4010312312995,30000229,"FT4B-cr","Funk-2- oder 4-Kanal-Taster 45x45mm Belgien, ohne Rahmen, niko-creme, batterie- und leitungslos",62,null,"FHM175",91.8,30000555,4010312313121]
[4010312301029,30000230,"FMH4-ws","Funk-Minihandsender weiß, lasergraviert 1+2+3+4",66.5,null,"FTFB-wg",77.400000000000006,30000559,4010312319147]
[4010312301036,30000232,"FMH4-rw","Funk-Minihandsender reinweiß, lasergraviert 1+2+3+4",66.5,null,"FMS55SB",115.4,30000561,4010312320259]
[4010312301012,30000234,"FMH4-sz","Funk-Minihandsender schwarz, lasergraviert 1+2+3+4",66.5,null,"FMMS44SB",113.8,30000562,4010312321676]
[4010312301067,30000235,"FMH4-wg ","Funk-Minihandsender reinweiß glänzend, lasergraviert 1+2+3+4",66.5,null,"FTFSB-wg",83.9,30000563,4010312320853]
[4010312301043,30000237,"FMH4-an","Funk-Minihandsender anthrazit, lasergraviert 1+2+3+4",66.5,null,"FT55-ws",55.4,30000590,4010312308936]
[4010312314180,30000240,"FT4B-na","Funk-2- oder 4-Kanal-Taster 45x45mm Belgien, ohne Rahmen, niko-anthrazit, batterie- und leitungslos",62,null,"FT55-al",65.900000000000006,30000591,4010312305829]
[4010312314197,30000241,"FT4BL-lw","Funk-2- oder 4-Kanal-Taster 45x45mm Belgien, ohne Rahmen, legrand-weiß, batterie- und leitungslos",62,null,"FT55-rw",55.4,30000592,4010312305775]
[4010312314210,30000243,"FT55RS-alpinweiß","Funk-2- oder 4-Kanal-Taster Schweden, ohne Rahmen, jussi-weiß",62,null,"FT55-sz",55.4,30000594,4010312305782]
[4010312314227,30000244,"FT55ES-wg","Funk-2- oder 4-Kanal-Taster Schweden, ohne Rahmen, exxact-weiß",62,null,"FT55-wg",55.4,30000595,4010312305799]
[4010312319758,30000245,"FT4BI-an","Funk-2- oder 4-Kanal-Taster 43 x 43 mm, ohne Rahmen, bticino-anthrazit, batterie- und leitungslos",62,null,"FT55H-wg",66.3,30000596,4010312321706]
[4010312319765,30000246,"FT4BI-ww","Funk-2- oder 4-Kanal-Taster 43x43mm, ohne Rahmen, bticino-w.weiss, batterie- und leitungslos",62,null,"FT55-an",55.4,30000597,4010312305805]
[4010312312544,30000262,"FMT55/4-rw","Funk-Minitaster batterie- und leitungslos, mit Doppelwippe, reinweiß",57.2,null,"FS55-wg",55.4,30000598,4010312324417]
[4010312312568,30000265,"FMT55/4-wg","Funk-Minitaster batterie- und leitungslos, mit Doppelwippe, reinweiß glänzend",57.2,null,"FS55E-wg",53.9,30000601,4010312324424]
[4010312300152,30000300,"FSM61-UC","Funk-2-fach-Sendemodul",66.2,null,"FS55E-am",53.9,30000602,4010312324431]
[4010312321386,30000301,"F4USM61B","Funk-4-fach-Universal-Sendemodul",72.2,null,"FSMTB",71.099999999999994,30000604,4010312327654]
[4010312301937,30000305,"FWS61-24V DC","Funk-Wetterdaten-Sendemodul für Wetterdaten-Multisensors WMS",79.599999999999994,null,"WT55-ws",12.8,30000620,4010312317495]
[4010312311059,30000308,"FWZ12-65A","Funk-Wechselstromzähler",95.5,null,"WT55-rw",12.8,30000622,4010312317501]
[4010312903681,30000310,"R2-ws","2-fach-Rahmen für Funktaster,weiß",5.4,null,"WT55-wg",12.8,30000625,4010312317518]
[4010312903742,30000311,"R2-al","2-fach-Rahmen für Funktaster, alu lackiert",11.6,null,"WT55-an",12.8,30000627,4010312317532]
[4010312903704,30000312,"R2-rw","2-fach-Rahmen für Funktaster, reinweiß",5.4,null,"WS55-ws",12.1,30000630,4010312317440]
[4010312903728,30000315,"R2-wg","2-fach-Rahmen für Funktaster, reinweiß glänzend",5.4,null,"WS55-rw",12.1,30000632,4010312317464]
[4010312903711,30000317,"R2-an","2-fach-Rahmen für Funktaster, anthrazit",5.4,null,"WS55-wg",12.1,30000635,4010312317433]
[4010312903766,30000320,"R3-ws","3-fach-Rahmen für Funktaster,weiß",5.6,null,"WS55-an",12.1,30000637,4010312317488]
[4010312903827,30000321,"R3-al","3-fach-Rahmen für Funktaster, alu lackiert",14.8,null,"BLA55-ws",4.4000000000000004,30000640,4010312905869]
[4010312903780,30000322,"R3-rw","3-fach-Rahmen für Funktaster, reinweiß",5.6,null,"BLA55-rw",4.4000000000000004,30000642,4010312905883]
[4010312903803,30000325,"R3-wg","3-fach-Rahmen für Funktaster, reinweiß glänzend",5.6,null,"BLA55-wg",4.4000000000000004,30000645,4010312905913]
[4010312903797,30000327,"R3-an","3-fach-Rahmen für Funktaster, anthrazit",5.6,null,"DSS+SDO55-ws",9.6,30000650,4010312310830]
[4010312908150,30000346,"SO55","Tischsockel, reinweiß",9.1,null,"DSS+SDO55-rw",9.6,30000652,4010312310854]
[4010312300251,30000350,"FRP61-230V"," 1- und 2-Level-Funkrepeater",69.3,null,"DSS+SDO55-wg",9.6,30000655,4010312310885]
[4010312306482,30000352,"FRP70-230V","1- und 2-Level-Funkrepeater",99.9,null,"DSS+SDO55-an",9.1999999999999993,30000657,4010312310908]
[4010312310137,30000353,"FARP60-230V","1- und 2-Level-Außen-Funkrepeater",84.5,null,"ASSU-BT/230V",101.8,30000660,4010312328187]
[4010312909119,30000356,"HP+BF","Halteplatte mit Befestigungsrahmen",5.7,null,"FT4F-rw",55.4,30000702,4010312302941]
[4010312323885,30000358,"FSSG-230V","Funk-Steckdosen-Signalgeber",101.9,null,"FT4F-wg",55.4,30000705,4010312302972]
[4010312314999,30000359,"FSRP-230V","1- und 2- Level-Funk-Steckdosen-Repeater",84.3,null,"FT4F-pg",59.8,30000706,4010312327593]
[4010312901809,30000360,"FT-KF","Klebefolien",9.1,null,"FT4F-am",68.3,30000708,4010312324455]
[4010312317068,30000370,"P10 Probare","Funk-Pegelmesser Probare",170.1,null,"FT4F-pm",59.8,30000709,4010312327609]
[4010312324462,30000379,"FGTZ-230V","Funk-Garagentor-Zwischenstecker, potenzialfreier Schaltkontaktausgang maximal 30V/1A",88.9,null,"FAC55D/230V-wg",104,30000727,4010312319710]
[4010312311158,30000387,"FIW-USB","Funk-Infrarotwandler mit USB-Stecker",99.2,null,"FMH2-ws",63.2,30000750,4010312303450]
[4010312312971,30000390,"FAM-USB","Funk-Antennenmodul",96.7,null,"FMH2-rw",63.2,30000752,4010312303467]
[4010312319130,30000397,"EAP165","IP-Gateway für Safe und Touch mit GFVS",386.6,null,"R12-100-12V DC",33.5,22100054,4010312200995]
[4010312315552,30000398,"FPE-1","Funk-Positionsschalter, blau, batterie- und leitungslos",70,null,"FMH2-sz",63.2,30000754,4010312303474]
[4010312315231,30000400,"FTKE-rw","Funk-Fenster-Türkontakt, reinweiß",64.2,null,"FMH2-wg",63.2,30000755,4010312303481]
[4010312305164,30000407,"FTK-ag","Funk-Fenster-Türkontakt, anthrazit glänzend",85.9,null,"FMH2-an",63.2,30000757,4010312303498]
[4010312324066,30000408,"FKD-am","Funk-Klingeldrücker batterie- und leitungslos, anthrazit matt",59.7,null,"FF8-al/anso",121.3,30000769,4010312303931]
[4010312316061,30000409,"FWS81","Funk-Wassersensor, weiß",162.80000000000001,null,"FHS4-al/anso",69,30000770,4010312320297]
[4010312907641,30000412,"BW3","Befestigungswinkel für FTKE mit Schrauben und Muttern, reinweiß",3.9,null,"FHS2-al/anso",66.2,30000771,4010312320303]
[4010312319857,30000413,"FKS-SV","Klein-Stellantrieb",185.4,null,"FFD-al/anso",132.69999999999999,30000773,4010312313541]
[4010312313282,30000419,"FMH8-al/anso","Funk-Minihandsender, Oberseite alu lackiert, Unterseite und Tasten Anthrazit-Soft-Lackierung, lasergraviert 1+2+3+4+5+6+7+8",107.4,null,"HDR-30-5",56,30000940,4010312318874]
[4010312319475,30000420,"FKD-wg","Funk-Klingeldrücker batterie- und leitungslos, reinweiß glänzend",59.7,null,"KNX ENO 626",323.89999999999998,30000944,4010312318911]
[4010312321638,30000421,"FTK-wg","Funk-Fenster-Türkontakt, reinweiß glänzend",85.9,null,"KNX ENO 636",481.2,30000948,4010312318904]
[4010312321102,30000423,"FFKB-wg","Funk-Fenster-Türkontakt, reinweiß glänzend",73.099999999999994,null,"W-FT4F-",8,30000951,4010312906262]
[4010312321621,30000424,"FTKB-wg","Funk-Fenster-Türkontakt mit Solarzelle und Batterie, ­reinweiß glänzend",73.400000000000006,null,"DW-FT4F-",8.8000000000000007,30000952,4010312906279]
[4010312323663,30000425,"FFKB-am","Funk-Fenster-Türkontakt, anthrazit matt",73.099999999999994,null,"W-FT55-",8,30000953,4010312906286]
[4010312323670,30000429,"FTFB-am","Funk-Temperatur-Feuchtesensor, anthrazit matt",77.400000000000006,null,"DW-FT55-",8.8000000000000007,30000954,4010312906293]
[4010312318423,30000439,"FTR86B-ws","Funk-Temperaturregler mit Display, weiß",166.5,null,"R12-100-24V DC",33.5,22100055,4010312201008]
[4010312318638,30000443,"FFG7B-rw","Funk-Fenstergriffsensor, reinweiß",76.599999999999994,null,"W-FMT55/2-",8,30000957,4010312906323]
[4010312318768,30000447,"FZT55-wg","Funktaster 55x55mm batterie- und leitungslos, reinweiß glänzend",61.7,null,"FR12-230V",82.8,22100231,4010312203255]
[4010312319024,30000450,"FFTE-rw","Funk-Fenster-Tastkontakt, reinweiß",64.2,null,"DW-FMT55/4-",8.8000000000000007,30000958,4010312906330]
[4010312324059,30000451,"F1T80-wg","Funk-1-Kanal-Taster batterie- und leitungslos, reinweiß glänzend",50.8,null,"W-FT4CH-",8,30000959,4010312906347]
[4010312321645,30000452,"FTK-am","Funk-Fenster-Türkontakt, anthrazit matt",85.9,null,"W-FHS/FMH2-",8,30000960,4010312906354]
[4010312324257,30000453,"F1T80-am","Funk-1-Kanal-Taster batterie- und leitungslos, anthrazit matt",50.8,null,"DW-FMH4-",8.8000000000000007,30000961,4010312906361]
[4010312321331,30000454,"FMH8-ag","Funk-Minihandsender anthrazit glänzend, lasergraviert 1+2+3+4+5+6+7+8",104.5,null,"DW-FF8-anthrazit softlackiert",8.8000000000000007,30000962,4010312906378]
[4010312321348,30000455,"FMH8-wg","Funk-Minihandsender reinweiß glänzend, lasergraviert 1+2+3+4+5+6+7+8",104.5,null,"DW-FT4CH-",8.8000000000000007,30000963,4010312906385]
[4010312311998,30000456,"FASM60-UC","Außen-Sendemodul 2 Kanäle",74.5,null,"DW-FT4B-",8.8000000000000007,30000964,4010312906392]
[4010312316092,30000459,"FSM60B","Funk-Sendemodul mit Batterie reinweiß",76.900000000000006,null,"W-FT4B-",8,30000965,4010312906408]
[4010312322031,30000460,"FFG7B-al","Funk-Fenstergriffsensor, alu lackiert",76.599999999999994,null,"W-FT55R-",8,30000967,4010312907047]
[4010312320945,30000461,"FFT60SB","Funk-Feuchte-Temperatursensor, reinweiß",84.7,null,"DW-FT55R-",8.8000000000000007,30000968,4010312907061]
[4010312320952,30000462,"FHD60SB-wg","Funk-Helligkeits-Dämmerungs-Sensor, reinweiß",83.7,null,"DW-FT55ES-",8.8000000000000007,30000969,4010312907085]
[4010312316108,30000463,"FWS60","Wassersensor zu FSM60B reinweiß",33.1,null,"AIR",111.1,30000970,4010312316153]
[4010312323847,30000465,"FMH1W-wg/rot","Funk-Minihandsender mit Trageband grau für Rufsysteme, Gehäuse reinweiß glänzend, Taste rot",66.7,null,"W-B4T55-@",8,30000971,4010312907573]
[4010312317617,30000466,"FABH130/230V-rw","Funk-Außen-Bewegungs-Helligkeitssensor, reinweiß",149.19999999999999,null,"DW-B4T55-@          ",8.8000000000000007,30000972,4010312907580]
[4010312322178,30000467,"FMH1W-anso","Funk-Minihandsender, wasserdicht, Anthrazit-Soft-Lackierung",62.7,null,"W-WT/WS55-",8,30000975,4010312908112]
[4010312322291,30000468,"FFG7B-am","Funk-Fenstergriffsensor, anthrazit matt",76.599999999999994,null,"DW-FT55EL-",8.8000000000000007,30000976,4010312908198]
[4010312322246,30000473,"FFGB-hg","Funk-Fenster+Glasbruch-Sensor, hellgrau",192.1,null,"LGI",12.2,30000980,4010312908310]
[4010312322352,30000474,"FTKB-am","Funk-Fenster-Türkontakt mit Solarzelle und Batterie, ­anthrazit matt",73.400000000000006,null,"W-FT55-wg+2P",8,30000981,4010312908624]
[4010312322406,30000475,"FTFSB-am","Funk-Temperatur-Feuchtesensor, anthrazit matt",83.9,null,"W-FT55-rw+2P",8,30000982,4010312908631]
[4010312325636,30000508,"FTFSB-pg","Funk-Temperatur-Feuchtesensor, polarweiß glänzend",81.5,null,"SBR12-230V/240µF",49.5,22100430,4010312205457]
[4010312325643,30000525,"FTFB-pg","Funk-Temperatur-Feuchtesensor, polarweiß glänzend",75.099999999999994,null,"MFSR12DX-230V",104.1,22100530,4010312206836]
[4010312325650,30000527,"FTFB-pm","Funk-Temperatur-Feuchtesensor, polarweiß matt",77.400000000000006,null,"KR09-12V UC",44.6,22100705,4010312203415]
[4010312325667,30000528,"FTFSB-pm","Funk-Temperatur-Feuchtesensor, polarweiß matt",83.9,null,"KR09-24V UC",41.1,22100706,4010312203385]
[4010312320310,30000534,"FRP62-230V","1- und 2-Level-Funk-Repeater",63.7,null,"W-FT55-wg+IO",8,30000983,4010312908648]
[4010312300244,30000550,"FA250","Funkantenne 250cm Kabel, schwarz",31.7,null,"W-FT55-rw+IO",8,30000984,4010312908655]
[4010312303306,30000551,"FA200","Hochleistungs-Empfangsantenne mit 200cm Kabel",81,null,"DW-FT55-wg+2P",8.8000000000000007,30000985,4010312908662]
[4010312302897,30000552,"FAV5","Antennen-Verlängerung 5m",41.5,null,"DW-FT55-rw+2P",8.8000000000000007,30000986,4010312908679]
[4010312317051,30000553,"FA250-gw","Funkantenne 250cm Kabel, grauweiß",31.7,null,"DW-FT55-wg+IO",8.8000000000000007,30000987,4010312908686]
[4010312302903,30000554,"FAV10","Antennen-Verlängerung 10m",52,null,"DW-FT55-rw+IO",8.8000000000000007,30000988,4010312908693]
[4010312313121,30000555,"FHM175","HF-Masse für FA250, pulverbeschichtet (ähnlich RAL 9006) Weißaluminium",91.8,null,"BPS55-L62 Blister-Pack",119.7,30001065,4010312323991]
[4010312321065,30000558,"FTR55SB-wg"," Funk-Temperatur-Regler mit Handrad, 2 Solarzellen und Batterie, reinweiß glänzend",95.1,null,"KR09-230V",41.1,22100730,4010312203378]
[4010312319147,30000559,"FTFB-wg","Funk-Temperatur-Feuchtesensor, reinweiß glänzend",77.400000000000006,null,"BPD55-D62 Blister-Pack",136.80000000000001,30001066,4010312324271]
[4010312320259,30000561,"FMS55SB","Funk-Multisensor T+H+E+M, mit Solarzelle und Batterie, reinweiß glänzend",115.4,null,"BPB55-J62 Blister-Pack",122,30001067,4010312324295]
[4010312321676,30000562,"FMMS44SB","Funk-Mini-Multisensor 44x44mm mit Solarzelle und Batterie, reinweiß glänzend",113.8,null,"KRW12DX-UC",55,22100800,4010312206683]
[4010312320853,30000563,"FTFSB-wg","Funk-Temperatur-Feuchtesensor, reinweiß glänzend",83.9,null,"ES12DX-UC",56.9,21100002,4010312107959]
[4010312324363,30000570,"FAC55D/230V-am","Funk-Alarm-Controller 55x55mm mit Display, anthrazit matt",110.8,null,"XR12-100-230V",37.200000000000003,22100930,4010312201206]
[4010312325827,30000573,"FAC55D/230V-pg","Funk-Alarm-Controller 55x55mm mit Display, polarweiß glänzend",110.8,null,"ER12-110-UC",57.1,22110002,4010312205440]
[4010312325834,30000574,"FAC55D/230V-pm","Funk-Alarm-Controller 55x55mm mit Display, polarweiß matt",110.8,null,"R12-110-8V",41.5,22110010,4010312200452]
[4010312308936,30000590,"FT55-ws","Funktaster 55 x 55 mm batterie- und leitungslos, weiß",55.4,null,"FT4CH+2P-w",68.900000000000006,30001222,4010312312001]
[4010312305829,30000591,"FT55-al","Funktaster 55 x 55 mm ­batterie- und leitungslos, alu lackiert",65.900000000000006,null,"FAM14",123.4,30014000,4010312313695]
[4010312305775,30000592,"FT55-rw","Funktaster 55 x 55 mm ­batterie- und leitungslos, reinweiß",55.4,null,"FSR14-4x",65.400000000000006,30014001,4010312313701]
[4010312305782,30000594,"FT55-sz","Funktaster 55x55mm batterie- und leitungslos, schwarz",55.4,null,"S12-100-8V",33.5,21100010,4010312100448]
[4010312305799,30000595,"FT55-wg","Funktaster 55 x 55 mm batterie- und leitungslos, reinweiß glänzend",55.4,null,"FSR14-2x",65.400000000000006,30014002,4010312313718]
[4010312321706,30000596,"FT55H-wg","Friends of Hue-Funktaster, reinweiß glänzend",66.3,null,"FMS14",57.5,30014003,4010312313725]
[4010312305805,30000597,"FT55-an","Funktaster 55 x 55 mm ­batterie- und leitungslos, anthrazit",55.4,null,"FSB14",64.900000000000006,30014004,4010312313732]
[4010312324417,30000598,"FS55-wg","Funkschalter 55x55mm batterie- und leitungslos, reinweiß glänzend",55.4,null,"R12-110-12V",39.4,22110011,4010312200469]
[4010312324424,30000601,"FS55E-wg","Funkschalter batterie- und leitungslos, reinweiß glänzend",53.9,null,"FUD14",74.5,30014005,4010312313749]
[4010312324431,30000602,"FS55E-am","Funkschalter batterie- und leitungslos, anthrazit matt",53.9,null,"FUD14/800W",100.3,30014006,4010312313756]
[4010312327654,30000604,"FSMTB","Funk-Sendemodul für Schlüssel- und Industrietaster mit Batterie",71.099999999999994,null,"FLUD14",68,30014007,4010312313763]
[4010312317495,30000620,"WT55-ws","Wipptaster 55x55mm, weiß",12.8,null,"R12-110-24V",41.5,22110020,4010312200476]
[4010312317501,30000622,"WT55-rw","Wipptaster 55 x 55 mm, reinweiß",12.8,null,"FSG14/1-10V",69.900000000000006,30014008,4010312313770]
[4010312317518,30000625,"WT55-wg","Wipptaster 55 x 55 mm, reinweiß glänzend",12.8,null,"FMZ14",55.4,30014009,4010312313787]
[4010312317532,30000627,"WT55-an","Wipptaster 55x55mm, anthrazit",12.8,null,"R12-110-230V",39.4,22110030,4010312200483]
[4010312317440,30000630,"WS55-ws","Wippschalter 55x55mm, weiß",12.1,null,"R12-110-12V DC",41.5,22110054,4010312201015]
[4010312317464,30000632,"WS55-rw","Wippschalter 55 x 55 mm, reinweiß",12.1,null,"F4HK14",62.9,30014010,4010312314982]
[4010312317433,30000635,"WS55-wg","Wippschalter 55 x 55 mm, reinweiß glänzend",12.1,null,"FTN14",58.4,30014011,4010312313794]
[4010312317488,30000637,"WS55-an","Wippschalter 55x55mm, anthrazit",12.1,null,"R12-110-24V DC",41.5,22110055,4010312201022]
[4010312905869,30000640,"BLA55-ws","Blindabdeckung für R, R2 und R3, weiß",4.4000000000000004,null,"XR12-110-230V",45.5,22110930,4010312201251]
[4010312905883,30000642,"BLA55-rw","Blindabdeckung für R, R2 und R3, reinweiß",4.4000000000000004,null,"FHK14",58.1,30014014,4010312313824]
[4010312905913,30000645,"BLA55-wg","Blindabdeckung für R, R2 und R3, reinweiß glänzend",4.4000000000000004,null,"FSU14",64,30014015,4010312313831]
[4010312310830,30000650,"DSS+SDO55-ws","DSS mit Steckdosen-Oberteil, weiß",9.6,null,"FEM",95.4,30014016,4010312313848]
[4010312310854,30000652,"DSS+SDO55-rw","DSS mit Steckdosen-Oberteil, reinweiß",9.6,null,"FGW14",68.5,30014017,4010312313855]
[4010312310885,30000655,"DSS+SDO55-wg","DSS mit Steckdosen-Oberteil, reinweiß glänzend",9.6,null,"FBA14",33.4,30014018,4010312313862]
[4010312310908,30000657,"DSS+SDO55-an","DSS mit Steckdosen-Oberteil, anthrazit",9.6,null,"FRP14",90.8,30014019,4010312313879]
[4010312328187,30000660,"ASSU-BT/230V","Außen-Steckdosen-Schaltuhr mit Bluetooth, 1 Schließer 16A",101.8,null,"S12-100-12V",31,21100011,4010312100455]
[4010312302941,30000702,"FT4F-rw","Flächen-Funktaster batterie- und ­leitungslos, reinweiß",55.4,null,"FSR14SSR",66,30014020,4010312313893]
[4010312302965,30000704,"FT4F-sz","Flächen-Funktaster batterie- und ­leitungslos, schwarz",55.4,null,"S12-100-24V",33.5,21100020,4010312100462]
[4010312302972,30000705,"FT4F-wg","Flächen-Funktaster batterie- und ­leitungslos, reinweiß glänzend",55.4,null,"SAS-6TE",15.3,30014024,4010312314050]
[4010312327593,30000706,"FT4F-pg","Funk-Flächentaster polarweiß glänzend, batterie- und leitungslos, mit Flächenwippe und Flächen-Doppelwippe",59.8,null,"FMSR14",64,30014028,4010312314111]
[4010312324455,30000708,"FT4F-am","Funk-Flächentaster anthrazit matt, batterie- und leitungslos, mit Flächenwippe und Flächen-Doppelwippe",68.3,null,"ER12-200-UC",57.1,22200002,4010312205433]
[4010312327609,30000709,"FT4F-pm","Flächen-Funktaster batterie- und ­leitungslos, polarweiß matt",59.8,null,"R12-200-8V",41.5,22200010,4010312200490]
[4010312319710,30000727,"FAC55D/230V-wg","Funk-Alarm-Controller 55x55mm mit Display, reinweiß glänzend",104,null,"FAE14SSR",67.900000000000006,30014029,4010312314173]
[4010312303450,30000750,"FMH2-ws","Funk-Minihandsender weiß, lasergraviert 0 + I",63.2,null,"FAE14LPR",59.6,30014030,4010312314234]
[4010312303467,30000752,"FMH2-rw","Funk-Minihandsender reinweiß, lasergraviert 0 + I",63.2,null,"SNT14-24V/12W",49.1,30014031,4010312314395]
[4010312303474,30000754,"FMH2-sz","Funk-Minihandsender schwarz, lasergraviert 0 + I",63.2,null,"SNT14-24V/24W",56.4,30014032,4010312314401]
[4010312303481,30000755,"FMH2-wg","Funk-Minihandsender reinweiß glänzend, lasergraviert 0 + I",63.2,null,"SNT14-24V/48W",84.4,30014033,4010312314418]
[4010312303498,30000757,"FMH2-an","Funk-Minihandsender anthrazit, lasergraviert 0 + I",63.2,null,"TSA02NC-230V",40.1,30014034,4010312314425]
[4010312303931,30000769,"FF8-al/anso","Funk-Fernbedienung mit 2 Doppelwippen, Oberseite alu lackiert, Unterseite und Wippen Anthrazit-Soft-Lackierung",121.3,null,"TSA02NC-24V",40.1,30014035,4010312314432]
[4010312320297,30000770,"FHS4-al/anso","Funk-Handsender batterie- und leitungslos mit Doppelwippe, alu/anthrazit-soft",69,null,"STS14",14.2,30014038,4010312314975]
[4010312320303,30000771,"FHS2-al/anso","Funk-Handsender batterie- und leitungslos mit Wippe, alu/anthrazit-soft",66.2,null,"FSR14M-2x",95.5,30014039,4010312327692]
[4010312313541,30000773,"FFD-al/anso","Funk-Fernbedienung mit Display und Akku. Oberseite alu lackiert, Unterseite Anthrazit-Soft-Lackierung. Mit Wandhalter und Ladegerät.",132.69999999999999,null,"FGW14W-IP",92.4,30014041,4010312327876]
[4010312318874,30000940,"HDR-30-5","MeanWell Schaltnetzteil 5V/15W für MiniSafe REG",56,null,"BGW14",64.900000000000006,30014046,4010312319062]
[4010312318911,30000944,"KNX ENO 626","UP-EnOcean-KNX-Gateway",323.89999999999998,null,"DL-1CH-16A-DC12+",146.5,33000016,4010312321522]
[4010312328439,30000945,"KNX RTU 886","Modbus-Gateway",266,null,"S12-100-230V",31,21100030,4010312100479]
[4010312318904,30000948,"KNX ENO 636","AP-EnOcean-KNX-Gateway",481.2,null,"FSM14-UC ",75.2,30014048,4010312316078]
[4010312906262,30000951,"W-FT4F-","Wippe für Flächen-Funktaster 63x63mm",8,null,"FGW14-USB",64.900000000000006,30014049,4010312316054]
[4010312906279,30000952,"DW-FT4F-","Doppelwippe lasergraviert für Flächen-Funktaster 63x63mm",8.8000000000000007,null,"FWZ14-65A",82.1,30014050,4010312501511]
[4010312906286,30000953,"W-FT55-","Wippe für Funktaster 55x55mm",8,null,"FGW14WL-IP",106.5,30014051,4010312327623]
[4010312906293,30000954,"DW-FT55-","Doppelwippe lasergraviert für Funktaster 55x55mm",8.8000000000000007,null,"BBV14",24.3,30014053,4010312315248]
[4010312906323,30000957,"W-FMT55/2-","Wippe für Funk-Minitaster",8,null,"F3Z14D",60.9,30014055,4010312501528]
[4010312906330,30000958,"DW-FMT55/4-","Doppelwippe für Funk-Minitaster",8.8000000000000007,null,"FTD14",92.6,30014057,4010312315705]
[4010312906347,30000959,"W-FT4CH-","Wippe für Funktaster 60x60mm, Schweizer Design",8,null,"BBV14/100",25.5,30014058,4010312324660]
[4010312906354,30000960,"W-FHS/FMH2-","Wippe für Fernbedienungen und Handsender",8,null,"FTS14EM",68.900000000000006,30014060,4010312315071]
[4010312906361,30000961,"DW-FMH4-","Doppelwippe für Fernbedienungen und Handsender",8.8000000000000007,null,"FTS14TG",111.1,30014061,4010312315088]
[4010312906378,30000962,"DW-FF8-anthrazit softlackiert","Doppelwippe für Funk-Fernbedienung",8.8000000000000007,null,"FSNT14-12V/12W",55.6,30014062,4010312315095]
[4010312906385,30000963,"DW-FT4CH-","Doppelwippe für Funktaster 60x60mm, Schweizer Design",8.8000000000000007,null,"FTS14FA",95.4,30014063,4010312315101]
[4010312906392,30000964,"DW-FT4B-","Doppelwippe für Funktaster 45x45mm, belgisches Design",8.8000000000000007,null,"FTS61BTK",57.1,30014064,4010312315668]
[4010312906408,30000965,"W-FT4B-","Wippe für Funktaster 45x45mm, belgisches Design",8,null,"FTS14KS",91.5,30014065,4010312315651]
[4010312907047,30000967,"W-FT55R-","Wippe für Funktaster 55x55mm für Busch Reflex und Duro",8,null,"FSDG14",59.6,30014066,4010312316146]
[4010312907061,30000968,"DW-FT55R-","Doppelwippe lasergraviert für Funktaster 55x55mm für Busch Reflex und Duro",8.8000000000000007,null,"F2L14",66.400000000000006,30014067,4010312316160]
[4010312907085,30000969,"DW-FT55ES-","Doppelwippe lasergraviert für Funktaster",8.8000000000000007,null,"FRGBW14",110.6,30014068,4010312324097]
[4010312316153,30000970,"AIR","IR-Abtaster für Stromzähler",111.1,null,"FPLG14",100,30014070,4010312316771]
[4010312907573,30000971,"W-B4T55-wg","Wippe für Bus-Taster",8,null,"FWG14MS",61.8,30014072,4010312316887]
[4010312907580,30000972,"DW-B4T55-","Doppelwippe für Bustaster",8.8000000000000007,null,"S12-100-12V DC",33.5,21100054,4010312101254]
[4010312908112,30000975,"W-WT/WS55-","Wippe für Wipptaster und Wippschalter",8,null,"FTS61BTKL",62.5,30014074,4010312316801]
[4010312908198,30000976,"DW-FT55EL-","Doppelwippe lasergraviert für Funktaster",8.8000000000000007,null,"FTS61BTK/8",93.5,30014075,4010312326015]
[4010312908310,30000980,"LGI","Lasergravur individuell, neues Piktogramm erstellen",12.2,null,"F4SR14-LED",76.3,30014076,4010312317006]
[4010312908624,30000981,"W-FT55-wg+2P","Wippen lasergraviert für Taster und Schalter 55er Design und E-Design55 reinweiß glänzend",8,null,"FPLT14",100,30014078,4010312317723]
[4010312908631,30000982,"W-FT55-rw+2P","Wippen lasergraviert für Taster und Schalter 55er Design und E-Design55 reinweiß",8,null,"FSB14/12-24V DC",61,30014079,4010312326701]
[4010312908648,30000983,"W-FT55-wg+IO","Wippen lasergraviert für Taster und Schalter 55er Design und E-Design55 reinweiß glänzend",8,null,"GBA14",5.3,30014100,4010312906422]
[4010312908655,30000984,"W-FT55-rw+IO","Wippen lasergraviert für Taster und Schalter 55er Design und E-Design55 reinweiß",8,null,"DS14",2.1,30014101,4010312907016]
[4010312908662,30000985,"DW-FT55-wg+2P","Doppelwippen lasergraviert für Taster und Schalter 55er Design und E-Design55 reinweiß glänzend",8.8000000000000007,null,"TB14",3.9,30014102,4010312907054]
[4010312908679,30000986,"DW-FT55-rw+2P","Doppelwippen lasergraviert für Taster und Schalter 55er Design und E-Design55 reinweiß",8.8000000000000007,null,"FIUS55E-wg",86.4,30055068,4010312320990]
[4010312908686,30000987,"DW-FT55-wg+IO","Doppelwippen lasergraviert für Taster und Schalter 55er Design und E-Design55 reinweiß glänzend",8.8000000000000007,null,"FIUS55E-am",86.4,30055069,4010312326053]
[4010312908693,30000988,"DW-FT55-rw+IO","Doppelwippen lasergraviert für Taster und Schalter 55er Design und E-Design55 reinweiß",8.8000000000000007,null,"FIUS55E-pg",86.4,30055070,4010312326060]
[4010312323991,30001065,"BPS55-L62 Blister-Pack","Blisterpack Schalten",119.7,null,"FIUS55E-pm",86.4,30055071,4010312326077]
[4010312324271,30001066,"BPD55-D62 Blister-Pack","Blisterpack Dimmen",136.80000000000001,null,"FAG55E-am",48.8,30055144,4010312326114]
[4010312324295,30001067,"BPB55-J62 Blister-Pack","Blisterpack Beschattung",122,null,"FAG55E-pg",48.8,30055145,4010312326121]
[4010312312001,30001222,"FT4CH+2P-w","Funktaster batterie- und leitungslos, ohne Rahmen, lasergraviert, weiß",68.900000000000006,null,"FAG55E-pm",48.8,30055146,4010312326138]
[4010312313695,30014000,"FAM14","RS485-Bus-Funk-Antennenmodul",123.4,null,"FAG55E-wg",48.8,30055147,4010312326145]
[4010312313701,30014001,"FSR14-4x","RS485-Bus-Aktor 4-Kanal-Stromstoß-­Schaltrelais",65.400000000000006,null,"F6T55EB-Keypad-wg",87.1,30055148,4010312326503]
[4010312313718,30014002,"FSR14-2x","RS485-Bus-Aktor 2-Kanal-Stromstoß-­Schaltrelais",65.400000000000006,null,"F6T55EB-Keypad-am",87.1,30055149,4010312326510]
[4010312313725,30014003,"FMS14","RS485-Bus-Aktor Multifunktions-Stromstoß-Schaltrelais",57.5,null,"F6T55EB-Keypad-pg",87.1,30055150,4010312326527]
[4010312313732,30014004,"FSB14","RS485-Bus-Aktor für Beschattungselemente und Rollladen 230V-Motor",64.900000000000006,null,"F6T55EB-Keypad-pm",87.1,30055151,4010312326534]
[4010312313749,30014005,"FUD14","RS485-Bus-Universal-Dimmschalter",74.5,null,"BBH55E/12V DC-am",78.2,30055152,4010312326541]
[4010312313756,30014006,"FUD14/800W","RS485-Bus-Universal-Dimmschalter bis 800W",100.3,null,"BBH55E/12V DC-pg",78.2,30055153,4010312326558]
[4010312313763,30014007,"FLUD14","RS485-Bus-Leistungszusatz für Universal-Dimmschalter FUD14/800W",68,null,"BBH55E/12V DC-pm",78.2,30055154,4010312326565]
[4010312313770,30014008,"FSG14/1-10V","RS485-Bus-Dimmschalter-Steuergerät für EVG 1-10V",69.900000000000006,null,"BBH55E/12V DC-wg",78.2,30055155,4010312326572]
[4010312313787,30014009,"FMZ14","RS485-Bus-Aktor Multifunktions-Zeitrelais",55.4,null,"BTF55E/12V DC-am",66.8,30055156,4010312326589]
[4010312314982,30014010,"F4HK14","RS485-Bus-Aktor 4-Kanal-Heiz-Kühl-Relais",62.9,null,"BTF55E/12V DC-pg",66.8,30055157,4010312326596]
[4010312313794,30014011,"FTN14","RS485-Bus-Aktor Treppenlicht-Nachlaufschalter",58.4,null,"BTF55E/12V DC-pm",66.8,30055158,4010312326602]
[4010312313824,30014014,"FHK14","RS485-Bus-Aktor Heiz-Kühl-Relais",58.1,null,"BTF55E/12V DC-wg",66.8,30055159,4010312326619]
[4010312313831,30014015,"FSU14","RS485-Bus-Display-Schaltuhr",64,null,"BTR55EH/12V DC-am",72.7,30055160,4010312326626]
[4010312313848,30014016,"FEM","Funk-Empfangsantennen-Modul",95.4,null,"BTR55EH/12V DC-pg",72.7,30055161,4010312326633]
[4010312313855,30014017,"FGW14","RS485-Bus-Mehrfach-Gateway",68.5,null,"BTR55EH/12V DC-pm",72.7,30055162,4010312326640]
[4010312313862,30014018,"FBA14","RS485-Busankoppler",33.4,null,"BTR55EH/12V DC-wg",72.7,30055163,4010312326657]
[4010312313879,30014019,"FRP14","RS485-Bus-1- und 2-Level-Funkrepeater",90.8,null,"BUTH55ED/12V DC-am",91.8,30055164,4010312326664]
[4010312313893,30014020,"FSR14SSR","RS485-Bus-Aktor 2-Kanal-Stromstoß-­Schaltrelais geräuschlos",66,null,"BUTH55ED/12V DC-pg",91.8,30055165,4010312326671]
[4010312314050,30014024,"SAS-6TE","Sammelschiene 6TE",15.3,null,"BUTH55ED/12V DC-pm",91.8,30055166,4010312326688]
[4010312314111,30014028,"FMSR14","RS485-Bus-Multifunktions-Sensorrelais",64,null,"BUTH55ED/12V DC-wg",91.8,30055167,4010312326695]
[4010312314173,30014029,"FAE14SSR","RS485-Bus-Aktor Einzelraumregelung Heizen/Kühlen für 2 Zonen mit Solid-State-Relais",67.900000000000006,null,"F4PT55E-",61.4,30055432,4010312324653]
[4010312314234,30014030,"FAE14LPR","RS485-Bus-Aktor Einzelraumregelung Heizen/Kühlen für 2 Zonen mit Leiterplatten-Relais",59.6,null,"F2ZT55E-am",59.6,30055442,4010312325841]
[4010312314395,30014031,"SNT14-24V/12W","Schaltnetzteil 24V DC",49.1,null,"F2ZT55E-pg",59.6,30055443,4010312325858]
[4010312314401,30014032,"SNT14-24V/24W","Schaltnetzteil 24V DC",56.4,null,"F2ZT55E-pm",59.6,30055445,4010312325865]
[4010312314418,30014033,"SNT14-24V/48W","Schaltnetzteil 24V DC",84.4,null,"F2ZT55E-wg",59.6,30055447,4010312319994]
[4010312314425,30014034,"TSA02NC-230V","Stellantrieb NC, 230V",40.1,null,"FFT55EB-wg",75,30055475,4010312321010]
[4010312314432,30014035,"TSA02NC-24V","Stellantrieb NC, 24V",40.1,null,"FFT55EB-am",75,30055476,4010312325872]
[4010312314975,30014038,"STS14","Steckbrücken",14.2,null,"FFT55EB-pg",75,30055477,4010312325889]
[4010312327692,30014039,"FSR14M-2x","RS485-Bus-Aktor 2-Kanal-Stromstoß-­Schaltrelais mit Messung der Wirkleistung",95.5,null,"FFT55EB-pm",75,30055478,4010312325896]
[4010312327876,30014041,"FGW14W-IP","RS485-Bus-Stromzähler-MQTT-Gateway über WLAN. MQTT und REST-API",92.4,null,"FB55EB-wg",89.1,30055512,4010312321003]
[4010312328453,30014045,"FD2G14","RS485-Bus-DALI-2-Gateway",122.8,null,"S12-100-24V DC",33.5,21100055,4010312101247]
[4010312319062,30014046,"BGW14","RS485-Bus-Gateway",64.900000000000006,null,"FB55EB-am",89.1,30055513,4010312322321]
[4010312316085,30014047,"FDG14","RS485-Bus-DALI-Gateway",95.6,null,"FB55EB-pg",89.1,30055514,4010312325902]
[4010312316078,30014048,"FSM14-UC ","RS485-Bus-Funk-4-fach-Sendemodul",75.2,null,"FB55EB-pm",89.1,30055515,4010312325919]
[4010312316054,30014049,"FGW14-USB","RS485-Bus-Mehrfach-Gateway mit USB-A-Anschluss",64.900000000000006,null,"FBH55ESB-am",106.8,30055516,4010312325926]
[4010312501511,30014050,"FWZ14-65A","RS485-Bus-Funk-Wechselstromzähler-Sendemodul 65A",82.1,null,"FBH55ESB-pg",106.8,30055517,4010312325933]
[4010312327623,30014051,"FGW14WL-IP","RS485-Bus-Stromzähler-MQTT-Gateway über WLAN oder LAN. MQTT und REST-API",106.5,null,"FBH55ESB-pm",106.8,30055518,4010312325940]
[4010312315248,30014053,"BBV14","Bus-Brücken-Verbinder, 45cm lang",24.3,null,"FBH55ESB-wg",106.8,30055519,4010312327708]
[4010312501528,30014055,"F3Z14D","RS485-Bus-Zähler-Sammler",60.9,null,"FLGTF55E/230V-wg",105.1,30055520,4010312321058]
[4010312315705,30014057,"FTD14","RS485-Bus-Telegramm-Duplizierer",92.6,null,"FLGTF55E/230V-am",105.1,30055521,4010312325957]
[4010312324660,30014058,"BBV14/100","Bus-Brücken-Verbinder, 100cm lang",25.5,null,"FLGTF55E/230V-pg",105.1,30055522,4010312325964]
[4010312315071,30014060,"FTS14EM","RS485-Bus-Taster-Eingabemodul",68.900000000000006,null,"FLGTF55E/230V-pm",105.1,30055523,4010312325971]
[4010312315088,30014061,"FTS14TG","RS485-Bus-Taster-Gateway",111.1,null,"FDT55EB-am",79.599999999999994,30055537,4010312325377]
[4010312315095,30014062,"FSNT14-12V/12W","Schaltnetzteil 12V/12W",55.6,null,"FDT55EB-wg",79.599999999999994,30055539,4010312325384]
[4010312315101,30014063,"FTS14FA","Funk-Ausgabemodul",95.4,null,"FDT55EB-pg",79.599999999999994,30055540,4010312325391]
[4010312315668,30014064,"FTS61BTK","Bus-Tasterkoppler für 4 konventionelle Taster",57.1,null,"FDT55EB-pm",79.599999999999994,30055541,4010312325407]
[4010312315651,30014065,"FTS14KS","RS485-Bus-Kommunikationsschnittstelle",91.5,null,"FMS55ESB-wg",115.4,30055561,4010312321799]
[4010312316146,30014066,"FSDG14","RS485-Bus-Stromzähler-Datengateway ",59.6,null,"BLA55E-am",4.4000000000000004,30055640,4010312909225]
[4010312316160,30014067,"F2L14","RS485-Bus-Aktor 2-Stufen-Lüftungsrelais",66.400000000000006,null,"BLA55E-pg",4.4000000000000004,30055641,4010312909232]
[4010312324097,30014068,"FRGBW14","RS485-Bus-Funkaktor PWM-Dimmschalter für LED",110.6,null,"BLA55E-pm",4.4000000000000004,30055643,4010312909249]
[4010312316771,30014070,"FPLG14","Funk-Powerline-Gateway",100,null,"BLA55E-wg",4.4000000000000004,30055645,4010312908822]
[4010312316887,30014072,"FWG14MS","RS485-Bus-Wetterdaten-Gateway für Wetterdaten-Multisensor WMS",61.8,null,"NFCS55E-wg",20,30055646,4010312322130]
[4010312316801,30014074,"FTS61BTKL","Bus-Tasterkoppler für 4 konventionelle Taster mit Rückmelde LED's",62.5,null,"NFCS55E-pg",20,30055648,4010312325995]
[4010312326015,30014075,"FTS61BTK/8","Bus-Tasterkoppler für 8 konventionelle Taster",93.5,null,"NFCS55E-pm",20,30055649,4010312326008]
[4010312317006,30014076,"F4SR14-LED","RS485-Bus-Aktor 4-Kanal-Stromstoß-­Schaltrelais für LED",76.3,null,"B4T55E-am",59.8,30055650,4010312326152]
[4010312317723,30014078,"FPLT14","Funk-Powerline-Tunnelgateway",100,null,"B4T55E-pg",59.8,30055651,4010312326046]
[4010312326701,30014079,"FSB14/12-24V DC","RS485-Bus-Aktor für Beschattungselemente und Rollladen 12-24V DC-Motor",61,null,"B4T55E-pm",59.8,30055652,4010312326039]
[4010312906422,30014100,"GBA14","Gehäuse für BA, weiß-blau",5.3,null,"B4T55E-wg",59.8,30055653,4010312326022]
[4010312907016,30014101,"DS14","Distanzstück",2.1,null,"F2T55EB-pg",70.8,30055672,4010312325414]
[4010312907054,30014102,"TB14","Trennbrücke, 1 Teilungseinheit breit",3.9,null,"F2T55EB-pm",70.8,30055673,4010312325421]
[4010312320990,30055068,"FIUS55E-wg","Funk-Innen-UP-Signalgeber, reinweiß glänzend",86.4,null,"F2T55EB-wg",70.8,30055675,4010312321171]
[4010312326053,30055069,"FIUS55E-am","Funk-Innen-UP-Signalgeber, anthrazit matt",86.4,null,"F2T55EB-am",70.8,30055676,4010312325438]
[4010312326060,30055070,"FIUS55E-pg","Funk-Innen-UP-Signalgeber, polarweiß glänzend",86.4,null,"F4T55EB-pg",72.8,30055682,4010312325445]
[4010312326077,30055071,"FIUS55E-pm","Funk-Innen-UP-Signalgeber, polarweiß matt",86.4,null,"F4T55EB-pm",72.8,30055683,4010312325452]
[4010312326084,30055141,"F4CT55E/UC-am","Funk-4-Kanal-Colortaster+Anzeige RGBW in E-Design55, anthrazit matt",90.5,null,"R12-200-12V",39.4,22200011,4010312200506]
[4010312326091,30055142,"F4CT55E/UC-pg","Funk-4-Kanal-Colortaster+Anzeige RGBW in E-Design55, polarweiß glänzend",90.5,null,"R12-200-24V",41.5,22200020,4010312200513]
[4010312326107,30055143,"F4CT55E/UC-pm","Funk-4-Kanal-Colortaster+Anzeige RGBW in E-Design55, polarweiß matt",90.5,null,"R12-200-230V",39.4,22200030,4010312200520]
[4010312326114,30055144,"FAG55E-am","Funkantenne, anthrazit matt",48.8,null,"F4T55EB-wg",72.8,30055685,4010312320570]
[4010312326121,30055145,"FAG55E-pg","Funkantenne, polarweiß glänzend",48.8,null,"F4T55EB-am",72.8,30055688,4010312323816]
[4010312326138,30055146,"FAG55E-pm","Funkantenne, polarweiß matt",48.8,null,"F6T55EB-pg",83.6,30055692,4010312325469]
[4010312326145,30055147,"FAG55E-wg","Funkantenne, reinweiß glänzend",48.8,null,"F6T55EB-pm",83.6,30055693,4010312325476]
[4010312326503,30055148,"F6T55EB-Keypad-wg","Funk-6-Kanal-Taster als Keypad, reinweiß glänzend",87.1,null,"F6T55EB-wg",83.6,30055695,4010312325483]
[4010312326510,30055149,"F6T55EB-Keypad-am","Funk-6-Kanal-Taster als Keypad, anthrazit matt",87.1,null,"F6T55EB-am",83.6,30055696,4010312325490]
[4010312326527,30055150,"F6T55EB-Keypad-pg","Funk-6-Kanal-Taster als Keypad, polarweiß glänzend",87.1,null,"F2T55E-pg",53.9,30055702,4010312325506]
[4010312326534,30055151,"F6T55EB-Keypad-pm","Funk-6-Kanal-Taster als Keypad, polarweiß matt",87.1,null,"F1T55E-pg",49.4,30055703,4010312325513]
[4010312326541,30055152,"BBH55E/12V DC-am","Bus-Bewegungs-Helligkeits­sensor im E-Design55, anthrazit matt",78.2,null,"F4T55E-wg",55.8,30055705,4010312319833]
[4010312326558,30055153,"BBH55E/12V DC-pg","Bus-Bewegungs-Helligkeits­sensor im E-Design55, polarweiß glänzend",78.2,null,"WS55E-wg",14.5,30055707,4010312322390]
[4010312326565,30055154,"BBH55E/12V DC-pm","Bus-Bewegungs-Helligkeits­sensor im E-Design55, polarweiß matt",78.2,null,"F4T55E-am",55.8,30055708,4010312322062]
[4010312326572,30055155,"BBH55E/12V DC-wg","Bus-Bewegungs-Helligkeits­sensor im E-Design55, reinweiß glänzend",78.2,null,"WT55E-wg",15.2,30055709,4010312322383]
[4010312326589,30055156,"BTF55E/12V DC-am","Bus-Temperatur-Fühler im E-Design55, anthrazit matt",66.8,null,"W2T55E-wg",18.100000000000001,30055712,4010312322376]
[4010312326596,30055157,"BTF55E/12V DC-pg","Bus-Temperatur-Fühler im E-Design55, polarweiß glänzend",66.8,null,"F1T55E-pm",49.4,30055713,4010312325520]
[4010312326602,30055158,"BTF55E/12V DC-pm","Bus-Temperatur-Fühler im E-Design55, polarweiß matt",66.8,null,"F2T55E-wg",53.9,30055715,4010312319918]
[4010312326619,30055159,"BTF55E/12V DC-wg","Bus-Temperatur-Fühler im E-Design55, reinweiß glänzend",66.8,null,"FT55EH-wg",62.6,30055717,4010312321690]
[4010312326626,30055160,"BTR55EH/12V DC-am","Bus-Temperatur-Regler mit ­Handrad im E-Design55, anthrazit matt",72.7,null,"F2T55E-am",53.9,30055718,4010312322048]
[4010312326633,30055161,"BTR55EH/12V DC-pg","Bus-Temperatur-Regler mit ­Handrad im E-Design55, polarweiß glänzend",72.7,null,"FT55EH-pg",62.6,30055719,4010312324714]
[4010312326640,30055162,"BTR55EH/12V DC-pm","Bus-Temperatur-Regler mit ­Handrad im E-Design55, polarweiß matt",72.7,null,"F1T55E-am",49.4,30055722,4010312323687]
[4010312326657,30055163,"BTR55EH/12V DC-wg","Bus-Temperatur-Regler mit ­Handrad im E-Design55, reinweiß glänzend",72.7,null,"FT55EH-pm",62.6,30055723,4010312324721]
[4010312326664,30055164,"BUTH55ED/12V DC-am","Bus-Uhren-Thermo-Hygrostat mit Display im ­E-Design55, anthrazit matt",91.8,null,"F1T55E-wg",49.4,30055725,4010312321096]
[4010312326671,30055165,"BUTH55ED/12V DC-pg","Bus-Uhren-Thermo-Hygrostat mit Display im ­E-Design55, polarweiß glänzend",91.8,null,"F2T55E-pm",53.9,30055727,4010312325537]
[4010312326688,30055166,"BUTH55ED/12V DC-pm","Bus-Uhren-Thermo-Hygrostat mit Display im ­E-Design55, polarweiß matt",91.8,null,"FT55EH-am",62.6,30055732,4010312325544]
[4010312326695,30055167,"BUTH55ED/12V DC-wg","Bus-Uhren-Thermo-Hygrostat mit Display im ­E-Design55, reinweiß glänzend",91.8,null,"F4T55E-pg",55.8,30055733,4010312325551]
[4010312328538,30055201,"FNSN55EB-am","Funk-1-Kanal-Näherungssensor mit NanoPower-Technologie im E-Design55 , anthrazit matt",76.7,null,"ESR12NP-230V+UC",61.1,21100102,4010312107928]
[4010312328545,30055202,"FNSN55EB-pg","Funk-1-Kanal-Näherungssensor mit NanoPower-Technologie im E-Design55, polarweiß glänzend",76.7,null,"SDS12/1-10V",71.3,21100800,4010312109403]
[4010312328552,30055203,"FNSN55EB-pm","Funk-1-Kanal-Näherungssensor mit NanoPower-Technologie im E-Design55, polarweiß matt",76.7,null,"ESW12DX-UC",57.2,21100801,4010312206744]
[4010312328569,30055204,"FNSN55EB-wg","Funk-1-Kanal-Näherungssensor mit NanoPower-Technologie im E-Design55, reinweiß glänzend",76.7,null,"SUD12/1-10V",68,21100802,4010312108116]
[4010312324653,30055432,"F4PT55E-","Funk-4-Kanal-Profiltaster",61.4,null,"F4T55E-pm",55.8,30055734,4010312325568]
[4010312325841,30055442,"F2ZT55E-am","Funktaster batterie- und leitungslos, anthrazit matt",59.6,null,"WS55E-am",14.5,30055735,4010312326169]
[4010312325858,30055443,"F2ZT55E-pg","Funktaster batterie- und leitungslos, polarweiß glänzend",59.6,null,"WS55E-pg",14.5,30055737,4010312326176]
[4010312325865,30055445,"F2ZT55E-pm","Funktaster batterie- und leitungslos, polarweiß matt",59.6,null,"R2UE55-am",4.9000000000000004,30055738,4010312908754]
[4010312319994,30055447,"F2ZT55E-wg","Funktaster batterie- und leitungslos, reinweiß glänzend",59.6,null,"WS55E-pm",14.5,30055739,4010312326183]
[4010312321010,30055475,"FFT55EB-wg","Funk-Feuchte-Temperatursensor, reinweiß glänzend",75,null,"WT55E-am",15.2,30055742,4010312326190]
[4010312325872,30055476,"FFT55EB-am","Funk-Feuchte-Temperatursensor, anthrazit matt",75,null,"WT55E-pg",15.2,30055743,4010312326206]
[4010312325889,30055477,"FFT55EB-pg","Funk-Feuchte-Temperatursensor, polarweiß glänzend",75,null,"WT55E-pm",15.2,30055744,4010312326213]
[4010312325896,30055478,"FFT55EB-pm","Funk-Feuchte-Temperatursensor, polarweiß matt",75,null,"W2T55E-am",18.100000000000001,30055745,4010312326220]
[4010312321003,30055512,"FB55EB-wg","Funk-Bewegungssensor,  reinweiß glänzend",89.1,null,"R3UE55-am",5.5,30055748,4010312908761]
[4010312322321,30055513,"FB55EB-am","Funk-Bewegungssensor, anthrazit matt",89.1,null,"R3UE55-pg",5.5,30055749,4010312909126]
[4010312325902,30055514,"FB55EB-pg","Funk-Bewegungssensor, polarweiß glänzend",89.1,null,"W2T55E-pg",18.100000000000001,30055752,4010312326237]
[4010312325919,30055515,"FB55EB-pm","Funk-Bewegungssensor,  polarweiß matt",89.1,null,"R3UE55-pm",5.5,30055753,4010312909133]
[4010312325926,30055516,"FBH55ESB-am","Funk-Bewegungs-Helligkeitssensor mit ­Solarzellen und Batterie, anthrazit matt",106.8,null,"R4UE55-pm",6.8,30055755,4010312909140]
[4010312325933,30055517,"FBH55ESB-pg","Funk-Bewegungs-Helligkeitssensor mit ­Solarzellen und Batterie, polarweiß glänzend",106.8,null,"R4UE55-pg",6.8,30055757,4010312909157]
[4010312325940,30055518,"FBH55ESB-pm","Funk-Bewegungs-Helligkeitssensor mit ­Solarzellen und Batterie, polarweiß matt",106.8,null,"R4UE55-am",6.8,30055758,4010312908778]
[4010312327708,30055519,"FBH55ESB-wg","Funk-Bewegungs-Helligkeitssensor mit ­Solarzellen und Batterie, reinweiß glänzend",106.8,null,"R5UE55-pg",7.7,30055759,4010312909164]
[4010312321058,30055520,"FLGTF55E/230V-wg","Funk-Luftgüte-Temperatur-Feuchte-Sensor, reinweiß glänzend",105.1,null,"R5UE55-pm",7.7,30055761,4010312909171]
[4010312325957,30055521,"FLGTF55E/230V-am","Funk-Luftgüte-Temperatur-Feuchte-Sensor, anthrazit matt",105.1,null,"W2T55E-pm",18.100000000000001,30055762,4010312326244]
[4010312325964,30055522,"FLGTF55E/230V-pg","Funk-Luftgüte-Temperatur-Feuchte-Sensor, polarweiß glänzend",105.1,null,"FMS55ESB-am",115.4,30055763,4010312326251]
[4010312325971,30055523,"FLGTF55E/230V-pm","Funk-Luftgüte-Temperatur-Feuchte-Sensor, polarweiß matt",105.1,null,"FMS55ESB-pg",115.4,30055764,4010312326268]
[4010312325377,30055537,"FDT55EB-am","Funk-Drehtaster im E-Design55, anthrazit matt",79.599999999999994,null,"R12-200-12V DC",41.5,22200054,4010312201039]
[4010312325384,30055539,"FDT55EB-wg","Funk-Drehtaster im E-Design55, reinweiß glänzend",79.599999999999994,null,"R12-200-24V DC",41.5,22200055,4010312201046]
[4010312325391,30055540,"FDT55EB-pg","Funk-Drehtaster im E-Design55, polarweiß glänzend",79.599999999999994,null,"XR12-200-230V",45.5,22200930,4010312201305]
[4010312325407,30055541,"FDT55EB-pm","Funk-Drehtaster im E-Design55, polarweiß matt",79.599999999999994,null,"R12-220-230V",58.9,22220030,4010312200568]
[4010312321799,30055561,"FMS55ESB-wg","Funk-Multisensor, reinweiß glänzend",115.4,null,"FMS55ESB-pm",115.4,30055765,4010312326275]
[4010312909225,30055640,"BLA55E-am","Blindabdeckung für R1UE55 – R4UE55, anthrazit matt",4.4000000000000004,null,"FTR55EHB-am",88.8,30055766,4010312326282]
[4010312909232,30055641,"BLA55E-pg","Blindabdeckung für R1UE55 – R4UE55, polarweiß glänzend",4.4000000000000004,null,"FTR55EHB-pg",88.8,30055767,4010312326299]
[4010312909249,30055643,"BLA55E-pm","Blindabdeckung für R1UE55 – R4UE55, polarweiß matt",4.4000000000000004,null,"FTR55EHB-pm",88.8,30055768,4010312326305]
[4010312908822,30055645,"BLA55E-wg","Blindabdeckung für R1UE55 – R4UE55, reinweiß glänzend",4.4000000000000004,null,"FTR55EHB-wg",88.8,30055769,4010312326312]
[4010312322130,30055646,"NFCS55E-wg","NFC-Sensor, reinweiß glänzend",20,null,"R5UE55-wg",7.7,30055775,4010312908938]
[4010312325988,30055647,"NFCS55E-am","NFC-Sensor, , anthrazit matt",20,null,"R5UE55-am",7.7,30055778,4010312908945]
[4010312325995,30055648,"NFCS55E-pg","NFC-Sensor, polarweiß glänzend",20,null,"R1UE55-pg",3.8,30055782,4010312909188]
[4010312326008,30055649,"NFCS55E-pm","NFC-Sensor, polarweiß matt",20,null,"R1UE55-pm",3.8,30055783,4010312909195]
[4010312326152,30055650,"B4T55E-am","Bus-Taster im E-Design55, anthrazit matt",59.8,null,"R1UE55-wg",3.8,30055785,4010312908341]
[4010312326046,30055651,"B4T55E-pg","Bus-Taster im E-Design55, polarweiß glänzend",59.8,null,"R2UE55-pg",4.9000000000000004,30055787,4010312909201]
[4010312326039,30055652,"B4T55E-pm","Bus-Taster im E-Design55, polarweiß matt",59.8,null,"R1UE55-am",3.8,30055788,4010312908747]
[4010312326022,30055653,"B4T55E-wg","Bus-Taster im E-Design55, reinweiß glänzend",59.8,null,"R2UE55-pm",4.9000000000000004,30055789,4010312909218]
[4010312325414,30055672,"F2T55EB-pg","Funktaster leitungslos, polarweiß glänzend",70.8,null,"FTR55ESB-am",97.5,30055790,4010312326329]
[4010312325421,30055673,"F2T55EB-pm","Funktaster leitungslos, polarweiß matt",70.8,null,"FTR55ESB-pg",97.5,30055791,4010312326336]
[4010312321171,30055675,"F2T55EB-wg","Funktaster leitungslos, reinweiß glänzend",70.8,null,"FTR55ESB-pm",97.5,30055792,4010312326343]
[4010312325438,30055676,"F2T55EB-am","Funktaster leitungslos, anthrazit matt",70.8,null,"FTR55ESB-wg",97.5,30055793,4010312326350]
[4010312325445,30055682,"F4T55EB-pg","Funktaster leitungslos, polarweiß glänzend",72.8,null,"FTAF55ED/230V-am",103.1,30055794,4010312326367]
[4010312325452,30055683,"F4T55EB-pm","Funktaster leitungslos, polarweiß matt",72.8,null,"FTAF55ED/230V-pg",103.1,30055795,4010312326374]
[4010312320570,30055685,"F4T55EB-wg","Funktaster leitungslos, reinweiß glänzend",72.8,null,"FTAF55ED/230V-pm",103.1,30055796,4010312326381]
[4010312323816,30055688,"F4T55EB-am","Funktaster leitungslos, anthrazit matt",72.8,null,"FTAF55ED/230V-wg",103.1,30055797,4010312326398]
[4010312325469,30055692,"F6T55EB-pg","Funk-6-Kanal-Taster leitungslos, polarweiß glänzend",83.6,null,"FUTH55ED/12-24V UC-am",106.6,30055798,4010312326404]
[4010312325476,30055693,"F6T55EB-pm","Funk-6-Kanal-Taster leitungslos, polarweiß matt",83.6,null,"FUTH55ED/12-24V UC-pg",106.6,30055799,4010312326411]
[4010312325483,30055695,"F6T55EB-wg","Funk-6-Kanal-Taster leitungslos, reinweiß glänzend",83.6,null,"FUTH55ED/12-24V UC-pm",106.6,30055800,4010312326428]
[4010312325490,30055696,"F6T55EB-am","Funk-6-Kanal-Taster leitungslos, anthrazit matt",83.6,null,"FUTH55ED/12-24V UC-wg",106.6,30055801,4010312326435]
[4010312325506,30055702,"F2T55E-pg","Funktaster batterie- und leitungslos, polarweiß glänzend",53.9,null,"FUTH55ED/230V-am",105.6,30055802,4010312326787]
[4010312325513,30055703,"F1T55E-pg","Funktaster batterie- und leitungslos, polarweiß glänzend",49.4,null,"FUTH55ED/230V-pg",105.6,30055803,4010312326794]
[4010312319833,30055705,"F4T55E-wg","Funktaster batterie- und leitungslos, reinweiß glänzend",55.8,null,"FUTH55ED/230V-pm",105.6,30055804,4010312326800]
[4010312322390,30055707,"WS55E-wg","Wippschalter 1 Schließer, reinweiß glänzend",14.5,null,"FUTH55ED/230V-wg",105.6,30055805,4010312326817]
[4010312322062,30055708,"F4T55E-am","Funktaster batterie- und leitungslos, anthrazit matt",55.8,null,"FSU55ED/230V-am",99.4,30055806,4010312326442]
[4010312322383,30055709,"WT55E-wg","Wipptaster 1 Schließer, reinweiß glänzend",15.2,null,"FSU55ED/230V-pg",99.4,30055807,4010312326459]
[4010312322376,30055712,"W2T55E-wg","Wipptaster 2 Schließer, reinweiß glänzend",18.100000000000001,null,"FSU55ED/230V-pm",99.4,30055808,4010312326466]
[4010312325520,30055713,"F1T55E-pm","Funktaster batterie- und leitungslos, polarweiß matt",49.4,null,"FSU55ED/230V-wg",99.4,30055809,4010312326473]
[4010312319918,30055715,"F2T55E-wg","Funktaster batterie- und leitungslos, reinweiß glänzend",53.9,null,"F1T55E-wg/rot",64.099999999999994,30055810,4010312328019]
[4010312321690,30055717,"FT55EH-wg","Friends of Hue-Funktaster, reinweiß glänzend",62.6,null,"FS55E-pg",53.9,30055811,4010312326480]
[4010312322048,30055718,"F2T55E-am","Funktaster batterie- und leitungslos, anthrazit matt",53.9,null,"FS55E-pm",53.9,30055812,4010312326497]
[4010312324714,30055719,"FT55EH-pg","Friends of Hue-Funktaster, polarweiß glänzend",62.6,null,"R4UE55-wg",6.8,30055826,4010312908372]
[4010312323687,30055722,"F1T55E-am","Funktaster batterie- und leitungslos, anthrazit matt",49.4,null,"R2UE55-wg",4.9000000000000004,30055827,4010312908365]
[4010312324721,30055723,"FT55EH-pm","Friends of Hue-Funktaster, polarweiß matt",62.6,null,"R3UE55-wg",5.5,30055828,4010312908358]
[4010312321096,30055725,"F1T55E-wg","Funktaster batterie- und leitungslos, reinweiß glänzend",49.4,null,"TV55E/2-am",4.0999999999999996,30055830,4010312909256]
[4010312325537,30055727,"F2T55E-pm","Funktaster batterie- und leitungslos, polarweiß matt",53.9,null,"TV55E/2-pg",4.0999999999999996,30055831,4010312909263]
[4010312322529,30055728,"F2T55ER-wg","Funk-2-Kanal-Taster, reinweiß glänzend E-Design55",53.9,null,"XR12-220-230V",62,22220930,4010312201473]
[4010312323694,30055729,"F4T55ER-wg","Funk-4-Kanal-Taster, reinweiß glänzend E-Design55",53.9,null,"R12-310-230V",58.9,22310030,4010312200605]
[4010312325544,30055732,"FT55EH-am","Friends of Hue-Funktaster, anthrazit matt",62.6,null,"TV55E/2-pm",4.0999999999999996,30055832,4010312909270]
[4010312325551,30055733,"F4T55E-pg","Funktaster batterie- und leitungslos, polarweiß glänzend",55.8,null,"TV55E/3-am",4.0999999999999996,30055833,4010312909287]
[4010312325568,30055734,"F4T55E-pm","Funktaster batterie- und leitungslos, polarweiß matt",55.8,null,"TV55E/3-pg",4.0999999999999996,30055834,4010312909294]
[4010312326169,30055735,"WS55E-am","Wippschalter 1 Schließer, anthrazit matt",14.5,null,"TV55E/3-pm",4.0999999999999996,30055835,4010312909300]
[4010312326176,30055737,"WS55E-pg","Wippschalter 1 Schließer, polarweiß glänzend",14.5,null,"TAE55E/3-wg",4.0999999999999996,30055836,4010312909072]
[4010312908754,30055738,"R2UE55-am","2-fach-Universalrahmen, anthrazit matt",4.9000000000000004,null,"TAE55E/3-am",4.0999999999999996,30055837,4010312909317]
[4010312326183,30055739,"WS55E-pm","Wippschalter 1 Schließer, polarweiß matt",14.5,null,"TV55E/2-wg",4.0999999999999996,30055838,4010312909102]
[4010312326190,30055742,"WT55E-am","Wipptaster 1 Schließer, anthrazit matt",15.2,null,"TAE55E/3-pg",4.0999999999999996,30055839,4010312909324]
[4010312326206,30055743,"WT55E-pg","Wipptaster 1 Schließer, polarweiß glänzend",15.2,null,"TV55E/3-wg",4.0999999999999996,30055840,4010312909089]
[4010312326213,30055744,"WT55E-pm","Wipptaster 1 Schließer, polarweiß matt",15.2,null,"TAE55E/3-pm",4.0999999999999996,30055841,4010312909331]
[4010312326220,30055745,"W2T55E-am","Wipptaster 2 Schließer, anthrazit matt",18.100000000000001,null,"UAE55E/2-wg",4.0999999999999996,30055842,4010312909096]
[4010312908761,30055748,"R3UE55-am","3-fach-Universalrahmen, anthrazit matt",5.5,null,"UAE55E/2-am",4.0999999999999996,30055843,4010312909348]
[4010312909126,30055749,"R3UE55-pg","3-fach-Universalrahmen, polarweiß glänzend",5.5,null,"UAE55E/2-pg",4.0999999999999996,30055844,4010312909355]
[4010312326237,30055752,"W2T55E-pg","Wipptaster 2 Schließer, polarweiß glänzend",18.100000000000001,null,"UAE55E/2-pm",4.0999999999999996,30055845,4010312909362]
[4010312909133,30055753,"R3UE55-pm","3-fach-Universalrahmen, polarweiß matt",5.5,null,"DSS55E+2xUSBA-pg",42.4,30055891,4010312325575]
[4010312909140,30055755,"R4UE55-pm","4-fach-Universalrahmen, polarweiß matt",6.8,null,"DSS55E+2xUSBA-pm",42.4,30055892,4010312325582]
[4010312909157,30055757,"R4UE55-pg","4-fach-Universalrahmen, polarweiß glänzend",6.8,null,"DSS55E-pg",8.4,30055893,4010312325599]
[4010312908778,30055758,"R4UE55-am","4-fach-Universalrahmen, anthrazit matt",6.8,null,"DSS55E-pm",8.4,30055894,4010312325605]
[4010312909164,30055759,"R5UE55-pg","5-fach-Universalrahmen, polarweiß glänzend",7.7,null,"DSS55E-wg",8.4,30055895,4010312320082]
[4010312909171,30055761,"R5UE55-pm","5-fach-Universalrahmen, polarweiß matt",7.7,null,"DSS55E+2xUSBA-wg",42.4,30055896,4010312322512]
[4010312326244,30055762,"W2T55E-pm","Wipptaster 2 Schließer, polarweiß matt",18.100000000000001,null,"DSS55E+USBA+C-wg",50.3,30055897,4010312323830]
[4010312326251,30055763,"FMS55ESB-am","Funk-Multisensor, anthrazit matt",115.4,null,"DSS55E-am",8.4,30055898,4010312323823]
[4010312326268,30055764,"FMS55ESB-pg","Funk-Multisensor, polarweiß glänzend",115.4,null,"DSS55E+2xUSBA-am",42.4,30055899,4010312324301]
[4010312326275,30055765,"FMS55ESB-pm","Funk-Multisensor, polarweiß matt",115.4,null,"DSS55E+USBA+C-am",50.3,30055900,4010312324318]
[4010312326282,30055766,"FTR55EHB-am","Funk-Temperaturregler mit ­Handrad, anthrazit matt",88.8,null,"DSS55E+USBA+C-pg",50.3,30055901,4010312325612]
[4010312326299,30055767,"FTR55EHB-pg","Funk-Temperaturregler mit ­Handrad, polarweiß glänzend",88.8,null,"DSS55E+USBA+C-pm",50.3,30055902,4010312325629]
[4010312326305,30055768,"FTR55EHB-pm","Funk-Temperaturregler mit ­Handrad, polarweiß matt",88.8,null,"W-F1T55E-",8,30055949,4010312908969]
[4010312326312,30055769,"FTR55EHB-wg","Funk-Temperaturregler mit ­Handrad,  reinweiß glänzend",88.8,null,"DW-F4T55E-",8.8000000000000007,30055952,4010312908426]
[4010312908938,30055775,"R5UE55-wg","5-fach-Universalrahmen, reinweiß glänzend",7.7,null,"DW-F4T55EB-",8.8000000000000007,30055953,4010312908983]
[4010312908945,30055778,"R5UE55-am","5-fach-Universalrahmen, anthrazit matt",7.7,null,"DW-F4T55E-wg+2P",8.8000000000000007,30055954,4010312909393]
[4010312909188,30055782,"R1UE55-pg","1-fach-Universalrahmen, polarweiß glänzend",3.8,null,"DW-F4T55E-am+2P",8.8000000000000007,30055955,4010312909409]
[4010312909195,30055783,"R1UE55-pm","1-fach-Universalrahmen, polarweiß matt",3.8,null,"DW-F4T55E-am",20.6,30055956,4010312909508]
[4010312908341,30055785,"R1UE55-wg","1-fach-Universalrahmen, reinweiß glänzend",3.8,null,"DW-F4T55E-wg",20.6,30055957,4010312909492]
[4010312909201,30055787,"R2UE55-pg","2-fach-Universalrahmen, polarweiß glänzend",4.9000000000000004,null,"DW-F4T55E-pg",20.6,30055958,4010312909553]
[4010312908747,30055788,"R1UE55-am","1-fach-Universalrahmen, anthrazit matt",3.8,null,"DW-F4T55E-pm",20.6,30055959,4010312909560]
[4010312909218,30055789,"R2UE55-pm","2-fach-Universalrahmen, polarweiß matt",4.9000000000000004,null,"W-F2T55E-am",5,30055965,4010312909485]
[4010312326329,30055790,"FTR55ESB-am","Funk-Temperaturregler, anthrazit matt",97.5,null,"W-F2T55E-",8,30055966,4010312908396]
[4010312326336,30055791,"FTR55ESB-pg","Funk-Temperaturregler, polarweiß glänzend",97.5,null,"W-F2T55E-wg+2P",8,30055967,4010312909416]
[4010312326343,30055792,"FTR55ESB-pm","Funk-Temperaturregler, polarweiß matt",97.5,null,"W-F2T55EB-wg-",8,30055968,4010312908976]
[4010312326350,30055793,"FTR55ESB-wg","Funk-Temperaturregler, reinweiß glänzend",97.5,null,"W-F2T55E-am+2P",8,30055969,4010312909423]
[4010312326367,30055794,"FTAF55ED/230V-am","Funk-Temperaturregler Air+Floor, anthrazit matt",103.1,null,"W-F2T55E-wg+2P",15.5,30055970,4010312909515]
[4010312326374,30055795,"FTAF55ED/230V-pg","Funk-Temperaturregler Air+Floor, polarweiß glänzend",103.1,null,"W-F2T55E-am",15.5,30055971,4010312909522]
[4010312326381,30055796,"FTAF55ED/230V-pm","Funk-Temperaturregler Air+Floor, polarweiß matt",103.1,null,"W-F2T55E-pg",15.5,30055972,4010312909539]
[4010312326398,30055797,"FTAF55ED/230V-wg","Funk-Temperaturregler Air+Floor, reinweiß glänzend",103.1,null,"W-F2T55E-pm",15.5,30055973,4010312909546]
[4010312326404,30055798,"FUTH55ED/12-24V UC-am","Funk-Uhren-Thermo-Hygrostat mit Display, anthrazit matt",106.6,null,"F2T55EOR-pg",51.2,30056702,4010312327753]
[4010312326411,30055799,"FUTH55ED/12-24V UC-pg","Funk-Uhren-Thermo-Hygrostat mit Display, polarweiß glänzend",106.6,null,"F4T55EOR-wg",51.2,30056705,4010312327739]
[4010312326428,30055800,"FUTH55ED/12-24V UC-pm","Funk-Uhren-Thermo-Hygrostat mit Display, polarweiß matt",106.6,null,"F4T55EOR-am",51.2,30056708,4010312327777]
[4010312326435,30055801,"FUTH55ED/12-24V UC-wg","Funk-Uhren-Thermo-Hygrostat mit Display, reinweiß glänzend",106.6,null,"F2T55EOR-wg",51.2,30056715,4010312327722]
[4010312326787,30055802,"FUTH55ED/230V-am","Funk-Uhren-Thermo-Hygrostat mit Display, anthrazit matt",105.6,null,"F2T55EOR-am",51.2,30056718,4010312327746]
[4010312326794,30055803,"FUTH55ED/230V-pg","Funk-Uhren-Thermo-Hygrostat mit Display, polarweiß glänzend",105.6,null,"F2T55EOR-pm",51.2,30056727,4010312327760]
[4010312326800,30055804,"FUTH55ED/230V-pm","Funk-Uhren-Thermo-Hygrostat mit Display, polarweiß matt",105.6,null,"F4T55EOR-pg",51.2,30056733,4010312327784]
[4010312326817,30055805,"FUTH55ED/230V-wg","Funk-Uhren-Thermo-Hygrostat mit Display, reinweiß glänzend",105.6,null,"F4T55EOR-pm",51.2,30056734,4010312327852]
[4010312326442,30055806,"FSU55ED/230V-am","Funk-Schaltuhr mit Display, anthrazit matt",99.4,null,"DSS55EOR-pg",7.5,30056893,4010312327791]
[4010312326459,30055807,"FSU55ED/230V-pg","Funk-Schaltuhr mit Display, polarweiß glänzend",99.4,null,"DSS55EOR-pm",7.5,30056894,4010312327807]
[4010312326466,30055808,"FSU55ED/230V-pm","Funk-Schaltuhr mit Display, polarweiß matt",99.4,null,"DSS55EOR-wg",7.5,30056895,4010312327616]
[4010312326473,30055809,"FSU55ED/230V-wg","Funk-Schaltuhr mit Display, reinweiß glänzend",99.4,null,"DSS55EOR-am",7.5,30056898,4010312327630]
[4010312328019,30055810,"F1T55E-wg/rot","Funktaster batterie- und leitungslos für Rufsysteme. Rahmen reinweiß glänzend, Wippe rot",64.099999999999994,null,"LUD12-230V",73.8,21100805,4010312107867]
[4010312326480,30055811,"FS55E-pg","Funkschalter batterie- und leitungslos, polarweiß glänzend",53.9,null,"DSS55EOKR-pg",8.3000000000000007,30057893,4010312327821]
[4010312326497,30055812,"FS55E-pm","Funkschalter batterie- und leitungslos, polarweiß matt",53.9,null,"DSS55EOKR-pm",8.3000000000000007,30057894,4010312327838]
[4010312908372,30055826,"R4UE55-wg","4-fach-Universalrahmen, reinweiß glänzend",6.8,null,"DSS55EOKR-wg",8.3000000000000007,30057895,4010312327845]
[4010312908365,30055827,"R2UE55-wg","2-fach-Universalrahmen, reinweiß glänzend",4.9000000000000004,null,"DSS55EOKR-am",8.3000000000000007,30057898,4010312327814]
[4010312908358,30055828,"R3UE55-wg","3-fach-Universalrahmen, reinweiß glänzend",5.5,null,"FLT58-am",108,30058520,4010312323922]
[4010312909256,30055830,"TV55E/2-am","TV/RF-Abdeckung für E-Design55-Rahmen, anthrazit matt",4.0999999999999996,null,"ESR62NP-IP/110-240V",61.1,30062001,4010312324677]
[4010312909263,30055831,"TV55E/2-pg","TV/RF-Abdeckung für E-Design55-Rahmen, polarweiß glänzend",4.0999999999999996,null,"EUD62NPN-IP/110-240V",82.1,30062002,4010312324691]
[4010312909270,30055832,"TV55E/2-pm","TV/RF-Abdeckung für E-Design55-Rahmen, polarweiß matt",4.0999999999999996,null,"ESB62NP-IP/110-240V",70.7,30062003,4010312324707]
[4010312909287,30055833,"TV55E/3-am","TV/RF/SAT-Abdeckung für E-Design55-Rahmen, anthrazit matt",4.0999999999999996,null,"ESR62PF-IP/110-240V",58.2,30062004,4010312324684]
[4010312909294,30055834,"TV55E/3-pg","TV/RF/SAT-Abdeckung für E-Design55-Rahmen, polarweiß glänzend",4.0999999999999996,null,"TA62-IPL/110-240V",91.1,30062101,4010312327883]
[4010312909300,30055835,"TV55E/3-pm","TV/RF/SAT-Abdeckung für E-Design55-Rahmen, polarweiß matt",4.0999999999999996,null,"TA62-IPD/110-240V",104.2,30062102,4010312327890]
[4010312909072,30055836,"TAE55E/3-wg","TAE-Abdeckung 3-fach für E-Design55-Rahmen, reinweiß glänzend",4.0999999999999996,null,"TA62-IPJ/110-240V",98.8,30062103,4010312327906]
[4010312909317,30055837,"TAE55E/3-am","TAE-Abdeckung 3-fach für E-Design55-Rahmen, anthrazit matt",4.0999999999999996,null,"FSR64NP/110-240V",89.9,30064001,4010312320716]
[4010312909102,30055838,"TV55E/2-wg","TV/RF-Abdeckung für E-Design55-Rahmen, reinweiß glänzend",4.0999999999999996,null,"FUD64NPN/110-240V",106.4,30064002,4010312320723]
[4010312909324,30055839,"TAE55E/3-pg","TAE-Abdeckung 3-fach für E-Design55-Rahmen, polarweiß glänzend",4.0999999999999996,null,"FSB64NP/110-240V",93.9,30064003,4010312320730]
[4010312909089,30055840,"TV55E/3-wg","TV/RF/SAT-Abdeckung für E-Design55-Rahmen, reinweiß glänzend",4.0999999999999996,null,"FSR64PF/110-240V",83,30064004,4010312321355]
[4010312909331,30055841,"TAE55E/3-pm","TAE-Abdeckung 3-fach für E-Design55-Rahmen, polarweiß matt",4.0999999999999996,null,"FEM65-wg",95.7,30065016,4010312315934]
[4010312909096,30055842,"UAE55E/2-wg","UAE/IAE-Abdeckung 2-fach für E-Design55-Rahmen, reinweiß glänzend",4.0999999999999996,null,"FCO2TS-wg",246.2,30065278,4010312324004]
[4010312909348,30055843,"UAE55E/2-am","UAE/IAE-Abdeckung 2-fach für E-Design55-Rahmen, anthrazit matt",4.0999999999999996,null,"FRP65/230V-wg",83.7,30065350,4010312315927]
[4010312909355,30055844,"UAE55E/2-pg","UAE/IAE-Abdeckung 2-fach für E-Design55-Rahmen, polarweiß glänzend",4.0999999999999996,null,"FKF65-wg",65.599999999999994,30065545,4010312316115]
[4010312909362,30055845,"UAE55E/2-pm","UAE/IAE-Abdeckung 2-fach für E-Design55-Rahmen, polarweiß matt",4.0999999999999996,null,"FABH65S-wg",120.9,30065852,4010312315798]
[4010312325575,30055891,"DSS55E+2xUSBA-pg","Schutzkontakt-Steckdose mit 2xUSB-A, polarweiß glänzend",42.4,null,"FZS65-wg",96.9,30067545,4010312316139]
[4010312325582,30055892,"DSS55E+2xUSBA-pm","Schutzkontakt-Steckdose mit 2xUSB-A, polarweiß matt",42.4,null,"FSSA-230V",113.8,30100001,4010312314562]
[4010312325599,30055893,"DSS55E-pg","DSS mit Steckdosen-Oberteil, polarweiß glänzend",8.4,null,"FSUD-230V",140.19999999999999,30100002,4010312314791]
[4010312325605,30055894,"DSS55E-pm","DSS mit Steckdosen-Oberteil, polarweiß matt",8.4,null,"FSVA-230V-10A",121.5,30100003,4010312314555]
[4010312320082,30055895,"DSS55E-wg","DSS mit Steckdosen-Oberteil, reinweiß glänzend",8.4,null,"FSR61/8-24V UC",90,30100004,4010312301357]
[4010312322512,30055896,"DSS55E+2xUSBA-wg","Schutzkontakt-Steckdose mit 2xUSB-A, reinweiß glänzend",42.4,null,"FSR61-230V",90,30100005,4010312301531]
[4010312323830,30055897,"DSS55E+USBA+C-wg","Schutzkontakt-Steckdose mit USB-A und USB-C, reinweiß glänzend",50.3,null,"FSHA-230V",119.7,30100008,4010312318997]
[4010312323823,30055898,"DSS55E-am","DSS mit Steckdosen-Oberteil, anthrazit matt",8.4,null,"FSR61VA-10A",100,30100010,4010312311462]
[4010312324301,30055899,"DSS55E+2xUSBA-am","Schutzkontakt-Steckdose mit 2xUSB-A, anthrazit matt",42.4,null,"FASSA-230V",112,30100011,4010312323984]
[4010312324318,30055900,"DSS55E+USBA+C-am","Schutzkontakt-Steckdose mit USB-A und USB-C, anthrazit matt",50.3,null,"FASWZ-16A",114.9,30100015,4010312324509]
[4010312325612,30055901,"DSS55E+USBA+C-pg","Schutzkontakt-Steckdose mit USB-A und USB-C, polarweiß glänzend",50.3,null,"FTTB",75,30100018,4010312321119]
[4010312325629,30055902,"DSS55E+USBA+C-pm","Schutzkontakt-Steckdose im E-Design55 mit USB-A und USB-C, polarweiß matt",50.3,null,"FSLA-230V",84.6,30100020,4010312324141]
[4010312909768,30055930,"W-WT55E-am","Wippe im E-Design55, ungraviert, anthrazit matt",2.5,null,"EUD12NPN-UC",70.3,21100806,4010312107843]
[4010312909775,30055931,"W-WT55E-pg","Wippe im E-Design55, ungraviert, polarweiß glänzend",2.5,null,"EUD12DK/800W-UC",79.8,21100810,4010312109656]
[4010312909782,30055932,"W-WT55E-pm","Wippe im E-Design55, ungraviert, polarweiß matt",2.5,null,"EUD12F",86.4,21100830,4010312108086]
[4010312909799,30055933,"W-WT55E-wg","Wippe im E-Design55, ungraviert, reinweiß glänzend",2.5,null,"EUD12D-UC",84.3,21100905,4010312109489]
[4010312909805,30055934,"DW-W2T55E-am","Doppelwippe im E-Design55, ungraviert, anthrazit matt",3.5,null,"MOD12D-UC",84.4,21100906,4010312109526]
[4010312909812,30055935,"DW-W2T55E-pg","Doppelwippe im E-Design55, ungraviert, polarweiß glänzend",3.5,null,"XS12-100-230V",36.1,21100930,4010312101513]
[4010312909829,30055936,"DW-W2T55E-pm","Doppelwippe im E-Design55, ungraviert, polarweiß matt",3.5,null,"ES12-110-UC",58.2,21110002,4010312108055]
[4010312909836,30055937,"DW-W2T55E-wg","Doppelwippe im E-Design55, ungraviert, reinweiß glänzend",3.5,null,"S12-110-8V",41.5,21110010,4010312100486]
[4010312908969,30055949,"W-F1T55E-","Wippe für Funktaster 55x55mm, reinweiß glänzend E-Design55",8,null,"FSR61G-230V",93.8,30100029,4010312313886]
[4010312908426,30055952,"DW-F4T55E-","Doppelwippe für Funktaster und Funkttaster mit Batterie im E-Design55",8.8000000000000007,null,"FSR61NP-230V",92.3,30100030,4010312300190]
[4010312908983,30055953,"DW-F4T55EB-","Doppelwippe für Funktaster E-Design55",8.8000000000000007,null,"FHK61SSR-230V",95.2,30100034,4010312314906]
[4010312909393,30055954,"DW-F4T55E-wg+2P","Doppelwippe für Funktaster und Funkttaster mit Batterie im E-Design55, Pfeil oben (auf) und unten (ab)",8.8000000000000007,null,"FDH62NP-230V+FTKB",119.7,30100036,4010312319826]
[4010312909409,30055955,"DW-F4T55E-am+2P","Doppelwippe für Funktaster und Funkttaster mit Batterie im E-Design55, Pfeil oben (auf) und unten (ab)",8.8000000000000007,null,"FLC61NP-230V",94.3,30100040,4010312312032]
[4010312909508,30055956,"DW-F4T55E/10-am","10x Doppelwippe für Funktaster und Funktaster mit Batterie im E-Design55, anthrazit matt",2.0699999999999998,null,"S12-110-12V",39.4,21110011,4010312100493]
[4010312909492,30055957,"DW-F4T55E/10-wg","10x Doppelwippe für Funktaster und Funktaster mit Batterie im E-Design55, reinweiß glänzend",2.0699999999999998,null,"S12-110-24V",41.5,21110020,4010312100509]
[4010312909553,30055958,"DW-F4T55E/10-pg","10x Doppelwippe für Funktaster und Funktaster mit Batterie im E-Design55, polarweiß glänzend",2.0699999999999998,null,"S12-110-230V",39.4,21110030,4010312100516]
[4010312909560,30055959,"DW-F4T55E/10-pm","10x Doppelwippe für Funktaster und Funktaster mit Batterie im E-Design55, polarweiß matt",2.0699999999999998,null,"S12-110-12V DC",41.5,21110054,4010312101261]
[4010312909485,30055965,"W-F2T55E-am","Wippe für Funktaster und Funkttaster mit Batterie im E-Design55, anthrazit matt",5,null,"XR12-310-230V",62,22310930,4010312201428]
[4010312908396,30055966,"W-F2T55E-","Wippe für Funktaster und Funkttaster mit Batterie im E-Design55",8,null,"FHK61-230V",94.2,30100045,4010312302309]
[4010312909416,30055967,"W-F2T55E-wg+2P","Wippe für Funktaster und Funkttaster mit Batterie im E-Design55, Pfeil oben (auf) und unten (ab)",8,null,"FHK61U-230V",93.8,30100050,4010312315118]
[4010312908976,30055968,"W-F2T55EB-wg-","Wippe für Funktaster 55x55mm, reinweiß glänzend E-Design55",8,null,"FTN61NP-230V",92.7,30100130,4010312300206]
[4010312909423,30055969,"W-F2T55E-am+2P","Wippe für Funktaster und Funkttaster mit Batterie im E-Design55, Pfeil oben (auf) und unten (ab)",8,null,"FMZ61-230V",89.1,30100230,4010312302293]
[4010312909515,30055970,"W-F2T55E/10-wg","10x Wippe für Funktaster und Funktaster mit Batterie im E-Design55, reinweiß glänzend",1.55,null,"S12-110-24V DC",41.5,21110055,4010312101278]
[4010312909522,30055971,"W-F2T55E/10-am","10x Wippe für Funktaster und Funktaster mit Batterie im E-Design55, anthrazit matt",1.55,null,"SS12-110-12V",46,21110211,4010312101346]
[4010312909539,30055972,"W-F2T55E/10-pg","10x Wippe für Funktaster und Funktaster mit Batterie im E-Design55, polarweiß glänzend",1.55,null,"SS12-110-230V",46,21110230,4010312101124]
[4010312909546,30055973,"W-F2T55E/10-pm","10x Wippe für Funktaster und Funktaster mit Batterie im E-Design55, polarweiß matt",1.55,null,"ES12Z-110-UC",68.2,21110601,4010312107683]
[4010312327753,30056702,"F2T55EOR-pg","Funktaster ohne Einzelrahmen, polarweiß glänzend",51.2,null,"FL62NP-230V",65.8,30100530,4010312319109]
[4010312327739,30056705,"F4T55EOR-wg","Funktaster ohne Einzelrahmen, reinweiß glänzend",51.2,null,"FL62-230V",65.8,30100532,4010312319383]
[4010312327777,30056708,"F4T55EOR-am","Funktaster ohne Einzelrahmen, anthrazit matt",51.2,null,"FD62NPN-230V",75.599999999999994,30100535,4010312319086]
[4010312327722,30056715,"F2T55EOR-wg","Funktaster ohne Einzelrahmen, reinweiß glänzend",51.2,null,"FD62NP-230V",77.099999999999994,30100537,4010312319468]
[4010312327746,30056718,"F2T55EOR-am","Funktaster ohne Einzelrahmen, anthrazit matt",51.2,null,"FR62-230V",65.8,30100540,4010312320327]
[4010312327760,30056727,"F2T55EOR-pm","Funktaster ohne Einzelrahmen, polarweiß matt",51.2,null,"FR62NP-230V",65.8,30100543,4010312320464]
[4010312327784,30056733,"F4T55EOR-pg","Funktaster ohne Einzelrahmen, polarweiß glänzend",51.2,null,"FSS12-12V DC",112.1,30100600,4010312301944]
[4010312327852,30056734,"F4T55EOR-pm","Funktaster ohne Einzelrahmen, polarweiß matt",51.2,null,"FUD61NP-230V",105.1,30100830,4010312300183]
[4010312327791,30056893,"DSS55EOR-pg","DSS ohne Einzelrahmen, polarweiß glänzend",7.5,null,"FUD61NPN-230V",109.2,30100835,4010312300299]
[4010312327807,30056894,"DSS55EOR-pm","DSS ohne Einzelrahmen, polarweiß matt",7.5,null,"FKLD61",106.1,30100836,4010312314357]
[4010312327616,30056895,"DSS55EOR-wg","DSS ohne Einzelrahmen, reinweiß glänzend",7.5,null,"FLD61",100.1,30100837,4010312315255]
[4010312327630,30056898,"DSS55EOR-am","DSS ohne Einzelrahmen, anthrazit matt",7.5,null,"FSG71/1-10V",115.4,30100841,4010312316283]
[4010312327821,30057893,"DSS55EOKR-pg","DSS mit Steckdosen-Oberteil im E-Design55, ohne Krallen und Rahmen, polarweiß glänzend",8.3000000000000007,null,"FUD71-230V",124.4,30100845,4010312316207]
[4010312327838,30057894,"DSS55EOKR-pm","DSS mit Steckdosen-Oberteil im E-Design55, ohne Krallen und Rahmen, polarweiß matt",8.3000000000000007,null,"FUD71L/1200W-230V",156.80000000000001,30100846,4010312316412]
[4010312327845,30057895,"DSS55EOKR-wg","DSS mit Steckdosen-Oberteil im E-Design55, ohne Krallen und Rahmen, reinweiß glänzend",8.3000000000000007,null,"FSR70S-230V-rw",92.2,30100862,4010312301487]
[4010312327814,30057898,"DSS55EOKR-am","DSS mit Steckdosen-Oberteil im E-Design55, ohne Krallen und Rahmen, anthrazit matt",8.3000000000000007,null,"FSR71NP-230V",95.5,30100865,4010312316221]
[4010312323922,30058520,"FLT58-am","Funk-Luftgüte-Tischsensor + Temperatur und Feuchtigkeit",108,null,"DL-1CH-8A-DC12+",127.8,33000015,4010312321515]
[4010312328255,30058893,"DSS55EOR-pg 10 St.","10x Schutzkontakt-Steckdose mit Oberteil polarweiß glänzend E-Design55 ohne Rahmen",7.5,null,"XS12-110-230V",43.9,21110930,4010312101551]
[4010312328262,30058894,"DSS55EOR-pm 10 St.","10x Schutzkontakt-Steckdose mit Oberteil polarweiß matt E-Design55 ohne Rahmen",7.5,null,"ES12-200-UC",59.1,21200002,4010312108048]
[4010312328279,30058895,"DSS55EOR-pg 10 St.","10x Schutzkontakt-Steckdose mit Oberteil polarweiß glänzend E-Design55 ohne Rahmen",7.5,null,"S12-200-8V",41.5,21200010,4010312100523]
[4010312328248,30058898,"DSS55EOR-am 10 St.","10x Schutzkontakt-Steckdose mit Oberteil anthrazit matt E-Design55 ohne Rahmen",7.5,null,"S12-200-12V",39.4,21200011,4010312100530]
[4010312324677,30062001,"ESR62NP-IP/110-240V","Stromstoß-Schaltrelais IP, Apple Home über Wi-Fi, 1 Schließer nicht potenzialfrei 16A. REST-API und built for Matter",61.1,null,"DL-1CH-R16A-DC12+",147.9,33000022,4010312321584]
[4010312324691,30062002,"EUD62NPN-IP/110-240V","Universal-Dimmaktor IP, Apple Home über Wi-Fi, bis 300W, REST-API",82.1,null,"FMS61NP-230V",94.6,30200330,4010312300268]
[4010312324707,30062003,"ESB62NP-IP/110-240V","Beschattungsaktor IP, Apple Home über Wi-Fi, 1+1 Schließer 4A, Automatische Endlagen­erkennung, REST-API und built for Matter",70.7,null,"FSR61LN-230V",92.3,30200331,4010312313190]
[4010312324684,30062004,"ESR62PF-IP/110-240V","Stromstoß-Schaltrelais IP, Apple Home über Wi-Fi, 1 Schließer potenzialfrei 16A. REST-API und built for Matter",58.2,null,"FSB61NP-230V ",92.1,30200430,4010312300213]
[4010312328422,30062007,"EUD62NPN-IPM/110-240V","Universal-Dimmaktor IP, Matter über Wi-Fi, bis 300W, REST-API",82.1,null,"S12-200-24V",41.5,21200020,4010312100547]
[4010312320716,30064001,"FSR64NP/110-240V","Funkaktor Stromstoß-Schaltrelais 16A, nicht potenzialfrei",89.9,null,"FSB61-230V ",94.9,30200432,4010312317235]
[4010312320723,30064002,"FUD64NPN/110-240V","Funk-Universal-Dimmaktor bis 300W",106.4,null,"FJ62NP-230V",66.3,30200535,4010312319390]
[4010312320730,30064003,"FSB64NP/110-240V","Funk-Beschattungsaktor, nicht potenzialfrei, 1 Motor 4A/250V",93.9,null,"FJ62/12-36VDC",72.400000000000006,30200540,4010312319406]
[4010312321355,30064004,"FSR64PF/110-240V","Funkaktor Stromstoß-Schaltrelais 16A, potenzialfrei",83,null,"FSB71-230V",95.5,30200831,4010312316306]
[4010312320754,30064012,"F2LD64/12-30V DC","Funk-2-Kanal-LED-Dimmaktor",109.3,null,"FWWKW71L",114.6,30200837,4010312318928]
[4010312321652,30064013,"FSB64/12-36V DC","Funk-Beschattungsaktor",100.5,null,"FSR71NP-2x-230V",120.3,30200865,4010312316245]
[4010312322017,30064014,"FSR64PF/12-36V DC","Funkaktor Stromstoß-Schaltrelais",93.1,null,"FSR71-2x-230V",118.9,30200868,4010312316252]
[4010312315934,30065016,"FEM65-wg","Funk-Empfangsantennen-Modul Aufputzmontage, reinweiß glänzend",95.7,null,"FRGBW71L",114.5,30400837,4010312316450]
[4010312315880,30065277,"FCO2TF65-wg","Funk-CO2+Temperatur+Feuchte-Sensor, reinweiß glänzend",156.6,null,"S12-200-230V",39.4,21200030,4010312100554]
[4010312324004,30065278,"FCO2TS-wg","Funk-CO2-Tischsensor mit Temperatur+Feuchte-Sensor, reinweiß glänzend",187,null,"FSR71NP-4x-230V",122.5,30400865,4010312316269]
[4010312315927,30065350,"FRP65/230V-wg","Funkrepeater reinweiß glänzend",83.7,null,"S12-200-12V DC",41.5,21200054,4010312101285]
[4010312316115,30065545,"FKF65-wg","Funk-Kartenschalter, reinweiß glänzend",65.599999999999994,null,"FSB71-2x-230V",119.6,30400868,4010312316290]
[4010312315798,30065852,"FABH65S-wg","Außen-Bewegungs-Helligkeitssensor, reinweiß glänzend",120.9,null,"S+D 25",7.5,30999001,4010312906231]
[4010312320105,30065860,"FBH65S/12V DC-wg","Funk-Bewegungs-Helligkeitssensor, reinweiß glänzend",134.4,null,"R12-400-230V",58.9,22400030,4010312200643]
[4010312316139,30067545,"FZS65-wg","Funk-Zugschalter, reinweiß glänzend",96.9,null,"FSAF-gr",3.9,30999002,4010312908136]
[4010312314562,30100001,"FSSA-230V","Funk-Steckdosen-Schaltaktor, 1 Schließer 10A",113.8,null,"FTE215",52.7,30999003,4010312318539]
[4010312314791,30100002,"FSUD-230V","Funkaktor Steckdosen-Universal-Dimmschalter, bis 300W",140.19999999999999,null,"FTE215B",52.7,30999004,4010312328118]
[4010312314555,30100003,"FSVA-230V-10A","Funkaktor Steckdosen-Schaltaktor mit Strommessung, 1 Schließer 10A",121.5,null,"FTE215BLE",62.2,30999005,4010312318553]
[4010312301357,30100004,"FSR61/8-24V UC","Funkaktor Stromstoß-Schaltrelais, 8-24V UC, 1 Schließer 10A",90,null,"PL-SAMTEMP",217.3,31000010,4010312316733]
[4010312301531,30100005,"FSR61-230V","Funkaktor Stromstoß-Schaltrelais, 1 Schließer 10A",90,null,"PL-SW-PROF",399.2,31000020,4010312316856]
[4010312318997,30100008,"FSHA-230V","Funkaktor Steckdosen-Heizaktor",119.7,null,"PL-RPT",101.7,31000030,4010312324103]
[4010312311462,30100010,"FSR61VA-10A","Funkaktor Stromstoß-Schaltrelais mit Strommessung, 1 Schließer nicht pot.frei 10A/250V AC",100,null,"S12-200-24V DC",41.5,21200055,4010312101292]
[4010312323984,30100011,"FASSA-230V","Funk-Außen-Steckdosen-Schaltaktor, 1 Schließer 16A",112,null,"PL-SAM1L",113.3,31100001,4010312316665]
[4010312324509,30100015,"FASWZ-16A","Funk-Außen-Steckdosen-Wechselstromzähler, Maximalstrom 16A",114.9,null,"PL-SAM2",115.3,31100002,4010312316689]
[4010312321119,30100018,"FTTB","Funktaster-Tracker, leitungslos",75,null,"PL-SAM1LT",115.3,31100004,4010312316702]
[4010312324141,30100020,"FSLA-230V","Funk-Steckdosen-Lichtaktor, 1 Schließer 10A",84.6,null,"PL-AMD10V",122.8,31100006,4010312316726]
[4010312313886,30100029,"FSR61G-230V","Funkaktor Stromstoß-Schaltrelais geräuschlos durch Solid-State-Relais",93.8,null,"PL-SM1L",109.2,31100007,4010312316740]
[4010312300190,30100030,"FSR61NP-230V","Funkaktor Stromstoß-Schaltrelais, 1 Schließer 10A",92.3,null,"PL-SAMDU",130.69999999999999,31100008,4010312316870]
[4010312314906,30100034,"FHK61SSR-230V","Funkaktor Heiz-Kühl-Relais geräuschlos durch Solid-State-Relais",95.2,null,"PL-FGW",150.6,31100010,4010312324110]
[4010312319826,30100036,"FDH62NP-230V+FTKB","Funk-Dunstabzugshauben-Steuerung mit Fenster-Türkontakt, 1 Schließer 10A",119.7,null,"PL-SAM2L",115.3,31200001,4010312316672]
[4010312328521,30100038,"FDH62NP-230V","Funkaktor für Dunstabzugshauben-Steuerung, 1 Schließer 10A",68,null,"ESR12DDX-UC",76.099999999999994,21200302,4010312108093]
[4010312312032,30100040,"FLC61NP-230V","Funkaktor Licht-Controller, 1 Schließer 10A",94.3,null,"PL-SM8",115.3,31800001,4010312316719]
[4010312302309,30100045,"FHK61-230V","Funkaktor Heiz-Kühl-Relais, 1 Schließer 10A",94.2,null,"DL-3CH-16A-DC12+",161.4,33000018,4010312321539]
[4010312315118,30100050,"FHK61U-230V","Funkaktor Heiz-Kühl-Relais, 1 Schließer 10A",93.8,null,"DL-3CH-8A-DC12+",143.4,33000017,4010312321546]
[4010312300206,30100130,"FTN61NP-230V","Funkaktor Treppenlicht-Nachlaufschalter, 1 Schließer 10A",92.7,null,"DL-3CH-R16A-DC12+",161.4,33000024,4010312321607]
[4010312302293,30100230,"FMZ61-230V","Funkaktor Multifunktions-Zeitrelais, 1 Schließer 10A",89.1,null,"DL-4CH-16A-DC12+",174.9,33000020,4010312321560]
[4010312319109,30100530,"FL62NP-230V","Funk-Lichtaktor, 1 Schließer 10A",65.8,null,"DL-4CH-8A-DC12+",157,33000019,4010312321553]
[4010312319383,30100532,"FL62-230V","Funk-Lichtaktor, 1 Schließer 10A",65.8,null,"DL-4CH-R16A-DC12+",190.6,33000021,4010312321577]
[4010312319086,30100535,"FD62NPN-230V","Funk-Universal-Dimmaktor",75.599999999999994,null,"DL-CTV",311.60000000000002,33000001,4010312321430]
[4010312319468,30100537,"FD62NP-230V","Funk-Universal-Dimmaktor ohne ­N-Anschluss",77.099999999999994,null,"DL-Flash-USB",414.4,33000025,4010312321614]
[4010312320327,30100540,"FR62-230V","Funk-Relaisaktor, 1 Schließer/Öffner 10A",65.8,null,"DL-N2-80mA",92.6,33000026,4010312327685]
[4010312320464,30100543,"FR62NP-230V","Funk-Relaisaktor, 1 Schließer/Öffner 10A",65.8,null,"DL-PD-300W-RLC",228.8,33000009,4010312324028]
[4010312301944,30100600,"FSS12-12V DC","Funk-Stromzähler-Sendemodul",112.1,null,"DL-PD-300W-RLC-HS",228.8,33000008,4010312324073]
[4010312300183,30100830,"FUD61NP-230V","Funkaktor Universal-Dimmschalter ohne N",105.1,null,"DL-RGB-16A-DC12+",199.5,33000014,4010312321508]
[4010312300299,30100835,"FUD61NPN-230V","Funkaktor Universal-Dimmschalter",109.2,null,"DL-RGB-8A-DC12+",159,33000013,4010312321492]
[4010312314357,30100836,"FKLD61","Funkaktor Konstantstrom-LED-Dimmschalter",106.1,null,"DL-RGB-R16A-DC12+",199.5,33000023,4010312321591]
[4010312315255,30100837,"FLD61","Funkaktor PWM-LED-Dimmschalter, 12-36V DC bis 4A",100.1,null,"DL-RM16A-HS-WE",174.9,33000006,4010312324042]
[4010312316283,30100841,"FSG71/1-10V","Funkaktor Dimmschalter-Steuergerät für EVG 1-10V, 1 Schließer 600VA",115.4,null,"DL-RM8A",150.19999999999999,33000007,4010312324035]
[4010312316207,30100845,"FUD71-230V","Funkaktor Universal-Dimmschalter bis 400W",124.4,null,"DL-TW-2LT-16A-DC12+",172.5,33000011,4010312321478]
[4010312316412,30100846,"FUD71L/1200W-230V","Funkaktor Universal-Dimmschalter bis 1200W",156.80000000000001,null,"DL-TW-2LT-8A-DC12+",143.5,33000010,4010312321461]
[4010312301487,30100862,"FSR70S-230V-rw","Stromstoß-Schaltrelais als Schnurschalter reinweiß, 1 Schließer 10A",92.2,null,"DL-TW-2LT-R16A-DC12+",186.2,33000012,4010312321485]
[4010312316221,30100865,"FSR71NP-230V","Funkaktor Stromstoß-Schaltrelais, 1 Schließer 16A",95.5,null,"DL-USB mini",408.1,33000002,4010312321447]
[4010312317556,30100867,"FDG71L-230V","Funk-DALI-Gateway",140.6,null,"FDG14",95.6,30014047,4010312316085]
[4010312320921,30100868,"FDG62-230V","Funk-DALI-Gateway",79.8,null,"FDG62-230V",79.8,30100868,4010312320921]
[4010312300268,30200330,"FMS61NP-230V","Funkaktor Multifunktions-Stromstoßschalter, 1 + 1 Schließer 10A",94.6,null,"FDG71L-230V",140.6,30100867,4010312317556]
[4010312313190,30200331,"FSR61LN-230V","Funkaktor Stromstoß-Schaltrelais,2 Schließer zum 2-poligen Schalten 10A",92.3,null,"RTD",4.2,60000015,4010312908273]
[4010312300213,30200430,"FSB61NP-230V ","Funkaktor für Beschattungselemente, 1 + 1 Schließer 4A",92.1,null,"ES75-12..24V UC",61,60100055,4010312101063]
[4010312317235,30200432,"FSB61-230V ","Funkaktor ohne N-Anschluss für Beschattungselemente, 1 + 1 Schließer 4A",94.9,null,"SNT61-230V/12VDC-0,5A",62.2,61000164,4010312301319]
[4010312319390,30200535,"FJ62NP-230V","Funk-Jalousie- und Rollladen-Aktor, 1 + 1 Schließer 4A",66.3,null,"SNT61-230V/24VDC-0,25A",62.2,61000165,4010312301326]
[4010312319406,30200540,"FJ62/12-36VDC","Funk-Jalousie- und Rollladen-Aktor 12-24V DC, 1 + 1 Schließer 4A",72.400000000000006,null,"WNT61-12VDC/10W",47.2,61000264,4010312401934]
[4010312316306,30200831,"FSB71-230V","Funkaktor Beschattungselemente und Rollladen für einen 230V-Motor 1+1 Schließer 4A",95.5,null,"WNT61-24VDC/10W",47.2,61000265,4010312401941]
[4010312318928,30200837,"FWWKW71L","Funkaktor PWM-Dimmschalter für LED, mit 4 Kanälen für LED 12-36V DC, je bis 2A",114.6,null,"ER61-UC",54.7,61001601,4010312205358]
[4010312316245,30200865,"FSR71NP-2x-230V","2-Kanal-Funkaktor Stromstoß-Schaltrelais, je 1 Schließer 16A",120.3,null,"ESR61NP-230V+UC",58.1,61100001,4010312107911]
[4010312316252,30200868,"FSR71-2x-230V","2-Kanal-Funkaktor Stromstoß-Schaltrelais, je 1 Schließer 16A",118.9,null,"ESR61SSR-230V",55.9,61100003,4010312109786]
[4010312316450,30400837,"FRGBW71L","Funkaktor PWM-Dimmschalter für LED, mit 4 Kanälen für LED 12-36V DC, je bis 2A",114.5,null,"TLZ61NP-230V",56.2,61100102,4010312400791]
[4010312316269,30400865,"FSR71NP-4x-230V","4-Kanal-Funkaktor Stromstoß-Schaltrelais, je 1 Schließer 4A",122.5,null,"TLZ61NP-230V+UC",60.4,61100301,4010312400739]
[4010312316290,30400868,"FSB71-2x-230V","Funkaktor Beschattungslemente und Rollladen 2 Kanäle für zwei 230V-Motoren, 2+2 Schließer 4A",119.6,null,"SBR61-230V/120µF",54.8,61100330,4010312205464]
[4010312906231,30999001,"S+D 25","25 Schrauben und Dübel 25mm",7.5,null,"ES61-UC",57.9,61100501,4010312107966]
[4010312908136,30999002,"FSAF-gr","Abdeckfolie grau für Glasflächen-Rückseite, bitte die gewünschte Größe angeben",3.9,null,"FR61-230V",76.099999999999994,61100530,4010312203477]
[4010312318539,30999003,"FTE215","Funktaster-Einsatz EnOcean, grau",52.7,null,"MFZ61DX-UC",59.5,61100604,4010312603055]
[4010312328118,30999004,"FTE215B","Funktaster-Einsatz, grau",52.7,null,"EGS12Z-UC",78.400000000000006,21200401,4010312107737]
[4010312318553,30999005,"FTE215BLE","Funktaster-Einsatz EnOcean, grau",62.2,null,"ETR61NP-230V",45.6,61100630,4010312205488]
[4010312316733,31000010,"PL-SAMTEMP","Powerline-Temperatur-Regler für Heizen und Kühlen",217.3,null,"ETR61NP-230V+FK ",78.400000000000006,61100631,4010312205495]
[4010312316856,31000020,"PL-SW-PROF","Software PL-SW-PROF",399.2,null,"ETR61-230V",45.6,61100635,4010312206690]
[4010312324103,31000030,"PL-RPT","Powerline-Repeater",101.7,null,"NLZ61NP-UC",56.8,61100704,4010312603048]
[4010312316665,31100001,"PL-SAM1L","Powerline-Aktor 1 Kanal mit Sensoreingang 230V",113.3,null,"SDS61/1-10V",65.5,61100800,4010312109496]
[4010312316689,31100002,"PL-SAM2","Powerline-Jalousie-Aktor für 1 Motor",115.3,null,"EUD61NPN-UC",67.400000000000006,61100801,4010312107874]
[4010312316702,31100004,"PL-SAM1LT","Powerline-TLZ-Aktor 1 Kanal mit Sensoreingang 230V",115.3,null,"EUD61NPN-230V",68.7,61100802,4010312109564]
[4010312316726,31100006,"PL-AMD10V","Powerline-Dimmaktor 1-10V",122.8,null,"EUD61NP-230V",71.2,61100830,4010312108062]
[4010312316740,31100007,"PL-SM1L","Powerline-Sensoreingang 230V",109.2,null,"EUD61NPL-230V",68.400000000000006,61100832,4010312109618]
[4010312316870,31100008,"PL-SAMDU","Powerline-Universal-Dimmaktor 1 Kanal mit Sensoreingang 230V",130.69999999999999,null,"ELD61/12-36V DC",62.5,61100865,4010312109502]
[4010312324110,31100010,"PL-FGW","Powerline-Funk-Gateway",150.6,null,"EUD61M-UC",61.1,61100903,4010312107973]
[4010312316672,31200001,"PL-SAM2L","Powerline-Aktor 2 Kanäle mit 2 Sensoreingängen",115.3,null,"ESR61M-UC",71.900000000000006,61200301,4010312108079]
[4010312316719,31800001,"PL-SM8","Powerline-Sensoreingang 8 Kanäle interne Kleinspannung",115.3,null,"EGS61Z-230V",74.5,61200430,4010312108123]
[4010312321430,33000001,"DL-CTV","DALI-Steuergerät zur Steuerung des circadianen Tageslichtverlaufs für Einbaumontage",311.60000000000002,null,"MTR62-230V",58.7,61400603,4010312206829]
[4010312321447,33000002,"DL-USB mini","DALI-USB Interface mini für Einbaumontage",408.1,null,"GLE Grundlastelement",7.2,70000008,4010312900970]
[4010312324042,33000006,"DL-RM16A-HS-WE","DALI-Relaismodul 16A Tragschiene (DT7)",174.9,null,"ES75-Stecker",2.6,70000015,4010312904138]
[4010312324035,33000007,"DL-RM8A","DALI-2-Relaismodul 8A für Einbaumontage (DT7)",150.19999999999999,null,"S81-002-230V",38.6,81002030,4010312103333]
[4010312324073,33000008,"DL-PD-300W-RLC-HS","DALI-2-Phasendimmer 300W Tragschiene (DT4)",228.8,null,"R81-002-230V",38.6,81002430,4010312203040]
[4010312324028,33000009,"DL-PD-300W-RLC","DALI-2-Phasendimmer 300W Zwischendecke (DT4)",228.8,null,"S91-100-8V",35,91100010,4010312103500]
[4010312321461,33000010,"DL-TW-2LT-8A-DC12+","DALI-LED-tunable-white-Dimmer 8A für Einbaumontage",143.5,null,"S91-100-12V",31,91100011,4010312103517]
[4010312321478,33000011,"DL-TW-2LT-16A-DC12+","DALI-2-LED-tunable-white-Dimmer 16A Zwischendecke",172.5,null,"S91-100-230V",31.7,91100030,4010312103531]
[4010312321485,33000012,"DL-TW-2LT-R16A-DC12+","DALI-LED-tunable-white-Dimmer 16A Tragschiene",186.2,null,"R91-100-8V",35,91100410,4010312203095]
[4010312321492,33000013,"DL-RGB-8A-DC12+","DALI-LED RGB-Dimmer 8A für Einbaumontage (DT8)",159,null,"R91-100-12V",31,91100411,4010312203101]
[4010312321508,33000014,"DL-RGB-16A-DC12+","DALI-2-LED-RGB-Dimmer 16A Zwischendecke (DT8)",199.5,null,"R91-100-230V",31.7,91100430,4010312203125]
[4010312321515,33000015,"DL-1CH-8A-DC12+","DALI-LED-1-Kanal-Dimmer 8A für Einbaumontage",127.8]
[4010312321522,33000016,"DL-1CH-16A-DC12+","DALI-2-LED-1-Kanal -Dimmer 16A Zwischendecke",146.5]
[4010312321546,33000017,"DL-3CH-8A-DC12+","DALI-LED-3-Kanal-Dimmer 8A für Einbaumontage (DT6)",143.4]
[4010312321539,33000018,"DL-3CH-16A-DC12+","DALI-2-LED-3-Kanal-Dimmer 16A Zwischendecke (DT6)",161.4]
[4010312321553,33000019,"DL-4CH-8A-DC12+","DALI-LED-4-Kanal-Dimmer 8A für Einbaumontage (DT6)",157]
[4010312321560,33000020,"DL-4CH-16A-DC12+","DALI-2-LED-4-Kanal-Dimmer 16A ­Zwischendecke (DT6)",174.9]
[4010312321577,33000021,"DL-4CH-R16A-DC12+","DALI-LED-4-Kanal-Dimmer 16A Tragschiene (DT6)",190.6]
[4010312321584,33000022,"DL-1CH-R16A-DC12+","DALI-LED-1-Kanal-Dimmer 16A Tragschiene",147.9]
[4010312321591,33000023,"DL-RGB-R16A-DC12+","DALI-LED-RGB-Dimmer 16A Tragschiene (DT8)",199.5]
[4010312321607,33000024,"DL-3CH-R16A-DC12+","DALI-LED-3-Kanal-Dimmer 16A Tragschiene (DT6)",161.4]
[4010312321614,33000025,"DL-Flash-USB","DALI-USB Interface Tragschiene",414.4]
[4010312327685,33000026,"DL-N2-80mA","DALI-2-Bus-Netzteil 80mA UP-Dose",92.6]
[4010312328392,33000027,"DL2-TK1L","DALI-2 1-Kanal-Tasterkoppler",156,null,"ES12Z-200-UC",68.2,21200601,4010312107690]
[4010312328408,33000028,"DL2-TK1L-N-50mA","DALI-2 1-Kanal-Tasterkoppler + Spannungsversorgung",172,null,"XS12-200-230V",43.9,21200930,4010312101605]
[4010312328415,33000029,"DL2-TK2L-N-50mA","DALI-2 2-Kanal-Tasterkoppler + Spannungsversorgung",179,null,"S12-220-230V",57.2,21220030,4010312100592]
[4010312328460,33000030,"DL2-BH98S-pm","DALI-2 Bewegungs-Helligkeitssensor-Standard",162.5,null,"XS12-220-230V",60.2,21220930,4010312101759]
[4010312328477,33000031,"DL2-BH98B-pm","DALI-2 Bewegungs-Helligkeitssensor-Büro",162.5,null,"S12-310-230V",57.2,21310030,4010312100639]
[4010312909867,33000032,"GZD-BH98","Gehäuse für Zwischendeckenmontage",8.1,null,"XS12-310-230V",60.2,21310930,4010312101704]
[4010312909874,33000033,"GAP-BH98-pm","Gehäuse für Aufputzmontage, polarweiß matt",15.5,null,"S12-400-230V",57.2,21400030,4010312104484]
[4010312908273,60000015,"RTD","Richtungstaster-Diode",4.2]
[4010312101063,60100055,"ES75-12..24V UC","Stromstoßschalter für Leuchteneinbau, 1 Schließer 10A",61]
[4010312301319,61000164,"SNT61-230V/12VDC-0,5A","Schaltnetzteil 12V DC",62.2,null,"LRW12D-UC",81.400000000000006,22400501,4010312206553]
[4010312301326,61000165,"SNT61-230V/24VDC-0,25A","Schaltnetzteil 24V DC",62.2,null,"MTR12-UC",74.2,22400601,4010312205211]
[4010312401934,61000264,"WNT61-12VDC/10W","Weitbereichs-Schaltnetzteil 12V DC",47.2,null,"ESR12Z-4DX-UC",106.7,21400301,4010312108130]
[4010312401941,61000265,"WNT61-24VDC/10W","Weitbereichs-Schaltnetzteil 24V DC",47.2,null,"EGS12Z2-UC",99.7,21400401,4010312108031]
[4010312205358,61001601,"ER61-UC","Schaltrelais, 1 Wechsler 10A",54.7]
[4010312107911,61100001,"ESR61NP-230V+UC","Stromstoß-Schaltrelais, 1 Schließer 10A",58.1]
[4010312109786,61100003,"ESR61SSR-230V","Stromstoß-Schaltrelais geräuschlos durch Solid-State-Relais",55.9]
[4010312400791,61100102,"TLZ61NP-230V","Treppenlicht-Zeitschalter, 1 Schließer 10A",56.2]
[4010312400739,61100301,"TLZ61NP-230V+UC","Treppenlicht-Zeitschalter, 1 Schließer 10A",60.4]
[4010312205464,61100330,"SBR61-230V/120µF","Strombegrenzungsrelais kapazitiv, 1 Schließer 10A",54.8]
[4010312107966,61100501,"ES61-UC","Stromstoßschalter, 1 Schließer 10A",57.9]
[4010312203477,61100530,"FR61-230V","Selbstlernender Feldfreischalter, 1 Schließer 10A",76.099999999999994]
[4010312603055,61100604,"MFZ61DX-UC","Analog einstellbares Multifunktions-Zeitrelais, 1 Schließer 10A",59.5]
[4010312205488,61100630,"ETR61NP-230V","Trennrelais, 1 Schließer 10A",45.6]
[4010312205495,61100631,"ETR61NP-230V+FK ","Trennrelais mit Fensterkontakt, 1 Schließer 10A",78.400000000000006]
[4010312206690,61100635,"ETR61-230V","Trennrelais, 1 Schließer 5A",45.6]
[4010312603048,61100704,"NLZ61NP-UC","Nachlaufschalter, 1 Schließer 10A",56.8]
[4010312109496,61100800,"SDS61/1-10V","1-10V-Steuer-Dimmschalter für EVG, 1 Schließer 600VA",65.5]
[4010312107874,61100801,"EUD61NPN-UC","Universal-Dimmschalter, Power MOSFET bis 400W",67.400000000000006]
[4010312109564,61100802,"EUD61NPN-230V","Universal-Dimmschalter, Power MOSFET bis 400W",68.7]
[4010312108062,61100830,"EUD61NP-230V","Universal-Dimmschalter, Power MOSFET bis 400W",71.2]
[4010312109618,61100832,"EUD61NPL-230V","Universal-Dimmschalter, ohne N-Anschluss speziell für LED, Power MOSFET bis 200W",68.400000000000006]
[4010312109502,61100865,"ELD61/12-36V DC","LED-Dimmschalter, Power MOSFET bis 7,5A",62.5]
[4010312107973,61100903,"EUD61M-UC","Multifunktions-Universal-Dimmschalter, Power MOSFET bis 400W",61.1]
[4010312108079,61200301,"ESR61M-UC","Multifunktions-Stromstoß-Schaltrelais, 1 + 1 Schließer 10A",71.900000000000006]
[4010312108123,61200430,"EGS61Z-230V","Stromstoß-Gruppenschalter, 1 + 1 Schließer 10A",74.5]
[4010312206577,61200603,"MTR61-230V","Motor-Trennrelais, 1 + 1 Schließer 10A",70.3,null,"DCM12-UC",71.400000000000006,22400602,4010312205310]
[4010312206829,61400603,"MTR62-230V","Motor-Trennrelais, 2 + 2 Schließer 4A",58.7]
[4010312900970,70000008,"GLE Grundlastelement","Grundlastelement",7.2]
[4010312904138,70000015,"ES75-Stecker","Stocko-Stecker für Stromstoßschalter ES75",2.6]
[4010312103333,81002030,"S81-002-230V","Stromstoßschalter 230V. 2 Wechsler 10A/250V AC ",38.6]
[4010312203040,81002430,"R81-002-230V","Schaltrelais 230V. 2 Wechsler 10A/250V AC ",38.6]
[4010312103500,91100010,"S91-100-8V","Stromstoßschalter 8V. 1 Schließer 10A/250V AC ",35]
[4010312103517,91100011,"S91-100-12V","Stromstoßschalter 12V. 1 Schließer 10A/250V AC ",31]
[4010312103531,91100030,"S91-100-230V","Stromstoßschalter 230V. 1 Schließer 10A/250V AC ",31.7]
[4010312203095,91100410,"R91-100-8V","Schaltrelais 8V. 1 Schließer 10A/250V AC ",35]
[4010312203101,91100411,"R91-100-12V","Schaltrelais 12V. 1 Schließer 10A/250V AC ",31]
[4010312203125,91100430,"R91-100-230V","Schaltrelais 230V. 1 Schließer 10A/250V AC ",31.7]

{"sheet":"Ausschreibungstexte","index":4,"n_rows":178,"n_cols":4,"rows_kept":178,"cut":false,"hidden":true,"merged":[]}
[1]
[2]
[3]
[4]
[5,null,"Menge"]
[6,"Ausschreibung \"Eltako - Das System im Gebäude\" "]
[7]
[null,"SmartHome Zentrale MiniSafe mit App GFA4\nZentrale für eine gewerkeübergreifende Hausautomationslösung.\nVerbindet eine Vielzahl an Funksensoren und Funkaktoren. \nOptionaler Offlinebetrieb über eigenen Access-Point ohne Onlineverbindung. Verschlüsselte Kommunikation.\nSpannungsversorgung: 12V DC, 100V-240V AC, 50/60Hz; Funkprotokolle: EnOcean/868,3MHz, LAN: 1x Ethernet-RJ 45; \nFabrikat/ Typ: Eltako MiniSafe oder gleichwertig",{"$f":"Stückliste!D134","v":0},{"$f":"IF(C8>0,C8,\"\")","v":""}]
[]
[8,"wibutler pro-Home-Server mit App WPHS\nZentrale für eine gewerkeübergreifende Hausautomationslösung.\nVerbindet eine Vielzahl an Funksensoren und Funkaktoren. \nOptionaler Offlinebetrieb über eigenen Access-Point ohne Onlineverbindung. Verschlüsselte Kommunikation.\nSpannungsversorgung: 12V DC, 100V-240V AC, 50/60Hz; Funkprotokolle: EnOcean/868,3MHz, Z-Wave, ZigBee, WLAN, Bluetooth, Bluetooth Smart; LAN: 1x Ethernet-RJ 45; Festplatte: Integrierte 8GB SSD; Arbeitsspeicher: 1GB DDR3-RAM; Prozessor: 1GHz CPU ARMADA 370 ARM v7; Audio: integrierter Lautsprecher, 3,5mm Klinkenanschluss. \nAbmessungen (LxBxH): 11,7x11,7x4,1cm; Farbe: weiß.\nFabrikat/ Typ: Eltako WPHS oder gleichwertig",{"$f":"Stückliste!D135","v":0},""]
[9]
[10,"Funk-Antennenmodul FAM14\nFunk-Antennenmodul für den Eltako-RS485-Bus als Reiheneinbaugerät\nfür Montage auf Tragschiene DIN-EN 60715 TH35\n2 Teilungseinheiten = 36mm breit, 58mm tief\nMit integriertem Schaltnetzteil 12V DC/12 W. Bidirektional. Verschlüsselter Funk.\nStand-by-Verlust: 1 Watt\nVersorgungsspannung: 230V\nFabrikat/ Typ: Eltako FAM14 oder gleichwertig",{"$f":"Stückliste!D15","v":0},""]
[11]
[12,"Funk-Empfangsmodul FEM\nFunk-Empfangsmodul für den RS485 Sub-Bus\nMaße: LxBxH: 78x40x22mm\nBei Anschluss einer größeren Funkantenne FA250 in optimierter Position \nkann die Empfangsreichweite erhöht werden\nFabrikat/ Typ: Eltako FEM oder gleichwertig",{"$f":"Stückliste!D19","v":0},""]
[13]
[14,"RS485-Bus-Gateway FGW14\nMehrfach-Gateway. Bidirektional.\nReiheneinbaugerät für Montage auf Tragschiene DIN-EN 60715 TH35\n1 Teilungseinheiten = 18mm breit, 58mm tief\nZum Einkoppeln von bis zu drei FEM, zur Direktverbindung mit dem Rechner GFVS-Safe II, zur Verbindung mit den Bus-Komponenten der älteren Baureihe 12, einer RS232-Schnittstelle oder als Busverbinder von zwei RS485-Bussen der Baureihe 14\nStand-by-Verlust: 0,5 Watt\nFabrikat/ Typ: Eltako FGW14 oder gleichwertig",{"$f":"Stückliste!D9","v":0},""]
[15]
[16,"RS485-Bus-Gateway FGW14-USB\nGateway mit USB-A-Anschluss. Bidirektional.\nReiheneinbaugerät für Montage auf Tragschiene DIN-EN 60715 TH35\n1 Teilungseinheiten = 18mm breit, 58mm tief\nZum Anschluss eines PCs über eine USB-Schnittstelle, zum Einkoppeln von bis zu drei FEM oder als Busverbinder von zwei RS485-Bussen der Baureihe 14\nStand-by-Verlust: 0,3 Watt\nFabrikat/ Typ: Eltako FGW14-USB oder gleichwertig",{"$f":"Stückliste!D10","v":0},""]
[17]
[null,"RS485-Bus-Gateway BGW14\nRS485-Bus-Gateway. Bidirektional.\n1 Teilungseinheit = 18mm breit, 58mm tief.\nAnschluss an den Eltako-RS485-Bus. Querverdrahtung Bus und Stromversorgung mit Steckbrücke. Betrieb in Verbindung mit FAM14 oder FTS14KS.\nMit bis zu 8 BGW14 lassen sich Daten von bis zu 128 Sensoren in den RS485-Bus einspeisen.\nStand-by-Verlust: 0,3 Watt \nFabrikat/ Typ: Eltako BGW14 oder gleichwertig",{"$f":"Stückliste!D11","v":0},""]
[]
[18,"DALI-Gateway FDG14\nBidirektional.\n2 Teilungseinheiten = 36mm breit, 58mm tief.\nAnschluss an den Eltako-RS485 Bus. Querverdrahtung nur Bus mit Steckbrücke.\nBetrieb in Verbindung mit FAM14.\nVersorgungsspannung 230V an den Klemmen N und L.\nAn die Klemmen DALI +/- können bis zu 64 Stück DALI-Geräte angeschlossen werden.\nStand-by-Verlust: 1 Watt\nFabrikat/ Typ: Eltako FDG14 oder gleichwertig",{"$f":"Stückliste!D42","v":0},{"$f":"IF(C22>0,C22,\"\")","v":""}]
[19]
[20,"RS485-Bus-Wetterdaten-Gateway FWG14MS\nWetterdaten-Gateway für Multisensor MS. Bidirektional.\n1 Teilungseinheit = 18mm breit, 58mm tief.\nAnschluss an den Eltako-RS485-Bus. Quer­verdrahtung Bus und Stromversorgung mit Steckbrücke. Betrieb in Verbindung mit FAM14 oder FTS14KS.\nMit dem PC-Tool PCT14 können 96 Eingänge UND bzw. ODER verknüpft und auf bis zu 12 Ausgängen ausgegeben werden.\nStand-by-Verlust: 0,3 Watt \nFabrikat/ Typ: Eltako FWG14MS oder gleichwertig",{"$f":"Stückliste!D48","v":0},""]
[113]
[112,"RS485-Bus-Aktor 4-Kanal-Stromstoß-Schaltrelais FSR14-4x\nStromstoß-Schaltrelais mit 4 Kanälen, je 1 Schließer 4A/250V AC, Glühlampen 1000W,\npotentialgetrennt von der Versorgungsspannung, mit DX-Technologie. Bidirektional.\nReiheneinbaugerät für Montage auf Tragschiene DIN-EN 60715 TH35\n1 Teilungseinheit = 18mm breit, 58mm tief\nStand-by-Verlust: 0,1 Watt\nVersorgungsspannung: 12V DC\nFabrikat/ Typ: Eltako FSR14-4x oder gleichwertig",{"$f":"Stückliste!D33","v":0},""]
[21]
[22,"RS485-Bus-Aktor 2-Kanal-Stromstoß-Schaltrelais FSR14-2x\nStromstoß-Schaltrelais mit 2 Kanälen, 1+1 Schließer potenzialfrei \n16A/250V AC, Glühlampen 2000W, mit DX-Technologie. Bidirektional. \nReiheneinbaugerät für Montage auf Tragschiene DIN-EN 60715 TH35\n1 Teilungseinheit = 18mm breit, 58mm tief\nStand-by-Verlust: 0,1 Watt\nVersorgungsspannung: 12V DC\nFabrikat/ Typ: Eltako FSR14-2x oder gleichwertig",{"$f":"Stückliste!D36","v":0},""]
[23]
[24,"RS485-Bus-Aktor 4-Kanal-Stromstoß-Schaltrelais FSR14-LED\nStromstoß-Schaltrelais mit 4 Kanälen, je 1 Schließer 230V-LED bis 400W, \nGlühlampen bis 1800W, potenzialgetrennt von der Versorgungsspannung, mit DX-Technologie. Bidirektional.\n2 Teilungseinheiten = 36mm breit, 58mm tief. \nStand-by-Verlust: 0,1 Watt\nVersorgungsspannung: 12V DC\nFabrikat/ Typ: Eltako F4SR14-LED oder gleichwertig",{"$f":"Stückliste!D35","v":0},""]
[25]
[26,"RS485-Bus-Aktor für Beschattungselemente und Rollladen FSB14\nSchaltaktor Beschattungselemente und Rollladen mit 2 Kanälen für zwei 230V-Motoren. Bidirektional.\nReiheneinbaugerät für Montage auf Tragschiene DIN-EN 60715 TH35\n1 Teilungseinheit = 18mm breit, 58mm tief\nAnschluss an den Eltako-RS485-Bus. Querverdrahtung Bus und Stromversorgung mit Steckbrücke. \nKontakte: 2+2 Schließer 4A/250V AC\npotenzialgetrennt von der Versorgungsspannung 12V\nStand-by-Verlust: 0,1 Watt\nVersorgungsspannung: 12V DC\nFabrikat/ Typ: Eltako FSB14 oder gleichwertig",{"$f":"Stückliste!D38","v":0},""]
[27]
[28,"RS485-Bus-Aktor Universal-Dimmschalter FUD14\nUniversal-Dimmschalter, Power MOSFET bis 400W. Automatische Lampenerkennung. Bidirektional. \nReiheneinbaugerät für Montage auf Tragschiene DIN-EN 60715 TH35\n1 Teilungseinheit = 18mm breit, 58mm tief\nMindesthelligkeit und Dimmgeschwindigkeit einstellbar\nMit Kinderzimmer-, Schlummer- und Lichtweckerschaltung. \nZusätzlich mit Lichtszenensteuerung und Konstantlichtregelung.\nSchaltung im Nulldurchgang mit Soft-Ein und Soft-Aus zur Lampenschonung\nSchaltleistung: Lampen bis 400W, abhängig von den Lüftungsverhältnissen, dimmbare Energiesparlampen ESL \nund dimmbare 230V-LED-Lampen zusätzlich abhängig von der Lampenelektronik\nStand-by-Verlust: 0,3 Watt\nVersorgungsspannung: 12V DC\nFabrikat/ Typ: Eltako FUD14 oder gleichwertig",{"$f":"Stückliste!D39","v":0},""]
[29]
[30,"RS485-Bus-Aktor Universal-Dimmschalter FUD14/800W\nUniversal-Dimmschalter, Power MOSFET bis 800W. Automatische Lampenerkennung. \nReiheneinbaugerät für Montage auf Tragschiene DIN-EN 60715 TH35\n2 Teilungseinheiten = 36mm breit, 58mm tief\nMindesthelligkeit und Dimmgeschwindigkeit einstellbar\nMit Kinder­zimmer-, Schlummer- und Lichtweckerschaltung. \nZusätzlich mit Lichtszenensteuerung und Konstantlichtregelung.\nSchaltung im Nulldurchgang mit Soft-Ein und Soft-Aus zur Lampenschonung\nSchaltleistung: Lampen bis 800W, abhängig von den Lüftungsverhältnissen, dimmbare Energiesparlampen ESL \nund dimmbare 230V-LED-Lampen, zusätzlich abhängig von der Lampenelektronik\nStand-by-Verlust: 0,3 Watt\nVersorgungsspannung: 12V DC\nFabrikat/ Typ: Eltako FUD14/800W oder gleichwertig",{"$f":"Stückliste!D40","v":0},""]
[31]
[32,"RS485-Bus-Aktor Dimmschalter-Steuergerät FSG14 für EVG 1-10V \nDimmschalter-Steuergerät für EVG 1-10V, 1 Schließer nicht potenzialfrei 600VA \nund 1-10V-Steuerausgang 40mA. Bidirektional.\nReiheneinbaugerät für Montage auf Tragschiene DIN-EN 60715 TH35\n1 Teilungseinheiten = 18mm breit, 58mm tief\nAnschluss an den Eltako-RS485-Bus. Querverdrahtung Bus und Stromversorgung mit Steckbrücke\nMindesthelligkeit und Dimmgeschwindigkeit einstellbar. \nMit Lichtszenensteuerung und Konstantlichtregelung.\nSchaltung im Nulldurchgang zur Kontaktschonung\nSchaltleistung: Leuchtstofflampen oder NV-Halogenlampen mit EVG 600VA\nStand-by-Verlust: 0,9 Watt\nVersorgungsspannung: 12V DC\nFabrikat/ Typ: Eltako FSG14 oder gleichwertig",{"$f":"Stückliste!D41","v":0},""]
[33]
[34,"4-Kanal-Heiz-Kühl-Relais F4HK14\nHeiz-Kühl-Relais mit 4 Kanälen\nReiheneinbaugerät für Montage auf Tragschiene DIN-EN 60715 TH35\n1 Teilungseinheit = 18 mm breit, 58mm tief\nAnschluss an den Eltako-RS485-Bus. Querverdrahtung Bus und Stromversorgung mit Steckbrücke.\nMit dem oberen und dem mittleren Drehschalter wird eingelernt und anschließend werden damit \neine von drei Automatik-Funktionen und gegebenenfalls ein Korrekturwert eingestellt.\nDer untere Drehschalter ermöglicht eine freie Wahl der 4 Kanäle als Heiz-Relais (H) oder Kühl-Relais (K).\nKontakte: je 1 Schließer potenzialfrei 4A/250V AC mit DX-Technologie\nStand-by-Verlust: 0,1 Watt\nVersorgungsspannung: 12V DC\nFabrikat/ Typ: Eltako F4HK14 oder gleichwertig",{"$f":"Stückliste!D44","v":0},""]
[35]
[36,"RS485-Bus-Display-Schaltuhr FSU14\nDisplay-Schaltuhr mit 8 Kanälen für den Eltako-RS485-Bus\nReiheneinbaugerät für Montage auf Tragschiene DIN-EN 60715 TH35\n1 Teilungseinheit = 18mm breit, 58mm tief\nMit Astro-Funktion\nStand-by-Verlust: nur 0,1 Watt\nAnschluss an den Eltako-RS485-Bus, Querverdrahtung Bus und Stromversorgung mit Steckbrücke.\nVersorgungsspannung: 12V DC\nBis zu 60 Schaltuhr-Speicherplätze werden frei auf die Kanäle verteilt. Mit Datum und automatischer Sommerzeit/Winterzeit-Umstellung. \nGangreserve ca. 20 Tage.\nFabrikat/ Typ: Eltako FSU14 oder gleichwertig",{"$f":"Stückliste!D46","v":0},""]
[37]
[38,"RS485-Bus-Multifunktions-Sensorrelais FMSR14\nMultifunktions-Sensorrelais mit Display und 5 Kanälen (Helligkeit, Dämmerung, Wind, Regen und Frost) \nfür den Eltako-RS485-Bus.\nReiheneinbaugerät für Montage auf Tragschiene DIN-EN 60715 TH35\n1 Teilungseinheit = 18mm breit, 58mm tief\nAnschluss an den Eltako-RS485-Bus, Querverdrahtung Bus und Stromversorgung mit Steckbrücke.\nStand-by-Verlust: 0,1 Watt\nFabrikat/ Typ: Eltako FMSR14 oder gleichwertig",{"$f":"Stückliste!D47","v":0},""]
[39]
[40,"Funk-Wetterdaten-Sendemodul FWS61-24V DC\nFunk-Wetterdaten-Sendemodul FWS61 für die sieben Wetterdaten des Multisensors MS\nfür Einbaumontage\nMaße: 45mm lang, 45mm breit, 18mm tief\nStand-by-Verlust: 0,3 Watt\nFabrikat/ Typ: Eltako FWS61-24V DC oder gleichwertig",{"$f":"Stückliste!D56","v":0},""]
[41]
[42,"Multisensor MS\nMultisensor\nerfasst sekündlich die Wetterdaten:\nHelligkeit (3 Himmelsrichtungen), Wind, Regen, Frost\nKompaktes Kunststoffgehäuse\nMaße: lxbxh = 118x96x77mm\nSchutzklasse: IP44\nFabrikat/Typ: Eltako Multisensor MS oder gleichwertig",{"$f":"Stückliste!D51","v":0},""]
[43]
[44,"RS485-Bus-Telegramm-Duplizierer FTD14\nTelegramm-Duplizierer für den Eltako-RS485-Bus mit austauschbarer Antenne.  \nTelegramme eingelernter IDs werden dupliziert und mit einer neuen Ausgangs-ID direkt in den Eltako-Gebäudefunk gesendet. Funk-Telegramme können gezielt in dezentrale Aktoren eingelernt werden\nStand-by-Verlust: 0,5 Watt\nFabrikat/Typ: Eltako FTD14 oder gleichwertig",{"$f":"Stückliste!D12","v":0},""]
[45]
[46,"Busbrücken-Verbinder BBV14\nBusbrücken-Verbinder für Drahtverbindungen der Bus- und Stromversorgungsbrücken, \nBaureihe 14, 45 cm lang. \n4-adrige Litze mit angelöteten Steckbrücken auf beiden Seiten.\nKann Busteile auf verschiedenen Tragschienen verbinden\nFabrikat/Typ: Eltako BBV14 oder gleichwertig",{"$f":"Stückliste!D4","v":0},""]
[47]
[48,"RS485-Busankoppler FBA14\nBusankoppler für Drahtverbindungen der Bus- und Stromversorgungsbrücken\nReiheneinbaugerät für Montage auf Tragschiene DIN-EN 60715 TH35\n1 Teilungseinheiten = 18mm breit, 58mm tief\nDer Busankoppler FBA14 kann sowohl verschiedene Busteile verbinden als auch Stromversorgungen einspeisen\nFabrikat/ Typ: Eltako FBA14 oder gleichwertig",{"$f":"Stückliste!D5","v":0},""]
[49]
[50,"Schaltnetzteil FSNT14-12V/12W\nSchaltnetzteil, kurzschlussfest\nFür Einbaumontage\n1 Teilungseinheit = 18mm breit, 58mm tief\nStabilisierte Ausgangsspannung ± 1%,\ngeringe Restwelligkeit\nÜberlast- und Übertemperatursicherung mit\nautorecovery-Funktion\nNennleistung: 12W\nStand-by-Verlust: nur 0,2W\nPrimär: 230V AC\nSekundär: 12V DC\nKurzschlussfest\nFabrikat/Typ: Eltako FSNT14-12V/12W oder gleichwertig",{"$f":"Stückliste!D8","v":0},""]
[51]
[52,"Taster-Eingabemodul FTS14EM\nTaster-Eingabemodul für den Eltako-RS485-Bus, 10 Steuereingänge für Universal-Steuerspannung\nReiheneinbaugerät für Montage auf Tragschiene DIN-EN 60715 TH35\n2 Teilungseinheiten = 36mm breit, 58mm tief\nAnschluss an den Eltako-RS485-Bus. Querverdratung Bus und Stromversorgung mit Steckbrücken\nSteuerspannung: 8..230VUC\nStand-by-Verlust: nur 0,1 Watt\nFabrikat/ Typ: Eltako FTS14EM oder gleichwertig",{"$f":"Stückliste!D20","v":0},""]
[53]
[54,"Taster-Eingabemodul FTS14KS\nFTS14-Kommunikationsschnittstelle für den Eltako-RS485-Bus mit ­integriertem Schaltnetzteil 12V DC-1A\nReiheneinbaugerät für Montage auf Tragschiene DIN-EN 60715 TH35\n2 Teilungseinheiten = 36mm breit, 58mm tief\nQuerverdratung Bus und Stromversorgung mit Steckbrücken\nVersorgungsspannung: 230V\nStand-by-Verlust: nur 0,6 Watt\nFabrikat/ Typ: Eltako FTS14KS oder gleichwertig",{"$f":"Stückliste!D16","v":0},""]
[55]
[56,"Schaltnetzteil SNT12-230V/12VDC-1,0A\nSchaltnetzteil, kurzschlussfest Reiheneinbaugerät für Montage auf Tragschiene DIN-EN 60715 TH35\n1 Teilungseinheit = 18mm breit, 58mm tief\nStabilisierte Ausgangsspannung ± 1%,\ngeringe Restwelligkeit Überlast- und Übertemperatursicherung mit autorecovery-Funktion\nNennleistung: 12W Stand-by-Verlust: nur 0,2W\nPrimär: 230V AC Sekundär: 12V DC Kurzschlussfest\nFabrikat/Typ: Eltako SNT12-230V/12VDC1,0A oder gleichwertig",{"$f":"Stückliste!D32","v":0},""]
[57]
[58,"Taster-Gateway FTS14TG\nTaster-Gateway für FTS14-Systeme\nReiheneinbaugerät für Montage auf Tragschiene DIN-EN 60715 TH35\n2 Teilungseinheiten = 36mm breit, 58mm tief\nAnschluss an den Eltako-RS485-Bus. Querverdratung Bus und Stromversorgung mit Steckbrücken\nBetrieb in Verbindung mit FAM14 oder FTS14KS\nMit bis zu 3 Taster-Gateways FTS14TG lassen sich die Telegramme von bis zu 90 über \neinen 2-Draht-Bus verbunden 4-fach-Bus-Taster B4T65, B4FT65 und Taster-Koppler FTS61BTK mit \nden daran angeschlossenen konventionellen Tastern einspeisen. Über nur 2 Adern erfolgt \ndie Datenübertragung und die Stromversorgung gleichzeitig. Dadurch entfallen zahlreiche \neinzelne Taster-Steuerleitungen.\nFabrikat/ Typ: Eltako FTS14TG oder gleichwertig",{"$f":"Stückliste!D21","v":0},""]
[59]
[60,"Bus-Taster im E-Design B4T65-wg \nBus-Taster für Einzel-Montage 84x84x16mm oder Montage in das E-Design-Schaltersystem. \nZum Anschluss an Taster-Gateways FTS14TG. Stand-by-Verlust nur 0,2 Watt.\nLieferumfang: 1x Rahmen R1E mit eingerasteter Elektronik, 1x Wippe, 1x Doppelwippe.\nMontage: Anschrauben oder Ankleben\nFarbe: reinweiß glänzend\nFabrikat/ Typ: Eltako B4T65-wg oder gleichwertig",{"$f":"Stückliste!#REF!","v":{"$error":"#REF!"}},{"$error":"#REF!"}]
[61]
[62,"Bus-Tasterkoppler FTS61BTK\nBus-Tasterkoppler für 4 konventionelle Taster zum Anschluss an Taster-Gateways FTS14TG über einen \n2-Draht-Tasterbus. \nFür Einbaumontage. 45mm lang, 45mm breit, 18mm tief.\nBis zu 30 Bus-Taster und/oder Bus­Tasterkoppler FTS61BTK können an die Klemmen BP und BN eines Taster-Gateways FTS14TG angeschlossen werden. Die zulässige Gesamtleitungslänge beträgt 150m. Durch ein RLC-Glied an dem am weitesten entfernten FTS61BTK kann die Leitungslänge auf 250m erweitert werden.\nStand-by-Verlust: nur 0,2 Watt\nFabrikat/ Typ: Eltako FTS61BTK oder gleichwertig",{"$f":"Stückliste!D23","v":0},""]
[63]
[64,"Bus-Tasterkoppler FTS61BTKL\nBus-Tasterkoppler für 4 konventionelle Taster mit integrierten 24V-LED´s zum Anschluss an Taster-Gateways FTS14TG über einen 2-Draht-Tasterbus. \nFür Einbaumontage. 45mm lang, 45mm breit, 18mm tief.\nBis zu 30 Bus-Taster und/oder Bus­Tasterkoppler FTS61BTKL können an die Klemmen BP und BN eines Taster-Gateways FTS14TG angeschlossen werden. Die zulässige Gesamtleitungslänge beträgt 150m. Durch ein RLC-Glied an dem am weitesten entfernten FTS61BTKL kann die Leitungslänge auf 250m erweitert werden.\nStand-by-Verlust: nur 0,2 Watt\nFabrikat/ Typ: Eltako FTS61BTKL oder gleichwertig",{"$f":"Stückliste!D25","v":0},""]
[65]
[66,"Funk-Ausgabemodul FTS14FA\nFunk-Ausgabemodul Taster-Telegramme für FTS14-Systeme mit FTS14EM und/oder FTS14TG\nReiheneinbaugerät für Montage auf Tragschiene DIN-EN 60715 TH35\n1 Teilungseinheit = 18mm breit, 58mm tief\nAnschluss an den Eltako-RS485-Bus. Querverdratung Bus und Stromversorgung mit Steckbrücken\nBetrieb in Verbindung mit FAM14 oder FTS14KS.\nMaximal 8 Stück FTS14FA können so an einen Bus angeschlossen werden. Jedes Taster-Telegramm eines FTS14EM oder FTS14TG wird mit einer eigenen ID in den Eltako-Gebäudefunk gesendet.\nStand-by-Verlust: nur 0,5 Watt\nFabrikat/ Typ: Eltako FTS14FA oder gleichwertig",{"$f":"Stückliste!D30","v":0},""]
[67]
[68,"Schaltnetzteil FSNT61-24V/6W\nSchaltnetzteil, kurzschlussfest\nFür Einbaumontage\n45mm lang, 45mm breit, 33mm tief\nStabilisierte Ausgangsspannung ± 1%,\ngeringe Restwelligkeit\nÜberlast- und Übertemperatursicherung mit\nautorecovery-Funktion\nNennleistung: 6W\nStand-by-Verlust: nur 0,1W\nPrimär: 230V AC\nSekundär: 24V DC\nKurzschlussfest\nFabrikat/Typ: Eltako FSNT61-24V/6W oder gleichwertig",{"$f":"Stückliste!D6","v":0},""]
[69]
[70,"Funksensor Temperatur-Regler FTR78S-wg\nFunk-Temperatur-Regler mit Drehrad für Einzel-Montage 78x83x13mm. Stromversorgung mit der integrierten Solarzelle oder mit einer Batterie.\nFarbe: reinweiß glänzend\nFabrikat/ Typ: Eltako FTR78S-wg oder gleichwertig",{"$f":"Stückliste!#REF!","v":{"$error":"#REF!"}},{"$error":"#REF!"}]
[]
[null,"Bus-Temperatur-Regler mit Handrad BTR55H/12V DC-wg\nreinweiß glänzend zum Anschluss an das RS485-Bus-Gateway BGW14. Für Einzel-Montage oder Montage in das E-Design-Schaltersystem. 84x84 mm, 27mm hoch. Einbautiefe 33 mm. Stromversorgung mit einem 12V DC-Schaltnetzeil. Stand-by-Verlust nur 0,1 Watt. Smart Home Sensor. Farbe: reinweiß glänzend Fabrikat/ Typ: Eltako BTR55H/12V DC-wg oder gleichwertig",{"$f":"Stückliste!#REF!","v":{"$error":"#REF!"}},{"$error":"#REF!"}]
[]
[null,"Bus-Uhren-Thermo-Hygrostat mit Display BUTH55D\nreinweiß glänzend zum Anschluss an das RS485-Bus-Gateway BGW14. Für Einzel-Montage oder Montage in das 55er Schaltersystem. 80x80 mm, 14 mm hoch. Einbautiefe 33 mm. Mit einstellbaren Tages- und Nacht-Solltemperaturen und Soll-Luft feuchtigkeit. Display beleuchtet. Betriebsbereit voreingestellt. Stromversorgung mit einem 12V DC-Schaltnetzteil. Stand-by-Verlust nur 0,1 Watt. Smart Home Sensor. Farbe: reinweiß glänzend Fabrikat/ Typ: Eltako BUTH55D/12V DC-wg oder gleichwertig",{"$f":"Stückliste!#REF!","v":{"$error":"#REF!"}},{"$error":"#REF!"}]
[71]
[null,"Bus-Temperatur-Fühler BTF55/12V DC-wg\nBus-Temperatur-Fühler reinweiß glänzend zum Anschluss an das RS485- Bus-Gateway BGW14. Für Einzel-Montage oder Montage in das 55er Schaltersystem. 80x80 mm, 17mm hoch. Einbautiefe 33 mm. Über den 4-Draht-Bus erfolgt die Datenübertragung und die Strom versorgung mit einem 12V DC-Schaltnetzteil. Stand-by-Verlust nur 0,1 Watt. Smart Home Sensor. Farbe: reinweiß glänzend Fabrikat/ Typ: Eltako BTF55/12V DC-wg oder gleichwertig",{"$f":"Stückliste!#REF!","v":{"$error":"#REF!"}},{"$error":"#REF!"}]
[]
[72,"Funk-Powerline-Gateway FPLG14\nBidirektional.\nÜbersetzt die Telegramme von Funk und Powerline in beide Richtungen.\n2 Teilungseinheiten = 36mm breit, 58mm tief.\nStand-by-Verlust: nur 0,4 Watt.\nFabrikat/ Typ: Eltako FPLG14 oder gleichwertig",{"$f":"Stückliste!D22","v":0},""]
[73]
[74,"Temperatur-Regler für Heizen und Kühlen PL-SAMTEMP\nPowerline-Temperatur-Regler mit Display, weiß. \n50x50mm, für die Montage in Schaltersysteme. \nZusätzlich je ein potenzialfreier Steuerkontakt 3A/250V AC für Direktanschluss Heizen und Kühlen. \nDisplay beleuchtet.\nStand-by-Verlust: nur 0,4 Watt.\nFabrikat/ Typ: Eltako PL-SAMTEMP oder gleichwertig",{"$f":"Stückliste!D110","v":0},{"$f":"IF(C86>0,C86,\"\")","v":""}]
[75]
[76,"Eltako-Gebäudefunk-Server GFVS-Safe II\nGebäudefunk-Server GFVS-Safe II mit WLAN- und ggf. M2M-Kommunikation\nMaße (HxBxT) 199x180x39mm\nGebäudefunk Visualisierungs- und Steuerungssoftware GFVS 3.0 vorinstalliert\nCPU Intel Atom N2800 2x1,86 GHz\n2 GB DDR 3 RAM\n60 GB SSD Festplatte\nAnschlüsse: 1x Intel® 10/100/1000, 4x USB 2.0 (2x HighCurrent 1.3A), 1x LAN RJ-45, \n1x HDMI, 1x VGA, 1x Line out, 1x Mic in\nStromverbrauch: 11 Watt (ohne GSM-Modem), 13 Watt (mit GSM-Modem)\nFabrikat/ Typ: Eltako-Gebäudefunk-Server GFVS-Safe II oder gleichwertig",{"$f":"Stückliste!#REF!","v":{"$error":"#REF!"}},{"$error":"#REF!"}]
[77]
[78,"Gebäudefunk-Visualisierungs- und Steuerungs-Software GFVS 3.0\nGebäudefunk-Visualisierungs- und Steuerungs-Software für bis zu 100 Funk-Sensoren, bis zu 128 Funk-Aktoren, \n5 Kameras und 25 Timer. \nFür LAN-Verbindungen ist mindestens ein LAN-Access-Point BSC-BAP für den Empfang am Server und das Senden \nder Funk-Telegramme vom Server zusätzlich erforderlich.\nFabrikat/Typ: Eltako GFVS 3.0 oder gleichwertig",{"$f":"Stückliste!#REF!","v":{"$error":"#REF!"}},{"$error":"#REF!"}]
[79]
[80,"Smart Home-Zentrale GFVS-Touch II\nTouch-PC für Dauerbetrieb mit integriertem Funk-Antennenmodul sowie der bereits installierten Funk-Visualisierungs- und Steuerungs-Software GFVS 3.0 für alle erforderlichen Sensoren und Aktoren, 5 Clients, 5 Kameras und eine freie Anzahl Sensoren, Aktoren und Timer.\nSmartphone-Verbindung über WLAN.\nFür den 24/7-Dauerbetrieb geeignet. \nFabrikat/ Typ: GFVS-Touch II oder gleichwertig",{"$f":"Stückliste!#REF!","v":{"$error":"#REF!"}},{"$error":"#REF!"}]
[81]
[82,"VESA Wandhalterung\nzur Wandbefestigung GFVS-Touch\nFabrikat/ Typ: VESA Wandhalterung oder gleichwertig",{"$f":"Stückliste!D133","v":0},""]
[83]
[84,"Funksensor Temperatur-Regler TF-TRHB55-wg\nFunk-Temperatur-Regler mit Handrad für Einzel-Montage,Innenmaß 55x55mm. \nMit Batterie.\nFarbe: reinweiß glänzend\nFabrikat/ Typ: Eltako TF-TRHB55-wg oder gleichwertig",{"$f":"Stückliste!#REF!","v":{"$error":"#REF!"}},{"$error":"#REF!"}]
[85]
[86,"Flächen-Funktaster FT4F-...\nFlächen-Funktaster, 80x80mm außen, Rahmen-Innenmaß 63x63mm, 15mm hoch\nbatterie- und leitungslose Funktechnologie \nLieferumfang: 1x Rahmen, 1x Flächenwippe, 1x Flächen-Doppelwippe, Befestigungsrahmen, \nHalteplatte, Funkmodul und Klebefolie\nFunktelegramme verschlüsselbar.\nMontage: Anschrauben oder Ankleben\nFarbe:... \nFabrikat/ Typ: Eltako FT4F-... oder gleichwertig",{"$f":"Stückliste!D126","v":0},""]
[87]
[88,"Funktaster FT55-...\nFlächen-Funktaster, 80x80mm außen, Rahmen-Innenmaß 55x55mm, 15mm hoch\nbatterie- und leitungslose Funktechnologie. Funktelegramme verschlüsselbar.\nLieferumfang: 1x Rahmen, 1x Wippe, 1x Doppelwippe, Befestigungsrahmen, \nHalteplatte, Funkmodul und Klebefolie\nFunktelegramme verschlüsselbar.\nMontage: Anschrauben oder Ankleben\nFarbe:... \nFabrikat/ Typ: Eltako FT55-... oder gleichwertig",{"$f":"Stückliste!D125","v":0},""]
[89]
[90,"Bus-Taster B4T55\nBus-Taster für Einzel-Montage 80x80x15mm. Zum Anschluss an Taster-Gateways FTS14TG.\nLieferumfang: 1x Halteplatte, 1x Befestigungsrahmen mit eingerasteter\nElektronik, 1x Rahmen R, 1x Wippe, 1x Doppelwippe\nMontage: Anschrauben\nFarbe:... \nFabrikat/ Typ: Eltako B4T55-... oder gleichwertig",{"$f":"Stückliste!#REF!","v":{"$error":"#REF!"}},{"$error":"#REF!"}]
[91]
[92,"Funktaster FT55R-...\nFunktaster, Wippe mit Radius, Rahmen-Innenmaß 55x55mm, 15mm hoch\nbatterie- und leitungslose Funktechnologie. Funktelegramme verschlüsselbar.\nLieferumfang: 1x Wippe, 1x Doppelwippe, Befestigungsrahmen, Halteplatte, Funkmodul und Klebefolie\nMontage: Anschrauben oder Ankleben\nFarbe:... \nFabrikat/ Typ: Eltako FT55R-... oder gleichwertig",{"$f":"Stückliste!D127","v":0},""]
[93]
[98,"Fernbedienung FFD-al/anso\nFunk-Fernbedienung mit Display 185x50mm, 17mm hoch. Stromversorgung mit Lithium-Ionen-Akku, dessen Spannung überwacht und ggf. im Display angezeigt wird. \nDisplaybeleuchtung. Mit Wandhalter und Ladegerät.\n50 Kanäle können individuell belegt und auch mit Text versehen werden. Jeder Kanal kann 4 auswertbare Funktelegramme in den Eltako-Gebäudefunk senden.\nMit Wandhalter.\nFarbe: Oberseite alu lackiert, Unterseite Anthrazit-Soft-Lackierung.\nFabrikat/ Typ: Eltako FFD-al/anso oder gleichwertig",{"$f":"Stückliste!D128","v":0},""]
[99]
[100,"Fernbedienung FF8-al/anso\nFunk-Fernbedienung 185x50mm, 17mm hoch\nbatterielose Funktechnologie enthält 2 Funkmodule mit 2 Doppelwippen \nsendet 8 auswertbare Signale. Funktelegramme verschlüsselbar.\nMit Wandhalter.\nFarbe: Oberseite alu lackiert, Unterseite und Wippen Anthrazit-Soft-Lackierung\nFabrikat/ Typ: Eltako FF8-al/anso oder gleichwertig",{"$f":"Stückliste!D129","v":0},""]
[101]
[102,"Funkhandsender FHS12-...\nFunkhandsender, 154x50mm, 16mm hoch\nbatterielose Funktechnologie enthält 3 Funkmodule mit 3 Doppelwippen \nsendet 12 auswertbare Signale. Funktelegramme verschlüsselbar.\nLieferumfang: 2x Beschriftungsetiketten, 1x Klebefolie\nFarbe:...\nFabrikat/ Typ: Eltako FHS12-... oder gleichwertig",{"$f":"Stückliste!D130","v":0},""]
[103]
[104,"Regensensor RS\nRegensensor\nmeldet Regen an das nachgeschaltete Sensorrelais LRW12D\nKompaktes Kunststoffgehäuse\nMaße: lxbxh = 118x96x77mm\nSchutzklasse: IP44\nFabrikat/Typ: Eltako Regensensor RS oder gleichwertig",{"$f":"Stückliste!D53","v":0},""]
[105]
[106,"Lichtsensor LS\nLichtsensor\nMaße: 38x28x95mm\nSchutzklasse: IP54\nFabrikat/Typ: Eltako Lichtsensor LS oder gleichwertig",{"$f":"Stückliste!D52","v":0},""]
[107]
[108,"Windsensor WS\nWindsensor\nStabiles Kunststoffgehäuse\nMaße: Durchmesser x Höhe = 125x117mm\nSchutzklasse: IP54\nangeschlossene Messleitung 5m\nFabrikat/Typ: Eltako Windsensor WS oder gleichwertig",{"$f":"Stückliste!D54","v":0},""]
[109]
[110,"Digital einstellbares Sensorrelais LRW12D-UC\nLicht-Dämmerungs-Regen-Wind-Sensorrelais\nReiheneinbaugerät für Montage auf Tragschiene DIN-EN 60715 TH35\n1 Teilungseinheit = 18mm breit, 58mm tief\nwertet die Signale des Lichtsensors LS, des Regensensors RS und \ndes Windsensors WS aus\nFunktionen: LS = Lichtsensor, WS = Windsensor, RS = Regensensor, \nDSR = Dämmerungsrelais, TST = Test und OFF = aus- bzw. einschalten aller Funktionen \n4 OptoMOS-Halbleiterausgänge 50mA/8..230V UC\nStand-by-Verlust: nur 0,05–0,5 Watt.\nEinschaltdauer: 100%\nFabrikat/Typ: Eltako LRW12D-UC oder gleichwertig",{"$f":"Stückliste!D55","v":0},""]
[111]
[112,"Schaltnetzteil SNT12-230V/24VDC-0,5A\nSchaltnetzteil, kurzschlussfest Reiheneinbaugerät für Montage auf Tragschiene DIN-EN 60715 TH35\n1 Teilungseinheit = 18mm breit, 58mm tief\nStabilisierte Ausgangsspannung ± 1%,\ngeringe Restwelligkeit Überlast- und Übertemperatursicherung mit autorecovery-Funktion\nNennleistung: 12W Stand-by-Verlust: nur 0,2W\nPrimär: 230V AC Sekundär: 24V DC Kurzschlussfest\nFabrikat/Typ: Eltako SNT12-230V/24VDC-0,5A oder gleichwertig",{"$f":"Stückliste!D31","v":0},""]
[113]
[114,"Schaltnetzteil SNT61-230V/12V DC-0,5A\nSchaltnetzteil, kurzschlussfest\nFür Einbaumontage\n45mm lang, 55mm breit, 32mm tief\nStabilisierte Ausgangsspannung ± 1%,\ngeringe Restwelligkeit\nÜberlast- und Übertemperatursicherung mit\nautorecovery-Funktion\nNennleistung: 6W\nStand-by-Verlust: nur 0,1W\nPrimär: 230V AC\nSekundär: 12V DC\nKurzschlussfest\nFabrikat/Typ: Eltako SNT61-230V/12V DC-0,5A oder gleichwertig",{"$f":"Stückliste!D7","v":0},""]
[115]
[116,"1- und 2-Level-Funkrepeater FRP61-230V\n1- und 2-Level-Funkrepeater für Einbaumontage\nMaße: 45mm lang, 55mm breit, 33mm tief\nnur Netzanschluss erforderlich\nempfängt und verstärkt die Signale aller Sensoren im Empfangsbereich\nVersorgungsspannung: 230V\nStand-by-Verlust: 0,9 Watt\nFabrikat/ Typ: Eltako FRP61-230V oder gleichwertig",{"$f":"Stückliste!D150","v":0},""]
[117]
[118,"Funkantenne mit Magnetfuß FA250\nFunkantenne mit Magnetfuß, schwarz \nHöhe: 10cm\nKabel: 250cm lang\nFabrikat/ Typ: Eltako FA250 oder gleichwertig",{"$f":"Stückliste!D17","v":0},""]
[119]
[120,"HF-Masse FHM175\nHF-Masse  für die HF-Funkantenne FA250,\nAluminiumscheibe eloxiert, 4mm dick, 175mm Durchmesser\nFabrikat/ Typ: Eltako FHM175 oder gleichwertig",{"$f":"Stückliste!D18","v":0},""]
[]
[null,"Bus-Temperatur-Regler mit Handrad BTR65H/12VDC-wg\nBus-Temperatur-Regler mit Handrad zum Anschluss an das RS485-Bus-Gateway BGW14. Für Einzel-Montage oder Montage in das E-Design-Schaltersystem. 84x84mm, 27mm hoch. Einbautiefe 33mm. Datenübertragung und Stromversorgung mit 12V DC-Schaltnetzteil über den 4-Draht-Bus. Sendet bei einer Ist- oder Soll-Temperaturänderung von mind. 0,15°C innerhalb von 20 Sekunden eine Meldung in den RS485-Bus. Messgenauigkeit ca. 1°C. Solltemperatur zwischen +12°C und +28°C mit dem Handrad einstellbar. Frostschutz. Smart Home Sensor. Farbe: reinweiß glänzend Fabrikat/ Typ: Eltako BTR65H/12VDC-wg oder gleichwertig",{"$f":"Stückliste!#REF!","v":{"$error":"#REF!"}},{"$error":"#REF!"}]
[]
[null,"Bus-Uhren-Thermo-Hygrostat mit Display BUTH65D/12V DC-wg\nBus-Uhren-Thermo-Hygrostat mit Display zum Anschluss an das RS485-Bus-Gateway BGW14. Für Einzel-Montage oder Montage in das E-Design-Schaltersystem. 84x84mm, 14mm hoch. Einbautiefe 33mm. Tages- und Nacht-Solltemperaturen und Soll-Luftfeuchtigkeit einstellbar. Display beleuchtet. Betriebsbereit voreingestellt. Datenübertragung und Stromversorgung mit 12V DC-Schaltnetzteil über den 4-Draht-Bus. 60 Schaltuhr-Speicherplätze. Mit Datum und automatischer Sommerzeit/Winterzeit-Umstellung. Sendet alle 20 Sekunden bei einer Ist-Temperaturänderung von mindestens 0,15°C oder einer Änderung der Luftfeuchtigkeit um 5% eine Meldung in den RS485-Bus. Eine Änderung der Soll-Temperatur oder der Soll-Luftfeuchtigkeit wird sofort gesendet. Smart Home Sensor. Farbe: reinweiß glänzend Fabrikat/ Typ: Eltako BUTH65D/12V DC-wg oder gleichwertig",{"$f":"Stückliste!#REF!","v":{"$error":"#REF!"}},{"$error":"#REF!"}]
[]
[null,"Bus-Temperatur-Fühler BTF65/12VDC-wg\nBus-Temperatur-Fühler reinweiß glänzend zum Anschluss an das RS485- Bus-Gateway BGW14. Für Einzel-Montage oder Montage in das E-DesignSchaltersystem. 84x84 mm, 17mm hoch. Einbautiefe 33 mm. Über den 4-Draht-Bus erfolgt die Datenübertragung und die Stromversorgung mit einem 12V DC-Schaltnetzteil. Stand-by-Verlust nur 0,1 Watt. Smart Home Sensor. Farbe: reinweiß glänzend Fabrikat/ Typ: Eltako BTF65/12V DC-wg oder gleichwertig",{"$f":"Stückliste!#REF!","v":{"$error":"#REF!"}},{"$error":"#REF!"}]
[]
[null,"Funkaktor Stromstoß-Schaltrelais FSR61NP-230V\nFunkaktor Stromstoß-Schaltrelais für Einbaumontage Maße: 45mm lang, 45mm breit, 33mm tief Verschlüsselter Funk, bidirektionaler Funk und Repeater-Funktion zuschaltbar Funktion: Stromstoßschalter oder Schaltrelais Rückfallverzögerung mit Ausschaltvorwarnung und Taster-Dauerlicht zuschaltbar Versorgungs-, Schalt- und Steuerspannung örtlich 230V Kontakt: 1 Schließer nicht potenzialfrei 10A/250V Stand-by-Verlust: 0,8 Watt Fabrikat/ Typ: Eltako FSR61NP-230V oder gleichwertig",{"$f":"Stückliste!D141","v":0},""]
[]
[null,"Funkaktor Multifunktions-Stromstoß-Schalter FMS61NP-230V\nFunkaktor Multifunktions-Stromstoß-Schalter für Einbaumontage Maße: 45mm lang, 45mm breit, 33mm tief Verschlüsselter Funk, bidirektionaler Funk und Repeater-Funktion zuschaltbar Funktion: 2xS = 2-fach-Stromstoßschalter mit je 1 Schließer. 2S = Stromstoßschalter mit 2 Schließern WS = Stromstoßschalter mit 1 Schließer und 1 Öffner SS1 = Serienschalter 1+1 Schließer mit Schaltfolge 1 SS2 = Serienschalter 1+1 Schließer mit Schaltfolge 2 Versorgungs-, Schalt- und Steuerspannung örtlich 230V Kontakt: 1+1 Schließer nicht potenzialfrei 10A/250V Stand-by-Verlust: 0,8 Watt Fabrikat/ Typ: Eltako FMS61NP-230V oder gleichwertig",{"$f":"Stückliste!D142","v":0},""]
[]
[null,"Funkaktor Universal-Dimmschalter FUD61NPN-230V\nFunkaktor Universal-Dimmschalter für Einbaumontage Maße: 45mm lang, 45mm breit, 33mm tief Verschlüsselter Funk, bidirektionaler Funk und Repeater-Funktion zuschaltbar für R-, L- und C-Lasten mit automatische Lasterkennung auch für dimmbare Energiesparlampen (ESL) und LED Mindesthelligkeit und Dimmgeschwindigkeit einstellbar mit Lichtwecker-, Kinderzimmer- und Schlummerschaltung Versorgungs- und gegebenenfalls Steuerspannung örtlich 230V Schaltleistung: R-, L- und C-Lasten bis 300W, ESL und dimmbare 230V-LED-Lampen zusätzlich abhängig von der Lampenelektronik Stand-by-Verlust: 0,7 Watt Fabrikat/ Typ: Eltako FUD61NPN-230V oder gleichwertig",{"$f":"Stückliste!D143","v":0},""]
[]
[null,"Funkaktor Universal-Dimmschalter ohne N, FUD61NP-230V\nFunkaktor Universal-Dimmschalter für Einbaumontage Maße: 45mm lang, 45mm breit, 33mm tief Verschlüsselter Funk, bidirektionaler Funk und Repeater-Funktion zuschaltbar ohne N-Anschluss Mindesthelligkeit und Dimmgeschwindigkeit einstellbar mit Lichtwecker-, Kinderzimmer- und Schlummerschaltung für R-, L- und C-Lasten mit automatischer Lasterkennung Versorgungs- und gegebenenfalls Steuerspannung örtlich 230V Schaltleistung: 300 Watt Stand-by-Verlust: 0,7 Watt Fabrikat/ Typ: Eltako FUD61NP-230V oder gleichwertig",{"$f":"Stückliste!D144","v":0},""]
[]
[null,"Funkaktor PWM-LED-Dimmschalter FLD61\nPWM-Dimmschalter für LED 12-36V DC, bis 4A Maße: 45mm lang, 45mm breit, 33mm tief Verschlüsselter Funk, bidirektionaler Funk und Repeater-Funktion zuschaltbar Zusätzlich mit Lichtszenensteuerung über PC oder mit Funktastern. Universal-Steuerspannung 8..230V UC, galvanisch getrennt von der Versorgungs- und Schaltspannung. Schaltleistung: LED bis 12-36V DC, 4A Stand-by-Verlust: 0,2-0,4 Watt Fabrikat/ Typ: Eltako FLD61 oder gleichwertig",{"$f":"Stückliste!D145","v":0},""]
[]
[null,"Funkaktor Konstantstrom-LED-Dimmschalter FKLD61\nDC-Konstantstromquelle für LED bis 1000mA bzw. 30 Watt Maße: 45mm lang, 45mm breit, 33mm tief Verschlüsselter Funk, bidirektionaler Funk und Repeater-Funktion zuschaltbar Mindesthelligkeit und Dimmgeschwindigkeit einstellbar. Mit Kinderzimmer- und Schlummerschaltung. Zusätzlich mit Lichtszenensteuerung über PC oder mit Funktastern. Universal-Steuerspannung 8..230V UC, galvanisch getrennt von der Versorgungs- und Schaltspannung. Schaltleistung: LED bis 1000mA bzw. 30 Watt Stand-by-Verlust: 0,3 Watt Fabrikat/ Typ: Eltako FKLD61 oder gleichwertig",{"$f":"Stückliste!D146","v":0},""]
[]
[null,"Funkaktor für Beschattungselemente und Rollladen FSB61NP-230V \nFunkaktor Stromstoß-Gruppenschalter für Beschattungselemente und Rollladen für Einbaumontage Maße: 45mm lang, 45mm breit, 33mm tief Verschlüsselter Funk, bidirektionaler Funk und Repeater-Funktion zuschaltbar 4 unterschiedliche Funktionsweisen (GS1-4) möglich Versorgungs-, Schalt- und Steuerspannung örtlich 230V Kontakt: 1+1 Schließer nicht potenzialfrei 4A/250V Stand-by-Verlust: 0,8 Watt Fabrikat/ Typ: Eltako FSB61NP-230V oder gleichwertig",{"$f":"Stückliste!D147","v":0},""]
[]
[null,"Funkaktor Heiz-Kühl-Relais FHK61-230V\nFunkaktor Heiz-Kühl-Relais FHK61-230V für Einbaumontage Maße: 45mm lang, 45mm breit, 33mm tief Verschlüsselter Funk, bidirektionaler Funk und Repeater-Funktion zuschaltbar mit 5 Betriebsarten (3 x Heizen, 2 x Kühlen) Versorgungsspannung: 230V Kontakte: 1 Schließer potenzialfrei 10A/250V AC Stand-by-Verlust: 0,8 Watt Fabrikat/ Typ: Eltako FHK61-230V oder gleichwertig",{"$f":"Stückliste!D148","v":0},{"$f":"IF(C150>0,C150,\"\")","v":""}]
[]
[null,"Funk-Sendemodul FSM61-UC\n Funk-2-fach-Sendemodul für Einbaumontage Maße: 45mm lang, 45mm breit, 18mm tief hat zwei Kanäle und kann damit wie ein Funktaster örtliche und zentrale Steuersignale in den Eltako-Gebäudefunk einspeisen Steuerspannung: 8..230V UC ständige Stromversorgung: keine Fabrikat/ Typ: Eltako FSM61-UC oder gleichwertig",{"$f":"Stückliste!D149","v":0},""]
[]
[null,"Funkrepeater FRP65/230V-wg\n2-Level-Funkrepeater im Gehäuse für Aufputzmontage 84x84x30mm oder Montage in das E-Design-Schaltersystem. nur Netzanschluss erforderlich empfängt und verstärkt die Signale aller Sensoren im Empfangsbereich Versorgungsspannung: 230V Stand-by-Verlust: 0,8 Watt Fabrikat/ Typ: Eltako FRP65/230V-wg oder gleichwertig",{"$f":"Stückliste!D151","v":0},""]
[]
[null,"Funkaktor Stromstoß-Schaltrelais FSR71NP\nFunkaktor Stromstoß-Schaltrelais für Montage in die 230V-Netzanschlussleitung, zum Beispiel in Zwischendecken und Leuchten. Glühlampen 2000W. Mit Lichtszenensteuerung über PC oder mit Funktastern. Verschlüsselter Funk, bidirektionaler Funk und Repeater-Funktion zuschaltbar. Maße: 166mm lang, 46mm breit und 31mm tief. Mit Kabel-Zugentlastung. Kontakt: 1 Schließer nicht potenzialfrei 16A/250V AC Stand-by-Verlust: 0,8 Watt Fabrikat/ Typ: Eltako FSR71NP oder gleichwertig",{"$f":"Stückliste!D152","v":0},""]
[]
[null,"Funkaktor Universal-Dimmschalter FUD71 \nUniversal-Dimmschalter, Power MOSFET bis 400W. Automatische Lampenerkennung. Mindesthelligkeit und Dimmgeschwindigkeit einstellbar. Mit Kinderzimmer-, Schlummer- und Lichtweckerschaltung sowie Konstantlichtregelung und Master-Slave-Betrieb. Zusätzlich mit Licht-szenensteuerung über PC oder mit Funktastern. Verschlüsselter Funk, bidirektionaler Funk und Repeater-Funktion zuschaltbar. Maße: 166mm lang, 46mm breit und 31mm tief. Mit Kabel-Zugentlastung. Stand-by-Verlust: 0,7 Watt Fabrikat/ Typ: Eltako FUD71 oder gleichwertig",{"$f":"Stückliste!D153","v":0},""]
[]
[null,"Funkaktor Dimmschalter-Steuergerät FSG71 für EVG 1-10V \nDimmschalter-Steuergerät für EVG 1-10V, 1 Schließer nicht potenzialfrei 600VA und 1-10V-Steuerausgang 40mA. Mindesthelligkeit und Dimmgeschwindigkeit einstellbar. Mit Kinderzimmer-, Schlummer- und Licht-wecker-schaltung sowie Konstantlichtregelung und Master-Slave-Betrieb. Zusätzlich mit Lichtszenensteuerung über PC oder mit Funktastern. Verschlüsselter Funk, bidirektionaler Funk und Repeater-Funktion zuschaltbar. Maße: 166mm lang, 46mm breit und 31mm tief. Mit Kabel-Zugentlastung. Stand-by-Verlust: 1,4 Watt Fabrikat/ Typ: Eltako FSG71 oder gleichwertig",{"$f":"Stückliste!D154","v":0},""]
[]
[null,"Funk-DALI-Gateway FDG71L \nBidirektional. Montage zum Beispiel in Zwischendecken und Leuchten. Versorgungsspannung 230V an den Klemmen N und L. An den Klemmen DALI +/- werden 130mA für bis zu 64 Stück DALI-Geräte bereitgestellt. Mit dem Gateway FDG71L werden DALI-Geräte mit EnOcean-Funksendern angesteuert. Maße: 252mm lang, 46mm breit und 31mm tief. Mit Kabel-Zugentlastung. Stand-by-Verlust: 2 Watt Fabrikat/ Typ: Eltako FDG71L oder gleichwertig",{"$f":"Stückliste!D155","v":0},""]
[]
[null,"Funkaktor PWM-Dimmschalter für LED FRGBW71L \nPWM-Dimmschalter mit 4 Kanälen für LED 12-36 V DC, je bis 2 A. Mindesthelligkeit und Dimmgeschwindigkeit einstellbar. Mit Schlummer- und Lichtweckerschaltung. Zusätzlich mit Lichtszenensteuerung über PC oder mit Funktastern. Verschlüsselter Funk, bidirektionaler Funk und Repeater-Funktion zuschaltbar. Maße: 252mm lang, 46mm breit und 31mm tief. Mit Kabel-Zugentlastung. Stand-by-Verlust:0,3-0,5 Watt Fabrikat/ Typ: Eltako FRGBW71L oder gleichwertig",{"$f":"Stückliste!D156","v":0},""]
[]
[null,"Funkaktor für Beschattungselemente und Rollladen FSB71-24V DC\nSchaltaktor Beschattungselemente und Rollladen für einen 24V DC-Motor. Verschlüsselter Funk, bidirektionaler Funk und RepeaterFunktion zuschaltbar. Maße: 166mm lang, 46mm breit und 31mm tief. Mit Kabel-Zugentlastung. Kontakt: 1+1 Schließer 4A/250V AC, nicht potentialfrei Stand-by-Verlust: 0,9 Watt Fabrikat/ Typ: Eltako FSB71-24V DC oder gleichwertig",{"$f":"Stückliste!D157","v":0},""]
[]
[null,"Funkaktor für Beschattungselemente und Rollladen FSB71 \nSchaltaktor Beschattungselemente und Rollladen für einen 230V-Motor. Verschlüsselter Funk, bidirektionaler Funk und RepeaterFunktion zuschaltbar. Maße: 166mm lang, 46mm breit und 31mm tief. Mit Kabel-Zugentlastung. Kontakt: 1+1 Schließer 4A/250V AC, nicht potentialfrei Stand-by-Verlust: 0,8 Watt Fabrikat/ Typ: Eltako FSB71 oder gleichwertig",{"$f":"Stückliste!#REF!","v":{"$error":"#REF!"}},{"$error":"#REF!"}]
[]
[null,"Funkrepeater FRP70-230V\n1- und 2-Level-Funkrepeater mit kleiner Antenne und mit Antenne FA250 Stand-by-Verlust nur 0,6 Watt Fabrikat/ Typ: Eltako FRP70-230V oder gleichwertig",{"$f":"Stückliste!D158","v":0},""]
[]
[null,"Funkaktor Steckdosen-Schaltaktor FSSA-230V\n1 Schließer nicht potenzialfrei 10A/250V AC Glühlampen 2000 Watt ESL und LED bis 400 Watt. Verschlüsselter Funk, bidirektionaler Funk und Repeater-Funktion zuschaltbar Zuordnung von bis zu 35 Funktaster Stand-by-Verlust: nur 0,8 Watt Fabrikat/ Typ: Eltako FSSA-230V oder gleichwertig",{"$f":"Stückliste!D159","v":0},""]
[]
[null,"Funkaktor Steckdosen-Universal-Dimmschalter FSUD-230V\nAutomatische Lampenerkennung Mindesthelligkeit einstellbar Mit Kinderzimmer- und Schlummerschaltung Verschlüsselter Funk, bidirektionaler Funk und Repeater-Funktion zuschaltbar Zuordnung von bis zu 35 Funktaster Kontakt: Power MOSFET bis 300W Stand-by-Verlust: nur 0,7 Watt Fabrikat/ Typ: Eltako FSUD-230V oder gleichwertig",{"$f":"Stückliste!D160","v":0},""]
[]
[null,"Funkaktor Steckdosen-Heizaktor FSHA 1\nSchließer nicht potenzialfrei 10A/250VAC. Verschlüsselter Funk, bidirektionaler Funk und Repeater-Funktion zuschaltbar. Stand-by-Verlust: nur 0,8 Watt Fabrikat/ Typ: Eltako FSHA-230V oder gleichwertig",{"$f":"Stückliste!#REF!","v":{"$error":"#REF!"}},{"$error":"#REF!"}]
[]
[null,"Funk-Steckdosen-Repeater FSRP-230V\n1- und 2-Level-Funk-Steckdosen-Repeater empfängt und verstärkt die Signale aller Sensoren im Empfangsbereich Versorgungsspannung: 230V Stand-by-Verlust: 0,9 Watt Fabrikat/ Typ: Eltako FSRP-230V oder gleichwertig",{"$f":"Stückliste!D161","v":0},""]

{"sheet":"Changelog","index":5,"n_rows":14,"n_cols":2,"rows_kept":14,"cut":false,"hidden":true,"merged":[]}
["Datum","Änderungen"]
["2022-08-19","Logikkorrektur am Ende der Stückliste, Artikel werden aus der Gesamtpreisliste verwendet"]
["2022-09-14","Minisafe2 REG und Netzteil eingefügt"]
["2022-11-09","FRGBW14, FSR14M-2x, FDG62 eingefügt"]
["2022-11-13","Integration neues Schalterprogramm mit 6 verschiedenen Farben"]
["2023-02-01","Änderungen Scheffler (Bilderintegration)"]
["2023-02-03","Fehler Mengenerfassung und TE-Berechnung FSB14 beseitigt"]
["2023-02-03","Abfrage alle Temperaturfühler und Sensoren überarbeitet"]
["2023-02-03","Preisliste 1.5.2023 aktualisiert"]
["2023-02-16","TE bei FSB14, Zeilen ausblenden Makro angepasst, Logik für SNT bei 1+n Technik"]
["2022-04-20","Fehler bei FSB14 falsche TE"]
["2024-02-01","SNT gegen WNT ersetzt"]
["2024-07-03","SNT12 gegen WNT15 getauscht, Onwall USB-C Varianten ersetzt"]
["2024-07-05","WMS Multisensor  geändert"]